Workbook

Sheet WL
B1: Course: | C1: New Berlin Hills Golf Course
B2: Hole | C2: 10 | D2: 11 | E2: 12 | F2: 13 | G2: 14 | H2: 15 | I2: 16 | J2: 17 | K2: 18 | L2: Total | Q2: Hole | R2: =C2 -> 10 | S2: 11 | T2: 12 | U2: 13 | V2: 14 | W2: 15 | X2: 16 | Y2: 17 | Z2: 18 | AA2: Total
B3: Par | C3: 4 | D3: 4 | E3: 3 | F3: 5 | G3: 4 | H3: 3 | I3: 4 | J3: 4 | K3: 4 | L3: =SUM(C3:K3) -> 35 | Q3: Par | R3: 4 | S3: 4 | T3: 3 | U3: 5 | V3: 4 | W3: 3 | X3: 4 | Y3: 4 | Z3: 4 | AA3: =L3 -> 35
B4: Handicap | C4: 6 | D4: 8 | E4: 18 | F4: 2 | G4: 12 | H4: 16 | I4: 10 | J4: 14 | K4: 4 | Q4: Handicap | R4: 6 | S4: 8 | T4: 18 | U4: 2 | V4: 12 | W4: 16 | X4: 10 | Y4: 14 | Z4: 4
A7: Player | B7: BEAVER DAM | M7: Place | P7: Player | Q7: WATERTOWN | AB7: Place
A8: 1 | B8: Koby Jones - 12 | C8: 4 | D8: 5 | E8: 4 | F8: 5 | G8: 4 | H8: 6 | I8: 3 | J8: 4 | K8: 5 | L8: =IF(COUNTBLANK(C8:K8)>0,"",SUM(C8:K8)) -> 40 | M8: =VLOOKUP(BA8,$B$301:$E$340,4) -> 4 | P8: 1 | Q8: Cameron Boyd - 11 | R8: 4 | S8: 5 | T8: 4 | U8: 6 | V8: 5 | W8: 5 | X8: 5 | Y8: 5 | Z8: 5 | AA8: =IF(COUNTBLANK(R8:Z8)>0,"",SUM(R8:Z8)) -> 44 | AB8: =VLOOKUP(BB8,$B$301:$E$340,4) -> 13 | BA8: 1 | BB8: 21 | BC8: =LEN(L8) -> 2 | BD8: =LEN(AA8) -> 2
A9: 2 | B9: Thomas Bleich - 11 | C9: 6 | D9: 4 | E9: 3 | F9: 8 | G9: 5 | H9: 6 | I9: 5 | J9: 4 | K9: 7 | L9: =IF(COUNTBLANK(C9:K9)>0,"",SUM(C9:K9)) -> 48 | M9: =VLOOKUP(BA9,$B$301:$E$340,4) -> 21 | P9: 2 | Q9: Alex Thompson - 9 | R9: 6 | S9: 4 | T9: 4 | U9: 6 | V9: 6 | W9: 5 | X9: 5 | Y9: 4 | Z9: 5 | AA9: =IF(COUNTBLANK(R9:Z9)>0,"",SUM(R9:Z9)) -> 45 | AB9: =VLOOKUP(BB9,$B$301:$E$340,4) -> 15 | BA9: 2 | BB9: 22 | BC9: =LEN(L9) -> 2 | BD9: =LEN(AA9) -> 2
A10: 3 | B10: Jacob Smith - 10 | C10: 6 | D10: 5 | E10: 5 | F10: 5 | G10: 5 | H10: 5 | I10: 6 | J10: 5 | K10: 6 | L10: =IF(COUNTBLANK(C10:K10)>0,"",SUM(C10:K10)) -> 48 | M10: =VLOOKUP(BA10,$B$301:$E$340,4) -> 21 | P10: 3 | Q10: Collin Travis - 11 | R10: 6 | S10: 7 | T10: 5 | U10: 8 | V10: 6 | W10: 4 | X10: 11 | Y10: 5 | Z10: 5 | AA10: =IF(COUNTBLANK(R10:Z10)>0,"",SUM(R10:Z10)) -> 57 | AB10: =VLOOKUP(BB10,$B$301:$E$340,4) -> 35 | BA10: 3 | BB10: 23 | BC10: =LEN(L10) -> 2 | BD10: =LEN(AA10) -> 2
A11: 4 | B11: Cody Trottier - 12 | C11: 4 | D11: 5 | E11: 4 | F11: 6 | G11: 5 | H11: 4 | I11: 5 | J11: 5 | K11: 5 | L11: =IF(COUNTBLANK(C11:K11)>0,"",SUM(C11:K11)) -> 43 | M11: =VLOOKUP(BA11,$B$301:$E$340,4) -> 11 | P11: 4 | Q11: Austin Douglas - 10 | R11: 6 | S11: 5 | T11: 4 | U11: 6 | V11: 5 | W11: 4 | X11: 7 | Y11: 5 | Z11: 8 | AA11: =IF(COUNTBLANK(R11:Z11)>0,"",SUM(R11:Z11)) -> 50 | AB11: =VLOOKUP(BB11,$B$301:$E$340,4) -> 29 | BA11: 4 | BB11: 24 | BC11: =LEN(L11) -> 2 | BD11: =LEN(AA11) -> 2
A12: 5 | B12: Carter Smith - 11 | C12: 5 | D12: 6 | E12: 4 | F12: 6 | G12: 5 | H12: 5 | I12: 5 | J12: 3 | K12: 5 | L12: =IF(COUNTBLANK(C12:K12)>0,"",SUM(C12:K12)) -> 44 | M12: =VLOOKUP(BA12,$B$301:$E$340,4) -> 13 | P12: 5 | Q12: Dylan Rahfaldt - 9 | R12: 7 | S12: 6 | T12: 6 | U12: 7 | V12: 7 | W12: 5 | X12: 8 | Y12: 6 | Z12: 6 | AA12: =IF(COUNTBLANK(R12:Z12)>0,"",SUM(R12:Z12)) -> 58 | AB12: =VLOOKUP(BB12,$B$301:$E$340,4) -> 37 | BA12: 5 | BB12: 25 | BC12: =LEN(L12) -> 2 | BD12: =LEN(AA12) -> 2
L13: =IF(COUNT(L8:L12)=5,(SUM(L8:L12))-(MAX(L8:L12)),(IF(COUNT(L8:L12)=4,SUM(L8:L12),IF(COUNTBLANK(L8:L12)>0,SUM(L8:L12),"DQ")))) -> 175 | M13: =J351 -> 3 | AA13: =IF(COUNT(AA8:AA12)=5,(SUM(AA8:AA12))-(MAX(AA8:AA12)),(IF(COUNT(AA8:AA12)=4,SUM(AA8:AA12),IF(COUNTBLANK(AA8:AA12)>0,SUM(AA8:AA12),"DQ")))) -> 196 | AB13: =J355 -> 7
L14: =IF(COUNT(L8:L12)=5,MAX(L8:L12),IF(COUNT(L8:L12)<5,200,)) -> 48 | AA14: =IF(COUNT(AA8:AA12)=5,MAX(AA8:AA12),IF(COUNT(AA8:AA12)<5,200,)) -> 58
A15: Player | B15: HARTFORD | M15: Place | P15: Player | Q15: WEST BEND EAST | AB15: Place
A16: 1 | B16: Ryan Ruona - 11 | C16: 6 | D16: 4 | E16: 2 | F16: 5 | G16: 5 | H16: 3 | I16: 4 | J16: 4 | K16: 5 | L16: =IF(COUNTBLANK(C16:K16)>0,"",SUM(C16:K16)) -> 38 | M16: =VLOOKUP(BA16,$B$301:$E$340,4) -> 1 | P16: 1 | Q16: Devon Hanson - 11 | R16: 4 | S16: 5 | T16: 3 | U16: 4 | V16: 4 | W16: 3 | X16: 5 | Y16: 4 | Z16: 6 | AA16: =IF(COUNTBLANK(R16:Z16)>0,"",SUM(R16:Z16)) -> 38 | AB16: =VLOOKUP(BB16,$B$301:$E$340,4) -> 1 | BA16: 6 | BB16: 26 | BC16: =LEN(L16) -> 2 | BD16: =LEN(AA16) -> 2
A17: 2 | B17: John Turchi - 10 | C17: 5 | D17: 5 | E17: 6 | F17: 6 | G17: 6 | H17: 5 | I17: 6 | J17: 7 | K17: 5 | L17: =IF(COUNTBLANK(C17:K17)>0,"",SUM(C17:K17)) -> 51 | M17: =VLOOKUP(BA17,$B$301:$E$340,4) -> 33 | P17: 2 | Q17: Mitch Saari - 12 | R17: 7 | S17: 5 | T17: 6 | U17: 5 | V17: 6 | W17: 4 | X17: 4 | Y17: 5 | Z17: 5 | AA17: =IF(COUNTBLANK(R17:Z17)>0,"",SUM(R17:Z17)) -> 47 | AB17: =VLOOKUP(BB17,$B$301:$E$340,4) -> 19 | BA17: 7 | BB17: 27 | BC17: =LEN(L17) -> 2 | BD17: =LEN(AA17) -> 2
A18: 3 | B18: Lucas Hass - 11 | C18: 6 | D18: 6 | E18: 5 | F18: 7 | G18: 6 | H18: 5 | I18: 5 | J18: 4 | K18: 6 | L18: =IF(COUNTBLANK(C18:K18)>0,"",SUM(C18:K18)) -> 50 | M18: =VLOOKUP(BA18,$B$301:$E$340,4) -> 29 | P18: 3 | Q18: Sam Struebing - 11 | R18: 6 | S18: 5 | T18: 6 | U18: 6 | V18: 5 | W18: 4 | X18: 5 | Y18: 6 | Z18: 6 | AA18: =IF(COUNTBLANK(R18:Z18)>0,"",SUM(R18:Z18)) -> 49 | AB18: =VLOOKUP(BB18,$B$301:$E$340,4) -> 24 | BA18: 8 | BB18: 28 | BC18: =LEN(L18) -> 2 | BD18: =LEN(AA18) -> 2
A19: 4 | B19: Jake Lidwin - 11 | C19: 6 | D19: 6 | E19: 4 | F19: 6 | G19: 6 | H19: 4 | I19: 4 | J19: 8 | K19: 6 | L19: =IF(COUNTBLANK(C19:K19)>0,"",SUM(C19:K19)) -> 50 | M19: =VLOOKUP(BA19,$B$301:$E$340,4) -> 29 | P19: 4 | Q19: Josh Breuer - 12 | R19: 6 | S19: 7 | T19: 4 | U19: 8 | V19: 6 | W19: 5 | X19: 4 | Y19: 4 | Z19: 5 | AA19: =IF(COUNTBLANK(R19:Z19)>0,"",SUM(R19:Z19)) -> 49 | AB19: =VLOOKUP(BB19,$B$301:$E$340,4) -> 24 | BA19: 9 | BB19: 29 | BC19: =LEN(L19) -> 2 | BD19: =LEN(AA19) -> 2
A20: 5 | B20: Luke Carroll - 10 | C20: 11 | D20: 5 | E20: 3 | F20: 6 | G20: 6 | H20: 7 | I20: 7 | J20: 6 | K20: 6 | L20: =IF(COUNTBLANK(C20:K20)>0,"",SUM(C20:K20)) -> 57 | M20: =VLOOKUP(BA20,$B$301:$E$340,4) -> 35 | P20: 5 | Q20: Brad Halverson - 9 | R20: 6 | S20: 6 | T20: 4 | U20: 5 | V20: 6 | W20: 4 | X20: 5 | Y20: 5 | Z20: 8 | AA20: =IF(COUNTBLANK(R20:Z20)>0,"",SUM(R20:Z20)) -> 49 | AB20: =VLOOKUP(BB20,$B$301:$E$340,4) -> 24 | BA20: 10 | BB20: 30 | BC20: =LEN(L20) -> 2 | BD20: =LEN(AA20) -> 2
L21: =IF(COUNT(L16:L20)=5,(SUM(L16:L20))-(MAX(L16:L20)),(IF(COUNT(L16:L20)=4,SUM(L16:L20),IF(COUNTBLANK(L16:L20)>0,SUM(L16:L20),"DQ")))) -> 189 | M21: =J352 -> 6 | AA21: =IF(COUNT(AA16:AA20)=5,(SUM(AA16:AA20))-(MAX(AA16:AA20)),(IF(COUNT(AA16:AA20)=4,SUM(AA16:AA20),IF(COUNTBLANK(AA16:AA20)>0,SUM(AA16:AA20),"DQ")))) -> 183 | AB21: =J356 -> 5
L22: =IF(COUNT(L16:L20)=5,MAX(L16:L20),IF(COUNT(L16:L20)<5,200,)) -> 57 | AA22: =IF(COUNT(AA16:AA20)=5,MAX(AA16:AA20),IF(COUNT(AA16:AA20)<5,200,)) -> 49
A23: Player | B23: OCONOMOWOC | M23: Place | P23: Player | Q23: WEST BEND WEST | AB23: Place
A24: 1 | B24: George Kneiser - 11 | C24: 6 | D24: 4 | E24: 3 | F24: 5 | G24: 4 | H24: 5 | I24: 5 | J24: 4 | K24: 6 | L24: =IF(COUNTBLANK(C24:K24)>0,"",SUM(C24:K24)) -> 42 | M24: =VLOOKUP(BA24,$B$301:$E$340,4) -> 6 | P24: 1 | Q24: Alex Haas - 12 | R24: 4 | S24: 5 | T24: 4 | U24: 5 | V24: 5 | W24: 5 | X24: 4 | Y24: 5 | Z24: 5 | AA24: =IF(COUNTBLANK(R24:Z24)>0,"",SUM(R24:Z24)) -> 42 | AB24: =VLOOKUP(BB24,$B$301:$E$340,4) -> 6 | BA24: 11 | BB24: 31 | BC24: =LEN(L24) -> 2 | BD24: =LEN(AA24) -> 2
A25: 2 | B25: Colin Prom - 12 | C25: 4 | D25: 5 | E25: 4 | F25: 5 | G25: 5 | H25: 5 | I25: 4 | J25: 4 | K25: 4 | L25: =IF(COUNTBLANK(C25:K25)>0,"",SUM(C25:K25)) -> 40 | M25: =VLOOKUP(BA25,$B$301:$E$340,4) -> 4 | P25: 2 | Q25: Max Rohlinger - 10 | R25: 5 | S25: 4 | T25: 4 | U25: 5 | V25: 4 | W25: 5 | X25: 5 | Y25: 5 | Z25: 5 | AA25: =IF(COUNTBLANK(R25:Z25)>0,"",SUM(R25:Z25)) -> 42 | AB25: =VLOOKUP(BB25,$B$301:$E$340,4) -> 6 | BA25: 12 | BB25: 32 | BC25: =LEN(L25) -> 2 | BD25: =LEN(AA25) -> 2
A26: 3 | B26: Allan Moutvic - 12 | C26: 5 | D26: 5 | E26: 3 | F26: 6 | G26: 4 | H26: 3 | I26: 6 | J26: 4 | K26: 6 | L26: =IF(COUNTBLANK(C26:K26)>0,"",SUM(C26:K26)) -> 42 | M26: =VLOOKUP(BA26,$B$301:$E$340,4) -> 6 | P26: 3 | Q26: Jacob Droese - 12 | R26: 6 | S26: 4 | T26: 4 | U26: 7 | V26: 5 | W26: 4 | X26: 5 | Y26: 5 | Z26: 6 | AA26: =IF(COUNTBLANK(R26:Z26)>0,"",SUM(R26:Z26)) -> 46 | AB26: =VLOOKUP(BB26,$B$301:$E$340,4) -> 17 | BA26: 13 | BB26: 33 | BC26: =LEN(L26) -> 2 | BD26: =LEN(AA26) -> 2
A27: 4 | B27: Brett Lange - 12 | C27: 5 | D27: 4 | E27: 5 | F27: 6 | G27: 5 | H27: 7 | I27: 4 | J27: 5 | K27: 8 | L27: =IF(COUNTBLANK(C27:K27)>0,"",SUM(C27:K27)) -> 49 | M27: =VLOOKUP(BA27,$B$301:$E$340,4) -> 24 | P27: 4 | Q27: Kevin Albrecht - 11 | R27: 4 | S27: 7 | T27: 4 | U27: 4 | V27: 6 | W27: 4 | X27: 4 | Y27: 4 | Z27: 5 | AA27: =IF(COUNTBLANK(R27:Z27)>0,"",SUM(R27:Z27)) -> 42 | AB27: =VLOOKUP(BB27,$B$301:$E$340,4) -> 6 | BA27: 14 | BB27: 34 | BC27: =LEN(L27) -> 2 | BD27: =LEN(AA27) -> 2
A28: 5 | B28: Sam Hosch - 12 | C28: 6 | D28: 5 | E28: 3 | F28: 6 | G28: 5 | H28: 5 | I28: 5 | J28: 10 | K28: 6 | L28: =IF(COUNTBLANK(C28:K28)>0,"",SUM(C28:K28)) -> 51 | M28: =VLOOKUP(BA28,$B$301:$E$340,4) -> 33 | P28: 5 | Q28: Marvin Bateman - 11 | R28: 6 | S28: 6 | T28: 3 | U28: 6 | V28: 4 | W28: 4 | X28: 6 | Y28: 5 | Z28: 5 | AA28: =IF(COUNTBLANK(R28:Z28)>0,"",SUM(R28:Z28)) -> 45 | AB28: =VLOOKUP(BB28,$B$301:$E$340,4) -> 15 | BA28: 15 | BB28: 35 | BC28: =LEN(L28) -> 2 | BD28: =LEN(AA28) -> 2
L29: =IF(COUNT(L24:L28)=5,(SUM(L24:L28))-(MAX(L24:L28)),(IF(COUNT(L24:L28)=4,SUM(L24:L28),IF(COUNTBLANK(L24:L28)>0,SUM(L24:L28),"DQ")))) -> 173 | M29: =J353 -> 2 | AA29: =IF(COUNT(AA24:AA28)=5,(SUM(AA24:AA28))-(MAX(AA24:AA28)),(IF(COUNT(AA24:AA28)=4,SUM(AA24:AA28),IF(COUNTBLANK(AA24:AA28)>0,SUM(AA24:AA28),"DQ")))) -> 171 | AB29: =J357 -> 1
L30: =IF(COUNT(L24:L28)=5,MAX(L24:L28),IF(COUNT(L24:L28)<5,200,)) -> 51 | AA30: =IF(COUNT(AA24:AA28)=5,MAX(AA24:AA28),IF(COUNT(AA24:AA28)<5,200,)) -> 46
A31: Player | B31: SLINGER | M31: Place | P31: Player | Q31: WISCONSIN LUTHERAN | AB31: Place
A32: 1 | B32: Austin Walsh - 12 | C32: 5 | D32: 6 | E32: 5 | F32: 7 | G32: 5 | H32: 4 | I32: 5 | J32: 5 | K32: 4 | L32: =IF(COUNTBLANK(C32:K32)>0,"",SUM(C32:K32)) -> 46 | M32: =VLOOKUP(BA32,$B$301:$E$340,4) -> 17 | P32: 1 | Q32: Zachary Stahle - 11 | R32: 7 | S32: 5 | T32: 4 | U32: 6 | V32: 5 | W32: 4 | X32: 6 | Y32: 5 | Z32: 5 | AA32: =IF(COUNTBLANK(R32:Z32)>0,"",SUM(R32:Z32)) -> 47 | AB32: =VLOOKUP(BB32,$B$301:$E$340,4) -> 19 | BA32: 16 | BB32: 36 | BC32: =LEN(L32) -> 2 | BD32: =LEN(AA32) -> 2
A33: 2 | B33: Jack Burns - 12 | C33: 6 | D33: 4 | E33: 3 | F33: 5 | G33: 4 | H33: 3 | I33: 4 | J33: 5 | K33: 5 | L33: =IF(COUNTBLANK(C33:K33)>0,"",SUM(C33:K33)) -> 39 | M33: =VLOOKUP(BA33,$B$301:$E$340,4) -> 3 | P33: 2 | Q33: Ben Krause - 11 | R33: 6 | S33: 7 | T33: 4 | U33: 7 | V33: 6 | W33: 5 | X33: 5 | Y33: 4 | Z33: 5 | AA33: =IF(COUNTBLANK(R33:Z33)>0,"",SUM(R33:Z33)) -> 49 | AB33: =VLOOKUP(BB33,$B$301:$E$340,4) -> 24 | BA33: 17 | BB33: 37 | BC33: =LEN(L33) -> 2 | BD33: =LEN(AA33) -> 2
A34: 3 | B34: Chris Evans - 11 | C34: 6 | D34: 5 | E34: 5 | F34: 5 | G34: 4 | H34: 4 | I34: 4 | J34: 4 | K34: 6 | L34: =IF(COUNTBLANK(C34:K34)>0,"",SUM(C34:K34)) -> 43 | M34: =VLOOKUP(BA34,$B$301:$E$340,4) -> 11 | P34: 3 | Q34: Scratch #1 - | R34: 9 | S34: 9 | T34: 9 | U34: 9 | V34: 9 | W34: 9 | X34: 9 | Y34: 9 | Z34: 9 | AA34: =IF(COUNTBLANK(R34:Z34)>0,"",SUM(R34:Z34)) -> 81 | AB34: =VLOOKUP(BB34,$B$301:$E$340,4) -> 38 | BA34: 18 | BB34: 38 | BC34: =LEN(L34) -> 2 | BD34: =LEN(AA34) -> 2
A35: 4 | B35: Ryan Erdmann - 9 | C35: 6 | D35: 6 | E35: 4 | F35: 6 | G35: 6 | H35: 3 | I35: 5 | J35: 5 | K35: 7 | L35: =IF(COUNTBLANK(C35:K35)>0,"",SUM(C35:K35)) -> 48 | M35: =VLOOKUP(BA35,$B$301:$E$340,4) -> 21 | P35: 4 | Q35: Scratch #2 - | R35: 9 | S35: 9 | T35: 9 | U35: 9 | V35: 9 | W35: 9 | X35: 9 | Y35: 9 | Z35: 9 | AA35: =IF(COUNTBLANK(R35:Z35)>0,"",SUM(R35:Z35)) -> 81 | AB35: =VLOOKUP(BB35,$B$301:$E$340,4) -> 38 | BA35: 19 | BB35: 39 | BC35: =LEN(L35) -> 2 | BD35: =LEN(AA35) -> 2
A36: 5 | B36: Howie Wolf - 12 | C36: 5 | D36: 5 | E36: 4 | F36: 6 | G36: 7 | H36: 7 | I36: 6 | J36: 5 | K36: 5 | L36: =IF(COUNTBLANK(C36:K36)>0,"",SUM(C36:K36)) -> 50 | M36: =VLOOKUP(BA36,$B$301:$E$340,4) -> 29 | P36: 5 | Q36: Scratch #3 - | R36: 9 | S36: 9 | T36: 9 | U36: 9 | V36: 9 | W36: 9 | X36: 9 | Y36: 9 | Z36: 9 | AA36: =IF(COUNTBLANK(R36:Z36)>0,"",SUM(R36:Z36)) -> 81 | AB36: =VLOOKUP(BB36,$B$301:$E$340,4) -> 38 | BA36: 20 | BB36: 40 | BC36: =LEN(L36) -> 2 | BD36: =LEN(AA36) -> 2
L37: =IF(COUNT(L32:L36)=5,(SUM(L32:L36))-(MAX(L32:L36)),(IF(COUNT(L32:L36)=4,SUM(L32:L36),IF(COUNTBLANK(L32:L36)>0,SUM(L32:L36),"DQ")))) -> 176 | M37: =J354 -> 4 | AA37: =IF(COUNT(AA32:AA36)=5,(SUM(AA32:AA36))-(MAX(AA32:AA36)),(IF(COUNT(AA32:AA36)=4,SUM(AA32:AA36),IF(COUNTBLANK(AA32:AA36)>0,SUM(AA32:AA36),"DQ")))) -> 258 | AB37: =J358 -> 8
L38: =IF(COUNT(L32:L36)=5,MAX(L32:L36),IF(COUNT(L32:L36)<5,200,)) -> 50 | AA38: =IF(COUNT(AA32:AA36)=5,MAX(AA32:AA36),IF(COUNT(AA32:AA36)<5,200,)) -> 81
B41: Wisconsin Little Ten Varsity Golf | G41: Match # 1 | L41: Hosted By: | M41: Wisconsin Lutheran | Q41: ="WISCONSIN LITTLE TEN CONFERENCE STANDINGS " & Schedule!Q41 -> WISCONSIN LITTLE TEN CONFERENCE STANDINGS
Q42: Match | R42: 1 | S42: 2 | T42: 3 | U42: 4 | V42: 5 | W42: 6 | X42: 7 | Y42: 8 | Z42: 9 | AA42: Total
B43: Date: Apr 14, 2015 | D43: ="Location: " & C1 -> Location: New Berlin Hills Golf Course | Q43: =Rosters!$B$10 -> West Bend West | R43: 1 | AA43: =IF(SUM(R43:Z43)=0,"",SUM(R43:Z43)) -> 1
Q44: =Rosters!$B$6 -> Oconomowoc | R44: 2 | AA44: 2
B45: Weather - 65 and Sunny | Q45: =Rosters!$B$4 -> Beaver Dam | R45: 3 | AA45: 3
B46: (really, no kidding! ) | Q46: =Rosters!$B$7 -> Slinger | R46: 4 | AA46: 4
B47: Medalists: (38) - Ryan Ruona, Devon Hanson | Q47: =Rosters!$B$9 -> West Bend East | R47: 5 | AA47: 5
Q48: =Rosters!$B$5 -> Hartford | R48: 6 | AA48: 6
Q49: =Rosters!$B$8 -> Watertown | R49: 7 | AA49: 7
L50: = Birdies or Better | Q50: =Rosters!$B$11 -> Wisconsin Lutheran | R50: 8 | AA50: 8
B100: Course: | C100: New Berlin Hills Golf Course
B101: Hole | C101: 1 | D101: 2 | E101: 3 | F101: 4 | G101: 5 | H101: 6 | I101: 7 | J101: 8 | K101: 9 | L101: Total
B102: Par | C102: 5 | D102: 4 | E102: 4 | F102: 4 | G102: 4 | H102: 4 | I102: 3 | J102: 4 | K102: 4 | L102: =SUM(C102:K102) -> 36
B103: Handicap | C103: 3 | D103: 15 | E103: 5 | F103: 13 | G103: 9 | H103: 1 | I103: 17 | J103: 11 | K103: 7
B105: Course: | C105: New Berlin Hills Golf Course
B106: Hole | C106: 10 | D106: 11 | E106: 12 | F106: 13 | G106: 14 | H106: 15 | I106: 16 | J106: 17 | K106: 18 | L106: Total
B107: Par | C107: 4 | D107: 4 | E107: 3 | F107: 5 | G107: 4 | H107: 3 | I107: 4 | J107: 4 | K107: 4 | L107: =SUM(C107:K107) -> 35
B108: Handicap | C108: 6 | D108: 8 | E108: 18 | F108: 2 | G108: 12 | H108: 16 | I108: 10 | J108: 14 | K108: 4
B115: Course: | C115: New Berlin Hills Golf Course
B116: Hole | C116: 1 | D116: 2 | E116: 3 | F116: 4 | G116: 5 | H116: 6 | I116: 7 | J116: 8 | K116: 9 | L116: Total
B117: Par | C117: 5 | D117: 4 | E117: 4 | F117: 4 | G117: 4 | H117: 4 | I117: 3 | J117: 4 | K117: 4 | L117: =SUM(C117:K117) -> 36
B118: Handicap | C118: 3 | D118: 15 | E118: 5 | F118: 13 | G118: 9 | H118: 1 | I118: 17 | J118: 11 | K118: 7
B120: Course: | C120: New Berlin Hills Golf Course
B121: Hole | C121: 10 | D121: 11 | E121: 12 | F121: 13 | G121: 14 | H121: 15 | I121: 16 | J121: 17 | K121: 18 | L121: Total
B122: Par | C122: 4 | D122: 4 | E122: 3 | F122: 5 | G122: 4 | H122: 3 | I122: 4 | J122: 4 | K122: 4 | L122: =SUM(C122:K122) -> 35
B123: Handicap | C123: 6 | D123: 8 | E123: 18 | F123: 2 | G123: 12 | H123: 16 | I123: 10 | J123: 14 | K123: 4
B126: Course: | C126: Silver Spring CC (Island)
B127: Hole | C127: 1 | D127: 2 | E127: 3 | F127: 4 | G127: 5 | H127: 6 | I127: 7 | J127: 8 | K127: 9 | L127: Total
B128: Par | C128: 4 | D128: 4 | E128: 4 | F128: 3 | G128: 5 | H128: 4 | I128: 5 | J128: 3 | K128: 4 | L128: =SUM(C128:K128) -> 36
B129: Handicap | C129: 5 | D129: 9 | E129: 13 | F129: 15 | G129: 1 | H129: 11 | I129: 3 | J129: 17 | K129: 7
B131: Course: | C131: Silver Spring CC (Island)
B132: Hole | C132: 10 | D132: 11 | E132: 12 | F132: 13 | G132: 14 | H132: 15 | I132: 16 | J132: 17 | K132: 18 | L132: Total
B133: Par | C133: 3 | D133: 4 | E133: 4 | F133: 5 | G133: 3 | H133: 4 | I133: 4 | J133: 5 | K133: 4 | L133: =SUM(C133:K133) -> 36
B134: Handicap | C134: 16 | D134: 10 | E134: 14 | F134: 2 | G134: 18 | H134: 6 | I134: 12 | J134: 4 | K134: 8
B300: Player | C300: Sc | D300: Sort | E300: Rnk
B301: 1 | C301: =$L$8 -> 40 | E301: 4
B302: 2 | C302: =$L$9 -> 48 | E302: 21
B303: 3 | C303: =$L$10 -> 48 | E303: 21
B304: 4 | C304: =$L$11 -> 43 | E304: 11
B305: 5 | C305: =$L$12 -> 44 | E305: 13
B306: 6 | C306: =$L$16 -> 38 | E306: 1
B307: 7 | C307: =$L$17 -> 51 | E307: 33
B308: 8 | C308: =$L$18 -> 50 | E308: 29
B309: 9 | C309: =$L$19 -> 50 | E309: 29
B310: 10 | C310: =$L$20 -> 57 | E310: 35
B311: 11 | C311: =$L$24 -> 42 | E311: 6
B312: 12 | C312: =$L$25 -> 40 | E312: 4
B313: 13 | C313: =$L$26 -> 42 | E313: 6
B314: 14 | C314: =$L$27 -> 49 | E314: 24
B315: 15 | C315: =$L$28 -> 51 | E315: 33
B316: 16 | C316: =$L$32 -> 46 | E316: 17
B317: 17 | C317: =$L$33 -> 39 | E317: 3
B318: 18 | C318: =$L$34 -> 43 | E318: 11
B319: 19 | C319: =$L$35 -> 48 | E319: 21
B320: 20 | C320: =$L$36 -> 50 | E320: 29
B321: 21 | C321: =$AA$8 -> 44 | E321: 13
B322: 22 | C322: =$AA$9 -> 45 | E322: 15
B323: 23 | C323: =$AA$10 -> 57 | E323: 35
B324: 24 | C324: =$AA$11 -> 50 | E324: 29
B325: 25 | C325: =$AA$12 -> 58 | E325: 37
B326: 26 | C326: =$AA$16 -> 38 | E326: 1
B327: 27 | C327: =$AA$17 -> 47 | E327: 19
B328: 28 | C328: =$AA$18 -> 49 | E328: 24
B329: 29 | C329: =$AA$19 -> 49 | E329: 24
B330: 30 | C330: =$AA$20 -> 49 | E330: 24
B331: 31 | C331: =$AA$24 -> 42 | E331: 6
B332: 32 | C332: =$AA$25 -> 42 | E332: 6
B333: 33 | C333: =$AA$26 -> 46 | E333: 17
B334: 34 | C334: =$AA$27 -> 42 | E334: 6
B335: 35 | C335: =$AA$28 -> 45 | E335: 15
B336: 36 | C336: =$AA$32 -> 47 | E336: 19
B337: 37 | C337: =$AA$33 -> 49 | E337: 24
B338: 38 | C338: =$AA$34 -> 81 | E338: 38
B339: 39 | C339: =$AA$35 -> 81 | E339: 38
B340: 40 | C340: =$AA$36 -> 81 | E340: 38
B341: =B69 -> 0
B342: =B70 -> 0
B343: =B71 -> 0
J349: =DCOUNT(J350:J358,1,J347:J348) -> 8
C350: 1 | D350: 2 | E350: 3 | F350: 4 | G350: 5 | I350: Tot | J350: Rank
B351: Team1 | C351: =$L$8 -> 40 | D351: =$L$9 -> 48 | E351: =$L$10 -> 48 | F351: =$L$11 -> 43 | G351: =$L$12 -> 44 | H351: =$L$14 -> 48 | I351: =$L$13 -> 175 | J351: 3 | L351: 3 | R351: 0 | S351: 0 | T351: 0 | U351: 0 | V351: 0 | W351: 0 | X351: 0 | Y351: 0 | Z351: 0
B352: Team2 | C352: =$L$16 -> 38 | D352: =$L$17 -> 51 | E352: =$L$18 -> 50 | F352: =$L$19 -> 50 | G352: =$L$20 -> 57 | H352: =$L$22 -> 57 | I352: =$L$21 -> 189 | J352: 6 | L352: 6 | R352: 0 | S352: 0 | T352: 0 | U352: 0 | V352: 0 | W352: 0 | X352: 0 | Y352: 0 | Z352: 0
B353: Team3 | C353: =$L$24 -> 42 | D353: =$L$25 -> 40 | E353: =$L$26 -> 42 | F353: =$L$27 -> 49 | G353: =$L$28 -> 51 | H353: =$L$30 -> 51 | I353: =$L$29 -> 173 | J353: 2 | L353: 2 | R353: 0 | S353: 0 | T353: 0 | U353: 0 | V353: 0 | W353: 0 | X353: 0 | Y353: 0 | Z353: 0
B354: Team4 | C354: =$L$32 -> 46 | D354: =$L$33 -> 39 | E354: =$L$34 -> 43 | F354: =$L$35 -> 48 | G354: =$L$36 -> 50 | H354: =$L$38 -> 50 | I354: =$L$37 -> 176 | J354: 4 | L354: 4 | R354: 0 | S354: 0 | T354: 0 | U354: 0 | V354: 0 | W354: 0 | X354: 0 | Y354: 0 | Z354: 0
B355: Team5 | C355: =$AA$8 -> 44 | D355: =$AA$9 -> 45 | E355: =$AA$10 -> 57 | F355: =$AA$11 -> 50 | G355: =$AA$12 -> 58 | H355: =$AA$14 -> 58 | I355: =$AA$13 -> 196 | J355: 7 | L355: 7 | R355: 0 | S355: 0 | T355: 0 | U355: 0 | V355: 0 | W355: 0 | X355: 0 | Y355: 0 | Z355: 0
B356: Team6 | C356: =$AA$16 -> 38 | D356: =$AA$17 -> 47 | E356: =$AA$18 -> 49 | F356: =$AA$19 -> 49 | G356: =$AA$20 -> 49 | H356: =$AA$22 -> 49 | I356: =$AA$21 -> 183 | J356: 5 | L356: 5 | R356: 0 | S356: 0 | T356: 0 | U356: 0 | V356: 0 | W356: 0 | X356: 0 | Y356: 0 | Z356: 0
B357: Team7 | C357: =$AA$24 -> 42 | D357: =$AA$25 -> 42 | E357: =$AA$26 -> 46 | F357: =$AA$27 -> 42 | G357: =$AA$28 -> 45 | H357: =$AA$30 -> 46 | I357: =$AA$29 -> 171 | J357: 1 | L357: 1 | R357: 0 | S357: 0 | T357: 0 | U357: 0 | V357: 0 | W357: 0 | X357: 0 | Y357: 0 | Z357: 0
B358: Team8 | C358: =$AA$32 -> 47 | D358: =$AA$33 -> 49 | E358: =$AA$34 -> 81 | F358: =$AA$35 -> 81 | G358: =$AA$36 -> 81 | H358: =$AA$38 -> 81 | I358: =$AA$37 -> 258 | J358: 8 | L358: 8 | R358: 0 | S358: 0 | T358: 0 | U358: 0 | V358: 0 | W358: 0 | X358: 0 | Y358: 0 | Z358: 0
B401: =B8 -> Koby Jones - 12 | C401: =L8 -> 40
B402: =B9 -> Thomas Bleich - 11 | C402: =L9 -> 48
B403: =B10 -> Jacob Smith - 10 | C403: =L10 -> 48
B404: =B11 -> Cody Trottier - 12 | C404: =L11 -> 43
B405: =B12 -> Carter Smith - 11 | C405: =L12 -> 44
B406: =B16 -> Ryan Ruona - 11 | C406: =L16 -> 38
B407: =B17 -> John Turchi - 10 | C407: =L17 -> 51
B408: =B18 -> Lucas Hass - 11 | C408: =L18 -> 50
B409: =B19 -> Jake Lidwin - 11 | C409: =L19 -> 50
B410: =B20 -> Luke Carroll - 10 | C410: =L20 -> 57
B411: =B24 -> George Kneiser - 11 | C411: =L24 -> 42
B412: =B25 -> Colin Prom - 12 | C412: =L25 -> 40
B413: =B26 -> Allan Moutvic - 12 | C413: =L26 -> 42
B414: =B27 -> Brett Lange - 12 | C414: =L27 -> 49
B415: =B28 -> Sam Hosch - 12 | C415: =L28 -> 51
B416: =B32 -> Austin Walsh - 12 | C416: =L32 -> 46
B417: =B33 -> Jack Burns - 12 | C417: =L33 -> 39
B418: =B34 -> Chris Evans - 11 | C418: =L34 -> 43
B419: =B35 -> Ryan Erdmann - 9 | C419: =L35 -> 48
B420: =B36 -> Howie Wolf - 12 | C420: =L36 -> 50
B421: =Q8 -> Cameron Boyd - 11 | C421: =AA8 -> 44
B422: =Q9 -> Alex Thompson - 9 | C422: =AA9 -> 45
B423: =Q10 -> Collin Travis - 11 | C423: =AA10 -> 57
B424: =Q11 -> Austin Douglas - 10 | C424: =AA11 -> 50
B425: =Q12 -> Dylan Rahfaldt - 9 | C425: =AA12 -> 58
B426: =Q16 -> Devon Hanson - 11 | C426: =AA16 -> 38
B427: =Q17 -> Mitch Saari - 12 | C427: =AA17 -> 47
B428: =Q18 -> Sam Struebing - 11 | C428: =AA18 -> 49
B429: =Q19 -> Josh Breuer - 12 | C429: =AA19 -> 49
B430: =Q20 -> Brad Halverson - 9 | C430: =AA20 -> 49
B431: =Q24 -> Alex Haas - 12 | C431: =AA24 -> 42
B432: =Q25 -> Max Rohlinger - 10 | C432: =AA25 -> 42
B433: =Q26 -> Jacob Droese - 12 | C433: =AA26 -> 46
B434: =Q27 -> Kevin Albrecht - 11 | C434: =AA27 -> 42
B435: =Q28 -> Marvin Bateman - 11 | C435: =AA28 -> 45
B436: =Q32 -> Zachary Stahle - 11 | C436: =AA32 -> 47
B437: =Q33 -> Ben Krause - 11 | C437: =AA33 -> 49
B438: =Q34 -> Scratch #1 - | C438: =AA34 -> 81
B439: =Q35 -> Scratch #2 - | C439: =AA35 -> 81
B440: =Q36 -> Scratch #3 - | C440: =AA36 -> 81

Sheet WBW
B1: Course: | C1: West Bend Country Club
B2: Hole | C2: 10 | D2: 11 | E2: 12 | F2: 13 | G2: 14 | H2: 15 | I2: 16 | J2: 17 | K2: 18 | L2: Total | Q2: Hole | R2: =C2 -> 10 | S2: 11 | T2: 12 | U2: 13 | V2: 14 | W2: 15 | X2: 16 | Y2: 17 | Z2: 18 | AA2: Total
B3: Par | C3: 4 | D3: 5 | E3: 4 | F3: 3 | G3: 4 | H3: 5 | I3: 4 | J3: 3 | K3: 4 | L3: =SUM(C3:K3) -> 36 | Q3: Par | R3: 4 | S3: 5 | T3: 4 | U3: 3 | V3: 4 | W3: 5 | X3: 4 | Y3: 3 | Z3: 4 | AA3: =L3 -> 36
B4: Handicap | C4: 12 | D4: 4 | E4: 8 | F4: 18 | G4: 14 | H4: 2 | I4: 10 | J4: 16 | K4: 6 | Q4: Handicap | R4: 12 | S4: 4 | T4: 8 | U4: 18 | V4: 14 | W4: 2 | X4: 10 | Y4: 16 | Z4: 6
A7: Player | B7: BEAVER DAM | M7: Place | P7: Player | Q7: WATERTOWN | AB7: Place
A8: 1 | B8: Koby Jones - 12 | C8: 4 | D8: 5 | E8: 3 | F8: 5 | G8: 4 | H8: 7 | I8: 5 | J8: 4 | K8: 5 | L8: =IF(COUNTBLANK(C8:K8)>0,"",SUM(C8:K8)) -> 42 | M8: =VLOOKUP(BA8,$B$301:$E$340,4) -> 6 | P8: 1 | Q8: Cameron Boyd - 11 | R8: 6 | S8: 8 | T8: 3 | U8: 3 | V8: 5 | W8: 7 | X8: 5 | Y8: 5 | Z8: 6 | AA8: =IF(COUNTBLANK(R8:Z8)>0,"",SUM(R8:Z8)) -> 48 | AB8: =VLOOKUP(BB8,$B$301:$E$340,4) -> 24 | BA8: 1 | BB8: 21 | BC8: =LEN(L8) -> 2 | BD8: =LEN(AA8) -> 2
A9: 2 | B9: Cody Trottier - | C9: 5 | D9: 5 | E9: 5 | F9: 3 | G9: 5 | H9: 6 | I9: 5 | J9: 3 | K9: 6 | L9: =IF(COUNTBLANK(C9:K9)>0,"",SUM(C9:K9)) -> 43 | M9: =VLOOKUP(BA9,$B$301:$E$340,4) -> 7 | P9: 2 | Q9: Alex Thompson - 9 | R9: 6 | S9: 6 | T9: 8 | U9: 5 | V9: 4 | W9: 5 | X9: 5 | Y9: 6 | Z9: 5 | AA9: =IF(COUNTBLANK(R9:Z9)>0,"",SUM(R9:Z9)) -> 50 | AB9: =VLOOKUP(BB9,$B$301:$E$340,4) -> 28 | BA9: 2 | BB9: 22 | BC9: =LEN(L9) -> 2 | BD9: =LEN(AA9) -> 2
A10: 3 | B10: Jacob Smith - 10 | C10: 4 | D10: 7 | E10: 5 | F10: 3 | G10: 6 | H10: 6 | I10: 5 | J10: 3 | K10: 7 | L10: =IF(COUNTBLANK(C10:K10)>0,"",SUM(C10:K10)) -> 46 | M10: =VLOOKUP(BA10,$B$301:$E$340,4) -> 18 | P10: 3 | Q10: Austin Douglas - 10 | R10: 8 | S10: 8 | T10: 7 | U10: 5 | V10: 8 | W10: 8 | X10: 9 | Y10: 5 | Z10: 6 | AA10: =IF(COUNTBLANK(R10:Z10)>0,"",SUM(R10:Z10)) -> 64 | AB10: =VLOOKUP(BB10,$B$301:$E$340,4) -> 37 | BA10: 3 | BB10: 23 | BC10: =LEN(L10) -> 2 | BD10: =LEN(AA10) -> 2
A11: 4 | B11: Ryan Henning - | C11: 6 | D11: 6 | E11: 5 | F11: 6 | G11: 5 | H11: 6 | I11: 6 | J11: 5 | K11: 6 | L11: =IF(COUNTBLANK(C11:K11)>0,"",SUM(C11:K11)) -> 51 | M11: =VLOOKUP(BA11,$B$301:$E$340,4) -> 30 | P11: 4 | Q11: Collin Travis - 11 | R11: 6 | S11: 7 | T11: 6 | U11: 3 | V11: 5 | W11: 6 | X11: 4 | Y11: 4 | Z11: 6 | AA11: =IF(COUNTBLANK(R11:Z11)>0,"",SUM(R11:Z11)) -> 47 | AB11: =VLOOKUP(BB11,$B$301:$E$340,4) -> 19 | BA11: 4 | BB11: 24 | BC11: =LEN(L11) -> 2 | BD11: =LEN(AA11) -> 2
A12: 5 | B12: Carter Smith - 11 | C12: 5 | D12: 5 | E12: 5 | F12: 4 | G12: 4 | H12: 6 | I12: 5 | J12: 4 | K12: 6 | L12: =IF(COUNTBLANK(C12:K12)>0,"",SUM(C12:K12)) -> 44 | M12: =VLOOKUP(BA12,$B$301:$E$340,4) -> 10 | P12: 5 | Q12: Trevor Reierson - 11 | R12: 7 | S12: 8 | T12: 5 | U12: 4 | V12: 7 | W12: 7 | X12: 6 | Y12: 5 | Z12: 6 | AA12: =IF(COUNTBLANK(R12:Z12)>0,"",SUM(R12:Z12)) -> 55 | AB12: =VLOOKUP(BB12,$B$301:$E$340,4) -> 34 | BA12: 5 | BB12: 25 | BC12: =LEN(L12) -> 2 | BD12: =LEN(AA12) -> 2
L13: =IF(COUNT(L8:L12)=5,(SUM(L8:L12))-(MAX(L8:L12)),(IF(COUNT(L8:L12)=4,SUM(L8:L12),IF(COUNTBLANK(L8:L12)>0,SUM(L8:L12),"DQ")))) -> 175 | M13: =J351 -> 2 | AA13: =IF(COUNT(AA8:AA12)=5,(SUM(AA8:AA12))-(MAX(AA8:AA12)),(IF(COUNT(AA8:AA12)=4,SUM(AA8:AA12),IF(COUNTBLANK(AA8:AA12)>0,SUM(AA8:AA12),"DQ")))) -> 200 | AB13: =J355 -> 7
L14: =IF(COUNT(L8:L12)=5,MAX(L8:L12),IF(COUNT(L8:L12)<5,200,)) -> 51 | AA14: =IF(COUNT(AA8:AA12)=5,MAX(AA8:AA12),IF(COUNT(AA8:AA12)<5,200,)) -> 64
A15: Player | B15: HARTFORD | M15: Place | P15: Player | Q15: WEST BEND EAST | AB15: Place
A16: 1 | B16: Ryan Ruona - 11 | C16: 3 | D16: 9 | E16: 3 | F16: 4 | G16: 4 | H16: 6 | I16: 4 | J16: 4 | K16: 6 | L16: =IF(COUNTBLANK(C16:K16)>0,"",SUM(C16:K16)) -> 43 | M16: =VLOOKUP(BA16,$B$301:$E$340,4) -> 7 | P16: 1 | Q16: Devon Hanson - 11 | R16: 4 | S16: 5 | T16: 4 | U16: 4 | V16: 4 | W16: 5 | X16: 5 | Y16: 4 | Z16: 6 | AA16: =IF(COUNTBLANK(R16:Z16)>0,"",SUM(R16:Z16)) -> 41 | AB16: =VLOOKUP(BB16,$B$301:$E$340,4) -> 4 | BA16: 6 | BB16: 26 | BC16: =LEN(L16) -> 2 | BD16: =LEN(AA16) -> 2
A17: 2 | B17: Adam Butler - 12 | C17: 5 | D17: 4 | E17: 4 | F17: 5 | G17: 7 | H17: 7 | I17: 5 | J17: 4 | K17: 4 | L17: =IF(COUNTBLANK(C17:K17)>0,"",SUM(C17:K17)) -> 45 | M17: =VLOOKUP(BA17,$B$301:$E$340,4) -> 14 | P17: 2 | Q17: Mitch Saari - 12 | R17: 5 | S17: 4 | T17: 4 | U17: 3 | V17: 4 | W17: 5 | X17: 5 | Y17: 4 | Z17: 7 | AA17: =IF(COUNTBLANK(R17:Z17)>0,"",SUM(R17:Z17)) -> 41 | AB17: =VLOOKUP(BB17,$B$301:$E$340,4) -> 4 | BA17: 7 | BB17: 27 | BC17: =LEN(L17) -> 2 | BD17: =LEN(AA17) -> 2
A18: 3 | B18: John Turchi - 10 | C18: 5 | D18: 5 | E18: 5 | F18: 5 | G18: 5 | H18: 7 | I18: 6 | J18: 5 | K18: 5 | L18: =IF(COUNTBLANK(C18:K18)>0,"",SUM(C18:K18)) -> 48 | M18: =VLOOKUP(BA18,$B$301:$E$340,4) -> 24 | P18: 3 | Q18: Sam Struebing - 11 | R18: 4 | S18: 6 | T18: 7 | U18: 3 | V18: 7 | W18: 6 | X18: 4 | Y18: 5 | Z18: 6 | AA18: =IF(COUNTBLANK(R18:Z18)>0,"",SUM(R18:Z18)) -> 48 | AB18: =VLOOKUP(BB18,$B$301:$E$340,4) -> 24 | BA18: 8 | BB18: 28 | BC18: =LEN(L18) -> 2 | BD18: =LEN(AA18) -> 2
A19: 4 | B19: Lucas Hass - 11 | C19: 5 | D19: 6 | E19: 5 | F19: 5 | G19: 5 | H19: 6 | I19: 6 | J19: 4 | K19: 7 | L19: =IF(COUNTBLANK(C19:K19)>0,"",SUM(C19:K19)) -> 49 | M19: =VLOOKUP(BA19,$B$301:$E$340,4) -> 27 | P19: 4 | Q19: Josh Breuer - 12 | R19: 5 | S19: 6 | T19: 6 | U19: 4 | V19: 6 | W19: 6 | X19: 5 | Y19: 4 | Z19: 5 | AA19: =IF(COUNTBLANK(R19:Z19)>0,"",SUM(R19:Z19)) -> 47 | AB19: =VLOOKUP(BB19,$B$301:$E$340,4) -> 19 | BA19: 9 | BB19: 29 | BC19: =LEN(L19) -> 2 | BD19: =LEN(AA19) -> 2
A20: 5 | B20: Luke Carroll - 10 | C20: 5 | D20: 5 | E20: 6 | F20: 4 | G20: 4 | H20: 7 | I20: 3 | J20: 5 | K20: 6 | L20: =IF(COUNTBLANK(C20:K20)>0,"",SUM(C20:K20)) -> 45 | M20: =VLOOKUP(BA20,$B$301:$E$340,4) -> 14 | P20: 5 | Q20: Brad Halverson - 9 | R20: 4 | S20: 8 | T20: 5 | U20: 5 | V20: 6 | W20: 6 | X20: 6 | Y20: 5 | Z20: 5 | AA20: =IF(COUNTBLANK(R20:Z20)>0,"",SUM(R20:Z20)) -> 50 | AB20: =VLOOKUP(BB20,$B$301:$E$340,4) -> 28 | BA20: 10 | BB20: 30 | BC20: =LEN(L20) -> 2 | BD20: =LEN(AA20) -> 2
L21: =IF(COUNT(L16:L20)=5,(SUM(L16:L20))-(MAX(L16:L20)),(IF(COUNT(L16:L20)=4,SUM(L16:L20),IF(COUNTBLANK(L16:L20)>0,SUM(L16:L20),"DQ")))) -> 181 | M21: =J352 -> 5 | AA21: =IF(COUNT(AA16:AA20)=5,(SUM(AA16:AA20))-(MAX(AA16:AA20)),(IF(COUNT(AA16:AA20)=4,SUM(AA16:AA20),IF(COUNTBLANK(AA16:AA20)>0,SUM(AA16:AA20),"DQ")))) -> 177 | AB21: =J356 -> 4
L22: =IF(COUNT(L16:L20)=5,MAX(L16:L20),IF(COUNT(L16:L20)<5,200,)) -> 49 | AA22: =IF(COUNT(AA16:AA20)=5,MAX(AA16:AA20),IF(COUNT(AA16:AA20)<5,200,)) -> 50
A23: Player | B23: OCONOMOWOC | M23: Place | P23: Player | Q23: WEST BEND WEST | AB23: Place
A24: 1 | B24: George Kneiser - 11 | C24: 5 | D24: 8 | E24: 4 | F24: 3 | G24: 4 | H24: 5 | I24: 5 | J24: 5 | K24: 5 | L24: =IF(COUNTBLANK(C24:K24)>0,"",SUM(C24:K24)) -> 44 | M24: =VLOOKUP(BA24,$B$301:$E$340,4) -> 10 | P24: 1 | Q24: Alex Haas - 12 | R24: 4 | S24: 5 | T24: 4 | U24: 3 | V24: 5 | W24: 4 | X24: 4 | Y24: 4 | Z24: 4 | AA24: =IF(COUNTBLANK(R24:Z24)>0,"",SUM(R24:Z24)) -> 37 | AB24: =VLOOKUP(BB24,$B$301:$E$340,4) -> 1 | BA24: 11 | BB24: 31 | BC24: =LEN(L24) -> 2 | BD24: =LEN(AA24) -> 2
A25: 2 | B25: Colin Prom - 12 | C25: 4 | D25: 7 | E25: 4 | F25: 4 | G25: 4 | H25: 6 | I25: 6 | J25: 3 | K25: 6 | L25: =IF(COUNTBLANK(C25:K25)>0,"",SUM(C25:K25)) -> 44 | M25: =VLOOKUP(BA25,$B$301:$E$340,4) -> 10 | P25: 2 | Q25: Max Rohlinger - 10 | R25: 4 | S25: 7 | T25: 3 | U25: 4 | V25: 4 | W25: 5 | X25: 5 | Y25: 4 | Z25: 4 | AA25: =IF(COUNTBLANK(R25:Z25)>0,"",SUM(R25:Z25)) -> 40 | AB25: =VLOOKUP(BB25,$B$301:$E$340,4) -> 2 | BA25: 12 | BB25: 32 | BC25: =LEN(L25) -> 2 | BD25: =LEN(AA25) -> 2
A26: 3 | B26: Allan Moutvic - 12 | C26: 4 | D26: 6 | E26: 6 | F26: 4 | G26: 4 | H26: 5 | I26: 4 | J26: 3 | K26: 7 | L26: =IF(COUNTBLANK(C26:K26)>0,"",SUM(C26:K26)) -> 43 | M26: =VLOOKUP(BA26,$B$301:$E$340,4) -> 7 | P26: 3 | Q26: Jacob Droese - 12 | R26: 6 | S26: 8 | T26: 6 | U26: 4 | V26: 5 | W26: 6 | X26: 5 | Y26: 3 | Z26: 4 | AA26: =IF(COUNTBLANK(R26:Z26)>0,"",SUM(R26:Z26)) -> 47 | AB26: =VLOOKUP(BB26,$B$301:$E$340,4) -> 19 | BA26: 13 | BB26: 33 | BC26: =LEN(L26) -> 2 | BD26: =LEN(AA26) -> 2
A27: 4 | B27: Brett Lange - 12 | C27: 5 | D27: 6 | E27: 8 | F27: 4 | G27: 7 | H27: 7 | I27: 6 | J27: 5 | K27: 7 | L27: =IF(COUNTBLANK(C27:K27)>0,"",SUM(C27:K27)) -> 55 | M27: =VLOOKUP(BA27,$B$301:$E$340,4) -> 34 | P27: 4 | Q27: Kevin Albrecht - 11 | R27: 3 | S27: 5 | T27: 4 | U27: 4 | V27: 4 | W27: 6 | X27: 5 | Y27: 3 | Z27: 6 | AA27: =IF(COUNTBLANK(R27:Z27)>0,"",SUM(R27:Z27)) -> 40 | AB27: =VLOOKUP(BB27,$B$301:$E$340,4) -> 2 | BA27: 14 | BB27: 34 | BC27: =LEN(L27) -> 2 | BD27: =LEN(AA27) -> 2
A28: 5 | B28: Joey Ploch - | C28: 5 | D28: 5 | E28: 5 | F28: 5 | G28: 3 | H28: 6 | I28: 4 | J28: 4 | K28: 7 | L28: =IF(COUNTBLANK(C28:K28)>0,"",SUM(C28:K28)) -> 44 | M28: =VLOOKUP(BA28,$B$301:$E$340,4) -> 10 | P28: 5 | Q28: Nick Meucci - 12 | R28: 5 | S28: 5 | T28: 5 | U28: 5 | V28: 5 | W28: 5 | X28: 5 | Y28: 4 | Z28: 8 | AA28: =IF(COUNTBLANK(R28:Z28)>0,"",SUM(R28:Z28)) -> 47 | AB28: =VLOOKUP(BB28,$B$301:$E$340,4) -> 19 | BA28: 15 | BB28: 35 | BC28: =LEN(L28) -> 2 | BD28: =LEN(AA28) -> 2
L29: =IF(COUNT(L24:L28)=5,(SUM(L24:L28))-(MAX(L24:L28)),(IF(COUNT(L24:L28)=4,SUM(L24:L28),IF(COUNTBLANK(L24:L28)>0,SUM(L24:L28),"DQ")))) -> 175 | M29: =J353 -> 3 | AA29: =IF(COUNT(AA24:AA28)=5,(SUM(AA24:AA28))-(MAX(AA24:AA28)),(IF(COUNT(AA24:AA28)=4,SUM(AA24:AA28),IF(COUNTBLANK(AA24:AA28)>0,SUM(AA24:AA28),"DQ")))) -> 164 | AB29: =J357 -> 1
L30: =IF(COUNT(L24:L28)=5,MAX(L24:L28),IF(COUNT(L24:L28)<5,200,)) -> 55 | AA30: =IF(COUNT(AA24:AA28)=5,MAX(AA24:AA28),IF(COUNT(AA24:AA28)<5,200,)) -> 47
A31: Player | B31: SLINGER | M31: Place | P31: Player | Q31: WISCONSIN LUTHERAN | AB31: Place
A32: 1 | B32: Jack Burns - 12 | C32: 4 | D32: 7 | E32: 4 | F32: 3 | G32: 5 | H32: 5 | I32: 5 | J32: 4 | K32: 8 | L32: =IF(COUNTBLANK(C32:K32)>0,"",SUM(C32:K32)) -> 45 | M32: =VLOOKUP(BA32,$B$301:$E$340,4) -> 14 | P32: 1 | Q32: Zachary Stahle - 11 | R32: 7 | S32: 5 | T32: 4 | U32: 4 | V32: 6 | W32: 6 | X32: 4 | Y32: 5 | Z32: 6 | AA32: =IF(COUNTBLANK(R32:Z32)>0,"",SUM(R32:Z32)) -> 47 | AB32: =VLOOKUP(BB32,$B$301:$E$340,4) -> 19 | BA32: 16 | BB32: 36 | BC32: =LEN(L32) -> 2 | BD32: =LEN(AA32) -> 2
A33: 2 | B33: Ryan Graunke - 12 | C33: 7 | D33: 10 | E33: 4 | F33: 4 | G33: 5 | H33: 7 | I33: 4 | J33: 5 | K33: 5 | L33: =IF(COUNTBLANK(C33:K33)>0,"",SUM(C33:K33)) -> 51 | M33: =VLOOKUP(BA33,$B$301:$E$340,4) -> 30 | P33: 2 | Q33: Ben Krause - 11 | R33: 7 | S33: 6 | T33: 4 | U33: 5 | V33: 6 | W33: 8 | X33: 6 | Y33: 6 | Z33: 5 | AA33: =IF(COUNTBLANK(R33:Z33)>0,"",SUM(R33:Z33)) -> 53 | AB33: =VLOOKUP(BB33,$B$301:$E$340,4) -> 33 | BA33: 17 | BB33: 37 | BC33: =LEN(L33) -> 2 | BD33: =LEN(AA33) -> 2
A34: 3 | B34: Austin Walsh - 12 | C34: 5 | D34: 4 | E34: 4 | F34: 4 | G34: 6 | H34: 5 | I34: 5 | J34: 5 | K34: 7 | L34: =IF(COUNTBLANK(C34:K34)>0,"",SUM(C34:K34)) -> 45 | M34: =VLOOKUP(BA34,$B$301:$E$340,4) -> 14 | P34: 3 | Q34: Scratch #1 - | R34: 9 | S34: 9 | T34: 9 | U34: 9 | V34: 9 | W34: 9 | X34: 9 | Y34: 9 | Z34: 9 | AA34: =IF(COUNTBLANK(R34:Z34)>0,"",SUM(R34:Z34)) -> 81 | AB34: =VLOOKUP(BB34,$B$301:$E$340,4) -> 38 | BA34: 18 | BB34: 38 | BC34: =LEN(L34) -> 2 | BD34: =LEN(AA34) -> 2
A35: 4 | B35: Chris Evans - 11 | C35: 5 | D35: 8 | E35: 4 | F35: 5 | G35: 6 | H35: 7 | I35: 6 | J35: 4 | K35: 6 | L35: =IF(COUNTBLANK(C35:K35)>0,"",SUM(C35:K35)) -> 51 | M35: =VLOOKUP(BA35,$B$301:$E$340,4) -> 30 | P35: 4 | Q35: Scratch #2 - | R35: 9 | S35: 9 | T35: 9 | U35: 9 | V35: 9 | W35: 9 | X35: 9 | Y35: 9 | Z35: 9 | AA35: =IF(COUNTBLANK(R35:Z35)>0,"",SUM(R35:Z35)) -> 81 | AB35: =VLOOKUP(BB35,$B$301:$E$340,4) -> 38 | BA35: 19 | BB35: 39 | BC35: =LEN(L35) -> 2 | BD35: =LEN(AA35) -> 2
A36: 5 | B36: Bryan Laude - 12 | C36: 5 | D36: 9 | E36: 6 | F36: 4 | G36: 7 | H36: 7 | I36: 6 | J36: 5 | K36: 7 | L36: =IF(COUNTBLANK(C36:K36)>0,"",SUM(C36:K36)) -> 56 | M36: =VLOOKUP(BA36,$B$301:$E$340,4) -> 36 | P36: 5 | Q36: Scratch #3 - | R36: 9 | S36: 9 | T36: 9 | U36: 9 | V36: 9 | W36: 9 | X36: 9 | Y36: 9 | Z36: 9 | AA36: =IF(COUNTBLANK(R36:Z36)>0,"",SUM(R36:Z36)) -> 81 | AB36: =VLOOKUP(BB36,$B$301:$E$340,4) -> 38 | BA36: 20 | BB36: 40 | BC36: =LEN(L36) -> 2 | BD36: =LEN(AA36) -> 2
L37: =IF(COUNT(L32:L36)=5,(SUM(L32:L36))-(MAX(L32:L36)),(IF(COUNT(L32:L36)=4,SUM(L32:L36),IF(COUNTBLANK(L32:L36)>0,SUM(L32:L36),"DQ")))) -> 192 | M37: =J354 -> 6 | AA37: =IF(COUNT(AA32:AA36)=5,(SUM(AA32:AA36))-(MAX(AA32:AA36)),(IF(COUNT(AA32:AA36)=4,SUM(AA32:AA36),IF(COUNTBLANK(AA32:AA36)>0,SUM(AA32:AA36),"DQ")))) -> 262 | AB37: =J358 -> 8
L38: =IF(COUNT(L32:L36)=5,MAX(L32:L36),IF(COUNT(L32:L36)<5,200,)) -> 56 | AA38: =IF(COUNT(AA32:AA36)=5,MAX(AA32:AA36),IF(COUNT(AA32:AA36)<5,200,)) -> 81
B41: Wisconsin Little Ten Varsity Golf | G41: Match # 2 | L41: Hosted By: | M41: West Bend West | Q41: ="WISCONSIN LITTLE TEN CONFERENCE STANDINGS " & Schedule!Q41 -> WISCONSIN LITTLE TEN CONFERENCE STANDINGS
Q42: Match | R42: 1 | S42: 2 | T42: 3 | U42: 4 | V42: 5 | W42: 6 | X42: 7 | Y42: 8 | Z42: 9 | AA42: Total
B43: Date: Apr 20, 2015 | D43: ="Location: " & C1 -> Location: West Bend Country Club | Q43: =Rosters!$B$10 -> West Bend West | R43: 1 | S43: 1 | AA43: =IF(SUM(R43:Z43)=0,"",SUM(R43:Z43)) -> 2
B44: Weather: 43 and gusty; rain prior to tee off, drizzle for first 1/2 hr | Q44: =Rosters!$B$4 -> Beaver Dam | R44: 3 | S44: 2 | AA44: 5
Q45: =Rosters!$B$6 -> Oconomowoc | R45: 2 | S45: 3 | AA45: 5
B46: Medalist: (37) Alex Haas, WBW | Q46: =Rosters!$B$9 -> West Bend East | R46: 5 | S46: 4 | AA46: 9
B47: Medalist: (37) - Alex Haas | Q47: =Rosters!$B$7 -> Slinger | R47: 4 | S47: 6 | AA47: 10
Q48: =Rosters!$B$5 -> Hartford | R48: 6 | S48: 5 | AA48: 11
Q49: =Rosters!$B$8 -> Watertown | R49: 7 | S49: 7 | AA49: 14
L50: = Birdies or Better | Q50: =Rosters!$B$11 -> Wisconsin Lutheran | R50: 8 | S50: 8 | AA50: 16
B100: Course: | C100: West Bend Country Club
B101: Hole | C101: 1 | D101: 2 | E101: 3 | F101: 4 | G101: 5 | H101: 6 | I101: 7 | J101: 8 | K101: 9 | L101: Total
B102: Par | C102: 4 | D102: 4 | E102: 5 | F102: 3 | G102: 4 | H102: 5 | I102: 4 | J102: 3 | K102: 4 | L102: =SUM(C102:K102) -> 36
B103: Handicap | C103: 13 | D103: 11 | E103: 2 | F103: 15 | G103: 9 | H103: 1 | I103: 7 | J103: 17 | K103: 5
B105: Course: | C105: West Bend Country Club
B106: Hole | C106: 10 | D106: 11 | E106: 12 | F106: 13 | G106: 14 | H106: 15 | I106: 16 | J106: 17 | K106: 18 | L106: Total
B107: Par | C107: 4 | D107: 5 | E107: 4 | F107: 3 | G107: 4 | H107: 5 | I107: 4 | J107: 3 | K107: 4 | L107: =SUM(C107:K107) -> 36
B108: Handicap | C108: 12 | D108: 4 | E108: 8 | F108: 18 | G108: 14 | H108: 2 | I108: 10 | J108: 16 | K108: 6
B300: Player | C300: Sc | D300: Sort | E300: Rnk
B301: 1 | C301: =$L$8 -> 42 | E301: 6
B302: 2 | C302: =$L$9 -> 43 | E302: 7
B303: 3 | C303: =$L$10 -> 46 | E303: 18
B304: 4 | C304: =$L$11 -> 51 | E304: 30
B305: 5 | C305: =$L$12 -> 44 | E305: 10
B306: 6 | C306: =$L$16 -> 43 | E306: 7
B307: 7 | C307: =$L$17 -> 45 | E307: 14
B308: 8 | C308: =$L$18 -> 48 | E308: 24
B309: 9 | C309: =$L$19 -> 49 | E309: 27
B310: 10 | C310: =$L$20 -> 45 | E310: 14
B311: 11 | C311: =$L$24 -> 44 | E311: 10
B312: 12 | C312: =$L$25 -> 44 | E312: 10
B313: 13 | C313: =$L$26 -> 43 | E313: 7
B314: 14 | C314: =$L$27 -> 55 | E314: 34
B315: 15 | C315: =$L$28 -> 44 | E315: 10
B316: 16 | C316: =$L$32 -> 45 | E316: 14
B317: 17 | C317: =$L$33 -> 51 | E317: 30
B318: 18 | C318: =$L$34 -> 45 | E318: 14
B319: 19 | C319: =$L$35 -> 51 | E319: 30
B320: 20 | C320: =$L$36 -> 56 | E320: 36
B321: 21 | C321: =$AA$8 -> 48 | E321: 24
B322: 22 | C322: =$AA$9 -> 50 | E322: 28
B323: 23 | C323: =$AA$10 -> 64 | E323: 37
B324: 24 | C324: =$AA$11 -> 47 | E324: 19
B325: 25 | C325: =$AA$12 -> 55 | E325: 34
B326: 26 | C326: =$AA$16 -> 41 | E326: 4
B327: 27 | C327: =$AA$17 -> 41 | E327: 4
B328: 28 | C328: =$AA$18 -> 48 | E328: 24
B329: 29 | C329: =$AA$19 -> 47 | E329: 19
B330: 30 | C330: =$AA$20 -> 50 | E330: 28
B331: 31 | C331: =$AA$24 -> 37 | E331: 1
B332: 32 | C332: =$AA$25 -> 40 | E332: 2
B333: 33 | C333: =$AA$26 -> 47 | E333: 19
B334: 34 | C334: =$AA$27 -> 40 | E334: 2
B335: 35 | C335: =$AA$28 -> 47 | E335: 19
B336: 36 | C336: =$AA$32 -> 47 | E336: 19
B337: 37 | C337: =$AA$33 -> 53 | E337: 33
B338: 38 | C338: =$AA$34 -> 81 | E338: 38
B339: 39 | C339: =$AA$35 -> 81 | E339: 38
B340: 40 | C340: =$AA$36 -> 81 | E340: 38
B341: =B69 -> 0
B342: =B70 -> 0
B343: =B71 -> 0
J349: =DCOUNT(J350:J358,1,J347:J348) -> 8
C350: 1 | D350: 2 | E350: 3 | F350: 4 | G350: 5 | I350: Tot | J350: Rank
B351: Team1 | C351: =$L$8 -> 42 | D351: =$L$9 -> 43 | E351: =$L$10 -> 46 | F351: =$L$11 -> 51 | G351: =$L$12 -> 44 | H351: =$L$14 -> 51 | I351: =$L$13 -> 175 | J351: 2 | L351: 2 | R351: 0 | S351: 0 | T351: 0 | U351: 0 | V351: 0 | W351: 0 | X351: 0 | Y351: 0 | Z351: 0
B352: Team2 | C352: =$L$16 -> 43 | D352: =$L$17 -> 45 | E352: =$L$18 -> 48 | F352: =$L$19 -> 49 | G352: =$L$20 -> 45 | H352: =$L$22 -> 49 | I352: =$L$21 -> 181 | J352: 5 | L352: 5 | R352: 0 | S352: 0 | T352: 0 | U352: 0 | V352: 0 | W352: 0 | X352: 0 | Y352: 0 | Z352: 0
B353: Team3 | C353: =$L$24 -> 44 | D353: =$L$25 -> 44 | E353: =$L$26 -> 43 | F353: =$L$27 -> 55 | G353: =$L$28 -> 44 | H353: =$L$30 -> 55 | I353: =$L$29 -> 175 | J353: 3 | L353: 3 | R353: 0 | S353: 0 | T353: 0 | U353: 0 | V353: 0 | W353: 0 | X353: 0 | Y353: 0 | Z353: 0
B354: Team4 | C354: =$L$32 -> 45 | D354: =$L$33 -> 51 | E354: =$L$34 -> 45 | F354: =$L$35 -> 51 | G354: =$L$36 -> 56 | H354: =$L$38 -> 56 | I354: =$L$37 -> 192 | J354: 6 | L354: 6 | R354: 0 | S354: 0 | T354: 0 | U354: 0 | V354: 0 | W354: 0 | X354: 0 | Y354: 0 | Z354: 0
B355: Team5 | C355: =$AA$8 -> 48 | D355: =$AA$9 -> 50 | E355: =$AA$10 -> 64 | F355: =$AA$11 -> 47 | G355: =$AA$12 -> 55 | H355: =$AA$14 -> 64 | I355: =$AA$13 -> 200 | J355: 7 | L355: 7 | R355: 0 | S355: 0 | T355: 0 | U355: 0 | V355: 0 | W355: 0 | X355: 0 | Y355: 0 | Z355: 0
B356: Team6 | C356: =$AA$16 -> 41 | D356: =$AA$17 -> 41 | E356: =$AA$18 -> 48 | F356: =$AA$19 -> 47 | G356: =$AA$20 -> 50 | H356: =$AA$22 -> 50 | I356: =$AA$21 -> 177 | J356: 4 | L356: 4 | R356: 0 | S356: 0 | T356: 0 | U356: 0 | V356: 0 | W356: 0 | X356: 0 | Y356: 0 | Z356: 0
B357: Team7 | C357: =$AA$24 -> 37 | D357: =$AA$25 -> 40 | E357: =$AA$26 -> 47 | F357: =$AA$27 -> 40 | G357: =$AA$28 -> 47 | H357: =$AA$30 -> 47 | I357: =$AA$29 -> 164 | J357: 1 | L357: 1 | R357: 0 | S357: 0 | T357: 0 | U357: 0 | V357: 0 | W357: 0 | X357: 0 | Y357: 0 | Z357: 0
B358: Team8 | C358: =$AA$32 -> 47 | D358: =$AA$33 -> 53 | E358: =$AA$34 -> 81 | F358: =$AA$35 -> 81 | G358: =$AA$36 -> 81 | H358: =$AA$38 -> 81 | I358: =$AA$37 -> 262 | J358: 8 | L358: 8 | R358: 0 | S358: 0 | T358: 0 | U358: 0 | V358: 0 | W358: 0 | X358: 0 | Y358: 0 | Z358: 0
B401: =B8 -> Koby Jones - 12 | C401: =L8 -> 42
B402: =B9 -> Cody Trottier - | C402: =L9 -> 43
B403: =B10 -> Jacob Smith - 10 | C403: =L10 -> 46
B404: =B11 -> Ryan Henning - | C404: =L11 -> 51
B405: =B12 -> Carter Smith - 11 | C405: =L12 -> 44
B406: =B16 -> Ryan Ruona - 11 | C406: =L16 -> 43
B407: =B17 -> Adam Butler - 12 | C407: =L17 -> 45
B408: =B18 -> John Turchi - 10 | C408: =L18 -> 48
B409: =B19 -> Lucas Hass - 11 | C409: =L19 -> 49
B410: =B20 -> Luke Carroll - 10 | C410: =L20 -> 45
B411: =B24 -> George Kneiser - 11 | C411: =L24 -> 44
B412: =B25 -> Colin Prom - 12 | C412: =L25 -> 44
B413: =B26 -> Allan Moutvic - 12 | C413: =L26 -> 43
B414: =B27 -> Brett Lange - 12 | C414: =L27 -> 55
B415: =B28 -> Joey Ploch - | C415: =L28 -> 44
B416: =B32 -> Jack Burns - 12 | C416: =L32 -> 45
B417: =B33 -> Ryan Graunke - 12 | C417: =L33 -> 51
B418: =B34 -> Austin Walsh - 12 | C418: =L34 -> 45
B419: =B35 -> Chris Evans - 11 | C419: =L35 -> 51
B420: =B36 -> Bryan Laude - 12 | C420: =L36 -> 56
B421: =Q8 -> Cameron Boyd - 11 | C421: =AA8 -> 48
B422: =Q9 -> Alex Thompson - 9 | C422: =AA9 -> 50
B423: =Q10 -> Austin Douglas - 10 | C423: =AA10 -> 64
B424: =Q11 -> Collin Travis - 11 | C424: =AA11 -> 47
B425: =Q12 -> Trevor Reierson - 11 | C425: =AA12 -> 55
B426: =Q16 -> Devon Hanson - 11 | C426: =AA16 -> 41
B427: =Q17 -> Mitch Saari - 12 | C427: =AA17 -> 41
B428: =Q18 -> Sam Struebing - 11 | C428: =AA18 -> 48
B429: =Q19 -> Josh Breuer - 12 | C429: =AA19 -> 47
B430: =Q20 -> Brad Halverson - 9 | C430: =AA20 -> 50
B431: =Q24 -> Alex Haas - 12 | C431: =AA24 -> 37
B432: =Q25 -> Max Rohlinger - 10 | C432: =AA25 -> 40
B433: =Q26 -> Jacob Droese - 12 | C433: =AA26 -> 47
B434: =Q27 -> Kevin Albrecht - 11 | C434: =AA27 -> 40
B435: =Q28 -> Nick Meucci - 12 | C435: =AA28 -> 47
B436: =Q32 -> Zachary Stahle - 11 | C436: =AA32 -> 47
B437: =Q33 -> Ben Krause - 11 | C437: =AA33 -> 53
B438: =Q34 -> Scratch #1 - | C438: =AA34 -> 81
B439: =Q35 -> Scratch #2 - | C439: =AA35 -> 81
B440: =Q36 -> Scratch #3 - | C440: =AA36 -> 81

Sheet WBE
B1: Course: | C1: West Bend Country Club
B2: Hole | C2: 1 | D2: 2 | E2: 3 | F2: 4 | G2: 5 | H2: 6 | I2: 7 | J2: 8 | K2: 9 | L2: Total | Q2: Hole | R2: =C2 -> 1 | S2: 2 | T2: 3 | U2: 4 | V2: 5 | W2: 6 | X2: 7 | Y2: 8 | Z2: 9 | AA2: Total
B3: Par | C3: 4 | D3: 4 | E3: 5 | F3: 3 | G3: 4 | H3: 5 | I3: 4 | J3: 3 | K3: 4 | L3: =SUM(C3:K3) -> 36 | Q3: Par | R3: 4 | S3: 4 | T3: 5 | U3: 3 | V3: 4 | W3: 5 | X3: 4 | Y3: 3 | Z3: 4 | AA3: =L3 -> 36
B4: Handicap | C4: 13 | D4: 11 | E4: 2 | F4: 15 | G4: 9 | H4: 1 | I4: 7 | J4: 17 | K4: 5 | Q4: Handicap | R4: 13 | S4: 11 | T4: 2 | U4: 15 | V4: 9 | W4: 1 | X4: 7 | Y4: 17 | Z4: 5
A7: Player | B7: BEAVER DAM | M7: Place | P7: Player | Q7: WATERTOWN | AB7: Place
A8: 1 | B8: Koby Jones - 12 | C8: 4 | D8: 6 | E8: 5 | F8: 3 | G8: 5 | H8: 5 | I8: 5 | J8: 3 | K8: 4 | L8: =IF(COUNTBLANK(C8:K8)>0,"",SUM(C8:K8)) -> 40 | M8: =VLOOKUP(BA8,$B$301:$E$340,4) -> 2 | P8: 1 | Q8: Cameron Boyd - 11 | R8: 6 | S8: 6 | T8: 5 | U8: 5 | V8: 5 | W8: 5 | X8: 5 | Y8: 4 | Z8: 5 | AA8: =IF(COUNTBLANK(R8:Z8)>0,"",SUM(R8:Z8)) -> 46 | AB8: =VLOOKUP(BB8,$B$301:$E$340,4) -> 17 | BA8: 1 | BB8: 21 | BC8: =LEN(L8) -> 2 | BD8: =LEN(AA8) -> 2
A9: 2 | B9: Cody Trottier - | C9: 6 | D9: 6 | E9: 5 | F9: 4 | G9: 5 | H9: 5 | I9: 6 | J9: 4 | K9: 7 | L9: =IF(COUNTBLANK(C9:K9)>0,"",SUM(C9:K9)) -> 48 | M9: =VLOOKUP(BA9,$B$301:$E$340,4) -> 22 | P9: 2 | Q9: Alex Thompson - 9 | R9: 6 | S9: 4 | T9: 4 | U9: 5 | V9: 5 | W9: 7 | X9: 7 | Y9: 6 | Z9: 8 | AA9: =IF(COUNTBLANK(R9:Z9)>0,"",SUM(R9:Z9)) -> 52 | AB9: =VLOOKUP(BB9,$B$301:$E$340,4) -> 31 | BA9: 2 | BB9: 22 | BC9: =LEN(L9) -> 2 | BD9: =LEN(AA9) -> 2
A10: 3 | B10: Thomas Bleich - 11 | C10: 5 | D10: 6 | E10: 6 | F10: 4 | G10: 4 | H10: 5 | I10: 6 | J10: 4 | K10: 4 | L10: =IF(COUNTBLANK(C10:K10)>0,"",SUM(C10:K10)) -> 44 | M10: =VLOOKUP(BA10,$B$301:$E$340,4) -> 10 | P10: 3 | Q10: Collin Travis - 11 | R10: 4 | S10: 6 | T10: 8 | U10: 5 | V10: 6 | W10: 6 | X10: 5 | Y10: 3 | Z10: 5 | AA10: =IF(COUNTBLANK(R10:Z10)>0,"",SUM(R10:Z10)) -> 48 | AB10: =VLOOKUP(BB10,$B$301:$E$340,4) -> 22 | BA10: 3 | BB10: 23 | BC10: =LEN(L10) -> 2 | BD10: =LEN(AA10) -> 2
A11: 4 | B11: Ryan Henning - | C11: 4 | D11: 6 | E11: 7 | F11: 5 | G11: 8 | H11: 7 | I11: 5 | J11: 5 | K11: 4 | L11: =IF(COUNTBLANK(C11:K11)>0,"",SUM(C11:K11)) -> 51 | M11: =VLOOKUP(BA11,$B$301:$E$340,4) -> 29 | P11: 4 | Q11: Austin Douglas - 10 | R11: 5 | S11: 6 | T11: 7 | U11: 4 | V11: 4 | W11: 6 | X11: 5 | Y11: 5 | Z11: 6 | AA11: =IF(COUNTBLANK(R11:Z11)>0,"",SUM(R11:Z11)) -> 48 | AB11: =VLOOKUP(BB11,$B$301:$E$340,4) -> 22 | BA11: 4 | BB11: 24 | BC11: =LEN(L11) -> 2 | BD11: =LEN(AA11) -> 2
A12: 5 | B12: Carter Smith - 11 | C12: 5 | D12: 6 | E12: 6 | F12: 4 | G12: 5 | H12: 7 | I12: 6 | J12: 7 | K12: 5 | L12: =IF(COUNTBLANK(C12:K12)>0,"",SUM(C12:K12)) -> 51 | M12: =VLOOKUP(BA12,$B$301:$E$340,4) -> 29 | P12: 5 | Q12: Trevor Reierson - 11 | R12: 5 | S12: 7 | T12: 10 | U12: 4 | V12: 6 | W12: 6 | X12: 5 | Y12: 7 | Z12: 5 | AA12: =IF(COUNTBLANK(R12:Z12)>0,"",SUM(R12:Z12)) -> 55 | AB12: =VLOOKUP(BB12,$B$301:$E$340,4) -> 34 | BA12: 5 | BB12: 25 | BC12: =LEN(L12) -> 2 | BD12: =LEN(AA12) -> 2
L13: =IF(COUNT(L8:L12)=5,(SUM(L8:L12))-(MAX(L8:L12)),(IF(COUNT(L8:L12)=4,SUM(L8:L12),IF(COUNTBLANK(L8:L12)>0,SUM(L8:L12),"DQ")))) -> 183 | M13: =J351 -> 4 | AA13: =IF(COUNT(AA8:AA12)=5,(SUM(AA8:AA12))-(MAX(AA8:AA12)),(IF(COUNT(AA8:AA12)=4,SUM(AA8:AA12),IF(COUNTBLANK(AA8:AA12)>0,SUM(AA8:AA12),"DQ")))) -> 194 | AB13: =J355 -> 7
L14: =IF(COUNT(L8:L12)=5,MAX(L8:L12),IF(COUNT(L8:L12)<5,200,)) -> 51 | AA14: =IF(COUNT(AA8:AA12)=5,MAX(AA8:AA12),IF(COUNT(AA8:AA12)<5,200,)) -> 55
A15: Player | B15: HARTFORD | M15: Place | P15: Player | Q15: WEST BEND EAST | AB15: Place
A16: 1 | B16: Ryan Ruona - 11 | C16: 6 | D16: 5 | E16: 5 | F16: 6 | G16: 4 | H16: 7 | I16: 5 | J16: 4 | K16: 4 | L16: =IF(COUNTBLANK(C16:K16)>0,"",SUM(C16:K16)) -> 46 | M16: =VLOOKUP(BA16,$B$301:$E$340,4) -> 17 | P16: 1 | Q16: Devon Hanson - 11 | R16: 5 | S16: 4 | T16: 5 | U16: 4 | V16: 4 | W16: 5 | X16: 6 | Y16: 4 | Z16: 4 | AA16: =IF(COUNTBLANK(R16:Z16)>0,"",SUM(R16:Z16)) -> 41 | AB16: =VLOOKUP(BB16,$B$301:$E$340,4) -> 4 | BA16: 6 | BB16: 26 | BC16: =LEN(L16) -> 2 | BD16: =LEN(AA16) -> 2
A17: 2 | B17: Adam Butler - 12 | C17: 5 | D17: 6 | E17: 6 | F17: 4 | G17: 5 | H17: 5 | I17: 5 | J17: 6 | K17: 4 | L17: =IF(COUNTBLANK(C17:K17)>0,"",SUM(C17:K17)) -> 46 | M17: =VLOOKUP(BA17,$B$301:$E$340,4) -> 17 | P17: 2 | Q17: Mitch Saari - 12 | R17: 6 | S17: 5 | T17: 5 | U17: 3 | V17: 4 | W17: 6 | X17: 3 | Y17: 4 | Z17: 4 | AA17: =IF(COUNTBLANK(R17:Z17)>0,"",SUM(R17:Z17)) -> 40 | AB17: =VLOOKUP(BB17,$B$301:$E$340,4) -> 2 | BA17: 7 | BB17: 27 | BC17: =LEN(L17) -> 2 | BD17: =LEN(AA17) -> 2
A18: 3 | B18: John Turchi - 10 | C18: 6 | D18: 5 | E18: 6 | F18: 4 | G18: 4 | H18: 6 | I18: 6 | J18: 4 | K18: 6 | L18: =IF(COUNTBLANK(C18:K18)>0,"",SUM(C18:K18)) -> 47 | M18: =VLOOKUP(BA18,$B$301:$E$340,4) -> 20 | P18: 3 | Q18: Sam Struebing - 11 | R18: 7 | S18: 7 | T18: 6 | U18: 4 | V18: 6 | W18: 5 | X18: 10 | Y18: 5 | Z18: 6 | AA18: =IF(COUNTBLANK(R18:Z18)>0,"",SUM(R18:Z18)) -> 56 | AB18: =VLOOKUP(BB18,$B$301:$E$340,4) -> 36 | BA18: 8 | BB18: 28 | BC18: =LEN(L18) -> 2 | BD18: =LEN(AA18) -> 2
A19: 4 | B19: Lucas Hass - 11 | C19: 5 | D19: 5 | E19: 5 | F19: 3 | G19: 7 | H19: 6 | I19: 5 | J19: 5 | K19: 4 | L19: =IF(COUNTBLANK(C19:K19)>0,"",SUM(C19:K19)) -> 45 | M19: =VLOOKUP(BA19,$B$301:$E$340,4) -> 13 | P19: 4 | Q19: Josh Breuer - 12 | R19: 5 | S19: 5 | T19: 7 | U19: 4 | V19: 5 | W19: 7 | X19: 6 | Y19: 4 | Z19: 5 | AA19: =IF(COUNTBLANK(R19:Z19)>0,"",SUM(R19:Z19)) -> 48 | AB19: =VLOOKUP(BB19,$B$301:$E$340,4) -> 22 | BA19: 9 | BB19: 29 | BC19: =LEN(L19) -> 2 | BD19: =LEN(AA19) -> 2
A20: 5 | B20: Luke Carroll - 10 | C20: 5 | D20: 6 | E20: 6 | F20: 4 | G20: 5 | H20: 6 | I20: 7 | J20: 4 | K20: 5 | L20: =IF(COUNTBLANK(C20:K20)>0,"",SUM(C20:K20)) -> 48 | M20: =VLOOKUP(BA20,$B$301:$E$340,4) -> 22 | P20: 5 | Q20: Brad Halverson - 9 | R20: 6 | S20: 7 | T20: 8 | U20: 5 | V20: 6 | W20: 6 | X20: 7 | Y20: 3 | Z20: 7 | AA20: =IF(COUNTBLANK(R20:Z20)>0,"",SUM(R20:Z20)) -> 55 | AB20: =VLOOKUP(BB20,$B$301:$E$340,4) -> 34 | BA20: 10 | BB20: 30 | BC20: =LEN(L20) -> 2 | BD20: =LEN(AA20) -> 2
L21: =IF(COUNT(L16:L20)=5,(SUM(L16:L20))-(MAX(L16:L20)),(IF(COUNT(L16:L20)=4,SUM(L16:L20),IF(COUNTBLANK(L16:L20)>0,SUM(L16:L20),"DQ")))) -> 184 | M21: =J352 -> 5 | AA21: =IF(COUNT(AA16:AA20)=5,(SUM(AA16:AA20))-(MAX(AA16:AA20)),(IF(COUNT(AA16:AA20)=4,SUM(AA16:AA20),IF(COUNTBLANK(AA16:AA20)>0,SUM(AA16:AA20),"DQ")))) -> 184 | AB21: =J356 -> 6
L22: =IF(COUNT(L16:L20)=5,MAX(L16:L20),IF(COUNT(L16:L20)<5,200,)) -> 48 | AA22: =IF(COUNT(AA16:AA20)=5,MAX(AA16:AA20),IF(COUNT(AA16:AA20)<5,200,)) -> 56
A23: Player | B23: OCONOMOWOC | M23: Place | P23: Player | Q23: WEST BEND WEST | AB23: Place
A24: 1 | B24: George Kneiser - 11 | C24: 4 | D24: 4 | E24: 5 | F24: 4 | G24: 5 | H24: 6 | I24: 6 | J24: 3 | K24: 5 | L24: =IF(COUNTBLANK(C24:K24)>0,"",SUM(C24:K24)) -> 42 | M24: =VLOOKUP(BA24,$B$301:$E$340,4) -> 5 | P24: 1 | Q24: Alex Haas - 12 | R24: 4 | S24: 4 | T24: 6 | U24: 4 | V24: 4 | W24: 5 | X24: 7 | Y24: 4 | Z24: 5 | AA24: =IF(COUNTBLANK(R24:Z24)>0,"",SUM(R24:Z24)) -> 43 | AB24: =VLOOKUP(BB24,$B$301:$E$340,4) -> 6 | BA24: 11 | BB24: 31 | BC24: =LEN(L24) -> 2 | BD24: =LEN(AA24) -> 2
A25: 2 | B25: Colin Prom - 12 | C25: 5 | D25: 5 | E25: 5 | F25: 4 | G25: 5 | H25: 6 | I25: 7 | J25: 5 | K25: 6 | L25: =IF(COUNTBLANK(C25:K25)>0,"",SUM(C25:K25)) -> 48 | M25: =VLOOKUP(BA25,$B$301:$E$340,4) -> 22 | P25: 2 | Q25: Max Rohlinger - 10 | R25: 4 | S25: 5 | T25: 5 | U25: 4 | V25: 6 | W25: 5 | X25: 5 | Y25: 3 | Z25: 6 | AA25: =IF(COUNTBLANK(R25:Z25)>0,"",SUM(R25:Z25)) -> 43 | AB25: =VLOOKUP(BB25,$B$301:$E$340,4) -> 6 | BA25: 12 | BB25: 32 | BC25: =LEN(L25) -> 2 | BD25: =LEN(AA25) -> 2
A26: 3 | B26: Allan Moutvic - 12 | C26: 8 | D26: 5 | E26: 6 | F26: 4 | G26: 6 | H26: 5 | I26: 9 | J26: 6 | K26: 5 | L26: =IF(COUNTBLANK(C26:K26)>0,"",SUM(C26:K26)) -> 54 | M26: =VLOOKUP(BA26,$B$301:$E$340,4) -> 33 | P26: 3 | Q26: Kevin Albrecht - 11 | R26: 7 | S26: 5 | T26: 5 | U26: 4 | V26: 6 | W26: 6 | X26: 4 | Y26: 3 | Z26: 5 | AA26: =IF(COUNTBLANK(R26:Z26)>0,"",SUM(R26:Z26)) -> 45 | AB26: =VLOOKUP(BB26,$B$301:$E$340,4) -> 13 | BA26: 13 | BB26: 33 | BC26: =LEN(L26) -> 2 | BD26: =LEN(AA26) -> 2
A27: 4 | B27: Brett Lange - 12 | C27: 4 | D27: 7 | E27: 5 | F27: 4 | G27: 6 | H27: 6 | I27: 5 | J27: 4 | K27: 4 | L27: =IF(COUNTBLANK(C27:K27)>0,"",SUM(C27:K27)) -> 45 | M27: =VLOOKUP(BA27,$B$301:$E$340,4) -> 13 | P27: 4 | Q27: Jacob Droese - 12 | R27: 4 | S27: 5 | T27: 6 | U27: 4 | V27: 5 | W27: 6 | X27: 5 | Y27: 3 | Z27: 5 | AA27: =IF(COUNTBLANK(R27:Z27)>0,"",SUM(R27:Z27)) -> 43 | AB27: =VLOOKUP(BB27,$B$301:$E$340,4) -> 6 | BA27: 14 | BB27: 34 | BC27: =LEN(L27) -> 2 | BD27: =LEN(AA27) -> 2
A28: 5 | B28: Joey Ploch - | C28: 4 | D28: 5 | E28: 6 | F28: 3 | G28: 5 | H28: 5 | I28: 7 | J28: 4 | K28: 5 | L28: =IF(COUNTBLANK(C28:K28)>0,"",SUM(C28:K28)) -> 44 | M28: =VLOOKUP(BA28,$B$301:$E$340,4) -> 10 | P28: 5 | Q28: Nick Meucci - 12 | R28: 4 | S28: 5 | T28: 6 | U28: 4 | V28: 5 | W28: 7 | X28: 5 | Y28: 4 | Z28: 5 | AA28: =IF(COUNTBLANK(R28:Z28)>0,"",SUM(R28:Z28)) -> 45 | AB28: =VLOOKUP(BB28,$B$301:$E$340,4) -> 13 | BA28: 15 | BB28: 35 | BC28: =LEN(L28) -> 2 | BD28: =LEN(AA28) -> 2
L29: =IF(COUNT(L24:L28)=5,(SUM(L24:L28))-(MAX(L24:L28)),(IF(COUNT(L24:L28)=4,SUM(L24:L28),IF(COUNTBLANK(L24:L28)>0,SUM(L24:L28),"DQ")))) -> 179 | M29: =J353 -> 3 | AA29: =IF(COUNT(AA24:AA28)=5,(SUM(AA24:AA28))-(MAX(AA24:AA28)),(IF(COUNT(AA24:AA28)=4,SUM(AA24:AA28),IF(COUNTBLANK(AA24:AA28)>0,SUM(AA24:AA28),"DQ")))) -> 174 | AB29: =J357 -> 2
L30: =IF(COUNT(L24:L28)=5,MAX(L24:L28),IF(COUNT(L24:L28)<5,200,)) -> 54 | AA30: =IF(COUNT(AA24:AA28)=5,MAX(AA24:AA28),IF(COUNT(AA24:AA28)<5,200,)) -> 45
A31: Player | B31: SLINGER | M31: Place | P31: Player | Q31: WISCONSIN LUTHERAN | AB31: Place
A32: 1 | B32: Jack Burns - 12 | C32: 6 | D32: 6 | E32: 5 | F32: 4 | G32: 5 | H32: 6 | I32: 7 | J32: 3 | K32: 5 | L32: =IF(COUNTBLANK(C32:K32)>0,"",SUM(C32:K32)) -> 47 | M32: =VLOOKUP(BA32,$B$301:$E$340,4) -> 20 | P32: 1 | Q32: Zachary Stahle - 12 | R32: 10 | S32: 8 | T32: 5 | U32: 4 | V32: 6 | W32: 5 | X32: 4 | Y32: 6 | Z32: 8 | AA32: =IF(COUNTBLANK(R32:Z32)>0,"",SUM(R32:Z32)) -> 56 | AB32: =VLOOKUP(BB32,$B$301:$E$340,4) -> 36 | BA32: 16 | BB32: 36 | BC32: =LEN(L32) -> 2 | BD32: =LEN(AA32) -> 2
A33: 2 | B33: Ryan Graunke - 12 | C33: 5 | D33: 6 | E33: 5 | F33: 4 | G33: 7 | H33: 6 | I33: 6 | J33: 6 | K33: 5 | L33: =IF(COUNTBLANK(C33:K33)>0,"",SUM(C33:K33)) -> 50 | M33: =VLOOKUP(BA33,$B$301:$E$340,4) -> 28 | P33: 2 | Q33: Ben Krause - 12 | R33: 6 | S33: 5 | T33: 5 | U33: 4 | V33: 6 | W33: 10 | X33: 7 | Y33: 3 | Z33: 7 | AA33: =IF(COUNTBLANK(R33:Z33)>0,"",SUM(R33:Z33)) -> 53 | AB33: =VLOOKUP(BB33,$B$301:$E$340,4) -> 32 | BA33: 17 | BB33: 37 | BC33: =LEN(L33) -> 2 | BD33: =LEN(AA33) -> 2
A34: 3 | B34: Austin Walsh - 12 | C34: 4 | D34: 6 | E34: 4 | F34: 2 | G34: 3 | H34: 6 | I34: 2 | J34: 3 | K34: 4 | L34: =IF(COUNTBLANK(C34:K34)>0,"",SUM(C34:K34)) -> 34 | M34: =VLOOKUP(BA34,$B$301:$E$340,4) -> 1 | P34: 3 | Q34: Scratch #1 - x | R34: 9 | S34: 9 | T34: 9 | U34: 9 | V34: 9 | W34: 9 | X34: 9 | Y34: 9 | Z34: 9 | AA34: =IF(COUNTBLANK(R34:Z34)>0,"",SUM(R34:Z34)) -> 81 | AB34: =VLOOKUP(BB34,$B$301:$E$340,4) -> 38 | BA34: 18 | BB34: 38 | BC34: =LEN(L34) -> 2 | BD34: =LEN(AA34) -> 2
A35: 4 | B35: Chris Evans - 11 | C35: 5 | D35: 6 | E35: 6 | F35: 3 | G35: 4 | H35: 5 | I35: 5 | J35: 5 | K35: 4 | L35: =IF(COUNTBLANK(C35:K35)>0,"",SUM(C35:K35)) -> 43 | M35: =VLOOKUP(BA35,$B$301:$E$340,4) -> 6 | P35: 4 | Q35: Scratch #2 - x | R35: 9 | S35: 9 | T35: 9 | U35: 9 | V35: 9 | W35: 9 | X35: 9 | Y35: 9 | Z35: 9 | AA35: =IF(COUNTBLANK(R35:Z35)>0,"",SUM(R35:Z35)) -> 81 | AB35: =VLOOKUP(BB35,$B$301:$E$340,4) -> 38 | BA35: 19 | BB35: 39 | BC35: =LEN(L35) -> 2 | BD35: =LEN(AA35) -> 2
A36: 5 | B36: Ryan Kusek - 9 | C36: 5 | D36: 5 | E36: 6 | F36: 5 | G36: 4 | H36: 6 | I36: 5 | J36: 3 | K36: 5 | L36: =IF(COUNTBLANK(C36:K36)>0,"",SUM(C36:K36)) -> 44 | M36: =VLOOKUP(BA36,$B$301:$E$340,4) -> 10 | P36: 5 | Q36: Scratch #3 - x | R36: 9 | S36: 9 | T36: 9 | U36: 9 | V36: 9 | W36: 9 | X36: 9 | Y36: 9 | Z36: 9 | AA36: =IF(COUNTBLANK(R36:Z36)>0,"",SUM(R36:Z36)) -> 81 | AB36: =VLOOKUP(BB36,$B$301:$E$340,4) -> 38 | BA36: 20 | BB36: 40 | BC36: =LEN(L36) -> 2 | BD36: =LEN(AA36) -> 2
L37: =IF(COUNT(L32:L36)=5,(SUM(L32:L36))-(MAX(L32:L36)),(IF(COUNT(L32:L36)=4,SUM(L32:L36),IF(COUNTBLANK(L32:L36)>0,SUM(L32:L36),"DQ")))) -> 168 | M37: =J354 -> 1 | AA37: =IF(COUNT(AA32:AA36)=5,(SUM(AA32:AA36))-(MAX(AA32:AA36)),(IF(COUNT(AA32:AA36)=4,SUM(AA32:AA36),IF(COUNTBLANK(AA32:AA36)>0,SUM(AA32:AA36),"DQ")))) -> 271 | AB37: =J358 -> 8
L38: =IF(COUNT(L32:L36)=5,MAX(L32:L36),IF(COUNT(L32:L36)<5,200,)) -> 50 | AA38: =IF(COUNT(AA32:AA36)=5,MAX(AA32:AA36),IF(COUNT(AA32:AA36)<5,200,)) -> 81
B41: Wisconsin Little Ten Varsity Golf | G41: Match # 3 | L41: Hosted By: | M41: West Bend East | Q41: ="WISCONSIN LITTLE TEN CONFERENCE STANDINGS " & Schedule!Q41 -> WISCONSIN LITTLE TEN CONFERENCE STANDINGS
Q42: Match | R42: 1 | S42: 2 | T42: 3 | U42: 4 | V42: 5 | W42: 6 | X42: 7 | Y42: 8 | Z42: 9 | AA42: Total
B43: Date: Apr 27, 2015 | D43: ="Location: " & C1 -> Location: West Bend Country Club | Q43: =Rosters!$B$10 -> West Bend West | R43: 1 | S43: 1 | T43: 2 | AA43: =IF(SUM(R43:Z43)=0,"",SUM(R43:Z43)) -> 4
B44: Weather - 50, sunny, very light breeze | Q44: =Rosters!$B$6 -> Oconomowoc | R44: 2 | S44: 3 | T44: 3 | AA44: 8
Q45: =Rosters!$B$4 -> Beaver Dam | R45: 3 | S45: 2 | T45: 4 | AA45: 9
Q46: =Rosters!$B$7 -> Slinger | R46: 4 | S46: 6 | T46: 1 | AA46: 11
B47: Medalist: (34) - Austin Walsh | Q47: =Rosters!$B$9 -> West Bend East | R47: 5 | S47: 4 | T47: 6 | AA47: 15
Q48: =Rosters!$B$5 -> Hartford | R48: 6 | S48: 5 | T48: 5 | AA48: 16
Q49: =Rosters!$B$8 -> Watertown | R49: 7 | S49: 7 | T49: 7 | AA49: 21
L50: = Birdies or Better | Q50: =Rosters!$B$11 -> Wisconsin Lutheran | R50: 8 | S50: 8 | T50: 8 | AA50: 24
B100: Course: | C100: West Bend Country Club
B101: Hole | C101: 1 | D101: 2 | E101: 3 | F101: 4 | G101: 5 | H101: 6 | I101: 7 | J101: 8 | K101: 9 | L101: Total
B102: Par | C102: 4 | D102: 4 | E102: 5 | F102: 3 | G102: 4 | H102: 5 | I102: 4 | J102: 3 | K102: 4 | L102: =SUM(C102:K102) -> 36
B103: Handicap | C103: 13 | D103: 11 | E103: 2 | F103: 15 | G103: 9 | H103: 1 | I103: 7 | J103: 17 | K103: 5
B105: Course: | C105: West Bend Country Club
B106: Hole | C106: 10 | D106: 11 | E106: 12 | F106: 13 | G106: 14 | H106: 15 | I106: 16 | J106: 17 | K106: 18 | L106: Total
B107: Par | C107: 4 | D107: 5 | E107: 4 | F107: 3 | G107: 4 | H107: 5 | I107: 4 | J107: 3 | K107: 4 | L107: =SUM(C107:K107) -> 36
B108: Handicap | C108: 12 | D108: 4 | E108: 8 | F108: 18 | G108: 14 | H108: 2 | I108: 10 | J108: 16 | K108: 6
B300: Player | C300: Sc | D300: Sort | E300: Rnk
B301: 1 | C301: =$L$8 -> 40 | E301: 2
B302: 2 | C302: =$L$9 -> 48 | E302: 22
B303: 3 | C303: =$L$10 -> 44 | E303: 10
B304: 4 | C304: =$L$11 -> 51 | E304: 29
B305: 5 | C305: =$L$12 -> 51 | E305: 29
B306: 6 | C306: =$L$16 -> 46 | E306: 17
B307: 7 | C307: =$L$17 -> 46 | E307: 17
B308: 8 | C308: =$L$18 -> 47 | E308: 20
B309: 9 | C309: =$L$19 -> 45 | E309: 13
B310: 10 | C310: =$L$20 -> 48 | E310: 22
B311: 11 | C311: =$L$24 -> 42 | E311: 5
B312: 12 | C312: =$L$25 -> 48 | E312: 22
B313: 13 | C313: =$L$26 -> 54 | E313: 33
B314: 14 | C314: =$L$27 -> 45 | E314: 13
B315: 15 | C315: =$L$28 -> 44 | E315: 10
B316: 16 | C316: =$L$32 -> 47 | E316: 20
B317: 17 | C317: =$L$33 -> 50 | E317: 28
B318: 18 | C318: =$L$34 -> 34 | E318: 1
B319: 19 | C319: =$L$35 -> 43 | E319: 6
B320: 20 | C320: =$L$36 -> 44 | E320: 10
B321: 21 | C321: =$AA$8 -> 46 | E321: 17
B322: 22 | C322: =$AA$9 -> 52 | E322: 31
B323: 23 | C323: =$AA$10 -> 48 | E323: 22
B324: 24 | C324: =$AA$11 -> 48 | E324: 22
B325: 25 | C325: =$AA$12 -> 55 | E325: 34
B326: 26 | C326: =$AA$16 -> 41 | E326: 4
B327: 27 | C327: =$AA$17 -> 40 | E327: 2
B328: 28 | C328: =$AA$18 -> 56 | E328: 36
B329: 29 | C329: =$AA$19 -> 48 | E329: 22
B330: 30 | C330: =$AA$20 -> 55 | E330: 34
B331: 31 | C331: =$AA$24 -> 43 | E331: 6
B332: 32 | C332: =$AA$25 -> 43 | E332: 6
B333: 33 | C333: =$AA$26 -> 45 | E333: 13
B334: 34 | C334: =$AA$27 -> 43 | E334: 6
B335: 35 | C335: =$AA$28 -> 45 | E335: 13
B336: 36 | C336: =$AA$32 -> 56 | E336: 36
B337: 37 | C337: =$AA$33 -> 53 | E337: 32
B338: 38 | C338: =$AA$34 -> 81 | E338: 38
B339: 39 | C339: =$AA$35 -> 81 | E339: 38
B340: 40 | C340: =$AA$36 -> 81 | E340: 38
B341: =B69 -> 0
B342: =B70 -> 0
B343: =B71 -> 0
J349: =DCOUNT(J350:J358,1,J347:J348) -> 8
C350: 1 | D350: 2 | E350: 3 | F350: 4 | G350: 5 | I350: Tot | J350: Rank
B351: Team1 | C351: =$L$8 -> 40 | D351: =$L$9 -> 48 | E351: =$L$10 -> 44 | F351: =$L$11 -> 51 | G351: =$L$12 -> 51 | H351: =$L$14 -> 51 | I351: =$L$13 -> 183 | J351: 4 | L351: 4 | R351: 0 | S351: 0 | T351: 0 | U351: 0 | V351: 0 | W351: 0 | X351: 0 | Y351: 0 | Z351: 0
B352: Team2 | C352: =$L$16 -> 46 | D352: =$L$17 -> 46 | E352: =$L$18 -> 47 | F352: =$L$19 -> 45 | G352: =$L$20 -> 48 | H352: =$L$22 -> 48 | I352: =$L$21 -> 184 | J352: 5 | L352: 5 | R352: 0 | S352: 0 | T352: 0 | U352: 0 | V352: 0 | W352: 0 | X352: 0 | Y352: 0 | Z352: 0
B353: Team3 | C353: =$L$24 -> 42 | D353: =$L$25 -> 48 | E353: =$L$26 -> 54 | F353: =$L$27 -> 45 | G353: =$L$28 -> 44 | H353: =$L$30 -> 54 | I353: =$L$29 -> 179 | J353: 3 | L353: 3 | R353: 0 | S353: 0 | T353: 0 | U353: 0 | V353: 0 | W353: 0 | X353: 0 | Y353: 0 | Z353: 0
B354: Team4 | C354: =$L$32 -> 47 | D354: =$L$33 -> 50 | E354: =$L$34 -> 34 | F354: =$L$35 -> 43 | G354: =$L$36 -> 44 | H354: =$L$38 -> 50 | I354: =$L$37 -> 168 | J354: 1 | L354: 1 | R354: 0 | S354: 0 | T354: 0 | U354: 0 | V354: 0 | W354: 0 | X354: 0 | Y354: 0 | Z354: 0
B355: Team5 | C355: =$AA$8 -> 46 | D355: =$AA$9 -> 52 | E355: =$AA$10 -> 48 | F355: =$AA$11 -> 48 | G355: =$AA$12 -> 55 | H355: =$AA$14 -> 55 | I355: =$AA$13 -> 194 | J355: 7 | L355: 7 | R355: 0 | S355: 0 | T355: 0 | U355: 0 | V355: 0 | W355: 0 | X355: 0 | Y355: 0 | Z355: 0
B356: Team6 | C356: =$AA$16 -> 41 | D356: =$AA$17 -> 40 | E356: =$AA$18 -> 56 | F356: =$AA$19 -> 48 | G356: =$AA$20 -> 55 | H356: =$AA$22 -> 56 | I356: =$AA$21 -> 184 | J356: 6 | L356: 6 | R356: 0 | S356: 0 | T356: 0 | U356: 0 | V356: 0 | W356: 0 | X356: 0 | Y356: 0 | Z356: 0
B357: Team7 | C357: =$AA$24 -> 43 | D357: =$AA$25 -> 43 | E357: =$AA$26 -> 45 | F357: =$AA$27 -> 43 | G357: =$AA$28 -> 45 | H357: =$AA$30 -> 45 | I357: =$AA$29 -> 174 | J357: 2 | L357: 2 | R357: 0 | S357: 0 | T357: 0 | U357: 0 | V357: 0 | W357: 0 | X357: 0 | Y357: 0 | Z357: 0
B358: Team8 | C358: =$AA$32 -> 56 | D358: =$AA$33 -> 53 | E358: =$AA$34 -> 81 | F358: =$AA$35 -> 81 | G358: =$AA$36 -> 81 | H358: =$AA$38 -> 81 | I358: =$AA$37 -> 271 | J358: 8 | L358: 8 | R358: 0 | S358: 0 | T358: 0 | U358: 0 | V358: 0 | W358: 0 | X358: 0 | Y358: 0 | Z358: 0
B401: =B8 -> Koby Jones - 12 | C401: =L8 -> 40
B402: =B9 -> Cody Trottier - | C402: =L9 -> 48
B403: =B10 -> Thomas Bleich - 11 | C403: =L10 -> 44
B404: =B11 -> Ryan Henning - | C404: =L11 -> 51
B405: =B12 -> Carter Smith - 11 | C405: =L12 -> 51
B406: =B16 -> Ryan Ruona - 11 | C406: =L16 -> 46
B407: =B17 -> Adam Butler - 12 | C407: =L17 -> 46
B408: =B18 -> John Turchi - 10 | C408: =L18 -> 47
B409: =B19 -> Lucas Hass - 11 | C409: =L19 -> 45
B410: =B20 -> Luke Carroll - 10 | C410: =L20 -> 48
B411: =B24 -> George Kneiser - 11 | C411: =L24 -> 42
B412: =B25 -> Colin Prom - 12 | C412: =L25 -> 48
B413: =B26 -> Allan Moutvic - 12 | C413: =L26 -> 54
B414: =B27 -> Brett Lange - 12 | C414: =L27 -> 45
B415: =B28 -> Joey Ploch - | C415: =L28 -> 44
B416: =B32 -> Jack Burns - 12 | C416: =L32 -> 47
B417: =B33 -> Ryan Graunke - 12 | C417: =L33 -> 50
B418: =B34 -> Austin Walsh - 12 | C418: =L34 -> 34
B419: =B35 -> Chris Evans - 11 | C419: =L35 -> 43
B420: =B36 -> Ryan Kusek - 9 | C420: =L36 -> 44
B421: =Q8 -> Cameron Boyd - 11 | C421: =AA8 -> 46
B422: =Q9 -> Alex Thompson - 9 | C422: =AA9 -> 52
B423: =Q10 -> Collin Travis - 11 | C423: =AA10 -> 48
B424: =Q11 -> Austin Douglas - 10 | C424: =AA11 -> 48
B425: =Q12 -> Trevor Reierson - 11 | C425: =AA12 -> 55
B426: =Q16 -> Devon Hanson - 11 | C426: =AA16 -> 41
B427: =Q17 -> Mitch Saari - 12 | C427: =AA17 -> 40
B428: =Q18 -> Sam Struebing - 11 | C428: =AA18 -> 56
B429: =Q19 -> Josh Breuer - 12 | C429: =AA19 -> 48
B430: =Q20 -> Brad Halverson - 9 | C430: =AA20 -> 55
B431: =Q24 -> Alex Haas - 12 | C431: =AA24 -> 43
B432: =Q25 -> Max Rohlinger - 10 | C432: =AA25 -> 43
B433: =Q26 -> Kevin Albrecht - 11 | C433: =AA26 -> 45
B434: =Q27 -> Jacob Droese - 12 | C434: =AA27 -> 43
B435: =Q28 -> Nick Meucci - 12 | C435: =AA28 -> 45
B436: =Q32 -> Zachary Stahle - 12 | C436: =AA32 -> 56
B437: =Q33 -> Ben Krause - 12 | C437: =AA33 -> 53
B438: =Q34 -> Scratch #1 - x | C438: =AA34 -> 81
B439: =Q35 -> Scratch #2 - x | C439: =AA35 -> 81
B440: =Q36 -> Scratch #3 - x | C440: =AA36 -> 81

Sheet WT
B1: Course: | C1: Watertown Country Club
B2: Hole | C2: 1 | D2: 2 | E2: 3 | F2: 4 | G2: 5 | H2: 6 | I2: 7 | J2: 8 | K2: 9 | L2: Total | Q2: Hole | R2: =C2 -> 1 | S2: 2 | T2: 3 | U2: 4 | V2: 5 | W2: 6 | X2: 7 | Y2: 8 | Z2: 9 | AA2: Total
B3: Par | C3: 5 | D3: 4 | E3: 4 | F3: 4 | G3: 3 | H3: 3 | I3: 4 | J3: 4 | K3: 3 | L3: =SUM(C3:K3) -> 34 | Q3: Par | R3: 5 | S3: 4 | T3: 4 | U3: 4 | V3: 3 | W3: 3 | X3: 4 | Y3: 4 | Z3: 3 | AA3: =L3 -> 34
B4: Handicap | C4: 3 | D4: 1 | E4: 5 | F4: 11 | G4: 13 | H4: 17 | I4: 9 | J4: 7 | K4: 15 | Q4: Handicap | R4: 3 | S4: 1 | T4: 5 | U4: 11 | V4: 13 | W4: 17 | X4: 9 | Y4: 7 | Z4: 15
A7: Player | B7: BEAVER DAM | M7: Place | P7: Player | Q7: WATERTOWN | AB7: Place
A8: 1 | B8: Koby Jones - 12 | C8: 5 | D8: 4 | E8: 6 | F8: 3 | G8: 4 | H8: 4 | I8: 4 | J8: 4 | K8: 5 | L8: =IF(COUNTBLANK(C8:K8)>0,"",SUM(C8:K8)) -> 39 | M8: =VLOOKUP(BA8,$B$301:$E$340,4) -> 2 | P8: 1 | Q8: Cameron Boyd - 11 | R8: 5 | S8: 5 | T8: 5 | U8: 5 | V8: 5 | W8: 4 | X8: 4 | Y8: 6 | Z8: 4 | AA8: =IF(COUNTBLANK(R8:Z8)>0,"",SUM(R8:Z8)) -> 43 | AB8: =VLOOKUP(BB8,$B$301:$E$340,4) -> 11 | BA8: 1 | BB8: 21 | BC8: =LEN(L8) -> 2 | BD8: =LEN(AA8) -> 2
A9: 2 | B9: Thomas Bleich - 11 | C9: 6 | D9: 4 | E9: 7 | F9: 5 | G9: 5 | H9: 4 | I9: 5 | J9: 5 | K9: 3 | L9: =IF(COUNTBLANK(C9:K9)>0,"",SUM(C9:K9)) -> 44 | M9: =VLOOKUP(BA9,$B$301:$E$340,4) -> 16 | P9: 2 | Q9: Alex Thompson - 9 | R9: 6 | S9: 5 | T9: 5 | U9: 4 | V9: 4 | W9: 4 | X9: 6 | Y9: 4 | Z9: 4 | AA9: =IF(COUNTBLANK(R9:Z9)>0,"",SUM(R9:Z9)) -> 42 | AB9: =VLOOKUP(BB9,$B$301:$E$340,4) -> 8 | BA9: 2 | BB9: 22 | BC9: =LEN(L9) -> 2 | BD9: =LEN(AA9) -> 2
A10: 3 | B10: Cody Trottier - | C10: 7 | D10: 5 | E10: 8 | F10: 8 | G10: 4 | H10: 5 | I10: 5 | J10: 6 | K10: 3 | L10: =IF(COUNTBLANK(C10:K10)>0,"",SUM(C10:K10)) -> 51 | M10: =VLOOKUP(BA10,$B$301:$E$340,4) -> 34 | P10: 3 | Q10: Collin Travis - 11 | R10: 7 | S10: 5 | T10: 5 | U10: 6 | V10: 5 | W10: 4 | X10: 5 | Y10: 6 | Z10: 5 | AA10: =IF(COUNTBLANK(R10:Z10)>0,"",SUM(R10:Z10)) -> 48 | AB10: =VLOOKUP(BB10,$B$301:$E$340,4) -> 32 | BA10: 3 | BB10: 23 | BC10: =LEN(L10) -> 2 | BD10: =LEN(AA10) -> 2
A11: 4 | B11: Jacob Smith - 10 | C11: 6 | D11: 7 | E11: 6 | F11: 6 | G11: 4 | H11: 6 | I11: 4 | J11: 5 | K11: 4 | L11: =IF(COUNTBLANK(C11:K11)>0,"",SUM(C11:K11)) -> 48 | M11: =VLOOKUP(BA11,$B$301:$E$340,4) -> 32 | P11: 4 | Q11: Austin Douglas - 10 | R11: 9 | S11: 6 | T11: 6 | U11: 5 | V11: 3 | W11: 4 | X11: 5 | Y11: 7 | Z11: 6 | AA11: =IF(COUNTBLANK(R11:Z11)>0,"",SUM(R11:Z11)) -> 51 | AB11: =VLOOKUP(BB11,$B$301:$E$340,4) -> 34 | BA11: 4 | BB11: 24 | BC11: =LEN(L11) -> 2 | BD11: =LEN(AA11) -> 2
A12: 5 | B12: Carter Smith - 11 | C12: 5 | D12: 5 | E12: 8 | F12: 5 | G12: 4 | H12: 4 | I12: 5 | J12: 5 | K12: 4 | L12: =IF(COUNTBLANK(C12:K12)>0,"",SUM(C12:K12)) -> 45 | M12: =VLOOKUP(BA12,$B$301:$E$340,4) -> 20 | P12: 5 | Q12: Trevor Reierson - 11 | R12: 5 | S12: 6 | T12: 5 | U12: 5 | V12: 4 | W12: 5 | X12: 4 | Y12: 5 | Z12: 5 | AA12: =IF(COUNTBLANK(R12:Z12)>0,"",SUM(R12:Z12)) -> 44 | AB12: =VLOOKUP(BB12,$B$301:$E$340,4) -> 16 | BA12: 5 | BB12: 25 | BC12: =LEN(L12) -> 2 | BD12: =LEN(AA12) -> 2
L13: =IF(COUNT(L8:L12)=5,(SUM(L8:L12))-(MAX(L8:L12)),(IF(COUNT(L8:L12)=4,SUM(L8:L12),IF(COUNTBLANK(L8:L12)>0,SUM(L8:L12),"DQ")))) -> 176 | M13: =J351 -> 6 | AA13: =IF(COUNT(AA8:AA12)=5,(SUM(AA8:AA12))-(MAX(AA8:AA12)),(IF(COUNT(AA8:AA12)=4,SUM(AA8:AA12),IF(COUNTBLANK(AA8:AA12)>0,SUM(AA8:AA12),"DQ")))) -> 177 | AB13: =J355 -> 7
L14: =IF(COUNT(L8:L12)=5,MAX(L8:L12),IF(COUNT(L8:L12)<5,200,)) -> 51 | AA14: =IF(COUNT(AA8:AA12)=5,MAX(AA8:AA12),IF(COUNT(AA8:AA12)<5,200,)) -> 51
A15: Player | B15: HARTFORD | M15: Place | P15: Player | Q15: WEST BEND EAST | AB15: Place
A16: 1 | B16: Ryan Ruona - 11 | C16: 6 | D16: 7 | E16: 5 | F16: 5 | G16: 4 | H16: 5 | I16: 6 | J16: 5 | K16: 3 | L16: =IF(COUNTBLANK(C16:K16)>0,"",SUM(C16:K16)) -> 46 | M16: =VLOOKUP(BA16,$B$301:$E$340,4) -> 28 | P16: 1 | Q16: Devon Hanson - 11 | R16: 5 | S16: 4 | T16: 4 | U16: 4 | V16: 4 | W16: 4 | X16: 4 | Y16: 5 | Z16: 3 | AA16: =IF(COUNTBLANK(R16:Z16)>0,"",SUM(R16:Z16)) -> 37 | AB16: =VLOOKUP(BB16,$B$301:$E$340,4) -> 1 | BA16: 6 | BB16: 26 | BC16: =LEN(L16) -> 2 | BD16: =LEN(AA16) -> 2
A17: 2 | B17: Adam Butler - 12 | C17: 6 | D17: 7 | E17: 5 | F17: 6 | G17: 4 | H17: 4 | I17: 4 | J17: 4 | K17: 4 | L17: =IF(COUNTBLANK(C17:K17)>0,"",SUM(C17:K17)) -> 44 | M17: =VLOOKUP(BA17,$B$301:$E$340,4) -> 16 | P17: 2 | Q17: Mitch Saari - 12 | R17: 6 | S17: 8 | T17: 5 | U17: 5 | V17: 4 | W17: 5 | X17: 4 | Y17: 5 | Z17: 3 | AA17: =IF(COUNTBLANK(R17:Z17)>0,"",SUM(R17:Z17)) -> 45 | AB17: =VLOOKUP(BB17,$B$301:$E$340,4) -> 20 | BA17: 7 | BB17: 27 | BC17: =LEN(L17) -> 2 | BD17: =LEN(AA17) -> 2
A18: 3 | B18: John Turchi - 10 | C18: 6 | D18: 6 | E18: 6 | F18: 4 | G18: 3 | H18: 5 | I18: 6 | J18: 6 | K18: 3 | L18: =IF(COUNTBLANK(C18:K18)>0,"",SUM(C18:K18)) -> 45 | M18: =VLOOKUP(BA18,$B$301:$E$340,4) -> 20 | P18: 3 | Q18: Sam Struebing - 11 | R18: 6 | S18: 5 | T18: 7 | U18: 6 | V18: 5 | W18: 4 | X18: 4 | Y18: 5 | Z18: 4 | AA18: =IF(COUNTBLANK(R18:Z18)>0,"",SUM(R18:Z18)) -> 46 | AB18: =VLOOKUP(BB18,$B$301:$E$340,4) -> 28 | BA18: 8 | BB18: 28 | BC18: =LEN(L18) -> 2 | BD18: =LEN(AA18) -> 2
A19: 4 | B19: Lucas Hass - 11 | C19: 5 | D19: 5 | E19: 5 | F19: 5 | G19: 3 | H19: 6 | I19: 5 | J19: 5 | K19: 3 | L19: =IF(COUNTBLANK(C19:K19)>0,"",SUM(C19:K19)) -> 42 | M19: =VLOOKUP(BA19,$B$301:$E$340,4) -> 8 | P19: 4 | Q19: Josh Breuer - 12 | R19: 6 | S19: 5 | T19: 6 | U19: 6 | V19: 5 | W19: 5 | X19: 4 | Y19: 6 | Z19: 4 | AA19: =IF(COUNTBLANK(R19:Z19)>0,"",SUM(R19:Z19)) -> 47 | AB19: =VLOOKUP(BB19,$B$301:$E$340,4) -> 31 | BA19: 9 | BB19: 29 | BC19: =LEN(L19) -> 2 | BD19: =LEN(AA19) -> 2
A20: 5 | B20: Luke Carroll - 10 | C20: 7 | D20: 5 | E20: 6 | F20: 4 | G20: 5 | H20: 4 | I20: 4 | J20: 4 | K20: 4 | L20: =IF(COUNTBLANK(C20:K20)>0,"",SUM(C20:K20)) -> 43 | M20: =VLOOKUP(BA20,$B$301:$E$340,4) -> 11 | P20: 5 | Q20: Brad Halverson - 9 | R20: 7 | S20: 5 | T20: 10 | U20: 5 | V20: 5 | W20: 5 | X20: 6 | Y20: 5 | Z20: 3 | AA20: =IF(COUNTBLANK(R20:Z20)>0,"",SUM(R20:Z20)) -> 51 | AB20: =VLOOKUP(BB20,$B$301:$E$340,4) -> 34 | BA20: 10 | BB20: 30 | BC20: =LEN(L20) -> 2 | BD20: =LEN(AA20) -> 2
L21: =IF(COUNT(L16:L20)=5,(SUM(L16:L20))-(MAX(L16:L20)),(IF(COUNT(L16:L20)=4,SUM(L16:L20),IF(COUNTBLANK(L16:L20)>0,SUM(L16:L20),"DQ")))) -> 174 | M21: =J352 -> 4 | AA21: =IF(COUNT(AA16:AA20)=5,(SUM(AA16:AA20))-(MAX(AA16:AA20)),(IF(COUNT(AA16:AA20)=4,SUM(AA16:AA20),IF(COUNTBLANK(AA16:AA20)>0,SUM(AA16:AA20),"DQ")))) -> 175 | AB21: =J356 -> 5
L22: =IF(COUNT(L16:L20)=5,MAX(L16:L20),IF(COUNT(L16:L20)<5,200,)) -> 46 | AA22: =IF(COUNT(AA16:AA20)=5,MAX(AA16:AA20),IF(COUNT(AA16:AA20)<5,200,)) -> 51
A23: Player | B23: OCONOMOWOC | M23: Place | P23: Player | Q23: WEST BEND WEST | AB23: Place
A24: 1 | B24: George Kneiser - 11 | C24: 5 | D24: 6 | E24: 5 | F24: 5 | G24: 4 | H24: 4 | I24: 4 | J24: 4 | K24: 4 | L24: =IF(COUNTBLANK(C24:K24)>0,"",SUM(C24:K24)) -> 41 | M24: =VLOOKUP(BA24,$B$301:$E$340,4) -> 5 | P24: 1 | Q24: Alex Haas - 12 | R24: 6 | S24: 7 | T24: 5 | U24: 5 | V24: 3 | W24: 5 | X24: 5 | Y24: 5 | Z24: 4 | AA24: =IF(COUNTBLANK(R24:Z24)>0,"",SUM(R24:Z24)) -> 45 | AB24: =VLOOKUP(BB24,$B$301:$E$340,4) -> 20 | BA24: 11 | BB24: 31 | BC24: =LEN(L24) -> 2 | BD24: =LEN(AA24) -> 2
A25: 2 | B25: Colin Prom - 12 | C25: 6 | D25: 4 | E25: 5 | F25: 5 | G25: 3 | H25: 5 | I25: 5 | J25: 4 | K25: 4 | L25: =IF(COUNTBLANK(C25:K25)>0,"",SUM(C25:K25)) -> 41 | M25: =VLOOKUP(BA25,$B$301:$E$340,4) -> 5 | P25: 2 | Q25: Max Rohlinger - 10 | R25: 6 | S25: 6 | T25: 5 | U25: 4 | V25: 4 | W25: 4 | X25: 4 | Y25: 5 | Z25: 4 | AA25: =IF(COUNTBLANK(R25:Z25)>0,"",SUM(R25:Z25)) -> 42 | AB25: =VLOOKUP(BB25,$B$301:$E$340,4) -> 8 | BA25: 12 | BB25: 32 | BC25: =LEN(L25) -> 2 | BD25: =LEN(AA25) -> 2
A26: 3 | B26: Joey Ploch - | C26: 4 | D26: 4 | E26: 4 | F26: 6 | G26: 4 | H26: 5 | I26: 5 | J26: 5 | K26: 4 | L26: =IF(COUNTBLANK(C26:K26)>0,"",SUM(C26:K26)) -> 41 | M26: =VLOOKUP(BA26,$B$301:$E$340,4) -> 5 | P26: 3 | Q26: Kevin Albrecht - 11 | R26: 6 | S26: 4 | T26: 6 | U26: 4 | V26: 6 | W26: 3 | X26: 4 | Y26: 4 | Z26: 3 | AA26: =IF(COUNTBLANK(R26:Z26)>0,"",SUM(R26:Z26)) -> 40 | AB26: =VLOOKUP(BB26,$B$301:$E$340,4) -> 3 | BA26: 13 | BB26: 33 | BC26: =LEN(L26) -> 2 | BD26: =LEN(AA26) -> 2
A27: 4 | B27: Allan Moutvic - 12 | C27: 5 | D27: 4 | E27: 5 | F27: 5 | G27: 5 | H27: 3 | I27: 4 | J27: 8 | K27: 6 | L27: =IF(COUNTBLANK(C27:K27)>0,"",SUM(C27:K27)) -> 45 | M27: =VLOOKUP(BA27,$B$301:$E$340,4) -> 20 | P27: 4 | Q27: Jacob Droese - 12 | R27: 5 | S27: 5 | T27: 6 | U27: 4 | V27: 5 | W27: 3 | X27: 6 | Y27: 4 | Z27: 7 | AA27: =IF(COUNTBLANK(R27:Z27)>0,"",SUM(R27:Z27)) -> 45 | AB27: =VLOOKUP(BB27,$B$301:$E$340,4) -> 20 | BA27: 14 | BB27: 34 | BC27: =LEN(L27) -> 2 | BD27: =LEN(AA27) -> 2
A28: 5 | B28: Brett Lange - 12 | C28: 7 | D28: 6 | E28: 5 | F28: 5 | G28: 4 | H28: 4 | I28: 4 | J28: 5 | K28: 5 | L28: =IF(COUNTBLANK(C28:K28)>0,"",SUM(C28:K28)) -> 45 | M28: =VLOOKUP(BA28,$B$301:$E$340,4) -> 20 | P28: 5 | Q28: Nick Meucci - 12 | R28: 9 | S28: 4 | T28: 5 | U28: 4 | V28: 3 | W28: 4 | X28: 4 | Y28: 3 | Z28: 7 | AA28: =IF(COUNTBLANK(R28:Z28)>0,"",SUM(R28:Z28)) -> 43 | AB28: =VLOOKUP(BB28,$B$301:$E$340,4) -> 11 | BA28: 15 | BB28: 35 | BC28: =LEN(L28) -> 2 | BD28: =LEN(AA28) -> 2
L29: =IF(COUNT(L24:L28)=5,(SUM(L24:L28))-(MAX(L24:L28)),(IF(COUNT(L24:L28)=4,SUM(L24:L28),IF(COUNTBLANK(L24:L28)>0,SUM(L24:L28),"DQ")))) -> 168 | M29: =J353 -> 1 | AA29: =IF(COUNT(AA24:AA28)=5,(SUM(AA24:AA28))-(MAX(AA24:AA28)),(IF(COUNT(AA24:AA28)=4,SUM(AA24:AA28),IF(COUNTBLANK(AA24:AA28)>0,SUM(AA24:AA28),"DQ")))) -> 170 | AB29: =J357 -> 2
L30: =IF(COUNT(L24:L28)=5,MAX(L24:L28),IF(COUNT(L24:L28)<5,200,)) -> 45 | AA30: =IF(COUNT(AA24:AA28)=5,MAX(AA24:AA28),IF(COUNT(AA24:AA28)<5,200,)) -> 45
A31: Player | B31: SLINGER | M31: Place | P31: Player | Q31: WISCONSIN LUTHERAN | AB31: Place
A32: 1 | B32: Jack Burns - 12 | C32: 6 | D32: 5 | E32: 6 | F32: 4 | G32: 3 | H32: 6 | I32: 5 | J32: 4 | K32: 4 | L32: =IF(COUNTBLANK(C32:K32)>0,"",SUM(C32:K32)) -> 43 | M32: =VLOOKUP(BA32,$B$301:$E$340,4) -> 11 | P32: 1 | Q32: Scratch #1 - x | R32: 9 | S32: 9 | T32: 9 | U32: 9 | V32: 9 | W32: 9 | X32: 9 | Y32: 9 | Z32: 9 | AA32: =IF(COUNTBLANK(R32:Z32)>0,"",SUM(R32:Z32)) -> 81 | AB32: =VLOOKUP(BB32,$B$301:$E$340,4) -> 38 | BA32: 16 | BB32: 36 | BC32: =LEN(L32) -> 2 | BD32: =LEN(AA32) -> 2
A33: 2 | B33: Chris Evans - 11 | C33: 5 | D33: 4 | E33: 5 | F33: 5 | G33: 3 | H33: 5 | I33: 5 | J33: 4 | K33: 4 | L33: =IF(COUNTBLANK(C33:K33)>0,"",SUM(C33:K33)) -> 40 | M33: =VLOOKUP(BA33,$B$301:$E$340,4) -> 3 | P33: 2 | Q33: Scratch #2 - x | R33: 9 | S33: 9 | T33: 9 | U33: 9 | V33: 9 | W33: 9 | X33: 9 | Y33: 9 | Z33: 9 | AA33: =IF(COUNTBLANK(R33:Z33)>0,"",SUM(R33:Z33)) -> 81 | AB33: =VLOOKUP(BB33,$B$301:$E$340,4) -> 38 | BA33: 17 | BB33: 37 | BC33: =LEN(L33) -> 2 | BD33: =LEN(AA33) -> 2
A34: 3 | B34: Austin Walsh - 12 | C34: 6 | D34: 4 | E34: 5 | F34: 5 | G34: 5 | H34: 3 | I34: 6 | J34: 7 | K34: 2 | L34: =IF(COUNTBLANK(C34:K34)>0,"",SUM(C34:K34)) -> 43 | M34: =VLOOKUP(BA34,$B$301:$E$340,4) -> 11 | P34: 3 | Q34: Scratch #3 - x | R34: 9 | S34: 9 | T34: 9 | U34: 9 | V34: 9 | W34: 9 | X34: 9 | Y34: 9 | Z34: 9 | AA34: =IF(COUNTBLANK(R34:Z34)>0,"",SUM(R34:Z34)) -> 81 | AB34: =VLOOKUP(BB34,$B$301:$E$340,4) -> 38 | BA34: 18 | BB34: 38 | BC34: =LEN(L34) -> 2 | BD34: =LEN(AA34) -> 2
A35: 4 | B35: Ryan Erdmann - 10 | C35: 6 | D35: 4 | E35: 5 | F35: 5 | G35: 6 | H35: 5 | I35: 6 | J35: 6 | K35: 3 | L35: =IF(COUNTBLANK(C35:K35)>0,"",SUM(C35:K35)) -> 46 | M35: =VLOOKUP(BA35,$B$301:$E$340,4) -> 28 | P35: 4 | Q35: Ben Krause - 12 | R35: 5 | S35: 5 | T35: 7 | U35: 5 | V35: 5 | W35: 4 | X35: 4 | Y35: 5 | Z35: 5 | AA35: =IF(COUNTBLANK(R35:Z35)>0,"",SUM(R35:Z35)) -> 45 | AB35: =VLOOKUP(BB35,$B$301:$E$340,4) -> 20 | BA35: 19 | BB35: 39 | BC35: =LEN(L35) -> 2 | BD35: =LEN(AA35) -> 2
A36: 5 | B36: Ryan Kusek - 9 | C36: 6 | D36: 4 | E36: 6 | F36: 6 | G36: 5 | H36: 3 | I36: 5 | J36: 5 | K36: 4 | L36: =IF(COUNTBLANK(C36:K36)>0,"",SUM(C36:K36)) -> 44 | M36: =VLOOKUP(BA36,$B$301:$E$340,4) -> 16 | P36: 5 | Q36: Brendan Hausch - 10 | R36: 5 | S36: 7 | T36: 7 | U36: 7 | V36: 4 | W36: 7 | X36: 7 | Y36: 5 | Z36: 7 | AA36: =IF(COUNTBLANK(R36:Z36)>0,"",SUM(R36:Z36)) -> 56 | AB36: =VLOOKUP(BB36,$B$301:$E$340,4) -> 37 | BA36: 20 | BB36: 40 | BC36: =LEN(L36) -> 2 | BD36: =LEN(AA36) -> 2
L37: =IF(COUNT(L32:L36)=5,(SUM(L32:L36))-(MAX(L32:L36)),(IF(COUNT(L32:L36)=4,SUM(L32:L36),IF(COUNTBLANK(L32:L36)>0,SUM(L32:L36),"DQ")))) -> 170 | M37: =J354 -> 3 | AA37: =IF(COUNT(AA32:AA36)=5,(SUM(AA32:AA36))-(MAX(AA32:AA36)),(IF(COUNT(AA32:AA36)=4,SUM(AA32:AA36),IF(COUNTBLANK(AA32:AA36)>0,SUM(AA32:AA36),"DQ")))) -> 263 | AB37: =J358 -> 8
L38: =IF(COUNT(L32:L36)=5,MAX(L32:L36),IF(COUNT(L32:L36)<5,200,)) -> 46 | AA38: =IF(COUNT(AA32:AA36)=5,MAX(AA32:AA36),IF(COUNT(AA32:AA36)<5,200,)) -> 81
B41: Wisconsin Little Ten Varsity Golf | G41: Match # 4 | L41: Hosted By: | M41: Watertown | Q41: ="WISCONSIN LITTLE TEN CONFERENCE STANDINGS " & Schedule!Q41 -> WISCONSIN LITTLE TEN CONFERENCE STANDINGS
Q42: Match | R42: 1 | S42: 2 | T42: 3 | U42: 4 | V42: 5 | W42: 6 | X42: 7 | Y42: 8 | Z42: 9 | AA42: Total
B43: Date: Apr 30, 2015 | D43: ="Location: " & C1 -> Location: Watertown Country Club | Q43: =Rosters!$B$10 -> West Bend West | R43: 1 | S43: 1 | T43: 2 | U43: 2 | AA43: =IF(SUM(R43:Z43)=0,"",SUM(R43:Z43)) -> 6
Q44: =Rosters!$B$6 -> Oconomowoc | R44: 2 | S44: 3 | T44: 3 | U44: 1 | AA44: 9
Q45: =Rosters!$B$7 -> Slinger | R45: 4 | S45: 6 | T45: 1 | U45: 3 | AA45: 14
Q46: =Rosters!$B$4 -> Beaver Dam | R46: 3 | S46: 2 | T46: 4 | U46: 6 | AA46: 15
B47: Medalist: (37) - Devon Hanson | Q47: =Rosters!$B$5 -> Hartford | R47: 6 | S47: 5 | T47: 5 | U47: 4 | AA47: 20
Q48: =Rosters!$B$9 -> West Bend East | R48: 5 | S48: 4 | T48: 6 | U48: 5 | AA48: 20
Q49: =Rosters!$B$8 -> Watertown | R49: 7 | S49: 7 | T49: 7 | U49: 7 | AA49: 28
L50: = Birdies or Better | Q50: =Rosters!$B$11 -> Wisconsin Lutheran | R50: 8 | S50: 8 | T50: 8 | U50: 8 | AA50: 32
B100: Course: | C100: Watertown Country Club
B101: Hole | C101: 1 | D101: 2 | E101: 3 | F101: 4 | G101: 5 | H101: 6 | I101: 7 | J101: 8 | K101: 9 | L101: Total
B102: Par | C102: 5 | D102: 4 | E102: 4 | F102: 4 | G102: 3 | H102: 3 | I102: 4 | J102: 4 | K102: 3 | L102: =SUM(C102:K102) -> 34
B103: Handicap | C103: 3 | D103: 1 | E103: 5 | F103: 11 | G103: 13 | H103: 17 | I103: 9 | J103: 7 | K103: 15
B105: Course: | C105: Watertown Country Club
B106: Hole | C106: 10 | D106: 11 | E106: 12 | F106: 13 | G106: 14 | H106: 15 | I106: 16 | J106: 17 | K106: 18 | L106: Total
B107: Par | C107: 4 | D107: 3 | E107: 4 | F107: 4 | G107: 5 | H107: 4 | I107: 3 | J107: 5 | K107: 4 | L107: =SUM(C107:K107) -> 36
B108: Handicap | C108: 12 | D108: 16 | E108: 14 | F108: 8 | G108: 4 | H108: 6 | I108: 18 | J108: 2 | K108: 10
B300: Player | C300: Sc | D300: Sort | E300: Rnk
B301: 1 | C301: =$L$8 -> 39 | E301: 2
B302: 2 | C302: =$L$9 -> 44 | E302: 16
B303: 3 | C303: =$L$10 -> 51 | E303: 34
B304: 4 | C304: =$L$11 -> 48 | E304: 32
B305: 5 | C305: =$L$12 -> 45 | E305: 20
B306: 6 | C306: =$L$16 -> 46 | E306: 28
B307: 7 | C307: =$L$17 -> 44 | E307: 16
B308: 8 | C308: =$L$18 -> 45 | E308: 20
B309: 9 | C309: =$L$19 -> 42 | E309: 8
B310: 10 | C310: =$L$20 -> 43 | E310: 11
B311: 11 | C311: =$L$24 -> 41 | E311: 5
B312: 12 | C312: =$L$25 -> 41 | E312: 5
B313: 13 | C313: =$L$26 -> 41 | E313: 5
B314: 14 | C314: =$L$27 -> 45 | E314: 20
B315: 15 | C315: =$L$28 -> 45 | E315: 20
B316: 16 | C316: =$L$32 -> 43 | E316: 11
B317: 17 | C317: =$L$33 -> 40 | E317: 3
B318: 18 | C318: =$L$34 -> 43 | E318: 11
B319: 19 | C319: =$L$35 -> 46 | E319: 28
B320: 20 | C320: =$L$36 -> 44 | E320: 16
B321: 21 | C321: =$AA$8 -> 43 | E321: 11
B322: 22 | C322: =$AA$9 -> 42 | E322: 8
B323: 23 | C323: =$AA$10 -> 48 | E323: 32
B324: 24 | C324: =$AA$11 -> 51 | E324: 34
B325: 25 | C325: =$AA$12 -> 44 | E325: 16
B326: 26 | C326: =$AA$16 -> 37 | E326: 1
B327: 27 | C327: =$AA$17 -> 45 | E327: 20
B328: 28 | C328: =$AA$18 -> 46 | E328: 28
B329: 29 | C329: =$AA$19 -> 47 | E329: 31
B330: 30 | C330: =$AA$20 -> 51 | E330: 34
B331: 31 | C331: =$AA$24 -> 45 | E331: 20
B332: 32 | C332: =$AA$25 -> 42 | E332: 8
B333: 33 | C333: =$AA$26 -> 40 | E333: 3
B334: 34 | C334: =$AA$27 -> 45 | E334: 20
B335: 35 | C335: =$AA$28 -> 43 | E335: 11
B336: 36 | C336: =$AA$32 -> 81 | E336: 38
B337: 37 | C337: =$AA$33 -> 81 | E337: 38
B338: 38 | C338: =$AA$34 -> 81 | E338: 38
B339: 39 | C339: =$AA$35 -> 45 | E339: 20
B340: 40 | C340: =$AA$36 -> 56 | E340: 37
B341: =B69 -> 0
B342: =B70 -> 0
B343: =B71 -> 0
R349: Handicap Holes
C350: 1 | D350: 2 | E350: 3 | F350: 4 | G350: 5 | I350: Tot | J350: Rank | R350: =IF(SUM($C$4:$K$4)<85,MATCH(1,$C$4:$K$4,0),MATCH(2,$C$4:$K$4,0)+9) -> 2 | S350: =IF(SUM($C$4:$K$4)<85,MATCH(3,$C$4:$K$4,0),MATCH(4,$C$4:$K$4,0)+9) -> 1 | T350: =IF(SUM($C$4:$K$4)<85,MATCH(5,$C$4:$K$4,0),MATCH(6,$C$4:$K$4,0)+9) -> 3 | U350: =IF(SUM($C$4:$K$4)<85,MATCH(7,$C$4:$K$4,0),MATCH(8,$C$4:$K$4,0)+9) -> 8 | V350: =IF(SUM($C$4:$K$4)<85,MATCH(9,$C$4:$K$4,0),MATCH(10,$C$4:$K$4,0)+9) -> 7 | W350: =IF(SUM($C$4:$K$4)<85,MATCH(11,$C$4:$K$4,0),MATCH(12,$C$4:$K$4,0)+9) -> 4 | X350: =IF(SUM($C$4:$K$4)<85,MATCH(13,$C$4:$K$4,0),MATCH(14,$C$4:$K$4,0)+9) -> 5 | Y350: =IF(SUM($C$4:$K$4)<85,MATCH(15,$C$4:$K$4,0),MATCH(16,$C$4:$K$4,0)+9) -> 9 | Z350: =IF(SUM($C$4:$K$4)<85,MATCH(17,$C$4:$K$4,0),MATCH(18,$C$4:$K$4,0)+9) -> 6
B351: Team1 | C351: =$L$8 -> 39 | D351: =$L$9 -> 44 | E351: =$L$10 -> 51 | F351: =$L$11 -> 48 | G351: =$L$12 -> 45 | H351: =$L$14 -> 51 | I351: =$L$13 -> 176 | J351: 6 | L351: 6 | R351: 25 | S351: 29 | T351: 35 | U351: 25 | V351: 23 | W351: 27 | X351: 21 | Y351: 19 | Z351: 23
B352: Team2 | C352: =$L$16 -> 46 | D352: =$L$17 -> 44 | E352: =$L$18 -> 45 | F352: =$L$19 -> 42 | G352: =$L$20 -> 43 | H352: =$L$22 -> 46 | I352: =$L$21 -> 174 | J352: 4 | L352: 4 | R352: 30 | S352: 30 | T352: 27 | U352: 24 | V352: 25 | W352: 24 | X352: 19 | Y352: 17 | Z352: 24
B353: Team3 | C353: =$L$24 -> 41 | D353: =$L$25 -> 41 | E353: =$L$26 -> 41 | F353: =$L$27 -> 45 | G353: =$L$28 -> 45 | H353: =$L$30 -> 45 | I353: =$L$29 -> 168 | J353: 1 | L353: 1 | R353: 24 | S353: 27 | T353: 24 | U353: 26 | V353: 22 | W353: 26 | X353: 20 | Y353: 23 | Z353: 21
B354: Team4 | C354: =$L$32 -> 43 | D354: =$L$33 -> 40 | E354: =$L$34 -> 43 | F354: =$L$35 -> 46 | G354: =$L$36 -> 44 | H354: =$L$38 -> 46 | I354: =$L$37 -> 170 | J354: 3 | L354: 3 | R354: 21 | S354: 29 | T354: 27 | U354: 26 | V354: 27 | W354: 25 | X354: 22 | Y354: 17 | Z354: 22
B355: Team5 | C355: =$AA$8 -> 43 | D355: =$AA$9 -> 42 | E355: =$AA$10 -> 48 | F355: =$AA$11 -> 51 | G355: =$AA$12 -> 44 | H355: =$AA$14 -> 51 | I355: =$AA$13 -> 177 | J355: 7 | L355: 7 | R355: 27 | S355: 32 | T355: 26 | U355: 28 | V355: 24 | W355: 25 | X355: 21 | Y355: 24 | Z355: 21
B356: Team6 | C356: =$AA$16 -> 37 | D356: =$AA$17 -> 45 | E356: =$AA$18 -> 46 | F356: =$AA$19 -> 47 | G356: =$AA$20 -> 51 | H356: =$AA$22 -> 51 | I356: =$AA$21 -> 175 | J356: 5 | L356: 5 | R356: 27 | S356: 30 | T356: 32 | U356: 26 | V356: 22 | W356: 26 | X356: 23 | Y356: 17 | Z356: 23
B357: Team7 | C357: =$AA$24 -> 45 | D357: =$AA$25 -> 42 | E357: =$AA$26 -> 40 | F357: =$AA$27 -> 45 | G357: =$AA$28 -> 43 | H357: =$AA$30 -> 45 | I357: =$AA$29 -> 170 | J357: 2 | L357: 2 | R357: 26 | S357: 32 | T357: 27 | U357: 21 | V357: 23 | W357: 21 | X357: 21 | Y357: 25 | Z357: 19
B358: Team8 | C358: =$AA$32 -> 81 | D358: =$AA$33 -> 81 | E358: =$AA$34 -> 81 | F358: =$AA$35 -> 45 | G358: =$AA$36 -> 56 | H358: =$AA$38 -> 81 | I358: =$AA$37 -> 263 | J358: 8 | L358: 8 | R358: 39 | S358: 37 | T358: 41 | U358: 37 | V358: 38 | W358: 39 | X358: 36 | Y358: 39 | Z358: 38
B401: =B8 -> Koby Jones - 12 | C401: =L8 -> 39
B402: =B9 -> Thomas Bleich - 11 | C402: =L9 -> 44
B403: =B10 -> Cody Trottier - | C403: =L10 -> 51
B404: =B11 -> Jacob Smith - 10 | C404: =L11 -> 48
B405: =B12 -> Carter Smith - 11 | C405: =L12 -> 45
B406: =B16 -> Ryan Ruona - 11 | C406: =L16 -> 46
B407: =B17 -> Adam Butler - 12 | C407: =L17 -> 44
B408: =B18 -> John Turchi - 10 | C408: =L18 -> 45
B409: =B19 -> Lucas Hass - 11 | C409: =L19 -> 42
B410: =B20 -> Luke Carroll - 10 | C410: =L20 -> 43
B411: =B24 -> George Kneiser - 11 | C411: =L24 -> 41
B412: =B25 -> Colin Prom - 12 | C412: =L25 -> 41
B413: =B26 -> Joey Ploch - | C413: =L26 -> 41
B414: =B27 -> Allan Moutvic - 12 | C414: =L27 -> 45
B415: =B28 -> Brett Lange - 12 | C415: =L28 -> 45
B416: =B32 -> Jack Burns - 12 | C416: =L32 -> 43
B417: =B33 -> Chris Evans - 11 | C417: =L33 -> 40
B418: =B34 -> Austin Walsh - 12 | C418: =L34 -> 43
B419: =B35 -> Ryan Erdmann - 10 | C419: =L35 -> 46
B420: =B36 -> Ryan Kusek - 9 | C420: =L36 -> 44
B421: =Q8 -> Cameron Boyd - 11 | C421: =AA8 -> 43
B422: =Q9 -> Alex Thompson - 9 | C422: =AA9 -> 42
B423: =Q10 -> Collin Travis - 11 | C423: =AA10 -> 48
B424: =Q11 -> Austin Douglas - 10 | C424: =AA11 -> 51
B425: =Q12 -> Trevor Reierson - 11 | C425: =AA12 -> 44
B426: =Q16 -> Devon Hanson - 11 | C426: =AA16 -> 37
B427: =Q17 -> Mitch Saari - 12 | C427: =AA17 -> 45
B428: =Q18 -> Sam Struebing - 11 | C428: =AA18 -> 46
B429: =Q19 -> Josh Breuer - 12 | C429: =AA19 -> 47
B430: =Q20 -> Brad Halverson - 9 | C430: =AA20 -> 51
B431: =Q24 -> Alex Haas - 12 | C431: =AA24 -> 45
B432: =Q25 -> Max Rohlinger - 10 | C432: =AA25 -> 42
B433: =Q26 -> Kevin Albrecht - 11 | C433: =AA26 -> 40
B434: =Q27 -> Jacob Droese - 12 | C434: =AA27 -> 45
B435: =Q28 -> Nick Meucci - 12 | C435: =AA28 -> 43
B436: =Q32 -> Scratch #1 - x | C436: =AA32 -> 81
B437: =Q33 -> Scratch #2 - x | C437: =AA33 -> 81
B438: =Q34 -> Scratch #3 - x | C438: =AA34 -> 81
B439: =Q35 -> Ben Krause - 12 | C439: =AA35 -> 45
B440: =Q36 -> Brendan Hausch - 10 | C440: =AA36 -> 56

Sheet OC
B1: Course: | C1: Oconomowoc Golf Club
B2: Hole | C2: 1 | D2: 2 | E2: 3 | F2: 4 | G2: 5 | H2: 6 | I2: 7 | J2: 8 | K2: 9 | L2: Total | Q2: Hole | R2: =C2 -> 1 | S2: 2 | T2: 3 | U2: 4 | V2: 5 | W2: 6 | X2: 7 | Y2: 8 | Z2: 9 | AA2: Total
B3: Par | C3: 4 | D3: 4 | E3: 4 | F3: 3 | G3: 4 | H3: 3 | I3: 4 | J3: 5 | K3: 4 | L3: =SUM(C3:K3) -> 35 | Q3: Par | R3: 4 | S3: 4 | T3: 4 | U3: 3 | V3: 4 | W3: 3 | X3: 4 | Y3: 5 | Z3: 4 | AA3: =L3 -> 35
B4: Handicap | C4: 13 | D4: 3 | E4: 7 | F4: 15 | G4: 5 | H4: 17 | I4: 9 | J4: 1 | K4: 11 | Q4: Handicap | R4: 13 | S4: 3 | T4: 7 | U4: 15 | V4: 5 | W4: 17 | X4: 9 | Y4: 1 | Z4: 11
A7: Player | B7: BEAVER DAM | M7: Place | P7: Player | Q7: WATERTOWN | AB7: Place
A8: 1 | B8: Koby Jones - 12 | C8: 6 | D8: 5 | E8: 5 | F8: 5 | G8: 4 | H8: 3 | I8: 4 | J8: 6 | K8: 5 | L8: =IF(COUNTBLANK(C8:K8)>0,"",SUM(C8:K8)) -> 43 | M8: =VLOOKUP(BA8,$B$301:$E$340,4) -> 11 | P8: 1 | Q8: Cameron Boyd - 11 | R8: 5 | S8: 6 | T8: 4 | U8: 4 | V8: 4 | W8: 4 | X8: 4 | Y8: 11 | Z8: 5 | AA8: =IF(COUNTBLANK(R8:Z8)>0,"",SUM(R8:Z8)) -> 47 | AB8: =VLOOKUP(BB8,$B$301:$E$340,4) -> 23 | BA8: 1 | BB8: 21 | BC8: =LEN(L8) -> 2 | BD8: =LEN(AA8) -> 2
A9: 2 | B9: Thomas Bleich - 11 | C9: 5 | D9: 5 | E9: 5 | F9: 4 | G9: 4 | H9: 4 | I9: 5 | J9: 6 | K9: 5 | L9: =IF(COUNTBLANK(C9:K9)>0,"",SUM(C9:K9)) -> 43 | M9: =VLOOKUP(BA9,$B$301:$E$340,4) -> 11 | P9: 2 | Q9: Alex Thompson - 9 | R9: 5 | S9: 5 | T9: 7 | U9: 5 | V9: 5 | W9: 4 | X9: 5 | Y9: 7 | Z9: 5 | AA9: =IF(COUNTBLANK(R9:Z9)>0,"",SUM(R9:Z9)) -> 48 | AB9: =VLOOKUP(BB9,$B$301:$E$340,4) -> 25 | BA9: 2 | BB9: 22 | BC9: =LEN(L9) -> 2 | BD9: =LEN(AA9) -> 2
A10: 3 | B10: Cody Trottier - 12 | C10: 5 | D10: 4 | E10: 7 | F10: 3 | G10: 5 | H10: 3 | I10: 5 | J10: 6 | K10: 4 | L10: =IF(COUNTBLANK(C10:K10)>0,"",SUM(C10:K10)) -> 42 | M10: =VLOOKUP(BA10,$B$301:$E$340,4) -> 7 | P10: 3 | Q10: Collin Travis - 11 | R10: 4 | S10: 7 | T10: 6 | U10: 4 | V10: 4 | W10: 5 | X10: 6 | Y10: 6 | Z10: 7 | AA10: =IF(COUNTBLANK(R10:Z10)>0,"",SUM(R10:Z10)) -> 49 | AB10: =VLOOKUP(BB10,$B$301:$E$340,4) -> 30 | BA10: 3 | BB10: 23 | BC10: =LEN(L10) -> 2 | BD10: =LEN(AA10) -> 2
A11: 4 | B11: Jacob Smith - 10 | C11: 4 | D11: 4 | E11: 4 | F11: 4 | G11: 5 | H11: 4 | I11: 6 | J11: 6 | K11: 5 | L11: =IF(COUNTBLANK(C11:K11)>0,"",SUM(C11:K11)) -> 42 | M11: =VLOOKUP(BA11,$B$301:$E$340,4) -> 7 | P11: 4 | Q11: Austin Douglas - 10 | R11: 5 | S11: 6 | T11: 7 | U11: 6 | V11: 6 | W11: 5 | X11: 7 | Y11: 5 | Z11: 8 | AA11: =IF(COUNTBLANK(R11:Z11)>0,"",SUM(R11:Z11)) -> 55 | AB11: =VLOOKUP(BB11,$B$301:$E$340,4) -> 35 | BA11: 4 | BB11: 24 | BC11: =LEN(L11) -> 2 | BD11: =LEN(AA11) -> 2
A12: 5 | B12: Carter Smith - 11 | C12: 4 | D12: 5 | E12: 5 | F12: 4 | G12: 4 | H12: 3 | I12: 5 | J12: 6 | K12: 6 | L12: =IF(COUNTBLANK(C12:K12)>0,"",SUM(C12:K12)) -> 42 | M12: =VLOOKUP(BA12,$B$301:$E$340,4) -> 7 | P12: 5 | Q12: Trevor Reierson - 11 | R12: 4 | S12: 4 | T12: 7 | U12: 5 | V12: 4 | W12: 5 | X12: 4 | Y12: 8 | Z12: 7 | AA12: =IF(COUNTBLANK(R12:Z12)>0,"",SUM(R12:Z12)) -> 48 | AB12: =VLOOKUP(BB12,$B$301:$E$340,4) -> 25 | BA12: 5 | BB12: 25 | BC12: =LEN(L12) -> 2 | BD12: =LEN(AA12) -> 2
L13: =IF(COUNT(L8:L12)=5,(SUM(L8:L12))-(MAX(L8:L12)),(IF(COUNT(L8:L12)=4,SUM(L8:L12),IF(COUNTBLANK(L8:L12)>0,SUM(L8:L12),"DQ")))) -> 169 | M13: =J351 -> 1 | AA13: =IF(COUNT(AA8:AA12)=5,(SUM(AA8:AA12))-(MAX(AA8:AA12)),(IF(COUNT(AA8:AA12)=4,SUM(AA8:AA12),IF(COUNTBLANK(AA8:AA12)>0,SUM(AA8:AA12),"DQ")))) -> 192 | AB13: =J355 -> 7
L14: =IF(COUNT(L8:L12)=5,MAX(L8:L12),IF(COUNT(L8:L12)<5,200,)) -> 43 | AA14: =IF(COUNT(AA8:AA12)=5,MAX(AA8:AA12),IF(COUNT(AA8:AA12)<5,200,)) -> 55
A15: Player | B15: HARTFORD | M15: Place | P15: Player | Q15: WEST BEND EAST | AB15: Place
A16: 1 | B16: Ryan Ruona - 11 | C16: 5 | D16: 4 | E16: 6 | F16: 4 | G16: 5 | H16: 4 | I16: 4 | J16: 6 | K16: 4 | L16: =IF(COUNTBLANK(C16:K16)>0,"",SUM(C16:K16)) -> 42 | M16: =VLOOKUP(BA16,$B$301:$E$340,4) -> 7 | P16: 1 | Q16: Devon Hanson - 11 | R16: 4 | S16: 4 | T16: 4 | U16: 4 | V16: 5 | W16: 5 | X16: 4 | Y16: 5 | Z16: 5 | AA16: =IF(COUNTBLANK(R16:Z16)>0,"",SUM(R16:Z16)) -> 40 | AB16: =VLOOKUP(BB16,$B$301:$E$340,4) -> 3 | BA16: 6 | BB16: 26 | BC16: =LEN(L16) -> 2 | BD16: =LEN(AA16) -> 2
A17: 2 | B17: Adam Butler - 12 | C17: 5 | D17: 4 | E17: 5 | F17: 5 | G17: 6 | H17: 4 | I17: 6 | J17: 6 | K17: 7 | L17: =IF(COUNTBLANK(C17:K17)>0,"",SUM(C17:K17)) -> 48 | M17: =VLOOKUP(BA17,$B$301:$E$340,4) -> 25 | P17: 2 | Q17: Mitch Saari - 12 | R17: 5 | S17: 5 | T17: 5 | U17: 3 | V17: 5 | W17: 2 | X17: 6 | Y17: 5 | Z17: 5 | AA17: =IF(COUNTBLANK(R17:Z17)>0,"",SUM(R17:Z17)) -> 41 | AB17: =VLOOKUP(BB17,$B$301:$E$340,4) -> 6 | BA17: 7 | BB17: 27 | BC17: =LEN(L17) -> 2 | BD17: =LEN(AA17) -> 2
A18: 3 | B18: John Turchi - 10 | C18: 5 | D18: 4 | E18: 6 | F18: 4 | G18: 6 | H18: 6 | I18: 6 | J18: 6 | K18: 6 | L18: =IF(COUNTBLANK(C18:K18)>0,"",SUM(C18:K18)) -> 49 | M18: =VLOOKUP(BA18,$B$301:$E$340,4) -> 30 | P18: 3 | Q18: Josh Breuer - 12 | R18: 6 | S18: 4 | T18: 4 | U18: 5 | V18: 7 | W18: 5 | X18: 7 | Y18: 6 | Z18: 7 | AA18: =IF(COUNTBLANK(R18:Z18)>0,"",SUM(R18:Z18)) -> 51 | AB18: =VLOOKUP(BB18,$B$301:$E$340,4) -> 33 | BA18: 8 | BB18: 28 | BC18: =LEN(L18) -> 2 | BD18: =LEN(AA18) -> 2
A19: 4 | B19: Lucas Hass - 11 | C19: 4 | D19: 4 | E19: 5 | F19: 4 | G19: 6 | H19: 6 | I19: 6 | J19: 5 | K19: 6 | L19: =IF(COUNTBLANK(C19:K19)>0,"",SUM(C19:K19)) -> 46 | M19: =VLOOKUP(BA19,$B$301:$E$340,4) -> 20 | P19: 4 | Q19: Sam Struebing - 11 | R19: 5 | S19: 6 | T19: 6 | U19: 4 | V19: 4 | W19: 5 | X19: 7 | Y19: 5 | Z19: 6 | AA19: =IF(COUNTBLANK(R19:Z19)>0,"",SUM(R19:Z19)) -> 48 | AB19: =VLOOKUP(BB19,$B$301:$E$340,4) -> 25 | BA19: 9 | BB19: 29 | BC19: =LEN(L19) -> 2 | BD19: =LEN(AA19) -> 2
A20: 5 | B20: Luke Carroll - 10 | C20: 4 | D20: 5 | E20: 7 | F20: 3 | G20: 5 | H20: 4 | I20: 4 | J20: 7 | K20: 8 | L20: =IF(COUNTBLANK(C20:K20)>0,"",SUM(C20:K20)) -> 47 | M20: =VLOOKUP(BA20,$B$301:$E$340,4) -> 23 | P20: 5 | Q20: Brad Halverson - 9 | R20: 4 | S20: 5 | T20: 6 | U20: 4 | V20: 5 | W20: 6 | X20: 6 | Y20: 5 | Z20: 5 | AA20: =IF(COUNTBLANK(R20:Z20)>0,"",SUM(R20:Z20)) -> 46 | AB20: =VLOOKUP(BB20,$B$301:$E$340,4) -> 20 | BA20: 10 | BB20: 30 | BC20: =LEN(L20) -> 2 | BD20: =LEN(AA20) -> 2
L21: =IF(COUNT(L16:L20)=5,(SUM(L16:L20))-(MAX(L16:L20)),(IF(COUNT(L16:L20)=4,SUM(L16:L20),IF(COUNTBLANK(L16:L20)>0,SUM(L16:L20),"DQ")))) -> 183 | M21: =J352 -> 6 | AA21: =IF(COUNT(AA16:AA20)=5,(SUM(AA16:AA20))-(MAX(AA16:AA20)),(IF(COUNT(AA16:AA20)=4,SUM(AA16:AA20),IF(COUNTBLANK(AA16:AA20)>0,SUM(AA16:AA20),"DQ")))) -> 175 | AB21: =J356 -> 4
L22: =IF(COUNT(L16:L20)=5,MAX(L16:L20),IF(COUNT(L16:L20)<5,200,)) -> 49 | AA22: =IF(COUNT(AA16:AA20)=5,MAX(AA16:AA20),IF(COUNT(AA16:AA20)<5,200,)) -> 51
A23: Player | B23: OCONOMOWOC | M23: Place | P23: Player | Q23: WEST BEND WEST | AB23: Place
A24: 1 | B24: George Kneiser - 11 | C24: 5 | D24: 7 | E24: 6 | F24: 4 | G24: 4 | H24: 3 | I24: 4 | J24: 6 | K24: 5 | L24: =IF(COUNTBLANK(C24:K24)>0,"",SUM(C24:K24)) -> 44 | M24: =VLOOKUP(BA24,$B$301:$E$340,4) -> 14 | P24: 1 | Q24: Alex Haas - 12 | R24: 6 | S24: 5 | T24: 4 | U24: 5 | V24: 5 | W24: 4 | X24: 7 | Y24: 5 | Z24: 5 | AA24: =IF(COUNTBLANK(R24:Z24)>0,"",SUM(R24:Z24)) -> 46 | AB24: =VLOOKUP(BB24,$B$301:$E$340,4) -> 20 | BA24: 11 | BB24: 31 | BC24: =LEN(L24) -> 2 | BD24: =LEN(AA24) -> 2
A25: 2 | B25: Colin Prom - 12 | C25: 4 | D25: 6 | E25: 4 | F25: 3 | G25: 4 | H25: 4 | I25: 5 | J25: 6 | K25: 3 | L25: =IF(COUNTBLANK(C25:K25)>0,"",SUM(C25:K25)) -> 39 | M25: =VLOOKUP(BA25,$B$301:$E$340,4) -> 2 | P25: 2 | Q25: Max Rohlinger - 10 | R25: 4 | S25: 5 | T25: 4 | U25: 4 | V25: 5 | W25: 3 | X25: 4 | Y25: 7 | Z25: 4 | AA25: =IF(COUNTBLANK(R25:Z25)>0,"",SUM(R25:Z25)) -> 40 | AB25: =VLOOKUP(BB25,$B$301:$E$340,4) -> 3 | BA25: 12 | BB25: 32 | BC25: =LEN(L25) -> 2 | BD25: =LEN(AA25) -> 2
A26: 3 | B26: Joey Ploch - 9 | C26: 5 | D26: 4 | E26: 5 | F26: 4 | G26: 5 | H26: 4 | I26: 6 | J26: 6 | K26: 5 | L26: =IF(COUNTBLANK(C26:K26)>0,"",SUM(C26:K26)) -> 44 | M26: =VLOOKUP(BA26,$B$301:$E$340,4) -> 14 | P26: 3 | Q26: Kevin Albrecht - 11 | R26: 4 | S26: 5 | T26: 6 | U26: 6 | V26: 7 | W26: 3 | X26: 5 | Y26: 8 | Z26: 5 | AA26: =IF(COUNTBLANK(R26:Z26)>0,"",SUM(R26:Z26)) -> 49 | AB26: =VLOOKUP(BB26,$B$301:$E$340,4) -> 30 | BA26: 13 | BB26: 33 | BC26: =LEN(L26) -> 2 | BD26: =LEN(AA26) -> 2
A27: 4 | B27: Brett Lange - 12 | C27: 9 | D27: 9 | E27: 9 | F27: 9 | G27: 9 | H27: 9 | I27: 9 | J27: 9 | K27: 9 | L27: =IF(COUNTBLANK(C27:K27)>0,"",SUM(C27:K27)) -> 81 | M27: =VLOOKUP(BA27,$B$301:$E$340,4) -> 37 | N27: DQ | P27: 4 | Q27: Jacob Droese - 12 | R27: 5 | S27: 6 | T27: 5 | U27: 5 | V27: 7 | W27: 6 | X27: 6 | Y27: 7 | Z27: 6 | AA27: =IF(COUNTBLANK(R27:Z27)>0,"",SUM(R27:Z27)) -> 53 | AB27: =VLOOKUP(BB27,$B$301:$E$340,4) -> 34 | BA27: 14 | BB27: 34 | BC27: =LEN(L27) -> 2 | BD27: =LEN(AA27) -> 2
A28: 5 | B28: Allan Moutvic - 12 | C28: 5 | D28: 4 | E28: 4 | F28: 4 | G28: 5 | H28: 4 | I28: 6 | J28: 6 | K28: 6 | L28: =IF(COUNTBLANK(C28:K28)>0,"",SUM(C28:K28)) -> 44 | M28: =VLOOKUP(BA28,$B$301:$E$340,4) -> 14 | P28: 5 | Q28: Nick Meucci - 12 | R28: 4 | S28: 4 | T28: 4 | U28: 3 | V28: 5 | W28: 4 | X28: 5 | Y28: 6 | Z28: 5 | AA28: =IF(COUNTBLANK(R28:Z28)>0,"",SUM(R28:Z28)) -> 40 | AB28: =VLOOKUP(BB28,$B$301:$E$340,4) -> 3 | BA28: 15 | BB28: 35 | BC28: =LEN(L28) -> 2 | BD28: =LEN(AA28) -> 2
L29: =IF(COUNT(L24:L28)=5,(SUM(L24:L28))-(MAX(L24:L28)),(IF(COUNT(L24:L28)=4,SUM(L24:L28),IF(COUNTBLANK(L24:L28)>0,SUM(L24:L28),"DQ")))) -> 171 | M29: =J353 -> 3 | AA29: =IF(COUNT(AA24:AA28)=5,(SUM(AA24:AA28))-(MAX(AA24:AA28)),(IF(COUNT(AA24:AA28)=4,SUM(AA24:AA28),IF(COUNTBLANK(AA24:AA28)>0,SUM(AA24:AA28),"DQ")))) -> 175 | AB29: =J357 -> 5
L30: =IF(COUNT(L24:L28)=5,MAX(L24:L28),IF(COUNT(L24:L28)<5,200,)) -> 81 | AA30: =IF(COUNT(AA24:AA28)=5,MAX(AA24:AA28),IF(COUNT(AA24:AA28)<5,200,)) -> 53
A31: Player | B31: SLINGER | M31: Place | P31: Player | Q31: WISCONSIN LUTHERAN | AB31: Place
A32: 1 | B32: Jack Burns - 12 | C32: 4 | D32: 4 | E32: 5 | F32: 4 | G32: 3 | H32: 3 | I32: 5 | J32: 6 | K32: 4 | L32: =IF(COUNTBLANK(C32:K32)>0,"",SUM(C32:K32)) -> 38 | M32: =VLOOKUP(BA32,$B$301:$E$340,4) -> 1 | P32: 1 | Q32: Scratch #1 - x | R32: 9 | S32: 9 | T32: 9 | U32: 9 | V32: 9 | W32: 9 | X32: 9 | Y32: 9 | Z32: 9 | AA32: =IF(COUNTBLANK(R32:Z32)>0,"",SUM(R32:Z32)) -> 81 | AB32: =VLOOKUP(BB32,$B$301:$E$340,4) -> 37 | BA32: 16 | BB32: 36 | BC32: =LEN(L32) -> 2 | BD32: =LEN(AA32) -> 2
A33: 2 | B33: Chris Evans - 11 | C33: 5 | D33: 5 | E33: 5 | F33: 3 | G33: 6 | H33: 5 | I33: 5 | J33: 6 | K33: 5 | L33: =IF(COUNTBLANK(C33:K33)>0,"",SUM(C33:K33)) -> 45 | M33: =VLOOKUP(BA33,$B$301:$E$340,4) -> 17 | P33: 2 | Q33: Scratch #2 - x | R33: 9 | S33: 9 | T33: 9 | U33: 9 | V33: 9 | W33: 9 | X33: 9 | Y33: 9 | Z33: 9 | AA33: =IF(COUNTBLANK(R33:Z33)>0,"",SUM(R33:Z33)) -> 81 | AB33: =VLOOKUP(BB33,$B$301:$E$340,4) -> 37 | BA33: 17 | BB33: 37 | BC33: =LEN(L33) -> 2 | BD33: =LEN(AA33) -> 2
A34: 3 | B34: Austin Walsh - 12 | C34: 5 | D34: 5 | E34: 5 | F34: 3 | G34: 5 | H34: 4 | I34: 5 | J34: 7 | K34: 4 | L34: =IF(COUNTBLANK(C34:K34)>0,"",SUM(C34:K34)) -> 43 | M34: =VLOOKUP(BA34,$B$301:$E$340,4) -> 11 | P34: 3 | Q34: Ben Krause - 12 | R34: 5 | S34: 5 | T34: 5 | U34: 5 | V34: 5 | W34: 3 | X34: 5 | Y34: 7 | Z34: 5 | AA34: =IF(COUNTBLANK(R34:Z34)>0,"",SUM(R34:Z34)) -> 45 | AB34: =VLOOKUP(BB34,$B$301:$E$340,4) -> 17 | BA34: 18 | BB34: 38 | BC34: =LEN(L34) -> 2 | BD34: =LEN(AA34) -> 2
A35: 4 | B35: Ryan Erdmann - 10 | C35: 5 | D35: 6 | E35: 5 | F35: 5 | G35: 5 | H35: 3 | I35: 6 | J35: 7 | K35: 6 | L35: =IF(COUNTBLANK(C35:K35)>0,"",SUM(C35:K35)) -> 48 | M35: =VLOOKUP(BA35,$B$301:$E$340,4) -> 25 | P35: 4 | Q35: Brendan Hausch - 10 | R35: 7 | S35: 6 | T35: 7 | U35: 7 | V35: 6 | W35: 5 | X35: 6 | Y35: 8 | Z35: 7 | AA35: =IF(COUNTBLANK(R35:Z35)>0,"",SUM(R35:Z35)) -> 59 | AB35: =VLOOKUP(BB35,$B$301:$E$340,4) -> 36 | BA35: 19 | BB35: 39 | BC35: =LEN(L35) -> 2 | BD35: =LEN(AA35) -> 2
A36: 5 | B36: Ryan Kusek - 9 | C36: 5 | D36: 5 | E36: 5 | F36: 3 | G36: 5 | H36: 5 | I36: 5 | J36: 6 | K36: 6 | L36: =IF(COUNTBLANK(C36:K36)>0,"",SUM(C36:K36)) -> 45 | M36: =VLOOKUP(BA36,$B$301:$E$340,4) -> 17 | P36: 5 | Q36: Scratch #3 - x | R36: 9 | S36: 9 | T36: 9 | U36: 9 | V36: 9 | W36: 9 | X36: 9 | Y36: 9 | Z36: 9 | AA36: =IF(COUNTBLANK(R36:Z36)>0,"",SUM(R36:Z36)) -> 81 | AB36: =VLOOKUP(BB36,$B$301:$E$340,4) -> 37 | BA36: 20 | BB36: 40 | BC36: =LEN(L36) -> 2 | BD36: =LEN(AA36) -> 2
L37: =IF(COUNT(L32:L36)=5,(SUM(L32:L36))-(MAX(L32:L36)),(IF(COUNT(L32:L36)=4,SUM(L32:L36),IF(COUNTBLANK(L32:L36)>0,SUM(L32:L36),"DQ")))) -> 171 | M37: =J354 -> 2 | AA37: =IF(COUNT(AA32:AA36)=5,(SUM(AA32:AA36))-(MAX(AA32:AA36)),(IF(COUNT(AA32:AA36)=4,SUM(AA32:AA36),IF(COUNTBLANK(AA32:AA36)>0,SUM(AA32:AA36),"DQ")))) -> 266 | AB37: =J358 -> 8
L38: =IF(COUNT(L32:L36)=5,MAX(L32:L36),IF(COUNT(L32:L36)<5,200,)) -> 48 | AA38: =IF(COUNT(AA32:AA36)=5,MAX(AA32:AA36),IF(COUNT(AA32:AA36)<5,200,)) -> 81
B41: Wisconsin Little Ten Varsity Golf | G41: Match # 5 | L41: Hosted By: | M41: Oconomowoc | Q41: ="WISCONSIN LITTLE TEN CONFERENCE STANDINGS " & Schedule!Q41 -> WISCONSIN LITTLE TEN CONFERENCE STANDINGS
Q42: Match | R42: 1 | S42: 2 | T42: 3 | U42: 4 | V42: 5 | W42: 6 | X42: 7 | Y42: 8 | Z42: 9 | AA42: Total
B43: Date: May 4, 2015 | D43: ="Location: " & C1 -> Location: Oconomowoc Golf Club | Q43: =Rosters!$B$10 -> West Bend West | R43: 1 | S43: 1 | T43: 2 | U43: 2 | V43: 5 | AA43: =IF(SUM(R43:Z43)=0,"",SUM(R43:Z43)) -> 11
B44: Weather: 65, partly sunny, light wind…quite nice, actually! | Q44: =Rosters!$B$6 -> Oconomowoc | R44: 2 | S44: 3 | T44: 3 | U44: 1 | V44: 3 | AA44: 12
Q45: =Rosters!$B$4 -> Beaver Dam | R45: 3 | S45: 2 | T45: 4 | U45: 6 | V45: 1 | AA45: 16
Q46: =Rosters!$B$7 -> Slinger | R46: 4 | S46: 6 | T46: 1 | U46: 3 | V46: 2 | AA46: 16
B47: Medalist: (38) - Jack Burns | Q47: =Rosters!$B$9 -> West Bend East | R47: 5 | S47: 4 | T47: 6 | U47: 5 | V47: 4 | AA47: 24
Q48: =Rosters!$B$5 -> Hartford | R48: 6 | S48: 5 | T48: 5 | U48: 4 | V48: 6 | AA48: 26
Q49: =Rosters!$B$8 -> Watertown | R49: 7 | S49: 7 | T49: 7 | U49: 7 | V49: 7 | AA49: 35
L50: = Birdies or Better | Q50: =Rosters!$B$11 -> Wisconsin Lutheran | R50: 8 | S50: 8 | T50: 8 | U50: 8 | V50: 8 | AA50: 40
Z96: `
B100: Course: | C100: Oconomowoc Golf Club
B101: Hole | C101: 1 | D101: 2 | E101: 3 | F101: 4 | G101: 5 | H101: 6 | I101: 7 | J101: 8 | K101: 9 | L101: Total
B102: Par | C102: 4 | D102: 4 | E102: 4 | F102: 3 | G102: 4 | H102: 3 | I102: 4 | J102: 5 | K102: 4 | L102: =SUM(C102:K102) -> 35
B103: Handicap | C103: 13 | D103: 3 | E103: 7 | F103: 15 | G103: 5 | H103: 17 | I103: 9 | J103: 1 | K103: 11
B105: Course: | C105: Oconomowoc Golf Club
B106: Hole | C106: 10 | D106: 11 | E106: 12 | F106: 13 | G106: 14 | H106: 15 | I106: 16 | J106: 17 | K106: 18 | L106: Total
B107: Par | C107: 4 | D107: 4 | E107: 3 | F107: 4 | G107: 4 | H107: 4 | I107: 5 | J107: 3 | K107: 4 | L107: =SUM(C107:K107) -> 35
B108: Handicap | C108: 14 | D108: 10 | E108: 18 | F108: 4 | G108: 12 | H108: 6 | I108: 2 | J108: 16 | K108: 8
B115: Course: | C115: Oconomowoc Golf Club
B116: Hole | C116: 1 | D116: 2 | E116: 3 | F116: 4 | G116: 5 | H116: 6 | I116: 7 | J116: 8 | K116: 9 | L116: Total
B117: Par | C117: 4 | D117: 4 | E117: 4 | F117: 3 | G117: 4 | H117: 3 | I117: 4 | J117: 5 | K117: 4 | L117: =SUM(C117:K117) -> 35
B118: Handicap | C118: 13 | D118: 3 | E118: 7 | F118: 15 | G118: 5 | H118: 17 | I118: 9 | J118: 1 | K118: 11
B120: Course: | C120: Oconomowoc Golf Club
B121: Hole | C121: 10 | D121: 11 | E121: 12 | F121: 13 | G121: 14 | H121: 15 | I121: 16 | J121: 17 | K121: 18 | L121: Total
B122: Par | C122: 4 | D122: 4 | E122: 3 | F122: 4 | G122: 4 | H122: 4 | I122: 5 | J122: 3 | K122: 4 | L122: =SUM(C122:K122) -> 35
B123: Handicap | C123: 14 | D123: 10 | E123: 18 | F123: 4 | G123: 12 | H123: 6 | I123: 2 | J123: 16 | K123: 8
B126: Course: | C126: Rolling Hills
B127: Hole | C127: 1 | D127: 2 | E127: 3 | F127: 4 | G127: 5 | H127: 6 | I127: 7 | J127: 8 | K127: 9 | L127: Total
B128: Par | C128: 4 | D128: 3 | E128: 4 | F128: 3 | G128: 5 | H128: 4 | I128: 4 | J128: 5 | K128: 4 | L128: =SUM(C128:K128) -> 36
B129: Handicap | C129: 13 | D129: 15 | E129: 5 | F129: 17 | G129: 1 | H129: 7 | I129: 9 | J129: 3 | K129: 11
B131: Course: | C131: Rolling Hills
B132: Hole | C132: 10 | D132: 11 | E132: 12 | F132: 13 | G132: 14 | H132: 15 | I132: 16 | J132: 17 | K132: 18 | L132: Total
B133: Par | C133: 4 | D133: 4 | E133: 4 | F133: 3 | G133: 5 | H133: 4 | I133: 4 | J133: 3 | K133: 4 | L133: =SUM(C133:K133) -> 35
B134: Handicap | C134: 14 | D134: 10 | E134: 12 | F134: 16 | G134: 2 | H134: 4 | I134: 6 | J134: 18 | K134: 8
B300: Player | C300: Sc | D300: Sort | E300: Rnk
B301: 1 | C301: =$L$8 -> 43 | E301: 11
B302: 2 | C302: =$L$9 -> 43 | E302: 11
B303: 3 | C303: =$L$10 -> 42 | E303: 7
B304: 4 | C304: =$L$11 -> 42 | E304: 7
B305: 5 | C305: =$L$12 -> 42 | E305: 7
B306: 6 | C306: =$L$16 -> 42 | E306: 7
B307: 7 | C307: =$L$17 -> 48 | E307: 25
B308: 8 | C308: =$L$18 -> 49 | E308: 30
B309: 9 | C309: =$L$19 -> 46 | E309: 20
B310: 10 | C310: =$L$20 -> 47 | E310: 23
B311: 11 | C311: =$L$24 -> 44 | E311: 14
B312: 12 | C312: =$L$25 -> 39 | E312: 2
B313: 13 | C313: =$L$26 -> 44 | E313: 14
B314: 14 | C314: =$L$27 -> 81 | E314: 37
B315: 15 | C315: =$L$28 -> 44 | E315: 14
B316: 16 | C316: =$L$32 -> 38 | E316: 1
B317: 17 | C317: =$L$33 -> 45 | E317: 17
B318: 18 | C318: =$L$34 -> 43 | E318: 11
B319: 19 | C319: =$L$35 -> 48 | E319: 25
B320: 20 | C320: =$L$36 -> 45 | E320: 17
B321: 21 | C321: =$AA$8 -> 47 | E321: 23
B322: 22 | C322: =$AA$9 -> 48 | E322: 25
B323: 23 | C323: =$AA$10 -> 49 | E323: 30
B324: 24 | C324: =$AA$11 -> 55 | E324: 35
B325: 25 | C325: =$AA$12 -> 48 | E325: 25
B326: 26 | C326: =$AA$16 -> 40 | E326: 3
B327: 27 | C327: =$AA$17 -> 41 | E327: 6
B328: 28 | C328: =$AA$18 -> 51 | E328: 33
B329: 29 | C329: =$AA$19 -> 48 | E329: 25
B330: 30 | C330: =$AA$20 -> 46 | E330: 20
B331: 31 | C331: =$AA$24 -> 46 | E331: 20
B332: 32 | C332: =$AA$25 -> 40 | E332: 3
B333: 33 | C333: =$AA$26 -> 49 | E333: 30
B334: 34 | C334: =$AA$27 -> 53 | E334: 34
B335: 35 | C335: =$AA$28 -> 40 | E335: 3
B336: 36 | C336: =$AA$32 -> 81 | E336: 37
B337: 37 | C337: =$AA$33 -> 81 | E337: 37
B338: 38 | C338: =$AA$34 -> 45 | E338: 17
B339: 39 | C339: =$AA$35 -> 59 | E339: 36
B340: 40 | C340: =$AA$36 -> 81 | E340: 37
B341: =B69 -> 0
B342: =B70 -> 0
B343: =B71 -> 0
J349: =DCOUNT(J350:J358,1,J347:J348) -> 8 | R349: Handicap Holes
C350: 1 | D350: 2 | E350: 3 | F350: 4 | G350: 5 | I350: Tot | J350: Rank | L350: Temp | R350: =IF(SUM($C$4:$K$4)<85,MATCH(1,$C$4:$K$4,0),MATCH(2,$C$4:$K$4,0)+9) -> 8 | S350: =IF(SUM($C$4:$K$4)<85,MATCH(3,$C$4:$K$4,0),MATCH(4,$C$4:$K$4,0)+9) -> 2 | T350: =IF(SUM($C$4:$K$4)<85,MATCH(5,$C$4:$K$4,0),MATCH(6,$C$4:$K$4,0)+9) -> 5 | U350: =IF(SUM($C$4:$K$4)<85,MATCH(7,$C$4:$K$4,0),MATCH(8,$C$4:$K$4,0)+9) -> 3 | V350: =IF(SUM($C$4:$K$4)<85,MATCH(9,$C$4:$K$4,0),MATCH(10,$C$4:$K$4,0)+9) -> 7 | W350: =IF(SUM($C$4:$K$4)<85,MATCH(11,$C$4:$K$4,0),MATCH(12,$C$4:$K$4,0)+9) -> 9 | X350: =IF(SUM($C$4:$K$4)<85,MATCH(13,$C$4:$K$4,0),MATCH(14,$C$4:$K$4,0)+9) -> 1 | Y350: =IF(SUM($C$4:$K$4)<85,MATCH(15,$C$4:$K$4,0),MATCH(16,$C$4:$K$4,0)+9) -> 4 | Z350: =IF(SUM($C$4:$K$4)<85,MATCH(17,$C$4:$K$4,0),MATCH(18,$C$4:$K$4,0)+9) -> 6
B351: Team1 | C351: =$L$8 -> 43 | D351: =$L$9 -> 43 | E351: =$L$10 -> 42 | F351: =$L$11 -> 42 | G351: =$L$12 -> 42 | H351: =$L$14 -> 43 | I351: =$L$13 -> 169 | J351: 1 | L351: 1 | R351: 30 | S351: 23 | T351: 22 | U351: 26 | V351: 25 | W351: 25 | X351: 24 | Y351: 20 | Z351: 17
B352: Team2 | C352: =$L$16 -> 42 | D352: =$L$17 -> 48 | E352: =$L$18 -> 49 | F352: =$L$19 -> 46 | G352: =$L$20 -> 47 | H352: =$L$22 -> 49 | I352: =$L$21 -> 183 | J352: 6 | L352: 6 | R352: 30 | S352: 21 | T352: 28 | U352: 29 | V352: 26 | W352: 31 | X352: 23 | Y352: 20 | Z352: 24
B353: Team3 | C353: =$L$24 -> 44 | D353: =$L$25 -> 39 | E353: =$L$26 -> 44 | F353: =$L$27 -> 81 | G353: =$L$28 -> 44 | H353: =$L$30 -> 81 | I353: =$L$29 -> 171 | J353: 3 | L353: 3 | R353: 33 | S353: 30 | T353: 27 | U353: 28 | V353: 30 | W353: 28 | X353: 28 | Y353: 24 | Z353: 24
B354: Team4 | C354: =$L$32 -> 38 | D354: =$L$33 -> 45 | E354: =$L$34 -> 43 | F354: =$L$35 -> 48 | G354: =$L$36 -> 45 | H354: =$L$38 -> 48 | I354: =$L$37 -> 171 | J354: 2 | L354: 2 | R354: 32 | S354: 25 | T354: 24 | U354: 25 | V354: 26 | W354: 25 | X354: 24 | Y354: 18 | Z354: 20
B355: Team5 | C355: =$AA$8 -> 47 | D355: =$AA$9 -> 48 | E355: =$AA$10 -> 49 | F355: =$AA$11 -> 55 | G355: =$AA$12 -> 48 | H355: =$AA$14 -> 55 | I355: =$AA$13 -> 192 | J355: 7 | L355: 7 | R355: 37 | S355: 28 | T355: 23 | U355: 31 | V355: 26 | W355: 32 | X355: 23 | Y355: 24 | Z355: 23
B356: Team6 | C356: =$AA$16 -> 40 | D356: =$AA$17 -> 41 | E356: =$AA$18 -> 51 | F356: =$AA$19 -> 48 | G356: =$AA$20 -> 46 | H356: =$AA$22 -> 51 | I356: =$AA$21 -> 175 | J356: 4 | L356: 4 | R356: 26 | S356: 24 | T356: 26 | U356: 25 | V356: 30 | W356: 28 | X356: 24 | Y356: 20 | Z356: 23
B357: Team7 | C357: =$AA$24 -> 46 | D357: =$AA$25 -> 40 | E357: =$AA$26 -> 49 | F357: =$AA$27 -> 53 | G357: =$AA$28 -> 40 | H357: =$AA$30 -> 53 | I357: =$AA$29 -> 175 | J357: 5 | L357: 5 | R357: 33 | S357: 25 | T357: 29 | U357: 23 | V357: 27 | W357: 25 | X357: 23 | Y357: 23 | Z357: 20
B358: Team8 | C358: =$AA$32 -> 81 | D358: =$AA$33 -> 81 | E358: =$AA$34 -> 45 | F358: =$AA$35 -> 59 | G358: =$AA$36 -> 81 | H358: =$AA$38 -> 81 | I358: =$AA$37 -> 266 | J358: 8 | L358: 8 | R358: 42 | S358: 38 | T358: 38 | U358: 39 | V358: 38 | W358: 39 | X358: 39 | Y358: 39 | Z358: 35
B401: =B8 -> Koby Jones - 12 | C401: =L8 -> 43
B402: =B9 -> Thomas Bleich - 11 | C402: =L9 -> 43
B403: =B10 -> Cody Trottier - 12 | C403: =L10 -> 42
B404: =B11 -> Jacob Smith - 10 | C404: =L11 -> 42
B405: =B12 -> Carter Smith - 11 | C405: =L12 -> 42
B406: =B16 -> Ryan Ruona - 11 | C406: =L16 -> 42
B407: =B17 -> Adam Butler - 12 | C407: =L17 -> 48
B408: =B18 -> John Turchi - 10 | C408: =L18 -> 49
B409: =B19 -> Lucas Hass - 11 | C409: =L19 -> 46
B410: =B20 -> Luke Carroll - 10 | C410: =L20 -> 47
B411: =B24 -> George Kneiser - 11 | C411: =L24 -> 44
B412: =B25 -> Colin Prom - 12 | C412: =L25 -> 39
B413: =B26 -> Joey Ploch - 9 | C413: =L26 -> 44
B414: =B27 -> Brett Lange - 12 | C414: =L27 -> 81
B415: =B28 -> Allan Moutvic - 12 | C415: =L28 -> 44
B416: =B32 -> Jack Burns - 12 | C416: =L32 -> 38
B417: =B33 -> Chris Evans - 11 | C417: =L33 -> 45
B418: =B34 -> Austin Walsh - 12 | C418: =L34 -> 43
B419: =B35 -> Ryan Erdmann - 10 | C419: =L35 -> 48
B420: =B36 -> Ryan Kusek - 9 | C420: =L36 -> 45
B421: =Q8 -> Cameron Boyd - 11 | C421: =AA8 -> 47
B422: =Q9 -> Alex Thompson - 9 | C422: =AA9 -> 48
B423: =Q10 -> Collin Travis - 11 | C423: =AA10 -> 49
B424: =Q11 -> Austin Douglas - 10 | C424: =AA11 -> 55
B425: =Q12 -> Trevor Reierson - 11 | C425: =AA12 -> 48
B426: =Q16 -> Devon Hanson - 11 | C426: =AA16 -> 40
B427: =Q17 -> Mitch Saari - 12 | C427: =AA17 -> 41
B428: =Q18 -> Josh Breuer - 12 | C428: =AA18 -> 51
B429: =Q19 -> Sam Struebing - 11 | C429: =AA19 -> 48
B430: =Q20 -> Brad Halverson - 9 | C430: =AA20 -> 46
B431: =Q24 -> Alex Haas - 12 | C431: =AA24 -> 46
B432: =Q25 -> Max Rohlinger - 10 | C432: =AA25 -> 40
B433: =Q26 -> Kevin Albrecht - 11 | C433: =AA26 -> 49
B434: =Q27 -> Jacob Droese - 12 | C434: =AA27 -> 53
B435: =Q28 -> Nick Meucci - 12 | C435: =AA28 -> 40
B436: =Q32 -> Scratch #1 - x | C436: =AA32 -> 81
B437: =Q33 -> Scratch #2 - x | C437: =AA33 -> 81
B438: =Q34 -> Ben Krause - 12 | C438: =AA34 -> 45
B439: =Q35 -> Brendan Hausch - 10 | C439: =AA35 -> 59
B440: =Q36 -> Scratch #3 - x | C440: =AA36 -> 81

Sheet BD
B1: Course: | C1: Old Hickory Golf Club
B2: Hole | C2: 10 | D2: 11 | E2: 12 | F2: 13 | G2: 14 | H2: 15 | I2: 16 | J2: 17 | K2: 18 | L2: Total | Q2: Hole | R2: =C2 -> 10 | S2: 11 | T2: 12 | U2: 13 | V2: 14 | W2: 15 | X2: 16 | Y2: 17 | Z2: 18 | AA2: Total
B3: Par | C3: 4 | D3: 4 | E3: 3 | F3: 4 | G3: 4 | H3: 4 | I3: 5 | J3: 3 | K3: 5 | L3: =SUM(C3:K3) -> 36 | Q3: Par | R3: 4 | S3: 4 | T3: 3 | U3: 4 | V3: 4 | W3: 4 | X3: 5 | Y3: 3 | Z3: 5 | AA3: =L3 -> 36
B4: Handicap | C4: 4 | D4: 8 | E4: 16 | F4: 12 | G4: 2 | H4: 14 | I4: 10 | J4: 18 | K4: 6 | Q4: Handicap | R4: 4 | S4: 8 | T4: 16 | U4: 12 | V4: 2 | W4: 14 | X4: 10 | Y4: 18 | Z4: 6
A7: Player | B7: BEAVER DAM | M7: Place | P7: Player | Q7: WATERTOWN | AB7: Place
A8: 1 | B8: Koby Jones - 12 | C8: 5 | D8: 4 | E8: 4 | F8: 4 | G8: 6 | H8: 5 | I8: 5 | J8: 3 | K8: 6 | L8: =IF(COUNTBLANK(C8:K8)>0,"",SUM(C8:K8)) -> 42 | M8: =VLOOKUP(BA8,$B$301:$E$340,4) -> 9 | P8: 1 | Q8: Cameron Boyd - 11 | R8: 8 | S8: 5 | T8: 3 | U8: 5 | V8: 6 | W8: 3 | X8: 5 | Y8: 4 | Z8: 11 | AA8: =IF(COUNTBLANK(R8:Z8)>0,"",SUM(R8:Z8)) -> 50 | AB8: =VLOOKUP(BB8,$B$301:$E$340,4) -> 30 | BA8: 1 | BB8: 21 | BC8: =LEN(L8) -> 2 | BD8: =LEN(AA8) -> 2
A9: 2 | B9: Thomas Bleich - 11 | C9: 4 | D9: 4 | E9: 4 | F9: 6 | G9: 6 | H9: 5 | I9: 4 | J9: 2 | K9: 6 | L9: =IF(COUNTBLANK(C9:K9)>0,"",SUM(C9:K9)) -> 41 | M9: =VLOOKUP(BA9,$B$301:$E$340,4) -> 6 | P9: 2 | Q9: Alex Thompson - 9 | R9: 5 | S9: 4 | T9: 4 | U9: 5 | V9: 5 | W9: 5 | X9: 6 | Y9: 4 | Z9: 9 | AA9: =IF(COUNTBLANK(R9:Z9)>0,"",SUM(R9:Z9)) -> 47 | AB9: =VLOOKUP(BB9,$B$301:$E$340,4) -> 21 | BA9: 2 | BB9: 22 | BC9: =LEN(L9) -> 2 | BD9: =LEN(AA9) -> 2
A10: 3 | B10: Cody Trottier - 12 | C10: 4 | D10: 5 | E10: 3 | F10: 5 | G10: 6 | H10: 5 | I10: 5 | J10: 3 | K10: 7 | L10: =IF(COUNTBLANK(C10:K10)>0,"",SUM(C10:K10)) -> 43 | M10: =VLOOKUP(BA10,$B$301:$E$340,4) -> 12 | P10: 3 | Q10: Collin Travis - 11 | R10: 5 | S10: 5 | T10: 3 | U10: 5 | V10: 7 | W10: 5 | X10: 6 | Y10: 3 | Z10: 6 | AA10: =IF(COUNTBLANK(R10:Z10)>0,"",SUM(R10:Z10)) -> 45 | AB10: =VLOOKUP(BB10,$B$301:$E$340,4) -> 19 | BA10: 3 | BB10: 23 | BC10: =LEN(L10) -> 2 | BD10: =LEN(AA10) -> 2
A11: 4 | B11: Jacob Smith - 10 | C11: 4 | D11: 5 | E11: 4 | F11: 8 | G11: 5 | H11: 4 | I11: 5 | J11: 4 | K11: 5 | L11: =IF(COUNTBLANK(C11:K11)>0,"",SUM(C11:K11)) -> 44 | M11: =VLOOKUP(BA11,$B$301:$E$340,4) -> 15 | P11: 4 | Q11: Austin Douglas - 10 | R11: 6 | S11: 6 | T11: 9 | U11: 6 | V11: 6 | W11: 6 | X11: 6 | Y11: 8 | Z11: 5 | AA11: =IF(COUNTBLANK(R11:Z11)>0,"",SUM(R11:Z11)) -> 58 | AB11: =VLOOKUP(BB11,$B$301:$E$340,4) -> 37 | BA11: 4 | BB11: 24 | BC11: =LEN(L11) -> 2 | BD11: =LEN(AA11) -> 2
A12: 5 | B12: Carter Smith - 11 | C12: 5 | D12: 5 | E12: 4 | F12: 5 | G12: 5 | H12: 5 | I12: 5 | J12: 3 | K12: 4 | L12: =IF(COUNTBLANK(C12:K12)>0,"",SUM(C12:K12)) -> 41 | M12: =VLOOKUP(BA12,$B$301:$E$340,4) -> 6 | P12: 5 | Q12: Trevor Reierson - 11 | R12: 5 | S12: 7 | T12: 4 | U12: 6 | V12: 6 | W12: 5 | X12: 7 | Y12: 5 | Z12: 7 | AA12: =IF(COUNTBLANK(R12:Z12)>0,"",SUM(R12:Z12)) -> 52 | AB12: =VLOOKUP(BB12,$B$301:$E$340,4) -> 32 | BA12: 5 | BB12: 25 | BC12: =LEN(L12) -> 2 | BD12: =LEN(AA12) -> 2
L13: =IF(COUNT(L8:L12)=5,(SUM(L8:L12))-(MAX(L8:L12)),(IF(COUNT(L8:L12)=4,SUM(L8:L12),IF(COUNTBLANK(L8:L12)>0,SUM(L8:L12),"DQ")))) -> 167 | M13: =J351 -> 2 | AA13: =IF(COUNT(AA8:AA12)=5,(SUM(AA8:AA12))-(MAX(AA8:AA12)),(IF(COUNT(AA8:AA12)=4,SUM(AA8:AA12),IF(COUNTBLANK(AA8:AA12)>0,SUM(AA8:AA12),"DQ")))) -> 194 | AB13: =J355 -> 7
L14: =IF(COUNT(L8:L12)=5,MAX(L8:L12),IF(COUNT(L8:L12)<5,200,)) -> 44 | AA14: =IF(COUNT(AA8:AA12)=5,MAX(AA8:AA12),IF(COUNT(AA8:AA12)<5,200,)) -> 58
A15: Player | B15: HARTFORD | M15: Place | P15: Player | Q15: WEST BEND EAST | AB15: Place
A16: 1 | B16: Ryan Ruona - 11 | C16: 5 | D16: 4 | E16: 5 | F16: 5 | G16: 6 | H16: 5 | I16: 6 | J16: 4 | K16: 7 | L16: =IF(COUNTBLANK(C16:K16)>0,"",SUM(C16:K16)) -> 47 | M16: =VLOOKUP(BA16,$B$301:$E$340,4) -> 21 | P16: 1 | Q16: Devon Hanson - 11 | R16: 5 | S16: 5 | T16: 3 | U16: 4 | V16: 4 | W16: 4 | X16: 5 | Y16: 3 | Z16: 5 | AA16: =IF(COUNTBLANK(R16:Z16)>0,"",SUM(R16:Z16)) -> 38 | AB16: =VLOOKUP(BB16,$B$301:$E$340,4) -> 2 | BA16: 6 | BB16: 26 | BC16: =LEN(L16) -> 2 | BD16: =LEN(AA16) -> 2
A17: 2 | B17: Adam Butler - 12 | C17: 5 | D17: 8 | E17: 3 | F17: 4 | G17: 6 | H17: 6 | I17: 6 | J17: 3 | K17: 6 | L17: =IF(COUNTBLANK(C17:K17)>0,"",SUM(C17:K17)) -> 47 | M17: =VLOOKUP(BA17,$B$301:$E$340,4) -> 21 | P17: 2 | Q17: Mitch Saari - 12 | R17: 5 | S17: 4 | T17: 4 | U17: 4 | V17: 4 | W17: 4 | X17: 5 | Y17: 4 | Z17: 5 | AA17: =IF(COUNTBLANK(R17:Z17)>0,"",SUM(R17:Z17)) -> 39 | AB17: =VLOOKUP(BB17,$B$301:$E$340,4) -> 3 | BA17: 7 | BB17: 27 | BC17: =LEN(L17) -> 2 | BD17: =LEN(AA17) -> 2
A18: 3 | B18: John Turchi - 10 | C18: 6 | D18: 4 | E18: 3 | F18: 6 | G18: 5 | H18: 5 | I18: 5 | J18: 4 | K18: 6 | L18: =IF(COUNTBLANK(C18:K18)>0,"",SUM(C18:K18)) -> 44 | M18: =VLOOKUP(BA18,$B$301:$E$340,4) -> 15 | P18: 3 | Q18: Sam Struebing - 11 | R18: 6 | S18: 5 | T18: 5 | U18: 5 | V18: 6 | W18: 5 | X18: 8 | Y18: 2 | Z18: 7 | AA18: =IF(COUNTBLANK(R18:Z18)>0,"",SUM(R18:Z18)) -> 49 | AB18: =VLOOKUP(BB18,$B$301:$E$340,4) -> 29 | BA18: 8 | BB18: 28 | BC18: =LEN(L18) -> 2 | BD18: =LEN(AA18) -> 2
A19: 4 | B19: Lucas Hass - 11 | C19: 7 | D19: 4 | E19: 4 | F19: 4 | G19: 6 | H19: 5 | I19: 6 | J19: 6 | K19: 5 | L19: =IF(COUNTBLANK(C19:K19)>0,"",SUM(C19:K19)) -> 47 | M19: =VLOOKUP(BA19,$B$301:$E$340,4) -> 21 | P19: 4 | Q19: Josh Breuer - 12 | R19: 6 | S19: 6 | T19: 5 | U19: 6 | V19: 6 | W19: 6 | X19: 8 | Y19: 5 | Z19: 6 | AA19: =IF(COUNTBLANK(R19:Z19)>0,"",SUM(R19:Z19)) -> 54 | AB19: =VLOOKUP(BB19,$B$301:$E$340,4) -> 35 | BA19: 9 | BB19: 29 | BC19: =LEN(L19) -> 2 | BD19: =LEN(AA19) -> 2
A20: 5 | B20: Luke Carroll - 10 | C20: 5 | D20: 5 | E20: 5 | F20: 6 | G20: 5 | H20: 5 | I20: 8 | J20: 4 | K20: 7 | L20: =IF(COUNTBLANK(C20:K20)>0,"",SUM(C20:K20)) -> 50 | M20: =VLOOKUP(BA20,$B$301:$E$340,4) -> 30 | P20: 5 | Q20: Brad Halverson - 9 | R20: 6 | S20: 6 | T20: 4 | U20: 6 | V20: 14 | W20: 6 | X20: 7 | Y20: 5 | Z20: 6 | AA20: =IF(COUNTBLANK(R20:Z20)>0,"",SUM(R20:Z20)) -> 60 | AB20: =VLOOKUP(BB20,$B$301:$E$340,4) -> 38 | BA20: 10 | BB20: 30 | BC20: =LEN(L20) -> 2 | BD20: =LEN(AA20) -> 2
L21: =IF(COUNT(L16:L20)=5,(SUM(L16:L20))-(MAX(L16:L20)),(IF(COUNT(L16:L20)=4,SUM(L16:L20),IF(COUNTBLANK(L16:L20)>0,SUM(L16:L20),"DQ")))) -> 185 | M21: =J352 -> 6 | AA21: =IF(COUNT(AA16:AA20)=5,(SUM(AA16:AA20))-(MAX(AA16:AA20)),(IF(COUNT(AA16:AA20)=4,SUM(AA16:AA20),IF(COUNTBLANK(AA16:AA20)>0,SUM(AA16:AA20),"DQ")))) -> 180 | AB21: 5
L22: =IF(COUNT(L16:L20)=5,MAX(L16:L20),IF(COUNT(L16:L20)<5,200,)) -> 50 | AA22: =IF(COUNT(AA16:AA20)=5,MAX(AA16:AA20),IF(COUNT(AA16:AA20)<5,200,)) -> 60
A23: Player | B23: OCONOMOWOC | M23: Place | P23: Player | Q23: WEST BEND WEST | AB23: Place
A24: 1 | B24: George Kneiser - 11 | C24: 4 | D24: 4 | E24: 4 | F24: 4 | G24: 4 | H24: 3 | I24: 4 | J24: 3 | K24: 5 | L24: =IF(COUNTBLANK(C24:K24)>0,"",SUM(C24:K24)) -> 35 | M24: =VLOOKUP(BA24,$B$301:$E$340,4) -> 1 | P24: 1 | Q24: Alex Haas - 12 | R24: 4 | S24: 4 | T24: 4 | U24: 6 | V24: 6 | W24: 4 | X24: 5 | Y24: 5 | Z24: 5 | AA24: =IF(COUNTBLANK(R24:Z24)>0,"",SUM(R24:Z24)) -> 43 | AB24: =VLOOKUP(BB24,$B$301:$E$340,4) -> 12 | BA24: 11 | BB24: 31 | BC24: =LEN(L24) -> 2 | BD24: =LEN(AA24) -> 2
A25: 2 | B25: Colin Prom - 12 | C25: 6 | D25: 6 | E25: 3 | F25: 5 | G25: 5 | H25: 4 | I25: 5 | J25: 4 | K25: 6 | L25: =IF(COUNTBLANK(C25:K25)>0,"",SUM(C25:K25)) -> 44 | M25: =VLOOKUP(BA25,$B$301:$E$340,4) -> 15 | P25: 2 | Q25: Max Rohlinger - 10 | R25: 5 | S25: 5 | T25: 4 | U25: 4 | V25: 4 | W25: 4 | X25: 5 | Y25: 3 | Z25: 7 | AA25: =IF(COUNTBLANK(R25:Z25)>0,"",SUM(R25:Z25)) -> 41 | AB25: =VLOOKUP(BB25,$B$301:$E$340,4) -> 6 | BA25: 12 | BB25: 32 | BC25: =LEN(L25) -> 2 | BD25: =LEN(AA25) -> 2
A26: 3 | B26: Joey Ploch - 9 | C26: 5 | D26: 6 | E26: 6 | F26: 6 | G26: 6 | H26: 5 | I26: 5 | J26: 3 | K26: 5 | L26: =IF(COUNTBLANK(C26:K26)>0,"",SUM(C26:K26)) -> 47 | M26: =VLOOKUP(BA26,$B$301:$E$340,4) -> 21 | P26: 3 | Q26: Kevin Albrecht - 11 | R26: 4 | S26: 4 | T26: 3 | U26: 4 | V26: 6 | W26: 4 | X26: 5 | Y26: 4 | Z26: 6 | AA26: =IF(COUNTBLANK(R26:Z26)>0,"",SUM(R26:Z26)) -> 40 | AB26: =VLOOKUP(BB26,$B$301:$E$340,4) -> 4 | BA26: 13 | BB26: 33 | BC26: =LEN(L26) -> 2 | BD26: =LEN(AA26) -> 2
A27: 4 | B27: Brett Lange - 12 | C27: 6 | D27: 5 | E27: 4 | F27: 4 | G27: 7 | H27: 5 | I27: 5 | J27: 5 | K27: 7 | L27: =IF(COUNTBLANK(C27:K27)>0,"",SUM(C27:K27)) -> 48 | M27: =VLOOKUP(BA27,$B$301:$E$340,4) -> 28 | P27: 4 | Q27: Jacob Droese - 12 | R27: 5 | S27: 4 | T27: 4 | U27: 5 | V27: 5 | W27: 5 | X27: 6 | Y27: 3 | Z27: 6 | AA27: =IF(COUNTBLANK(R27:Z27)>0,"",SUM(R27:Z27)) -> 43 | AB27: =VLOOKUP(BB27,$B$301:$E$340,4) -> 12 | BA27: 14 | BB27: 34 | BC27: =LEN(L27) -> 2 | BD27: =LEN(AA27) -> 2
A28: 5 | B28: Allan Moutvic - 12 | C28: 5 | D28: 5 | E28: 4 | F28: 4 | G28: 6 | H28: 5 | I28: 5 | J28: 4 | K28: 6 | L28: =IF(COUNTBLANK(C28:K28)>0,"",SUM(C28:K28)) -> 44 | M28: =VLOOKUP(BA28,$B$301:$E$340,4) -> 15 | P28: 5 | Q28: Nick Meucci - 12 | R28: 4 | S28: 6 | T28: 3 | U28: 4 | V28: 5 | W28: 6 | X28: 4 | Y28: 3 | Z28: 5 | AA28: =IF(COUNTBLANK(R28:Z28)>0,"",SUM(R28:Z28)) -> 40 | AB28: =VLOOKUP(BB28,$B$301:$E$340,4) -> 4 | BA28: 15 | BB28: 35 | BC28: =LEN(L28) -> 2 | BD28: =LEN(AA28) -> 2
L29: =IF(COUNT(L24:L28)=5,(SUM(L24:L28))-(MAX(L24:L28)),(IF(COUNT(L24:L28)=4,SUM(L24:L28),IF(COUNTBLANK(L24:L28)>0,SUM(L24:L28),"DQ")))) -> 170 | M29: =J353 -> 3 | AA29: =IF(COUNT(AA24:AA28)=5,(SUM(AA24:AA28))-(MAX(AA24:AA28)),(IF(COUNT(AA24:AA28)=4,SUM(AA24:AA28),IF(COUNTBLANK(AA24:AA28)>0,SUM(AA24:AA28),"DQ")))) -> 164 | AB29: =J357 -> 1
L30: =IF(COUNT(L24:L28)=5,MAX(L24:L28),IF(COUNT(L24:L28)<5,200,)) -> 48 | AA30: =IF(COUNT(AA24:AA28)=5,MAX(AA24:AA28),IF(COUNT(AA24:AA28)<5,200,)) -> 43
A31: Player | B31: SLINGER | M31: Place | P31: Player | Q31: WISCONSIN LUTHERAN | AB31: Place
A32: 1 | B32: Jack Burns - 12 | C32: 5 | D32: 4 | E32: 4 | F32: 6 | G32: 5 | H32: 5 | I32: 5 | J32: 3 | K32: 5 | L32: =IF(COUNTBLANK(C32:K32)>0,"",SUM(C32:K32)) -> 42 | M32: =VLOOKUP(BA32,$B$301:$E$340,4) -> 9 | P32: 1 | Q32: Scratch #1 - x | R32: 9 | S32: 9 | T32: 9 | U32: 9 | V32: 9 | W32: 9 | X32: 9 | Y32: 9 | Z32: 9 | AA32: =IF(COUNTBLANK(R32:Z32)>0,"",SUM(R32:Z32)) -> 81 | AB32: =VLOOKUP(BB32,$B$301:$E$340,4) -> 39 | BA32: 16 | BB32: 36 | BC32: =LEN(L32) -> 2 | BD32: =LEN(AA32) -> 2
A33: 2 | B33: Chris Evans - 11 | C33: 6 | D33: 4 | E33: 5 | F33: 4 | G33: 6 | H33: 5 | I33: 8 | J33: 3 | K33: 6 | L33: =IF(COUNTBLANK(C33:K33)>0,"",SUM(C33:K33)) -> 47 | M33: =VLOOKUP(BA33,$B$301:$E$340,4) -> 21 | P33: 2 | Q33: Scratch #2 - x | R33: 9 | S33: 9 | T33: 9 | U33: 9 | V33: 9 | W33: 9 | X33: 9 | Y33: 9 | Z33: 9 | AA33: =IF(COUNTBLANK(R33:Z33)>0,"",SUM(R33:Z33)) -> 81 | AB33: =VLOOKUP(BB33,$B$301:$E$340,4) -> 39 | BA33: 17 | BB33: 37 | BC33: =LEN(L33) -> 2 | BD33: =LEN(AA33) -> 2
A34: 3 | B34: Austin Walsh - 12 | C34: 4 | D34: 5 | E34: 4 | F34: 3 | G34: 5 | H34: 5 | I34: 7 | J34: 3 | K34: 6 | L34: =IF(COUNTBLANK(C34:K34)>0,"",SUM(C34:K34)) -> 42 | M34: =VLOOKUP(BA34,$B$301:$E$340,4) -> 9 | P34: 3 | Q34: Zachary Stahle - 12 | R34: 5 | S34: 4 | T34: 4 | U34: 5 | V34: 5 | W34: 4 | X34: 5 | Y34: 7 | Z34: 8 | AA34: =IF(COUNTBLANK(R34:Z34)>0,"",SUM(R34:Z34)) -> 47 | AB34: =VLOOKUP(BB34,$B$301:$E$340,4) -> 21 | BA34: 18 | BB34: 38 | BC34: =LEN(L34) -> 2 | BD34: =LEN(AA34) -> 2
A35: 4 | B35: Ryan Erdmann - 10 | C35: 8 | D35: 5 | E35: 6 | F35: 6 | G35: 7 | H35: 6 | I35: 7 | J35: 4 | K35: 7 | L35: =IF(COUNTBLANK(C35:K35)>0,"",SUM(C35:K35)) -> 56 | M35: =VLOOKUP(BA35,$B$301:$E$340,4) -> 36 | P35: 4 | Q35: Ben Krause - 12 | R35: 6 | S35: 5 | T35: 4 | U35: 7 | V35: 8 | W35: 7 | X35: 6 | Y35: 3 | Z35: 6 | AA35: =IF(COUNTBLANK(R35:Z35)>0,"",SUM(R35:Z35)) -> 52 | AB35: =VLOOKUP(BB35,$B$301:$E$340,4) -> 32 | BA35: 19 | BB35: 39 | BC35: =LEN(L35) -> 2 | BD35: =LEN(AA35) -> 2
A36: 5 | B36: Ryan Kusek - 9 | C36: 6 | D36: 6 | E36: 3 | F36: 5 | G36: 5 | H36: 4 | I36: 7 | J36: 4 | K36: 6 | L36: =IF(COUNTBLANK(C36:K36)>0,"",SUM(C36:K36)) -> 46 | M36: =VLOOKUP(BA36,$B$301:$E$340,4) -> 20 | P36: 5 | Q36: Brendan Hausch - 10 | R36: 6 | S36: 6 | T36: 4 | U36: 6 | V36: 6 | W36: 4 | X36: 7 | Y36: 6 | Z36: 7 | AA36: =IF(COUNTBLANK(R36:Z36)>0,"",SUM(R36:Z36)) -> 52 | AB36: =VLOOKUP(BB36,$B$301:$E$340,4) -> 32 | BA36: 20 | BB36: 40 | BC36: =LEN(L36) -> 2 | BD36: =LEN(AA36) -> 2
L37: =IF(COUNT(L32:L36)=5,(SUM(L32:L36))-(MAX(L32:L36)),(IF(COUNT(L32:L36)=4,SUM(L32:L36),IF(COUNTBLANK(L32:L36)>0,SUM(L32:L36),"DQ")))) -> 177 | M37: 4 | AA37: =IF(COUNT(AA32:AA36)=5,(SUM(AA32:AA36))-(MAX(AA32:AA36)),(IF(COUNT(AA32:AA36)=4,SUM(AA32:AA36),IF(COUNTBLANK(AA32:AA36)>0,SUM(AA32:AA36),"DQ")))) -> 232 | AB37: =J358 -> 8
L38: =IF(COUNT(L32:L36)=5,MAX(L32:L36),IF(COUNT(L32:L36)<5,200,)) -> 56 | AA38: =IF(COUNT(AA32:AA36)=5,MAX(AA32:AA36),IF(COUNT(AA32:AA36)<5,200,)) -> 81
B41: Wisconsin Little Ten Varsity Golf | G41: Match # 6 | L41: Hosted By: | M41: Beaver Dam | Q41: ="WISCONSIN LITTLE TEN CONFERENCE STANDINGS " & Schedule!Q41 -> WISCONSIN LITTLE TEN CONFERENCE STANDINGS
Q42: Match | R42: 1 | S42: 2 | T42: 3 | U42: 4 | V42: 5 | W42: 6 | X42: 7 | Y42: 8 | Z42: 9 | AA42: Total
B43: Date: May 6, 2015 | D43: ="Location: " & C1 -> Location: Old Hickory Golf Club | Q43: =Rosters!$B$10 -> West Bend West | R43: 1 | S43: 1 | T43: 2 | U43: 2 | V43: 5 | W43: 1 | AA43: =IF(SUM(R43:Z43)=0,"",SUM(R43:Z43)) -> 12
Q44: =Rosters!$B$6 -> Oconomowoc | R44: 2 | S44: 3 | T44: 3 | U44: 1 | V44: 3 | W44: 3 | AA44: 15
Q45: =Rosters!$B$4 -> Beaver Dam | R45: 3 | S45: 2 | T45: 4 | U45: 6 | V45: 1 | W45: 2 | AA45: 18
Q46: =Rosters!$B$7 -> Slinger | R46: 4 | S46: 6 | T46: 1 | U46: 3 | V46: 2 | W46: 4 | AA46: 20
B47: Medalist: (35) - George Kneiser | Q47: =Rosters!$B$9 -> West Bend East | R47: 5 | S47: 4 | T47: 6 | U47: 5 | V47: 4 | W47: 5 | AA47: 29
Q48: =Rosters!$B$5 -> Hartford | R48: 6 | S48: 5 | T48: 5 | U48: 4 | V48: 6 | W48: 6 | AA48: 32
Q49: =Rosters!$B$8 -> Watertown | R49: 7 | S49: 7 | T49: 7 | U49: 7 | V49: 7 | W49: 7 | AA49: 42
L50: = Birdies or Better | Q50: =Rosters!$B$11 -> Wisconsin Lutheran | R50: 8 | S50: 8 | T50: 8 | U50: 8 | V50: 8 | W50: 8 | AA50: 48
B100: Course: | C100: Old Hickory Golf Club
B101: Hole | C101: 1 | D101: 2 | E101: 3 | F101: 4 | G101: 5 | H101: 6 | I101: 7 | J101: 8 | K101: 9 | L101: Total
B102: Par | C102: 4 | D102: 4 | E102: 3 | F102: 5 | G102: 4 | H102: 5 | I102: 3 | J102: 4 | K102: 4 | L102: =SUM(C102:K102) -> 36
B103: Handicap | C103: 11 | D103: 9 | E103: 17 | F103: 7 | G103: 3 | H103: 1 | I103: 15 | J103: 13 | K103: 5
B105: Course: | C105: Old Hickory Golf Club
B106: Hole | C106: 10 | D106: 11 | E106: 12 | F106: 13 | G106: 14 | H106: 15 | I106: 16 | J106: 17 | K106: 18 | L106: Total
B107: Par | C107: 4 | D107: 4 | E107: 3 | F107: 4 | G107: 4 | H107: 4 | I107: 5 | J107: 3 | K107: 5 | L107: =SUM(C107:K107) -> 36
B108: Handicap | C108: 4 | D108: 8 | E108: 16 | F108: 12 | G108: 2 | H108: 14 | I108: 10 | J108: 18 | K108: 6
B300: Player | C300: Sc | D300: Sort | E300: Rnk
B301: 1 | C301: =$L$8 -> 42 | E301: 9
B302: 2 | C302: =$L$9 -> 41 | E302: 6
B303: 3 | C303: =$L$10 -> 43 | E303: 12
B304: 4 | C304: =$L$11 -> 44 | E304: 15
B305: 5 | C305: =$L$12 -> 41 | E305: 6
B306: 6 | C306: =$L$16 -> 47 | E306: 21
B307: 7 | C307: =$L$17 -> 47 | E307: 21
B308: 8 | C308: =$L$18 -> 44 | E308: 15
B309: 9 | C309: =$L$19 -> 47 | E309: 21
B310: 10 | C310: =$L$20 -> 50 | E310: 30
B311: 11 | C311: =$L$24 -> 35 | E311: 1
B312: 12 | C312: =$L$25 -> 44 | E312: 15
B313: 13 | C313: =$L$26 -> 47 | E313: 21
B314: 14 | C314: =$L$27 -> 48 | E314: 28
B315: 15 | C315: =$L$28 -> 44 | E315: 15
B316: 16 | C316: =$L$32 -> 42 | E316: 9
B317: 17 | C317: =$L$33 -> 47 | E317: 21
B318: 18 | C318: =$L$34 -> 42 | E318: 9
B319: 19 | C319: =$L$35 -> 56 | E319: 36
B320: 20 | C320: =$L$36 -> 46 | E320: 20
B321: 21 | C321: =$AA$8 -> 50 | E321: 30
B322: 22 | C322: =$AA$9 -> 47 | E322: 21
B323: 23 | C323: =$AA$10 -> 45 | E323: 19
B324: 24 | C324: =$AA$11 -> 58 | E324: 37
B325: 25 | C325: =$AA$12 -> 52 | E325: 32
B326: 26 | C326: =$AA$16 -> 38 | E326: 2
B327: 27 | C327: =$AA$17 -> 39 | E327: 3
B328: 28 | C328: =$AA$18 -> 49 | E328: 29
B329: 29 | C329: =$AA$19 -> 54 | E329: 35
B330: 30 | C330: =$AA$20 -> 60 | E330: 38
B331: 31 | C331: =$AA$24 -> 43 | E331: 12
B332: 32 | C332: =$AA$25 -> 41 | E332: 6
B333: 33 | C333: =$AA$26 -> 40 | E333: 4
B334: 34 | C334: =$AA$27 -> 43 | E334: 12
B335: 35 | C335: =$AA$28 -> 40 | E335: 4
B336: 36 | C336: =$AA$32 -> 81 | E336: 39
B337: 37 | C337: =$AA$33 -> 81 | E337: 39
B338: 38 | C338: =$AA$34 -> 47 | E338: 21
B339: 39 | C339: =$AA$35 -> 52 | E339: 32
B340: 40 | C340: =$AA$36 -> 52 | E340: 32
B341: =B69 -> 0
B342: =B70 -> 0
B343: =B71 -> 0
J349: =DCOUNT(J350:J358,1,J347:J348) -> 8 | R349: Handicap Holes
C350: 1 | D350: 2 | E350: 3 | F350: 4 | G350: 5 | I350: Tot | J350: Rank | L350: Temp | R350: =IF(SUM($C$4:$K$4)<85,MATCH(1,$C$4:$K$4,0),MATCH(2,$C$4:$K$4,0)+9) -> 14 | S350: =IF(SUM($C$4:$K$4)<85,MATCH(3,$C$4:$K$4,0),MATCH(4,$C$4:$K$4,0)+9) -> 10 | T350: =IF(SUM($C$4:$K$4)<85,MATCH(5,$C$4:$K$4,0),MATCH(6,$C$4:$K$4,0)+9) -> 18 | U350: =IF(SUM($C$4:$K$4)<85,MATCH(7,$C$4:$K$4,0),MATCH(8,$C$4:$K$4,0)+9) -> 11 | V350: =IF(SUM($C$4:$K$4)<85,MATCH(9,$C$4:$K$4,0),MATCH(10,$C$4:$K$4,0)+9) -> 16 | W350: =IF(SUM($C$4:$K$4)<85,MATCH(11,$C$4:$K$4,0),MATCH(12,$C$4:$K$4,0)+9) -> 13 | X350: =IF(SUM($C$4:$K$4)<85,MATCH(13,$C$4:$K$4,0),MATCH(14,$C$4:$K$4,0)+9) -> 15 | Y350: =IF(SUM($C$4:$K$4)<85,MATCH(15,$C$4:$K$4,0),MATCH(16,$C$4:$K$4,0)+9) -> 12 | Z350: =IF(SUM($C$4:$K$4)<85,MATCH(17,$C$4:$K$4,0),MATCH(18,$C$4:$K$4,0)+9) -> 17
B351: Team1 | C351: =$L$8 -> 42 | D351: =$L$9 -> 41 | E351: =$L$10 -> 43 | F351: =$L$11 -> 44 | G351: =$L$12 -> 41 | H351: =$L$14 -> 44 | I351: =$L$13 -> 167 | J351: 2 | L351: 2 | R351: 15 | S351: 211 | T351: 23 | U351: 48 | V351: 29 | W351: 0 | X351: 0 | Y351: 0 | Z351: 27
B352: Team2 | C352: =$L$16 -> 47 | D352: =$L$17 -> 47 | E352: =$L$18 -> 44 | F352: =$L$19 -> 47 | G352: =$L$20 -> 50 | H352: =$L$22 -> 50 | I352: =$L$21 -> 185 | J352: 6 | L352: 6 | R352: 15 | S352: 235 | T352: 21 | U352: 108 | V352: 28 | W352: 0 | X352: 0 | Y352: 0 | Z352: 26
B353: Team3 | C353: =$L$24 -> 35 | D353: =$L$25 -> 44 | E353: =$L$26 -> 47 | F353: =$L$27 -> 48 | G353: =$L$28 -> 44 | H353: =$L$30 -> 48 | I353: =$L$29 -> 170 | J353: 3 | L353: 3 | R353: 15 | S353: 218 | T353: 18 | U353: 80 | V353: 22 | W353: 0 | X353: 0 | Y353: 0 | Z353: 23
B354: Team4 | C354: =$L$32 -> 42 | D354: =$L$33 -> 47 | E354: =$L$34 -> 42 | F354: =$L$35 -> 56 | G354: =$L$36 -> 46 | H354: =$L$38 -> 56 | I354: =$L$37 -> 177 | J354: 4 | L354: 4 | R354: 15 | S354: 233 | T354: 30 | U354: 95 | V354: 35 | W354: 0 | X354: 0 | Y354: 0 | Z354: 33
B355: Team5 | C355: =$AA$8 -> 50 | D355: =$AA$9 -> 47 | E355: =$AA$10 -> 45 | F355: =$AA$11 -> 58 | G355: =$AA$12 -> 52 | H355: =$AA$14 -> 58 | I355: =$AA$13 -> 194 | J355: 7 | L355: 7 | R355: 0 | S355: 252 | T355: 0 | U355: 139 | V355: 0 | W355: 0 | X355: 0 | Y355: 0 | Z355: 0
B356: Team6 | C356: =$AA$16 -> 38 | D356: =$AA$17 -> 39 | E356: =$AA$18 -> 49 | F356: =$AA$19 -> 54 | G356: =$AA$20 -> 60 | H356: =$AA$22 -> 60 | I356: =$AA$21 -> 180 | J356: 5 | L356: 5 | R356: 0 | S356: 240 | T356: 0 | U356: 107 | V356: 0 | W356: 0 | X356: 0 | Y356: 0 | Z356: 0
B357: Team7 | C357: =$AA$24 -> 43 | D357: =$AA$25 -> 41 | E357: =$AA$26 -> 40 | F357: =$AA$27 -> 43 | G357: =$AA$28 -> 40 | H357: =$AA$30 -> 43 | I357: =$AA$29 -> 164 | J357: 1 | L357: 1 | R357: 0 | S357: 207 | T357: 0 | U357: 38 | V357: 0 | W357: 0 | X357: 0 | Y357: 0 | Z357: 0
B358: Team8 | C358: =$AA$32 -> 81 | D358: =$AA$33 -> 81 | E358: =$AA$34 -> 47 | F358: =$AA$35 -> 52 | G358: =$AA$36 -> 52 | H358: =$AA$38 -> 81 | I358: =$AA$37 -> 232 | J358: 8 | L358: 8 | R358: 0 | S358: 313 | T358: 0 | U358: 163 | V358: 0 | W358: 0 | X358: 0 | Y358: 0 | Z358: 0
B401: =B8 -> Koby Jones - 12 | C401: =L8 -> 42
B402: =B9 -> Thomas Bleich - 11 | C402: =L9 -> 41
B403: =B10 -> Cody Trottier - 12 | C403: =L10 -> 43
B404: =B11 -> Jacob Smith - 10 | C404: =L11 -> 44
B405: =B12 -> Carter Smith - 11 | C405: =L12 -> 41
B406: =B16 -> Ryan Ruona - 11 | C406: =L16 -> 47
B407: =B17 -> Adam Butler - 12 | C407: =L17 -> 47
B408: =B18 -> John Turchi - 10 | C408: =L18 -> 44
B409: =B19 -> Lucas Hass - 11 | C409: =L19 -> 47
B410: =B20 -> Luke Carroll - 10 | C410: =L20 -> 50
B411: =B24 -> George Kneiser - 11 | C411: =L24 -> 35
B412: =B25 -> Colin Prom - 12 | C412: =L25 -> 44
B413: =B26 -> Joey Ploch - 9 | C413: =L26 -> 47
B414: =B27 -> Brett Lange - 12 | C414: =L27 -> 48
B415: =B28 -> Allan Moutvic - 12 | C415: =L28 -> 44
B416: =B32 -> Jack Burns - 12 | C416: =L32 -> 42
B417: =B33 -> Chris Evans - 11 | C417: =L33 -> 47
B418: =B34 -> Austin Walsh - 12 | C418: =L34 -> 42
B419: =B35 -> Ryan Erdmann - 10 | C419: =L35 -> 56
B420: =B36 -> Ryan Kusek - 9 | C420: =L36 -> 46
B421: =Q8 -> Cameron Boyd - 11 | C421: =AA8 -> 50
B422: =Q9 -> Alex Thompson - 9 | C422: =AA9 -> 47
B423: =Q10 -> Collin Travis - 11 | C423: =AA10 -> 45
B424: =Q11 -> Austin Douglas - 10 | C424: =AA11 -> 58
B425: =Q12 -> Trevor Reierson - 11 | C425: =AA12 -> 52
B426: =Q16 -> Devon Hanson - 11 | C426: =AA16 -> 38
B427: =Q17 -> Mitch Saari - 12 | C427: =AA17 -> 39
B428: =Q18 -> Sam Struebing - 11 | C428: =AA18 -> 49
B429: =Q19 -> Josh Breuer - 12 | C429: =AA19 -> 54
B430: =Q20 -> Brad Halverson - 9 | C430: =AA20 -> 60
B431: =Q24 -> Alex Haas - 12 | C431: =AA24 -> 43
B432: =Q25 -> Max Rohlinger - 10 | C432: =AA25 -> 41
B433: =Q26 -> Kevin Albrecht - 11 | C433: =AA26 -> 40
B434: =Q27 -> Jacob Droese - 12 | C434: =AA27 -> 43
B435: =Q28 -> Nick Meucci - 12 | C435: =AA28 -> 40
B436: =Q32 -> Scratch #1 - x | C436: =AA32 -> 81
B437: =Q33 -> Scratch #2 - x | C437: =AA33 -> 81
B438: =Q34 -> Zachary Stahle - 12 | C438: =AA34 -> 47
B439: =Q35 -> Ben Krause - 12 | C439: =AA35 -> 52
B440: =Q36 -> Brendan Hausch - 10 | C440: =AA36 -> 52

Sheet HT
B1: Course: | C1: Hartford Golf Club
B2: Hole | C2: 1 | D2: 2 | E2: 3 | F2: 4 | G2: 5 | H2: 6 | I2: 7 | J2: 8 | K2: 9 | L2: Total | Q2: Hole | R2: =C2 -> 1 | S2: 2 | T2: 3 | U2: 4 | V2: 5 | W2: 6 | X2: 7 | Y2: 8 | Z2: 9 | AA2: Total
B3: Par | C3: 4 | D3: 4 | E3: 5 | F3: 3 | G3: 4 | H3: 5 | I3: 4 | J3: 3 | K3: 4 | L3: =SUM(C3:K3) -> 36 | Q3: Par | R3: 4 | S3: 4 | T3: 5 | U3: 3 | V3: 4 | W3: 5 | X3: 4 | Y3: 3 | Z3: 4 | AA3: =L3 -> 36
B4: Handicap | C4: 7 | D4: 5 | E4: 1 | F4: 15 | G4: 11 | H4: 3 | I4: 13 | J4: 17 | K4: 9 | Q4: Handicap | R4: 7 | S4: 5 | T4: 1 | U4: 15 | V4: 11 | W4: 3 | X4: 13 | Y4: 17 | Z4: 9
A7: Player | B7: BEAVER DAM | M7: Place | P7: Player | Q7: WATERTOWN | AB7: Place
A8: 1 | B8: Koby Jones - 12 | C8: 5 | D8: 5 | E8: 4 | F8: 4 | G8: 5 | H8: 6 | I8: 5 | J8: 3 | K8: 5 | L8: =IF(COUNTBLANK(C8:K8)>0,"",SUM(C8:K8)) -> 42 | M8: =VLOOKUP(BA8,$B$301:$E$340,4) -> 6 | P8: 1 | Q8: Cameron Boyd - 11 | R8: 5 | S8: 6 | T8: 5 | U8: 5 | V8: 6 | W8: 8 | X8: 6 | Y8: 5 | Z8: 5 | AA8: =IF(COUNTBLANK(R8:Z8)>0,"",SUM(R8:Z8)) -> 51 | AB8: =VLOOKUP(BB8,$B$301:$E$340,4) -> 34 | BA8: 1 | BB8: 21 | BC8: =LEN(L8) -> 2 | BD8: =LEN(AA8) -> 2
A9: 2 | B9: Thomas Bleich - 11 | C9: 5 | D9: 5 | E9: 5 | F9: 3 | G9: 3 | H9: 5 | I9: 4 | J9: 5 | K9: 5 | L9: =IF(COUNTBLANK(C9:K9)>0,"",SUM(C9:K9)) -> 40 | M9: =VLOOKUP(BA9,$B$301:$E$340,4) -> 5 | P9: 2 | Q9: Alex Thompson - 9 | R9: 6 | S9: 7 | T9: 8 | U9: 6 | V9: 6 | W9: 5 | X9: 7 | Y9: 4 | Z9: 5 | AA9: =IF(COUNTBLANK(R9:Z9)>0,"",SUM(R9:Z9)) -> 54 | AB9: =VLOOKUP(BB9,$B$301:$E$340,4) -> 37 | BA9: 2 | BB9: 22 | BC9: =LEN(L9) -> 2 | BD9: =LEN(AA9) -> 2
A10: 3 | B10: Cody Trotter - 12 | C10: 6 | D10: 5 | E10: 4 | F10: 5 | G10: 6 | H10: 6 | I10: 4 | J10: 5 | K10: 4 | L10: =IF(COUNTBLANK(C10:K10)>0,"",SUM(C10:K10)) -> 45 | M10: =VLOOKUP(BA10,$B$301:$E$340,4) -> 17 | P10: 3 | Q10: Collin Travis - 11 | R10: 4 | S10: 4 | T10: 6 | U10: 3 | V10: 4 | W10: 4 | X10: 5 | Y10: 4 | Z10: 5 | AA10: =IF(COUNTBLANK(R10:Z10)>0,"",SUM(R10:Z10)) -> 39 | AB10: =VLOOKUP(BB10,$B$301:$E$340,4) -> 2 | BA10: 3 | BB10: 23 | BC10: =LEN(L10) -> 2 | BD10: =LEN(AA10) -> 2
A11: 4 | B11: Jacob Smith - 10 | C11: 6 | D11: 5 | E11: 6 | F11: 4 | G11: 5 | H11: 5 | I11: 5 | J11: 3 | K11: 5 | L11: =IF(COUNTBLANK(C11:K11)>0,"",SUM(C11:K11)) -> 44 | M11: =VLOOKUP(BA11,$B$301:$E$340,4) -> 14 | P11: 4 | Q11: Austin Douglas - 10 | R11: 6 | S11: 5 | T11: 6 | U11: 3 | V11: 4 | W11: 5 | X11: 5 | Y11: 4 | Z11: 4 | AA11: =IF(COUNTBLANK(R11:Z11)>0,"",SUM(R11:Z11)) -> 42 | AB11: =VLOOKUP(BB11,$B$301:$E$340,4) -> 6 | BA11: 4 | BB11: 24 | BC11: =LEN(L11) -> 2 | BD11: =LEN(AA11) -> 2
A12: 5 | B12: Carter Smith - 11 | C12: 7 | D12: 4 | E12: 5 | F12: 3 | G12: 5 | H12: 7 | I12: 5 | J12: 5 | K12: 5 | L12: =IF(COUNTBLANK(C12:K12)>0,"",SUM(C12:K12)) -> 46 | M12: =VLOOKUP(BA12,$B$301:$E$340,4) -> 20 | P12: 5 | Q12: Trevor Reierson - 11 | R12: 6 | S12: 5 | T12: 8 | U12: 3 | V12: 9 | W12: 6 | X12: 6 | Y12: 4 | Z12: 6 | AA12: =IF(COUNTBLANK(R12:Z12)>0,"",SUM(R12:Z12)) -> 53 | AB12: =VLOOKUP(BB12,$B$301:$E$340,4) -> 35 | BA12: 5 | BB12: 25 | BC12: =LEN(L12) -> 2 | BD12: =LEN(AA12) -> 2
L13: =IF(COUNT(L8:L12)=5,(SUM(L8:L12))-(MAX(L8:L12)),(IF(COUNT(L8:L12)=4,SUM(L8:L12),IF(COUNTBLANK(L8:L12)>0,SUM(L8:L12),"DQ")))) -> 171 | M13: =J351 -> 2 | AA13: =IF(COUNT(AA8:AA12)=5,(SUM(AA8:AA12))-(MAX(AA8:AA12)),(IF(COUNT(AA8:AA12)=4,SUM(AA8:AA12),IF(COUNTBLANK(AA8:AA12)>0,SUM(AA8:AA12),"DQ")))) -> 185 | AB13: =J355 -> 7
L14: =IF(COUNT(L8:L12)=5,MAX(L8:L12),IF(COUNT(L8:L12)<5,200,)) -> 46 | AA14: =IF(COUNT(AA8:AA12)=5,MAX(AA8:AA12),IF(COUNT(AA8:AA12)<5,200,)) -> 54
A15: Player | B15: HARTFORD | M15: Place | P15: Player | Q15: WEST BEND EAST | AB15: Place
A16: 1 | B16: Ryan Ruona - 11 | C16: 5 | D16: 6 | E16: 6 | F16: 3 | G16: 5 | H16: 5 | I16: 4 | J16: 4 | K16: 4 | L16: =IF(COUNTBLANK(C16:K16)>0,"",SUM(C16:K16)) -> 42 | M16: =VLOOKUP(BA16,$B$301:$E$340,4) -> 6 | P16: 1 | Q16: Devon Hanson - 11 | R16: 5 | S16: 5 | T16: 6 | U16: 4 | V16: 3 | W16: 5 | X16: 6 | Y16: 3 | Z16: 5 | AA16: =IF(COUNTBLANK(R16:Z16)>0,"",SUM(R16:Z16)) -> 42 | AB16: =VLOOKUP(BB16,$B$301:$E$340,4) -> 6 | BA16: 6 | BB16: 26 | BC16: =LEN(L16) -> 2 | BD16: =LEN(AA16) -> 2
A17: 2 | B17: Adam Butler - 12 | C17: 5 | D17: 7 | E17: 4 | F17: 5 | G17: 6 | H17: 4 | I17: 7 | J17: 3 | K17: 5 | L17: =IF(COUNTBLANK(C17:K17)>0,"",SUM(C17:K17)) -> 46 | M17: =VLOOKUP(BA17,$B$301:$E$340,4) -> 20 | P17: 2 | Q17: Mitch Saari - 12 | R17: 6 | S17: 5 | T17: 5 | U17: 5 | V17: 5 | W17: 4 | X17: 6 | Y17: 5 | Z17: 4 | AA17: =IF(COUNTBLANK(R17:Z17)>0,"",SUM(R17:Z17)) -> 45 | AB17: =VLOOKUP(BB17,$B$301:$E$340,4) -> 17 | BA17: 7 | BB17: 27 | BC17: =LEN(L17) -> 2 | BD17: =LEN(AA17) -> 2
A18: 3 | B18: Luke Carroll - 10 | C18: 5 | D18: 6 | E18: 6 | F18: 5 | G18: 5 | H18: 6 | I18: 5 | J18: 3 | K18: 5 | L18: =IF(COUNTBLANK(C18:K18)>0,"",SUM(C18:K18)) -> 46 | M18: =VLOOKUP(BA18,$B$301:$E$340,4) -> 20 | P18: 3 | Q18: Sam Struebing - 11 | R18: 8 | S18: 5 | T18: 6 | U18: 4 | V18: 5 | W18: 5 | X18: 8 | Y18: 4 | Z18: 5 | AA18: =IF(COUNTBLANK(R18:Z18)>0,"",SUM(R18:Z18)) -> 50 | AB18: =VLOOKUP(BB18,$B$301:$E$340,4) -> 33 | BA18: 8 | BB18: 28 | BC18: =LEN(L18) -> 2 | BD18: =LEN(AA18) -> 2
A19: 4 | B19: Lucas Hass - 11 | C19: 5 | D19: 5 | E19: 6 | F19: 5 | G19: 5 | H19: 6 | I19: 6 | J19: 4 | K19: 5 | L19: =IF(COUNTBLANK(C19:K19)>0,"",SUM(C19:K19)) -> 47 | M19: =VLOOKUP(BA19,$B$301:$E$340,4) -> 26 | P19: 4 | Q19: Josh Breuer - 12 | R19: 6 | S19: 5 | T19: 6 | U19: 4 | V19: 6 | W19: 6 | X19: 6 | Y19: 4 | Z19: 5 | AA19: =IF(COUNTBLANK(R19:Z19)>0,"",SUM(R19:Z19)) -> 48 | AB19: =VLOOKUP(BB19,$B$301:$E$340,4) -> 29 | BA19: 9 | BB19: 29 | BC19: =LEN(L19) -> 2 | BD19: =LEN(AA19) -> 2
A20: 5 | B20: Mike Vanderheiden - 10 | C20: 8 | D20: 6 | E20: 7 | F20: 4 | G20: 5 | H20: 7 | I20: 5 | J20: 6 | K20: 5 | L20: =IF(COUNTBLANK(C20:K20)>0,"",SUM(C20:K20)) -> 53 | M20: =VLOOKUP(BA20,$B$301:$E$340,4) -> 35 | P20: 5 | Q20: Brad Halverson - 9 | R20: 7 | S20: 5 | T20: 6 | U20: 4 | V20: 4 | W20: 6 | X20: 6 | Y20: 4 | Z20: 6 | AA20: =IF(COUNTBLANK(R20:Z20)>0,"",SUM(R20:Z20)) -> 48 | AB20: =VLOOKUP(BB20,$B$301:$E$340,4) -> 29 | BA20: 10 | BB20: 30 | BC20: =LEN(L20) -> 2 | BD20: =LEN(AA20) -> 2
L21: =IF(COUNT(L16:L20)=5,(SUM(L16:L20))-(MAX(L16:L20)),(IF(COUNT(L16:L20)=4,SUM(L16:L20),IF(COUNTBLANK(L16:L20)>0,SUM(L16:L20),"DQ")))) -> 181 | M21: =J352 -> 5 | AA21: =IF(COUNT(AA16:AA20)=5,(SUM(AA16:AA20))-(MAX(AA16:AA20)),(IF(COUNT(AA16:AA20)=4,SUM(AA16:AA20),IF(COUNTBLANK(AA16:AA20)>0,SUM(AA16:AA20),"DQ")))) -> 183 | AB21: =J356 -> 6
L22: =IF(COUNT(L16:L20)=5,MAX(L16:L20),IF(COUNT(L16:L20)<5,200,)) -> 53 | AA22: =IF(COUNT(AA16:AA20)=5,MAX(AA16:AA20),IF(COUNT(AA16:AA20)<5,200,)) -> 50
A23: Player | B23: OCONOMOWOC | M23: Place | P23: Player | Q23: WEST BEND WEST | AB23: Place
A24: 1 | B24: George Kneiser - 11 | C24: 4 | D24: 5 | E24: 5 | F24: 3 | G24: 5 | H24: 4 | I24: 4 | J24: 4 | K24: 4 | L24: =IF(COUNTBLANK(C24:K24)>0,"",SUM(C24:K24)) -> 38 | M24: =VLOOKUP(BA24,$B$301:$E$340,4) -> 1 | P24: 1 | Q24: Alex Haas - 12 | R24: 4 | S24: 4 | T24: 4 | U24: 4 | V24: 5 | W24: 6 | X24: 4 | Y24: 3 | Z24: 5 | AA24: =IF(COUNTBLANK(R24:Z24)>0,"",SUM(R24:Z24)) -> 39 | AB24: =VLOOKUP(BB24,$B$301:$E$340,4) -> 2 | BA24: 11 | BB24: 31 | BC24: =LEN(L24) -> 2 | BD24: =LEN(AA24) -> 2
A25: 2 | B25: Colin Prom - 12 | C25: 4 | D25: 6 | E25: 6 | F25: 5 | G25: 4 | H25: 5 | I25: 5 | J25: 3 | K25: 5 | L25: =IF(COUNTBLANK(C25:K25)>0,"",SUM(C25:K25)) -> 43 | M25: =VLOOKUP(BA25,$B$301:$E$340,4) -> 12 | P25: 2 | Q25: Max Rohlinger - 10 | R25: 5 | S25: 5 | T25: 6 | U25: 5 | V25: 4 | W25: 4 | X25: 5 | Y25: 4 | Z25: 5 | AA25: =IF(COUNTBLANK(R25:Z25)>0,"",SUM(R25:Z25)) -> 43 | AB25: =VLOOKUP(BB25,$B$301:$E$340,4) -> 12 | BA25: 12 | BB25: 32 | BC25: =LEN(L25) -> 2 | BD25: =LEN(AA25) -> 2
A26: 3 | B26: Joey Ploch - 9 | C26: 6 | D26: 5 | E26: 5 | F26: 6 | G26: 4 | H26: 5 | I26: 5 | J26: 4 | K26: 6 | L26: =IF(COUNTBLANK(C26:K26)>0,"",SUM(C26:K26)) -> 46 | M26: =VLOOKUP(BA26,$B$301:$E$340,4) -> 20 | P26: 3 | Q26: Kevin Albrecht - 11 | R26: 4 | S26: 6 | T26: 5 | U26: 5 | V26: 4 | W26: 5 | X26: 5 | Y26: 3 | Z26: 5 | AA26: =IF(COUNTBLANK(R26:Z26)>0,"",SUM(R26:Z26)) -> 42 | AB26: =VLOOKUP(BB26,$B$301:$E$340,4) -> 6 | BA26: 13 | BB26: 33 | BC26: =LEN(L26) -> 2 | BD26: =LEN(AA26) -> 2
A27: 4 | B27: Brett Lange - 12 | C27: 6 | D27: 5 | E27: 5 | F27: 5 | G27: 4 | H27: 6 | I27: 6 | J27: 4 | K27: 4 | L27: =IF(COUNTBLANK(C27:K27)>0,"",SUM(C27:K27)) -> 45 | M27: =VLOOKUP(BA27,$B$301:$E$340,4) -> 17 | P27: 4 | Q27: Jacob Droese - 12 | R27: 5 | S27: 4 | T27: 6 | U27: 4 | V27: 5 | W27: 4 | X27: 6 | Y27: 3 | Z27: 5 | AA27: =IF(COUNTBLANK(R27:Z27)>0,"",SUM(R27:Z27)) -> 42 | AB27: =VLOOKUP(BB27,$B$301:$E$340,4) -> 6 | BA27: 14 | BB27: 34 | BC27: =LEN(L27) -> 2 | BD27: =LEN(AA27) -> 2
A28: 5 | B28: Drew Cook - 11 | C28: 5 | D28: 7 | E28: 5 | F28: 7 | G28: 5 | H28: 6 | I28: 5 | J28: 4 | K28: 5 | L28: =IF(COUNTBLANK(C28:K28)>0,"",SUM(C28:K28)) -> 49 | M28: =VLOOKUP(BA28,$B$301:$E$340,4) -> 31 | P28: 5 | Q28: Nick Meucci - 12 | R28: 5 | S28: 4 | T28: 5 | U28: 4 | V28: 4 | W28: 6 | X28: 5 | Y28: 6 | Z28: 5 | AA28: =IF(COUNTBLANK(R28:Z28)>0,"",SUM(R28:Z28)) -> 44 | AB28: =VLOOKUP(BB28,$B$301:$E$340,4) -> 14 | BA28: 15 | BB28: 35 | BC28: =LEN(L28) -> 2 | BD28: =LEN(AA28) -> 2
L29: =IF(COUNT(L24:L28)=5,(SUM(L24:L28))-(MAX(L24:L28)),(IF(COUNT(L24:L28)=4,SUM(L24:L28),IF(COUNTBLANK(L24:L28)>0,SUM(L24:L28),"DQ")))) -> 172 | M29: =J353 -> 3 | AA29: =IF(COUNT(AA24:AA28)=5,(SUM(AA24:AA28))-(MAX(AA24:AA28)),(IF(COUNT(AA24:AA28)=4,SUM(AA24:AA28),IF(COUNTBLANK(AA24:AA28)>0,SUM(AA24:AA28),"DQ")))) -> 166 | AB29: =J357 -> 1
L30: =IF(COUNT(L24:L28)=5,MAX(L24:L28),IF(COUNT(L24:L28)<5,200,)) -> 49 | AA30: =IF(COUNT(AA24:AA28)=5,MAX(AA24:AA28),IF(COUNT(AA24:AA28)<5,200,)) -> 44
A31: Player | B31: SLINGER | M31: Place | P31: Player | Q31: WISCONSIN LUTHERAN | AB31: Place
A32: 1 | B32: Jack Burns - 12 | C32: 6 | D32: 6 | E32: 5 | F32: 4 | G32: 6 | H32: 5 | I32: 6 | J32: 3 | K32: 5 | L32: =IF(COUNTBLANK(C32:K32)>0,"",SUM(C32:K32)) -> 46 | M32: =VLOOKUP(BA32,$B$301:$E$340,4) -> 20 | P32: 1 | Q32: Scratch #1 - x | R32: 9 | S32: 9 | T32: 9 | U32: 9 | V32: 9 | W32: 9 | X32: 9 | Y32: 9 | Z32: 9 | AA32: =IF(COUNTBLANK(R32:Z32)>0,"",SUM(R32:Z32)) -> 81 | AB32: =VLOOKUP(BB32,$B$301:$E$340,4) -> 39 | BA32: 16 | BB32: 36 | BC32: =LEN(L32) -> 2 | BD32: =LEN(AA32) -> 2
A33: 2 | B33: Ryan Graunke - 12 | C33: 8 | D33: 4 | E33: 5 | F33: 4 | G33: 5 | H33: 6 | I33: 5 | J33: 5 | K33: 5 | L33: =IF(COUNTBLANK(C33:K33)>0,"",SUM(C33:K33)) -> 47 | M33: =VLOOKUP(BA33,$B$301:$E$340,4) -> 26 | P33: 2 | Q33: Scratch #2 - x | R33: 9 | S33: 9 | T33: 9 | U33: 9 | V33: 9 | W33: 9 | X33: 9 | Y33: 9 | Z33: 9 | AA33: =IF(COUNTBLANK(R33:Z33)>0,"",SUM(R33:Z33)) -> 81 | AB33: =VLOOKUP(BB33,$B$301:$E$340,4) -> 39 | BA33: 17 | BB33: 37 | BC33: =LEN(L33) -> 2 | BD33: =LEN(AA33) -> 2
A34: 3 | B34: Austin Walsh - 12 | C34: 5 | D34: 4 | E34: 5 | F34: 3 | G34: 4 | H34: 5 | I34: 6 | J34: 3 | K34: 4 | L34: =IF(COUNTBLANK(C34:K34)>0,"",SUM(C34:K34)) -> 39 | M34: =VLOOKUP(BA34,$B$301:$E$340,4) -> 2 | P34: 3 | Q34: Zachary Stahle - 12 | R34: 5 | S34: 5 | T34: 6 | U34: 4 | V34: 4 | W34: 9 | X34: 7 | Y34: 4 | Z34: 5 | AA34: =IF(COUNTBLANK(R34:Z34)>0,"",SUM(R34:Z34)) -> 49 | AB34: =VLOOKUP(BB34,$B$301:$E$340,4) -> 31 | BA34: 18 | BB34: 38 | BC34: =LEN(L34) -> 2 | BD34: =LEN(AA34) -> 2
A35: 4 | B35: Nick Gliniecki - | C35: 6 | D35: 4 | E35: 6 | F35: 4 | G35: 5 | H35: 5 | I35: 6 | J35: 5 | K35: 6 | L35: =IF(COUNTBLANK(C35:K35)>0,"",SUM(C35:K35)) -> 47 | M35: =VLOOKUP(BA35,$B$301:$E$340,4) -> 26 | P35: 4 | Q35: Ben Krause - 12 | R35: 6 | S35: 6 | T35: 6 | U35: 3 | V35: 5 | W35: 5 | X35: 5 | Y35: 5 | Z35: 5 | AA35: =IF(COUNTBLANK(R35:Z35)>0,"",SUM(R35:Z35)) -> 46 | AB35: =VLOOKUP(BB35,$B$301:$E$340,4) -> 20 | BA35: 19 | BB35: 39 | BC35: =LEN(L35) -> 2 | BD35: =LEN(AA35) -> 2
A36: 5 | B36: Ryan Kusek - 9 | C36: 5 | D36: 6 | E36: 6 | F36: 3 | G36: 4 | H36: 6 | I36: 5 | J36: 4 | K36: 5 | L36: =IF(COUNTBLANK(C36:K36)>0,"",SUM(C36:K36)) -> 44 | M36: =VLOOKUP(BA36,$B$301:$E$340,4) -> 14 | P36: 5 | Q36: Brendan Hausch - 10 | R36: 8 | S36: 8 | T36: 7 | U36: 5 | V36: 6 | W36: 8 | X36: 6 | Y36: 4 | Z36: 6 | AA36: =IF(COUNTBLANK(R36:Z36)>0,"",SUM(R36:Z36)) -> 58 | AB36: =VLOOKUP(BB36,$B$301:$E$340,4) -> 38 | BA36: 20 | BB36: 40 | BC36: =LEN(L36) -> 2 | BD36: =LEN(AA36) -> 2
L37: =IF(COUNT(L32:L36)=5,(SUM(L32:L36))-(MAX(L32:L36)),(IF(COUNT(L32:L36)=4,SUM(L32:L36),IF(COUNTBLANK(L32:L36)>0,SUM(L32:L36),"DQ")))) -> 176 | M37: =J354 -> 4 | AA37: =IF(COUNT(AA32:AA36)=5,(SUM(AA32:AA36))-(MAX(AA32:AA36)),(IF(COUNT(AA32:AA36)=4,SUM(AA32:AA36),IF(COUNTBLANK(AA32:AA36)>0,SUM(AA32:AA36),"DQ")))) -> 234 | AB37: =J358 -> 8
L38: =IF(COUNT(L32:L36)=5,MAX(L32:L36),IF(COUNT(L32:L36)<5,200,)) -> 47 | AA38: =IF(COUNT(AA32:AA36)=5,MAX(AA32:AA36),IF(COUNT(AA32:AA36)<5,200,)) -> 81
B41: Wisconsin Little Ten Varsity Golf | G41: Match # 7 | L41: Hosted By: | M41: Hartford | Q41: ="WISCONSIN LITTLE TEN CONFERENCE STANDINGS " & Schedule!Q41 -> WISCONSIN LITTLE TEN CONFERENCE STANDINGS
Q42: Match | R42: 1 | S42: 2 | T42: 3 | U42: 4 | V42: 5 | W42: 6 | X42: 7 | Y42: 8 | Z42: 9 | AA42: Total
B43: Date: May 12, 2015 | D43: ="Location: " & C1 -> Location: Hartford Golf Club | Q43: =Rosters!$B$10 -> West Bend West | R43: 1 | S43: 1 | T43: 2 | U43: 2 | V43: 5 | W43: 1 | X43: 1 | AA43: =IF(SUM(R43:Z43)=0,"",SUM(R43:Z43)) -> 13
B44: Weather - Cold, 45, gusty winds 15-20mph, more like what we're used to | Q44: =Rosters!$B$6 -> Oconomowoc | R44: 2 | S44: 3 | T44: 3 | U44: 1 | V44: 3 | W44: 3 | X44: 3 | AA44: 18
Q45: =Rosters!$B$4 -> Beaver Dam | R45: 3 | S45: 2 | T45: 4 | U45: 6 | V45: 1 | W45: 2 | X45: 2 | AA45: 20
Q46: =Rosters!$B$7 -> Slinger | R46: 4 | S46: 6 | T46: 1 | U46: 3 | V46: 2 | W46: 4 | X46: 4 | AA46: 24
B47: Medalist: (38) - George Kneiser | Q47: =Rosters!$B$9 -> West Bend East | R47: 5 | S47: 4 | T47: 6 | U47: 5 | V47: 4 | W47: 5 | X47: 6 | AA47: 35
Q48: =Rosters!$B$5 -> Hartford | R48: 6 | S48: 5 | T48: 5 | U48: 4 | V48: 6 | W48: 6 | X48: 5 | AA48: 37
Q49: =Rosters!$B$8 -> Watertown | R49: 7 | S49: 7 | T49: 7 | U49: 7 | V49: 7 | W49: 7 | X49: 7 | AA49: 49
L50: = Birdies or Better | Q50: =Rosters!$B$11 -> Wisconsin Lutheran | R50: 8 | S50: 8 | T50: 8 | U50: 8 | V50: 8 | W50: 8 | X50: 8 | AA50: 56
B100: Course: | C100: Hartford Golf Club
B101: Hole | C101: 1 | D101: 2 | E101: 3 | F101: 4 | G101: 5 | H101: 6 | I101: 7 | J101: 8 | K101: 9 | L101: Total
B102: Par | C102: 4 | D102: 4 | E102: 5 | F102: 3 | G102: 4 | H102: 5 | I102: 4 | J102: 3 | K102: 4 | L102: =SUM(C102:K102) -> 36
B103: Handicap | C103: 7 | D103: 5 | E103: 1 | F103: 15 | G103: 11 | H103: 3 | I103: 13 | J103: 17 | K103: 9
B105: Course: | C105: Hartford Golf Club
B106: Hole | C106: 10 | D106: 11 | E106: 12 | F106: 13 | G106: 14 | H106: 15 | I106: 16 | J106: 17 | K106: 18 | L106: Total
B107: Par | C107: 5 | D107: 3 | E107: 5 | F107: 4 | G107: 4 | H107: 4 | I107: 4 | J107: 3 | K107: 4 | L107: =SUM(C107:K107) -> 36
B108: Handicap | C108: 4 | D108: 16 | E108: 2 | F108: 14 | G108: 12 | H108: 6 | I108: 8 | J108: 18 | K108: 10
B300: Player | C300: Sc | D300: Sort | E300: Rnk
B301: 1 | C301: =$L$8 -> 42 | E301: 6
B302: 2 | C302: =$L$9 -> 40 | E302: 5
B303: 3 | C303: =$L$10 -> 45 | E303: 17
B304: 4 | C304: =$L$11 -> 44 | E304: 14
B305: 5 | C305: =$L$12 -> 46 | E305: 20
B306: 6 | C306: =$L$16 -> 42 | E306: 6
B307: 7 | C307: =$L$17 -> 46 | E307: 20
B308: 8 | C308: =$L$18 -> 46 | E308: 20
B309: 9 | C309: =$L$19 -> 47 | E309: 26
B310: 10 | C310: =$L$20 -> 53 | E310: 35
B311: 11 | C311: =$L$24 -> 38 | E311: 1
B312: 12 | C312: =$L$25 -> 43 | E312: 12
B313: 13 | C313: =$L$26 -> 46 | E313: 20
B314: 14 | C314: =$L$27 -> 45 | E314: 17
B315: 15 | C315: =$L$28 -> 49 | E315: 31
B316: 16 | C316: =$L$32 -> 46 | E316: 20
B317: 17 | C317: =$L$33 -> 47 | E317: 26
B318: 18 | C318: =$L$34 -> 39 | E318: 2
B319: 19 | C319: =$L$35 -> 47 | E319: 26
B320: 20 | C320: =$L$36 -> 44 | E320: 14
B321: 21 | C321: =$AA$8 -> 51 | E321: 34
B322: 22 | C322: =$AA$9 -> 54 | E322: 37
B323: 23 | C323: =$AA$10 -> 39 | E323: 2
B324: 24 | C324: =$AA$11 -> 42 | E324: 6
B325: 25 | C325: =$AA$12 -> 53 | E325: 35
B326: 26 | C326: =$AA$16 -> 42 | E326: 6
B327: 27 | C327: =$AA$17 -> 45 | E327: 17
B328: 28 | C328: =$AA$18 -> 50 | E328: 33
B329: 29 | C329: =$AA$19 -> 48 | E329: 29
B330: 30 | C330: =$AA$20 -> 48 | E330: 29
B331: 31 | C331: =$AA$24 -> 39 | E331: 2
B332: 32 | C332: =$AA$25 -> 43 | E332: 12
B333: 33 | C333: =$AA$26 -> 42 | E333: 6
B334: 34 | C334: =$AA$27 -> 42 | E334: 6
B335: 35 | C335: =$AA$28 -> 44 | E335: 14
B336: 36 | C336: =$AA$32 -> 81 | E336: 39
B337: 37 | C337: =$AA$33 -> 81 | E337: 39
B338: 38 | C338: =$AA$34 -> 49 | E338: 31
B339: 39 | C339: =$AA$35 -> 46 | E339: 20
B340: 40 | C340: =$AA$36 -> 58 | E340: 38
B341: =B69 -> 0
B342: =B70 -> 0
B343: =B71 -> 0
J349: =DCOUNT(J350:J358,1,J347:J348) -> 8
C350: 1 | D350: 2 | E350: 3 | F350: 4 | G350: 5 | I350: Tot | J350: Rank
B351: Team1 | C351: =$L$8 -> 42 | D351: =$L$9 -> 40 | E351: =$L$10 -> 45 | F351: =$L$11 -> 44 | G351: =$L$12 -> 46 | H351: =$L$14 -> 46 | I351: =$L$13 -> 171 | J351: 2 | L351: 2 | R351: 0 | S351: 0 | T351: 0 | U351: 0 | V351: 0 | W351: 0 | X351: 0 | Y351: 0 | Z351: 0
B352: Team2 | C352: =$L$16 -> 42 | D352: =$L$17 -> 46 | E352: =$L$18 -> 46 | F352: =$L$19 -> 47 | G352: =$L$20 -> 53 | H352: =$L$22 -> 53 | I352: =$L$21 -> 181 | J352: 5 | L352: 5 | R352: 0 | S352: 0 | T352: 0 | U352: 0 | V352: 0 | W352: 0 | X352: 0 | Y352: 0 | Z352: 0
B353: Team3 | C353: =$L$24 -> 38 | D353: =$L$25 -> 43 | E353: =$L$26 -> 46 | F353: =$L$27 -> 45 | G353: =$L$28 -> 49 | H353: =$L$30 -> 49 | I353: =$L$29 -> 172 | J353: 3 | L353: 3 | R353: 0 | S353: 0 | T353: 0 | U353: 0 | V353: 0 | W353: 0 | X353: 0 | Y353: 0 | Z353: 0
B354: Team4 | C354: =$L$32 -> 46 | D354: =$L$33 -> 47 | E354: =$L$34 -> 39 | F354: =$L$35 -> 47 | G354: =$L$36 -> 44 | H354: =$L$38 -> 47 | I354: =$L$37 -> 176 | J354: 4 | L354: 4 | R354: 0 | S354: 0 | T354: 0 | U354: 0 | V354: 0 | W354: 0 | X354: 0 | Y354: 0 | Z354: 0
B355: Team5 | C355: =$AA$8 -> 51 | D355: =$AA$9 -> 54 | E355: =$AA$10 -> 39 | F355: =$AA$11 -> 42 | G355: =$AA$12 -> 53 | H355: =$AA$14 -> 54 | I355: =$AA$13 -> 185 | J355: 7 | L355: 7 | R355: 0 | S355: 0 | T355: 0 | U355: 0 | V355: 0 | W355: 0 | X355: 0 | Y355: 0 | Z355: 0
B356: Team6 | C356: =$AA$16 -> 42 | D356: =$AA$17 -> 45 | E356: =$AA$18 -> 50 | F356: =$AA$19 -> 48 | G356: =$AA$20 -> 48 | H356: =$AA$22 -> 50 | I356: =$AA$21 -> 183 | J356: 6 | L356: 6 | R356: 0 | S356: 0 | T356: 0 | U356: 0 | V356: 0 | W356: 0 | X356: 0 | Y356: 0 | Z356: 0
B357: Team7 | C357: =$AA$24 -> 39 | D357: =$AA$25 -> 43 | E357: =$AA$26 -> 42 | F357: =$AA$27 -> 42 | G357: =$AA$28 -> 44 | H357: =$AA$30 -> 44 | I357: =$AA$29 -> 166 | J357: 1 | L357: 1 | R357: 0 | S357: 0 | T357: 0 | U357: 0 | V357: 0 | W357: 0 | X357: 0 | Y357: 0 | Z357: 0
B358: Team8 | C358: =$AA$32 -> 81 | D358: =$AA$33 -> 81 | E358: =$AA$34 -> 49 | F358: =$AA$35 -> 46 | G358: =$AA$36 -> 58 | H358: =$AA$38 -> 81 | I358: =$AA$37 -> 234 | J358: 8 | L358: 8 | R358: 0 | S358: 0 | T358: 0 | U358: 0 | V358: 0 | W358: 0 | X358: 0 | Y358: 0 | Z358: 0
B401: =B8 -> Koby Jones - 12 | C401: =L8 -> 42
B402: =B9 -> Thomas Bleich - 11 | C402: =L9 -> 40
B403: =B10 -> Cody Trotter - 12 | C403: =L10 -> 45
B404: =B11 -> Jacob Smith - 10 | C404: =L11 -> 44
B405: =B12 -> Carter Smith - 11 | C405: =L12 -> 46
B406: =B16 -> Ryan Ruona - 11 | C406: =L16 -> 42
B407: =B17 -> Adam Butler - 12 | C407: =L17 -> 46
B408: =B18 -> Luke Carroll - 10 | C408: =L18 -> 46
B409: =B19 -> Lucas Hass - 11 | C409: =L19 -> 47
B410: =B20 -> Mike Vanderheiden - 10 | C410: =L20 -> 53
B411: =B24 -> George Kneiser - 11 | C411: =L24 -> 38
B412: =B25 -> Colin Prom - 12 | C412: =L25 -> 43
B413: =B26 -> Joey Ploch - 9 | C413: =L26 -> 46
B414: =B27 -> Brett Lange - 12 | C414: =L27 -> 45
B415: =B28 -> Drew Cook - 11 | C415: =L28 -> 49
B416: =B32 -> Jack Burns - 12 | C416: =L32 -> 46
B417: =B33 -> Ryan Graunke - 12 | C417: =L33 -> 47
B418: =B34 -> Austin Walsh - 12 | C418: =L34 -> 39
B419: =B35 -> Nick Gliniecki - | C419: =L35 -> 47
B420: =B36 -> Ryan Kusek - 9 | C420: =L36 -> 44
B421: =Q8 -> Cameron Boyd - 11 | C421: =AA8 -> 51
B422: =Q9 -> Alex Thompson - 9 | C422: =AA9 -> 54
B423: =Q10 -> Collin Travis - 11 | C423: =AA10 -> 39
B424: =Q11 -> Austin Douglas - 10 | C424: =AA11 -> 42
B425: =Q12 -> Trevor Reierson - 11 | C425: =AA12 -> 53
B426: =Q16 -> Devon Hanson - 11 | C426: =AA16 -> 42
B427: =Q17 -> Mitch Saari - 12 | C427: =AA17 -> 45
B428: =Q18 -> Sam Struebing - 11 | C428: =AA18 -> 50
B429: =Q19 -> Josh Breuer - 12 | C429: =AA19 -> 48
B430: =Q20 -> Brad Halverson - 9 | C430: =AA20 -> 48
B431: =Q24 -> Alex Haas - 12 | C431: =AA24 -> 39
B432: =Q25 -> Max Rohlinger - 10 | C432: =AA25 -> 43
B433: =Q26 -> Kevin Albrecht - 11 | C433: =AA26 -> 42
B434: =Q27 -> Jacob Droese - 12 | C434: =AA27 -> 42
B435: =Q28 -> Nick Meucci - 12 | C435: =AA28 -> 44
B436: =Q32 -> Scratch #1 - x | C436: =AA32 -> 81
B437: =Q33 -> Scratch #2 - x | C437: =AA33 -> 81
B438: =Q34 -> Zachary Stahle - 12 | C438: =AA34 -> 49
B439: =Q35 -> Ben Krause - 12 | C439: =AA35 -> 46
B440: =Q36 -> Brendan Hausch - 10 | C440: =AA36 -> 58

Sheet SL
B1: Course: | C1: Washington County Golf Course
B2: Hole | C2: 1 | D2: 2 | E2: 3 | F2: 4 | G2: 5 | H2: 6 | I2: 7 | J2: 8 | K2: 9 | L2: Total | Q2: Hole | R2: =C2 -> 1 | S2: 2 | T2: 3 | U2: 4 | V2: 5 | W2: 6 | X2: 7 | Y2: 8 | Z2: 9 | AA2: Total
B3: Par | C3: 4 | D3: 4 | E3: 5 | F3: 3 | G3: 4 | H3: 3 | I3: 5 | J3: 4 | K3: 4 | L3: =SUM(C3:K3) -> 36 | Q3: Par | R3: 4 | S3: 4 | T3: 5 | U3: 3 | V3: 4 | W3: 3 | X3: 5 | Y3: 4 | Z3: 4 | AA3: =L3 -> 36
B4: Handicap | C4: 9 | D4: 7 | E4: 3 | F4: 17 | G4: 13 | H4: 15 | I4: 1 | J4: 11 | K4: 5 | Q4: Handicap | R4: 9 | S4: 7 | T4: 3 | U4: 17 | V4: 13 | W4: 15 | X4: 1 | Y4: 11 | Z4: 5
A7: Player | B7: BEAVER DAM | M7: Place | P7: Player | Q7: WATERTOWN | AB7: Place
A8: 1 | B8: Koby Jones - 12 | C8: 6 | D8: 5 | E8: 5 | F8: 6 | G8: 3 | H8: 5 | I8: 6 | J8: 5 | K8: 5 | L8: =IF(COUNTBLANK(C8:K8)>0,"",SUM(C8:K8)) -> 46 | M8: =VLOOKUP(BA8,$B$301:$E$340,4) -> 24 | P8: 1 | Q8: Cameron Boyd - 11 | R8: 5 | S8: 5 | T8: 6 | U8: 3 | V8: 4 | W8: 3 | X8: 7 | Y8: 6 | Z8: 5 | AA8: =IF(COUNTBLANK(R8:Z8)>0,"",SUM(R8:Z8)) -> 44 | AB8: =VLOOKUP(BB8,$B$301:$E$340,4) -> 20 | BA8: 1 | BB8: 21 | BC8: =LEN(L8) -> 2 | BD8: =LEN(AA8) -> 2
A9: 2 | B9: Thomas Bleich - 11 | C9: 4 | D9: 5 | E9: 7 | F9: 3 | G9: 4 | H9: 4 | I9: 6 | J9: 5 | K9: 4 | L9: =IF(COUNTBLANK(C9:K9)>0,"",SUM(C9:K9)) -> 42 | M9: =VLOOKUP(BA9,$B$301:$E$340,4) -> 13 | P9: 2 | Q9: Alex Thompson - 9 | R9: 6 | S9: 6 | T9: 6 | U9: 4 | V9: 5 | W9: 3 | X9: 6 | Y9: 5 | Z9: 6 | AA9: =IF(COUNTBLANK(R9:Z9)>0,"",SUM(R9:Z9)) -> 47 | AB9: =VLOOKUP(BB9,$B$301:$E$340,4) -> 25 | BA9: 2 | BB9: 22 | BC9: =LEN(L9) -> 2 | BD9: =LEN(AA9) -> 2
A10: 3 | B10: Cody Trotter - 12 | C10: 5 | D10: 6 | E10: 6 | F10: 3 | G10: 3 | H10: 4 | I10: 6 | J10: 9 | K10: 5 | L10: =IF(COUNTBLANK(C10:K10)>0,"",SUM(C10:K10)) -> 47 | M10: =VLOOKUP(BA10,$B$301:$E$340,4) -> 25 | P10: 3 | Q10: Collin Travis - 11 | R10: 7 | S10: 5 | T10: 6 | U10: 3 | V10: 5 | W10: 5 | X10: 5 | Y10: 4 | Z10: 5 | AA10: =IF(COUNTBLANK(R10:Z10)>0,"",SUM(R10:Z10)) -> 45 | AB10: =VLOOKUP(BB10,$B$301:$E$340,4) -> 22 | BA10: 3 | BB10: 23 | BC10: =LEN(L10) -> 2 | BD10: =LEN(AA10) -> 2
A11: 4 | B11: Jacob Smith - 10 | C11: 4 | D11: 4 | E11: 5 | F11: 3 | G11: 6 | H11: 3 | I11: 8 | J11: 5 | K11: 5 | L11: =IF(COUNTBLANK(C11:K11)>0,"",SUM(C11:K11)) -> 43 | M11: =VLOOKUP(BA11,$B$301:$E$340,4) -> 16 | P11: 4 | Q11: Austin Douglas - 10 | R11: 8 | S11: 6 | T11: 11 | U11: 4 | V11: 5 | W11: 4 | X11: 7 | Y11: 4 | Z11: 6 | AA11: =IF(COUNTBLANK(R11:Z11)>0,"",SUM(R11:Z11)) -> 55 | AB11: =VLOOKUP(BB11,$B$301:$E$340,4) -> 37 | BA11: 4 | BB11: 24 | BC11: =LEN(L11) -> 2 | BD11: =LEN(AA11) -> 2
A12: 5 | B12: Carter Smith - 11 | C12: 5 | D12: 7 | E12: 6 | F12: 4 | G12: 5 | H12: 6 | I12: 6 | J12: 7 | K12: 5 | L12: =IF(COUNTBLANK(C12:K12)>0,"",SUM(C12:K12)) -> 51 | M12: =VLOOKUP(BA12,$B$301:$E$340,4) -> 34 | P12: 5 | Q12: Trevor Reierson - 11 | R12: 6 | S12: 5 | T12: 5 | U12: 4 | V12: 4 | W12: 5 | X12: 8 | Y12: 6 | Z12: 7 | AA12: =IF(COUNTBLANK(R12:Z12)>0,"",SUM(R12:Z12)) -> 50 | AB12: =VLOOKUP(BB12,$B$301:$E$340,4) -> 33 | BA12: 5 | BB12: 25 | BC12: =LEN(L12) -> 2 | BD12: =LEN(AA12) -> 2
L13: =IF(COUNT(L8:L12)=5,(SUM(L8:L12))-(MAX(L8:L12)),(IF(COUNT(L8:L12)=4,SUM(L8:L12),IF(COUNTBLANK(L8:L12)>0,SUM(L8:L12),"DQ")))) -> 178 | M13: =J351 -> 6 | AA13: =IF(COUNT(AA8:AA12)=5,(SUM(AA8:AA12))-(MAX(AA8:AA12)),(IF(COUNT(AA8:AA12)=4,SUM(AA8:AA12),IF(COUNTBLANK(AA8:AA12)>0,SUM(AA8:AA12),"DQ")))) -> 186 | AB13: =J355 -> 7
L14: =IF(COUNT(L8:L12)=5,MAX(L8:L12),IF(COUNT(L8:L12)<5,200,)) -> 51 | AA14: =IF(COUNT(AA8:AA12)=5,MAX(AA8:AA12),IF(COUNT(AA8:AA12)<5,200,)) -> 55
A15: Player | B15: HARTFORD | M15: Place | P15: Player | Q15: WEST BEND EAST | AB15: Place
A16: 1 | B16: Ryan Ruona - 11 | C16: 4 | D16: 5 | E16: 5 | F16: 3 | G16: 4 | H16: 4 | I16: 6 | J16: 4 | K16: 7 | L16: =IF(COUNTBLANK(C16:K16)>0,"",SUM(C16:K16)) -> 42 | M16: =VLOOKUP(BA16,$B$301:$E$340,4) -> 13 | P16: 1 | Q16: Devon Hanson - 11 | R16: 4 | S16: 3 | T16: 5 | U16: 4 | V16: 4 | W16: 4 | X16: 5 | Y16: 4 | Z16: 5 | AA16: =IF(COUNTBLANK(R16:Z16)>0,"",SUM(R16:Z16)) -> 38 | AB16: =VLOOKUP(BB16,$B$301:$E$340,4) -> 2 | BA16: 6 | BB16: 26 | BC16: =LEN(L16) -> 2 | BD16: =LEN(AA16) -> 2
A17: 2 | B17: Adam Butler - 12 | C17: 4 | D17: 5 | E17: 5 | F17: 3 | G17: 6 | H17: 4 | I17: 6 | J17: 5 | K17: 5 | L17: =IF(COUNTBLANK(C17:K17)>0,"",SUM(C17:K17)) -> 43 | M17: =VLOOKUP(BA17,$B$301:$E$340,4) -> 16 | P17: 2 | Q17: Mitch Saari - 12 | R17: 5 | S17: 5 | T17: 5 | U17: 4 | V17: 4 | W17: 3 | X17: 6 | Y17: 4 | Z17: 4 | AA17: =IF(COUNTBLANK(R17:Z17)>0,"",SUM(R17:Z17)) -> 40 | AB17: =VLOOKUP(BB17,$B$301:$E$340,4) -> 6 | BA17: 7 | BB17: 27 | BC17: =LEN(L17) -> 2 | BD17: =LEN(AA17) -> 2
A18: 3 | B18: Luke Carroll - 10 | C18: 6 | D18: 5 | E18: 7 | F18: 3 | G18: 5 | H18: 5 | I18: 6 | J18: 5 | K18: 5 | L18: =IF(COUNTBLANK(C18:K18)>0,"",SUM(C18:K18)) -> 47 | M18: =VLOOKUP(BA18,$B$301:$E$340,4) -> 25 | P18: 3 | Q18: Sam Struebing - 11 | R18: 6 | S18: 6 | T18: 6 | U18: 4 | V18: 5 | W18: 5 | X18: 7 | Y18: 9 | Z18: 5 | AA18: =IF(COUNTBLANK(R18:Z18)>0,"",SUM(R18:Z18)) -> 53 | AB18: =VLOOKUP(BB18,$B$301:$E$340,4) -> 35 | BA18: 8 | BB18: 28 | BC18: =LEN(L18) -> 2 | BD18: =LEN(AA18) -> 2
A19: 4 | B19: Lucas Hass - 11 | C19: 5 | D19: 4 | E19: 6 | F19: 4 | G19: 4 | H19: 4 | I19: 6 | J19: 5 | K19: 6 | L19: =IF(COUNTBLANK(C19:K19)>0,"",SUM(C19:K19)) -> 44 | M19: =VLOOKUP(BA19,$B$301:$E$340,4) -> 20 | P19: 4 | Q19: Josh Breuer - 12 | R19: 5 | S19: 5 | T19: 5 | U19: 4 | V19: 5 | W19: 2 | X19: 5 | Y19: 4 | Z19: 5 | AA19: =IF(COUNTBLANK(R19:Z19)>0,"",SUM(R19:Z19)) -> 40 | AB19: =VLOOKUP(BB19,$B$301:$E$340,4) -> 6 | BA19: 9 | BB19: 29 | BC19: =LEN(L19) -> 2 | BD19: =LEN(AA19) -> 2
A20: 5 | B20: Mike Vanderheiden - 10 | C20: 5 | D20: 6 | E20: 6 | F20: 3 | G20: 4 | H20: 6 | I20: 6 | J20: 8 | K20: 5 | L20: =IF(COUNTBLANK(C20:K20)>0,"",SUM(C20:K20)) -> 49 | M20: =VLOOKUP(BA20,$B$301:$E$340,4) -> 31 | P20: 5 | Q20: Brad Halverson - 9 | R20: 6 | S20: 6 | T20: 5 | U20: 4 | V20: 4 | W20: 5 | X20: 6 | Y20: 6 | Z20: 6 | AA20: =IF(COUNTBLANK(R20:Z20)>0,"",SUM(R20:Z20)) -> 48 | AB20: =VLOOKUP(BB20,$B$301:$E$340,4) -> 30 | BA20: 10 | BB20: 30 | BC20: =LEN(L20) -> 2 | BD20: =LEN(AA20) -> 2
L21: =IF(COUNT(L16:L20)=5,(SUM(L16:L20))-(MAX(L16:L20)),(IF(COUNT(L16:L20)=4,SUM(L16:L20),IF(COUNTBLANK(L16:L20)>0,SUM(L16:L20),"DQ")))) -> 176 | M21: =J352 -> 5 | AA21: =IF(COUNT(AA16:AA20)=5,(SUM(AA16:AA20))-(MAX(AA16:AA20)),(IF(COUNT(AA16:AA20)=4,SUM(AA16:AA20),IF(COUNTBLANK(AA16:AA20)>0,SUM(AA16:AA20),"DQ")))) -> 166 | AB21: =J356 -> 4
L22: =IF(COUNT(L16:L20)=5,MAX(L16:L20),IF(COUNT(L16:L20)<5,200,)) -> 49 | AA22: =IF(COUNT(AA16:AA20)=5,MAX(AA16:AA20),IF(COUNT(AA16:AA20)<5,200,)) -> 53
A23: Player | B23: OCONOMOWOC | M23: Place | P23: Player | Q23: WEST BEND WEST | AB23: Place
A24: 1 | B24: George Kneiser - 11 | C24: 4 | D24: 5 | E24: 4 | F24: 3 | G24: 4 | H24: 4 | I24: 5 | J24: 5 | K24: 5 | L24: =IF(COUNTBLANK(C24:K24)>0,"",SUM(C24:K24)) -> 39 | M24: =VLOOKUP(BA24,$B$301:$E$340,4) -> 3 | P24: 1 | Q24: Alex Haas - 12 | R24: 5 | S24: 4 | T24: 6 | U24: 3 | V24: 4 | W24: 4 | X24: 5 | Y24: 7 | Z24: 5 | AA24: =IF(COUNTBLANK(R24:Z24)>0,"",SUM(R24:Z24)) -> 43 | AB24: =VLOOKUP(BB24,$B$301:$E$340,4) -> 16 | BA24: 11 | BB24: 31 | BC24: =LEN(L24) -> 2 | BD24: =LEN(AA24) -> 2
A25: 2 | B25: Colin Prom - 12 | C25: 5 | D25: 4 | E25: 5 | F25: 3 | G25: 4 | H25: 4 | I25: 6 | J25: 4 | K25: 5 | L25: =IF(COUNTBLANK(C25:K25)>0,"",SUM(C25:K25)) -> 40 | M25: =VLOOKUP(BA25,$B$301:$E$340,4) -> 6 | P25: 2 | Q25: Max Rohlinger - 10 | R25: 5 | S25: 4 | T25: 6 | U25: 2 | V25: 4 | W25: 4 | X25: 6 | Y25: 5 | Z25: 4 | AA25: =IF(COUNTBLANK(R25:Z25)>0,"",SUM(R25:Z25)) -> 40 | AB25: =VLOOKUP(BB25,$B$301:$E$340,4) -> 6 | BA25: 12 | BB25: 32 | BC25: =LEN(L25) -> 2 | BD25: =LEN(AA25) -> 2
A26: 3 | B26: Joey Ploch - 9 | C26: 5 | D26: 4 | E26: 5 | F26: 3 | G26: 4 | H26: 3 | I26: 6 | J26: 4 | K26: 5 | L26: =IF(COUNTBLANK(C26:K26)>0,"",SUM(C26:K26)) -> 39 | M26: =VLOOKUP(BA26,$B$301:$E$340,4) -> 3 | P26: 3 | Q26: Kevin Albrecht - 11 | R26: 4 | S26: 4 | T26: 5 | U26: 3 | V26: 4 | W26: 3 | X26: 5 | Y26: 5 | Z26: 6 | AA26: =IF(COUNTBLANK(R26:Z26)>0,"",SUM(R26:Z26)) -> 39 | AB26: =VLOOKUP(BB26,$B$301:$E$340,4) -> 3 | BA26: 13 | BB26: 33 | BC26: =LEN(L26) -> 2 | BD26: =LEN(AA26) -> 2
A27: 4 | B27: Brett Lange - 12 | C27: 5 | D27: 4 | E27: 5 | F27: 4 | G27: 3 | H27: 5 | I27: 5 | J27: 5 | K27: 5 | L27: =IF(COUNTBLANK(C27:K27)>0,"",SUM(C27:K27)) -> 41 | M27: =VLOOKUP(BA27,$B$301:$E$340,4) -> 10 | P27: 4 | Q27: Jacob Droese - 12 | R27: 6 | S27: 6 | T27: 6 | U27: 3 | V27: 6 | W27: 6 | X27: 6 | Y27: 5 | Z27: 5 | AA27: =IF(COUNTBLANK(R27:Z27)>0,"",SUM(R27:Z27)) -> 49 | AB27: =VLOOKUP(BB27,$B$301:$E$340,4) -> 31 | BA27: 14 | BB27: 34 | BC27: =LEN(L27) -> 2 | BD27: =LEN(AA27) -> 2
A28: 5 | B28: Drew Cook - 11 | C28: 5 | D28: 6 | E28: 6 | F28: 4 | G28: 5 | H28: 4 | I28: 5 | J28: 5 | K28: 7 | L28: =IF(COUNTBLANK(C28:K28)>0,"",SUM(C28:K28)) -> 47 | M28: =VLOOKUP(BA28,$B$301:$E$340,4) -> 25 | P28: 5 | Q28: Nick Meucci - 12 | R28: 5 | S28: 5 | T28: 5 | U28: 3 | V28: 4 | W28: 3 | X28: 5 | Y28: 5 | Z28: 6 | AA28: =IF(COUNTBLANK(R28:Z28)>0,"",SUM(R28:Z28)) -> 41 | AB28: =VLOOKUP(BB28,$B$301:$E$340,4) -> 10 | BA28: 15 | BB28: 35 | BC28: =LEN(L28) -> 2 | BD28: =LEN(AA28) -> 2
L29: =IF(COUNT(L24:L28)=5,(SUM(L24:L28))-(MAX(L24:L28)),(IF(COUNT(L24:L28)=4,SUM(L24:L28),IF(COUNTBLANK(L24:L28)>0,SUM(L24:L28),"DQ")))) -> 159 | M29: =J353 -> 1 | AA29: =IF(COUNT(AA24:AA28)=5,(SUM(AA24:AA28))-(MAX(AA24:AA28)),(IF(COUNT(AA24:AA28)=4,SUM(AA24:AA28),IF(COUNTBLANK(AA24:AA28)>0,SUM(AA24:AA28),"DQ")))) -> 163 | AB29: =J357 -> 3
L30: =IF(COUNT(L24:L28)=5,MAX(L24:L28),IF(COUNT(L24:L28)<5,200,)) -> 47 | AA30: =IF(COUNT(AA24:AA28)=5,MAX(AA24:AA28),IF(COUNT(AA24:AA28)<5,200,)) -> 49
A31: Player | B31: SLINGER | M31: Place | P31: Player | Q31: WISCONSIN LUTHERAN | AB31: Place
A32: 1 | B32: Jack Burns - 12 | C32: 6 | D32: 4 | E32: 5 | F32: 3 | G32: 5 | H32: 4 | I32: 6 | J32: 4 | K32: 5 | L32: =IF(COUNTBLANK(C32:K32)>0,"",SUM(C32:K32)) -> 42 | M32: =VLOOKUP(BA32,$B$301:$E$340,4) -> 13 | P32: 1 | Q32: Scratch #1 - x | R32: 9 | S32: 9 | T32: 9 | U32: 9 | V32: 9 | W32: 9 | X32: 9 | Y32: 9 | Z32: 9 | AA32: =IF(COUNTBLANK(R32:Z32)>0,"",SUM(R32:Z32)) -> 81 | AB32: =VLOOKUP(BB32,$B$301:$E$340,4) -> 38 | BA32: 16 | BB32: 36 | BC32: =LEN(L32) -> 2 | BD32: =LEN(AA32) -> 2
A33: 2 | B33: Chris Evans - 11 | C33: 4 | D33: 5 | E33: 6 | F33: 4 | G33: 4 | H33: 6 | I33: 6 | J33: 6 | K33: 6 | L33: =IF(COUNTBLANK(C33:K33)>0,"",SUM(C33:K33)) -> 47 | M33: =VLOOKUP(BA33,$B$301:$E$340,4) -> 25 | P33: 2 | Q33: Scratch #2 - x | R33: 9 | S33: 9 | T33: 9 | U33: 9 | V33: 9 | W33: 9 | X33: 9 | Y33: 9 | Z33: 9 | AA33: =IF(COUNTBLANK(R33:Z33)>0,"",SUM(R33:Z33)) -> 81 | AB33: =VLOOKUP(BB33,$B$301:$E$340,4) -> 38 | BA33: 17 | BB33: 37 | BC33: =LEN(L33) -> 2 | BD33: =LEN(AA33) -> 2
A34: 3 | B34: Austin Walsh - 12 | C34: 5 | D34: 4 | E34: 5 | F34: 4 | G34: 4 | H34: 3 | I34: 5 | J34: 3 | K34: 4 | L34: =IF(COUNTBLANK(C34:K34)>0,"",SUM(C34:K34)) -> 37 | M34: =VLOOKUP(BA34,$B$301:$E$340,4) -> 1 | P34: 3 | Q34: Zachary Stahle - 12 | R34: 5 | S34: 6 | T34: 6 | U34: 3 | V34: 4 | W34: 3 | X34: 7 | Y34: 6 | Z34: 5 | AA34: =IF(COUNTBLANK(R34:Z34)>0,"",SUM(R34:Z34)) -> 45 | AB34: =VLOOKUP(BB34,$B$301:$E$340,4) -> 22 | BA34: 18 | BB34: 38 | BC34: =LEN(L34) -> 2 | BD34: =LEN(AA34) -> 2
A35: 4 | B35: Ryan Graunke - 12 | C35: 6 | D35: 6 | E35: 5 | F35: 2 | G35: 4 | H35: 3 | I35: 5 | J35: 5 | K35: 5 | L35: =IF(COUNTBLANK(C35:K35)>0,"",SUM(C35:K35)) -> 41 | M35: =VLOOKUP(BA35,$B$301:$E$340,4) -> 10 | P35: 4 | Q35: Ben Krause - 12 | R35: 6 | S35: 5 | T35: 5 | U35: 4 | V35: 8 | W35: 5 | X35: 11 | Y35: 4 | Z35: 5 | AA35: =IF(COUNTBLANK(R35:Z35)>0,"",SUM(R35:Z35)) -> 53 | AB35: =VLOOKUP(BB35,$B$301:$E$340,4) -> 35 | BA35: 19 | BB35: 39 | BC35: =LEN(L35) -> 2 | BD35: =LEN(AA35) -> 2
A36: 5 | B36: Ryan Kusek - 9 | C36: 5 | D36: 5 | E36: 6 | F36: 4 | G36: 4 | H36: 4 | I36: 6 | J36: 5 | K36: 4 | L36: =IF(COUNTBLANK(C36:K36)>0,"",SUM(C36:K36)) -> 43 | M36: =VLOOKUP(BA36,$B$301:$E$340,4) -> 16 | P36: 5 | Q36: Scratch #3 - x | R36: 9 | S36: 9 | T36: 9 | U36: 9 | V36: 9 | W36: 9 | X36: 9 | Y36: 9 | Z36: 9 | AA36: =IF(COUNTBLANK(R36:Z36)>0,"",SUM(R36:Z36)) -> 81 | AB36: =VLOOKUP(BB36,$B$301:$E$340,4) -> 38 | BA36: 20 | BB36: 40 | BC36: =LEN(L36) -> 2 | BD36: =LEN(AA36) -> 2
L37: =IF(COUNT(L32:L36)=5,(SUM(L32:L36))-(MAX(L32:L36)),(IF(COUNT(L32:L36)=4,SUM(L32:L36),IF(COUNTBLANK(L32:L36)>0,SUM(L32:L36),"DQ")))) -> 163 | M37: =J354 -> 2 | AA37: =IF(COUNT(AA32:AA36)=5,(SUM(AA32:AA36))-(MAX(AA32:AA36)),(IF(COUNT(AA32:AA36)=4,SUM(AA32:AA36),IF(COUNTBLANK(AA32:AA36)>0,SUM(AA32:AA36),"DQ")))) -> 260 | AB37: =J358 -> 8
L38: =IF(COUNT(L32:L36)=5,MAX(L32:L36),IF(COUNT(L32:L36)<5,200,)) -> 47 | AA38: =IF(COUNT(AA32:AA36)=5,MAX(AA32:AA36),IF(COUNT(AA32:AA36)<5,200,)) -> 81
B41: Wisconsin Little Ten Varsity Golf | G41: Match # 8 | L41: Hosted By: | M41: Slinger | Q41: ="WISCONSIN LITTLE TEN CONFERENCE STANDINGS " & Schedule!Q41 -> WISCONSIN LITTLE TEN CONFERENCE STANDINGS
Q42: Match | R42: 1 | S42: 2 | T42: 3 | U42: 4 | V42: 5 | W42: 6 | X42: 7 | Y42: 8 | Z42: 9 | AA42: Total
B43: Date: May 13, 2015 | D43: ="Location: " & C1 -> Location: Washington County Golf Course | Q43: =Rosters!$B$10 -> West Bend West | R43: 1 | S43: 1 | T43: 2 | U43: 2 | V43: 5 | W43: 1 | X43: 1 | Y43: 3 | AA43: =IF(SUM(R43:Z43)=0,"",SUM(R43:Z43)) -> 16
B44: Weather: 55, light breeze, sunny | Q44: =Rosters!$B$6 -> Oconomowoc | R44: 2 | S44: 3 | T44: 3 | U44: 1 | V44: 3 | W44: 3 | X44: 3 | Y44: 1 | AA44: 19
Q45: =Rosters!$B$7 -> Slinger | R45: 4 | S45: 6 | T45: 1 | U45: 3 | V45: 2 | W45: 4 | X45: 4 | Y45: 2 | AA45: 26
Q46: =Rosters!$B$4 -> Beaver Dam | R46: 3 | S46: 2 | T46: 4 | U46: 6 | V46: 1 | W46: 2 | X46: 2 | Y46: 6 | AA46: 26
B47: Medalist: (37) - Austin Walsh | Q47: =Rosters!$B$9 -> West Bend East | R47: 5 | S47: 4 | T47: 6 | U47: 5 | V47: 4 | W47: 5 | X47: 6 | Y47: 4 | AA47: 39
Q48: =Rosters!$B$5 -> Hartford | R48: 6 | S48: 5 | T48: 5 | U48: 4 | V48: 6 | W48: 6 | X48: 5 | Y48: 5 | AA48: 42
Q49: =Rosters!$B$8 -> Watertown | R49: 7 | S49: 7 | T49: 7 | U49: 7 | V49: 7 | W49: 7 | X49: 7 | Y49: 7 | AA49: 56
L50: = Birdies or Better | Q50: =Rosters!$B$11 -> Wisconsin Lutheran | R50: 8 | S50: 8 | T50: 8 | U50: 8 | V50: 8 | W50: 8 | X50: 8 | Y50: 8 | AA50: 64
B100: Course: | C100: Washington County Golf Course
B101: Hole | C101: 1 | D101: 2 | E101: 3 | F101: 4 | G101: 5 | H101: 6 | I101: 7 | J101: 8 | K101: 9 | L101: Total
B102: Par | C102: 4 | D102: 4 | E102: 5 | F102: 3 | G102: 4 | H102: 3 | I102: 5 | J102: 4 | K102: 4 | L102: =SUM(C102:K102) -> 36
B103: Handicap | C103: 9 | D103: 7 | E103: 3 | F103: 17 | G103: 13 | H103: 15 | I103: 1 | J103: 11 | K103: 5
B105: Course: | C105: Washington County Golf Course
B106: Hole | C106: 10 | D106: 11 | E106: 12 | F106: 13 | G106: 14 | H106: 15 | I106: 16 | J106: 17 | K106: 18 | L106: Total
B107: Par | C107: 4 | D107: 4 | E107: 4 | F107: 5 | G107: 3 | H107: 4 | I107: 3 | J107: 5 | K107: 4 | L107: =SUM(C107:K107) -> 36
B108: Handicap | C108: 12 | D108: 14 | E108: 8 | F108: 4 | G108: 18 | H108: 10 | I108: 16 | J108: 2 | K108: 6
B300: Player | C300: Sc | D300: Sort | E300: Rnk
B301: 1 | C301: =$L$8 -> 46 | E301: 24
B302: 2 | C302: =$L$9 -> 42 | E302: 13
B303: 3 | C303: =$L$10 -> 47 | E303: 25
B304: 4 | C304: =$L$11 -> 43 | E304: 16
B305: 5 | C305: =$L$12 -> 51 | E305: 34
B306: 6 | C306: =$L$16 -> 42 | E306: 13
B307: 7 | C307: =$L$17 -> 43 | E307: 16
B308: 8 | C308: =$L$18 -> 47 | E308: 25
B309: 9 | C309: =$L$19 -> 44 | E309: 20
B310: 10 | C310: =$L$20 -> 49 | E310: 31
B311: 11 | C311: =$L$24 -> 39 | E311: 3
B312: 12 | C312: =$L$25 -> 40 | E312: 6
B313: 13 | C313: =$L$26 -> 39 | E313: 3
B314: 14 | C314: =$L$27 -> 41 | E314: 10
B315: 15 | C315: =$L$28 -> 47 | E315: 25
B316: 16 | C316: =$L$32 -> 42 | E316: 13
B317: 17 | C317: =$L$33 -> 47 | E317: 25
B318: 18 | C318: =$L$34 -> 37 | E318: 1
B319: 19 | C319: =$L$35 -> 41 | E319: 10
B320: 20 | C320: =$L$36 -> 43 | E320: 16
B321: 21 | C321: =$AA$8 -> 44 | E321: 20
B322: 22 | C322: =$AA$9 -> 47 | E322: 25
B323: 23 | C323: =$AA$10 -> 45 | E323: 22
B324: 24 | C324: =$AA$11 -> 55 | E324: 37
B325: 25 | C325: =$AA$12 -> 50 | E325: 33
B326: 26 | C326: =$AA$16 -> 38 | E326: 2
B327: 27 | C327: =$AA$17 -> 40 | E327: 6
B328: 28 | C328: =$AA$18 -> 53 | E328: 35
B329: 29 | C329: =$AA$19 -> 40 | E329: 6
B330: 30 | C330: =$AA$20 -> 48 | E330: 30
B331: 31 | C331: =$AA$24 -> 43 | E331: 16
B332: 32 | C332: =$AA$25 -> 40 | E332: 6
B333: 33 | C333: =$AA$26 -> 39 | E333: 3
B334: 34 | C334: =$AA$27 -> 49 | E334: 31
B335: 35 | C335: =$AA$28 -> 41 | E335: 10
B336: 36 | C336: =$AA$32 -> 81 | E336: 38
B337: 37 | C337: =$AA$33 -> 81 | E337: 38
B338: 38 | C338: =$AA$34 -> 45 | E338: 22
B339: 39 | C339: =$AA$35 -> 53 | E339: 35
B340: 40 | C340: =$AA$36 -> 81 | E340: 38
B341: =B69 -> 0
B342: =B70 -> 0
B343: =B71 -> 0
C350: 1 | D350: 2 | E350: 3 | F350: 4 | G350: 5 | H350: Mx | I350: Tot | J350: 1
B351: Team1 | C351: =$L$8 -> 46 | D351: =$L$9 -> 42 | E351: =$L$10 -> 47 | F351: =$L$11 -> 43 | G351: =$L$12 -> 51 | H351: =$L$14 -> 51 | I351: =$L$13 -> 178 | J351: 6 | L351: 6 | R351: 0 | S351: 0 | T351: 0 | U351: 0 | V351: 0 | W351: 0 | X351: 0 | Y351: 0 | Z351: 0
B352: Team2 | C352: =$L$16 -> 42 | D352: =$L$17 -> 43 | E352: =$L$18 -> 47 | F352: =$L$19 -> 44 | G352: =$L$20 -> 49 | H352: =$L$22 -> 49 | I352: =$L$21 -> 176 | J352: 5 | L352: 5 | R352: 0 | S352: 0 | T352: 0 | U352: 0 | V352: 0 | W352: 0 | X352: 0 | Y352: 0 | Z352: 0
B353: Team3 | C353: =$L$24 -> 39 | D353: =$L$25 -> 40 | E353: =$L$26 -> 39 | F353: =$L$27 -> 41 | G353: =$L$28 -> 47 | H353: =$L$30 -> 47 | I353: =$L$29 -> 159 | J353: 1 | L353: 1 | R353: 0 | S353: 0 | T353: 0 | U353: 0 | V353: 0 | W353: 0 | X353: 0 | Y353: 0 | Z353: 0
B354: Team4 | C354: =$L$32 -> 42 | D354: =$L$33 -> 47 | E354: =$L$34 -> 37 | F354: =$L$35 -> 41 | G354: =$L$36 -> 43 | H354: =$L$38 -> 47 | I354: =$L$37 -> 163 | J354: 2 | L354: 2 | R354: 0 | S354: 0 | T354: 0 | U354: 0 | V354: 0 | W354: 0 | X354: 0 | Y354: 0 | Z354: 0
B355: Team5 | C355: =$AA$8 -> 44 | D355: =$AA$9 -> 47 | E355: =$AA$10 -> 45 | F355: =$AA$11 -> 55 | G355: =$AA$12 -> 50 | H355: =$AA$14 -> 55 | I355: =$AA$13 -> 186 | J355: 7 | L355: 7 | R355: 0 | S355: 0 | T355: 0 | U355: 0 | V355: 0 | W355: 0 | X355: 0 | Y355: 0 | Z355: 0
B356: Team6 | C356: =$AA$16 -> 38 | D356: =$AA$17 -> 40 | E356: =$AA$18 -> 53 | F356: =$AA$19 -> 40 | G356: =$AA$20 -> 48 | H356: =$AA$22 -> 53 | I356: =$AA$21 -> 166 | J356: 4 | L356: 4 | R356: 0 | S356: 0 | T356: 0 | U356: 0 | V356: 0 | W356: 0 | X356: 0 | Y356: 0 | Z356: 0
B357: Team7 | C357: =$AA$24 -> 43 | D357: =$AA$25 -> 40 | E357: =$AA$26 -> 39 | F357: =$AA$27 -> 49 | G357: =$AA$28 -> 41 | H357: =$AA$30 -> 49 | I357: =$AA$29 -> 163 | J357: 3 | L357: 3 | R357: 0 | S357: 0 | T357: 0 | U357: 0 | V357: 0 | W357: 0 | X357: 0 | Y357: 0 | Z357: 0
B358: Team8 | C358: =$AA$32 -> 81 | D358: =$AA$33 -> 81 | E358: =$AA$34 -> 45 | F358: =$AA$35 -> 53 | G358: =$AA$36 -> 81 | H358: =$AA$38 -> 81 | I358: =$AA$37 -> 260 | J358: 8 | L358: 8 | R358: 0 | S358: 0 | T358: 0 | U358: 0 | V358: 0 | W358: 0 | X358: 0 | Y358: 0 | Z358: 0
B401: =B8 -> Koby Jones - 12 | C401: =L8 -> 46
B402: =B9 -> Thomas Bleich - 11 | C402: =L9 -> 42
B403: =B10 -> Cody Trotter - 12 | C403: =L10 -> 47
B404: =B11 -> Jacob Smith - 10 | C404: =L11 -> 43
B405: =B12 -> Carter Smith - 11 | C405: =L12 -> 51
B406: =B16 -> Ryan Ruona - 11 | C406: =L16 -> 42
B407: =B17 -> Adam Butler - 12 | C407: =L17 -> 43
B408: =B18 -> Luke Carroll - 10 | C408: =L18 -> 47
B409: =B19 -> Lucas Hass - 11 | C409: =L19 -> 44
B410: =B20 -> Mike Vanderheiden - 10 | C410: =L20 -> 49
B411: =B24 -> George Kneiser - 11 | C411: =L24 -> 39
B412: =B25 -> Colin Prom - 12 | C412: =L25 -> 40
B413: =B26 -> Joey Ploch - 9 | C413: =L26 -> 39
B414: =B27 -> Brett Lange - 12 | C414: =L27 -> 41
B415: =B28 -> Drew Cook - 11 | C415: =L28 -> 47
B416: =B32 -> Jack Burns - 12 | C416: =L32 -> 42
B417: =B33 -> Chris Evans - 11 | C417: =L33 -> 47
B418: =B34 -> Austin Walsh - 12 | C418: =L34 -> 37
B419: =B35 -> Ryan Graunke - 12 | C419: =L35 -> 41
B420: =B36 -> Ryan Kusek - 9 | C420: =L36 -> 43
B421: =Q8 -> Cameron Boyd - 11 | C421: =AA8 -> 44
B422: =Q9 -> Alex Thompson - 9 | C422: =AA9 -> 47
B423: =Q10 -> Collin Travis - 11 | C423: =AA10 -> 45
B424: =Q11 -> Austin Douglas - 10 | C424: =AA11 -> 55
B425: =Q12 -> Trevor Reierson - 11 | C425: =AA12 -> 50
B426: =Q16 -> Devon Hanson - 11 | C426: =AA16 -> 38
B427: =Q17 -> Mitch Saari - 12 | C427: =AA17 -> 40
B428: =Q18 -> Sam Struebing - 11 | C428: =AA18 -> 53
B429: =Q19 -> Josh Breuer - 12 | C429: =AA19 -> 40
B430: =Q20 -> Brad Halverson - 9 | C430: =AA20 -> 48
B431: =Q24 -> Alex Haas - 12 | C431: =AA24 -> 43
B432: =Q25 -> Max Rohlinger - 10 | C432: =AA25 -> 40
B433: =Q26 -> Kevin Albrecht - 11 | C433: =AA26 -> 39
B434: =Q27 -> Jacob Droese - 12 | C434: =AA27 -> 49
B435: =Q28 -> Nick Meucci - 12 | C435: =AA28 -> 41
B436: =Q32 -> Scratch #1 - x | C436: =AA32 -> 81
B437: =Q33 -> Scratch #2 - x | C437: =AA33 -> 81
B438: =Q34 -> Zachary Stahle - 12 | C438: =AA34 -> 45
B439: =Q35 -> Ben Krause - 12 | C439: =AA35 -> 53
B440: =Q36 -> Scratch #3 - x | C440: =AA36 -> 81

Sheet Conf
B1: Course | C1: Horicon Hills Golf Club
B2: Hole | C2: 1 | D2: 2 | E2: 3 | F2: 4 | G2: 5 | H2: 6 | I2: 7 | J2: 8 | K2: 9 | L2: 10 | M2: 11 | N2: 12 | O2: 13 | P2: 14 | Q2: 15 | R2: 16 | S2: 17 | T2: 18 | V2: Front | W2: Back | X2: Total | Y2: Place
B3: Par | C3: 4 | D3: 4 | E3: 3 | F3: 4 | G3: 4 | H3: 3 | I3: 5 | J3: 4 | K3: 4 | L3: 4 | M3: 4 | N3: 4 | O3: 3 | P3: 4 | Q3: 4 | R3: 3 | S3: 4 | T3: 5 | V3: =SUM(C3:K3) -> 35 | W3: =SUM(L3:T3) -> 35 | X3: =SUM(C3:T3) -> 70
B4: Handicap | C4: 6 | D4: 14 | E4: 18 | F4: 10 | G4: 4 | H4: 16 | I4: 2 | J4: 8 | K4: 12 | L4: 11 | M4: 9 | N4: 13 | O4: 15 | P4: 5 | Q4: 7 | R4: 17 | S4: 1 | T4: 3
B7: BEAVER DAM
B8: Koby Jones - 12 | C8: 6 | D8: 4 | E8: 3 | F8: 4 | G8: 5 | H8: 4 | I8: 6 | J8: 4 | K8: 5 | L8: 4 | M8: 4 | N8: 4 | O8: 4 | P8: 5 | Q8: 6 | R8: 3 | S8: 5 | T8: 5 | V8: =IF(COUNTBLANK(C8:K8)>0,"",SUM(C8:K8)) -> 41 | W8: =IF(COUNTBLANK(L8:T8)>0,"",SUM(L8:T8)) -> 40 | X8: =IF(COUNTBLANK(V8:W8)>0,"",SUM(V8:W8)) -> 81 | Y8: =VLOOKUP(AA8,$B$301:$E$340,4) -> 6 | Z8: =LEN(X8) -> 2 | AA8: 1
B9: Thomas Bleich - 11 | C9: 5 | D9: 4 | E9: 4 | F9: 7 | G9: 5 | H9: 5 | I9: 7 | J9: 4 | K9: 5 | L9: 6 | M9: 4 | N9: 5 | O9: 3 | P9: 5 | Q9: 6 | R9: 3 | S9: 5 | T9: 6 | V9: =IF(COUNTBLANK(C9:K9)>0,"",SUM(C9:K9)) -> 46 | W9: =IF(COUNTBLANK(L9:T9)>0,"",SUM(L9:T9)) -> 43 | X9: =IF(COUNTBLANK(V9:W9)>0,"",SUM(V9:W9)) -> 89 | Y9: =VLOOKUP(AA9,$B$301:$E$340,4) -> 18 | Z9: =LEN(X9) -> 2 | AA9: 2
B10: Cody Trotter - 12 | C10: 6 | D10: 5 | E10: 5 | F10: 5 | G10: 4 | H10: 4 | I10: 5 | J10: 5 | K10: 7 | L10: 5 | M10: 15 | N10: 5 | O10: 6 | P10: 5 | Q10: 6 | R10: 4 | S10: 4 | T10: 7 | V10: =IF(COUNTBLANK(C10:K10)>0,"",SUM(C10:K10)) -> 46 | W10: =IF(COUNTBLANK(L10:T10)>0,"",SUM(L10:T10)) -> 57 | X10: =IF(COUNTBLANK(V10:W10)>0,"",SUM(V10:W10)) -> 103 | Y10: =VLOOKUP(AA10,$B$301:$E$340,4) -> 36 | Z10: =LEN(X10) -> 3 | AA10: 3
B11: Jacob Smith - 10 | C11: 6 | D11: 5 | E11: 4 | F11: 6 | G11: 6 | H11: 5 | I11: 6 | J11: 5 | K11: 4 | L11: 5 | M11: 5 | N11: 5 | O11: 5 | P11: 6 | Q11: 6 | R11: 6 | S11: 6 | T11: 7 | V11: =IF(COUNTBLANK(C11:K11)>0,"",SUM(C11:K11)) -> 47 | W11: =IF(COUNTBLANK(L11:T11)>0,"",SUM(L11:T11)) -> 51 | X11: =IF(COUNTBLANK(V11:W11)>0,"",SUM(V11:W11)) -> 98 | Y11: =VLOOKUP(AA11,$B$301:$E$340,4) -> 32 | Z11: =LEN(X11) -> 2 | AA11: 4
B12: Carter Smith - 11 | C12: 5 | D12: 4 | E12: 4 | F12: 4 | G12: 5 | H12: 4 | I12: 5 | J12: 6 | K12: 4 | L12: 6 | M12: 6 | N12: 5 | O12: 3 | P12: 5 | Q12: 8 | R12: 5 | S12: 7 | T12: 6 | V12: =IF(COUNTBLANK(C12:K12)>0,"",SUM(C12:K12)) -> 41 | W12: =IF(COUNTBLANK(L12:T12)>0,"",SUM(L12:T12)) -> 51 | X12: =IF(COUNTBLANK(V12:W12)>0,"",SUM(V12:W12)) -> 92 | Y12: =VLOOKUP(AA12,$B$301:$E$340,4) -> 24 | Z12: =LEN(X12) -> 2 | AA12: 5
X13: =IF(COUNT(X8:X12)=5,(SUM(X8:X12))-(MAX(X8:X12)),(IF(COUNT(X8:X12)=4,SUM(X8:X12),IF(COUNTBLANK(X8:X12)>0,SUM(X8:X12),"DQ")))) -> 360 | Y13: =J351 -> 6 | AA13: 101
X14: =IF(COUNT(X8:X12)=5,MAX(X8:X12),IF(COUNT(X8:X12)<5,500,)) -> 103
B15: HARTFORD
B16: Ryan Ruona - 11 | C16: 5 | D16: 4 | E16: 3 | F16: 5 | G16: 4 | H16: 3 | I16: 6 | J16: 3 | K16: 5 | L16: 4 | M16: 5 | N16: 4 | O16: 3 | P16: 5 | Q16: 5 | R16: 4 | S16: 4 | T16: 7 | V16: =IF(COUNTBLANK(C16:K16)>0,"",SUM(C16:K16)) -> 38 | W16: =IF(COUNTBLANK(L16:T16)>0,"",SUM(L16:T16)) -> 41 | X16: =IF(COUNTBLANK(V16:W16)>0,"",SUM(V16:W16)) -> 79 | Y16: =VLOOKUP(AA16,$B$301:$E$340,4) -> 4 | Z16: =LEN(X16) -> 2 | AA16: 6
B17: Adam Butler - 12 | C17: 4 | D17: 5 | E17: 3 | F17: 5 | G17: 5 | H17: 4 | I17: 5 | J17: 4 | K17: 5 | L17: 5 | M17: 5 | N17: 6 | O17: 4 | P17: 5 | Q17: 7 | R17: 9 | S17: 5 | T17: 6 | V17: =IF(COUNTBLANK(C17:K17)>0,"",SUM(C17:K17)) -> 40 | W17: =IF(COUNTBLANK(L17:T17)>0,"",SUM(L17:T17)) -> 52 | X17: =IF(COUNTBLANK(V17:W17)>0,"",SUM(V17:W17)) -> 92 | Y17: =VLOOKUP(AA17,$B$301:$E$340,4) -> 24 | Z17: =LEN(X17) -> 2 | AA17: 7
B18: Luke Carroll - 10 | C18: 5 | D18: 6 | E18: 3 | F18: 5 | G18: 4 | H18: 4 | I18: 5 | J18: 5 | K18: 5 | L18: 4 | M18: 5 | N18: 4 | O18: 4 | P18: 4 | Q18: 7 | R18: 4 | S18: 4 | T18: 4 | V18: =IF(COUNTBLANK(C18:K18)>0,"",SUM(C18:K18)) -> 42 | W18: =IF(COUNTBLANK(L18:T18)>0,"",SUM(L18:T18)) -> 40 | X18: =IF(COUNTBLANK(V18:W18)>0,"",SUM(V18:W18)) -> 82 | Y18: =VLOOKUP(AA18,$B$301:$E$340,4) -> 7 | Z18: =LEN(X18) -> 2 | AA18: 8
B19: Lucas Hass - 11 | C19: 5 | D19: 8 | E19: 4 | F19: 4 | G19: 5 | H19: 6 | I19: 5 | J19: 5 | K19: 4 | L19: 4 | M19: 5 | N19: 4 | O19: 3 | P19: 5 | Q19: 6 | R19: 5 | S19: 5 | T19: 6 | V19: =IF(COUNTBLANK(C19:K19)>0,"",SUM(C19:K19)) -> 46 | W19: =IF(COUNTBLANK(L19:T19)>0,"",SUM(L19:T19)) -> 43 | X19: =IF(COUNTBLANK(V19:W19)>0,"",SUM(V19:W19)) -> 89 | Y19: =VLOOKUP(AA19,$B$301:$E$340,4) -> 18 | Z19: =LEN(X19) -> 2 | AA19: 9
B20: Zak Brooks - 10 | C20: 5 | D20: 5 | E20: 4 | F20: 5 | G20: 11 | H20: 6 | I20: 8 | J20: 7 | K20: 7 | L20: 6 | M20: 7 | N20: 5 | O20: 6 | P20: 4 | Q20: 6 | R20: 5 | S20: 5 | T20: 5 | V20: =IF(COUNTBLANK(C20:K20)>0,"",SUM(C20:K20)) -> 58 | W20: =IF(COUNTBLANK(L20:T20)>0,"",SUM(L20:T20)) -> 49 | X20: =IF(COUNTBLANK(V20:W20)>0,"",SUM(V20:W20)) -> 107 | Y20: =VLOOKUP(AA20,$B$301:$E$340,4) -> 18 | Z20: =LEN(X20) -> 3 | AA20: 10
X21: =IF(COUNT(X16:X20)=5,(SUM(X16:X20))-(MAX(X16:X20)),(IF(COUNT(X16:X20)=4,SUM(X16:X20),IF(COUNTBLANK(X16:X20)>0,SUM(X16:X20),"DQ")))) -> 342 | Y21: =J352 -> 4 | AA21: 102
X22: =IF(COUNT(X16:X20)=5,MAX(X16:X20),IF(COUNT(X16:X20)<5,500,)) -> 107
B23: OCONOMOWOC
B24: George Kneiser - 11 | C24: 5 | D24: 3 | E24: 3 | F24: 4 | G24: 4 | H24: 4 | I24: 5 | J24: 5 | K24: 4 | L24: 4 | M24: 6 | N24: 6 | O24: 3 | P24: 4 | Q24: 6 | R24: 3 | S24: 5 | T24: 8 | V24: =IF(COUNTBLANK(C24:K24)>0,"",SUM(C24:K24)) -> 37 | W24: =IF(COUNTBLANK(L24:T24)>0,"",SUM(L24:T24)) -> 45 | X24: =IF(COUNTBLANK(V24:W24)>0,"",SUM(V24:W24)) -> 82 | Y24: =VLOOKUP(AA24,$B$301:$E$340,4) -> 7 | Z24: =LEN(X24) -> 2 | AA24: 11
B25: Colin Prom - 12 | C25: 4 | D25: 4 | E25: 5 | F25: 4 | G25: 5 | H25: 5 | I25: 4 | J25: 5 | K25: 5 | L25: 5 | M25: 5 | N25: 5 | O25: 4 | P25: 3 | Q25: 5 | R25: 5 | S25: 5 | T25: 4 | V25: =IF(COUNTBLANK(C25:K25)>0,"",SUM(C25:K25)) -> 41 | W25: =IF(COUNTBLANK(L25:T25)>0,"",SUM(L25:T25)) -> 41 | X25: =IF(COUNTBLANK(V25:W25)>0,"",SUM(V25:W25)) -> 82 | Y25: =VLOOKUP(AA25,$B$301:$E$340,4) -> 7 | Z25: =LEN(X25) -> 2 | AA25: 12
B26: Joey Ploch - 9 | C26: 6 | D26: 3 | E26: 4 | F26: 4 | G26: 5 | H26: 4 | I26: 7 | J26: 4 | K26: 4 | L26: 4 | M26: 4 | N26: 3 | O26: 4 | P26: 4 | Q26: 4 | R26: 4 | S26: 4 | T26: 6 | V26: =IF(COUNTBLANK(C26:K26)>0,"",SUM(C26:K26)) -> 41 | W26: =IF(COUNTBLANK(L26:T26)>0,"",SUM(L26:T26)) -> 37 | X26: =IF(COUNTBLANK(V26:W26)>0,"",SUM(V26:W26)) -> 78 | Y26: =VLOOKUP(AA26,$B$301:$E$340,4) -> 3 | Z26: =LEN(X26) -> 2 | AA26: 13
B27: Brett Lange - 12 | C27: 4 | D27: 4 | E27: 3 | F27: 5 | G27: 4 | H27: 4 | I27: 5 | J27: 4 | K27: 4 | L27: 5 | M27: 5 | N27: 5 | O27: 4 | P27: 4 | Q27: 5 | R27: 6 | S27: 6 | T27: 8 | U27: 9 | V27: =IF(COUNTBLANK(C27:K27)>0,"",SUM(C27:K27)) -> 37 | W27: =IF(COUNTBLANK(L27:T27)>0,"",SUM(L27:T27)) -> 48 | X27: =IF(COUNTBLANK(V27:W27)>0,"",SUM(V27:W27)) -> 85 | Y27: =VLOOKUP(AA27,$B$301:$E$340,4) -> 13 | Z27: =LEN(X27) -> 2 | AA27: 14
B28: Allan Moutvic - 12 | C28: 5 | D28: 6 | E28: 5 | F28: 5 | G28: 5 | H28: 5 | I28: 8 | J28: 7 | K28: 4 | L28: 5 | M28: 6 | N28: 5 | O28: 4 | P28: 5 | Q28: 5 | R28: 3 | S28: 5 | T28: 5 | V28: =IF(COUNTBLANK(C28:K28)>0,"",SUM(C28:K28)) -> 50 | W28: =IF(COUNTBLANK(L28:T28)>0,"",SUM(L28:T28)) -> 43 | X28: =IF(COUNTBLANK(V28:W28)>0,"",SUM(V28:W28)) -> 93 | Y28: =VLOOKUP(AA28,$B$301:$E$340,4) -> 27 | Z28: =LEN(X28) -> 2 | AA28: 15
X29: =IF(COUNT(X24:X28)=5,(SUM(X24:X28))-(MAX(X24:X28)),(IF(COUNT(X24:X28)=4,SUM(X24:X28),IF(COUNTBLANK(X24:X28)>0,SUM(X24:X28),"DQ")))) -> 327 | Y29: =J353 -> 1 | AA29: 103
X30: =IF(COUNT(X24:X28)=5,MAX(X24:X28),IF(COUNT(X24:X28)<5,500,)) -> 93
B31: SLINGER
B32: Jack Burns - 12 | C32: 4 | D32: 5 | E32: 3 | F32: 5 | G32: 6 | H32: 4 | I32: 9 | J32: 4 | K32: 5 | L32: 4 | M32: 4 | N32: 5 | O32: 4 | P32: 4 | Q32: 5 | R32: 3 | S32: 4 | T32: 5 | V32: =IF(COUNTBLANK(C32:K32)>0,"",SUM(C32:K32)) -> 45 | W32: =IF(COUNTBLANK(L32:T32)>0,"",SUM(L32:T32)) -> 38 | X32: =IF(COUNTBLANK(V32:W32)>0,"",SUM(V32:W32)) -> 83 | Y32: =VLOOKUP(AA32,$B$301:$E$340,4) -> 10 | Z32: =LEN(X32) -> 2 | AA32: 16
B33: Chris Evans - 11 | C33: 5 | D33: 5 | E33: 4 | F33: 4 | G33: 5 | H33: 5 | I33: 6 | J33: 4 | K33: 4 | L33: 4 | M33: 5 | N33: 5 | O33: 3 | P33: 8 | Q33: 7 | R33: 4 | S33: 6 | T33: 7 | V33: =IF(COUNTBLANK(C33:K33)>0,"",SUM(C33:K33)) -> 42 | W33: =IF(COUNTBLANK(L33:T33)>0,"",SUM(L33:T33)) -> 49 | X33: =IF(COUNTBLANK(V33:W33)>0,"",SUM(V33:W33)) -> 91 | Y33: =VLOOKUP(AA33,$B$301:$E$340,4) -> 21 | Z33: =LEN(X33) -> 2 | AA33: 17
B34: Austin Walsh - 12 | C34: 4 | D34: 5 | E34: 3 | F34: 5 | G34: 4 | H34: 4 | I34: 5 | J34: 4 | K34: 4 | L34: 6 | M34: 4 | N34: 3 | O34: 4 | P34: 4 | Q34: 4 | R34: 4 | S34: 6 | T34: 7 | V34: =IF(COUNTBLANK(C34:K34)>0,"",SUM(C34:K34)) -> 38 | W34: =IF(COUNTBLANK(L34:T34)>0,"",SUM(L34:T34)) -> 42 | X34: =IF(COUNTBLANK(V34:W34)>0,"",SUM(V34:W34)) -> 80 | Y34: =VLOOKUP(AA34,$B$301:$E$340,4) -> 5 | Z34: =LEN(X34) -> 2 | AA34: 18
B35: Ryan Graunke - 12 | C35: 6 | D35: 5 | E35: 3 | F35: 6 | G35: 5 | H35: 4 | I35: 6 | J35: 4 | K35: 5 | L35: 4 | M35: 5 | N35: 4 | O35: 4 | P35: 4 | Q35: 6 | R35: 4 | S35: 5 | T35: 7 | V35: =IF(COUNTBLANK(C35:K35)>0,"",SUM(C35:K35)) -> 44 | W35: =IF(COUNTBLANK(L35:T35)>0,"",SUM(L35:T35)) -> 43 | X35: =IF(COUNTBLANK(V35:W35)>0,"",SUM(V35:W35)) -> 87 | Y35: =VLOOKUP(AA35,$B$301:$E$340,4) -> 15 | Z35: =LEN(X35) -> 2 | AA35: 19
B36: Ryan Kusek - 9 | C36: 4 | D36: 6 | E36: 3 | F36: 5 | G36: 5 | H36: 4 | I36: 5 | J36: 4 | K36: 5 | L36: 6 | M36: 4 | N36: 5 | O36: 3 | P36: 6 | Q36: 5 | R36: 4 | S36: 6 | T36: 6 | V36: =IF(COUNTBLANK(C36:K36)>0,"",SUM(C36:K36)) -> 41 | W36: =IF(COUNTBLANK(L36:T36)>0,"",SUM(L36:T36)) -> 45 | X36: =IF(COUNTBLANK(V36:W36)>0,"",SUM(V36:W36)) -> 86 | Y36: =VLOOKUP(AA36,$B$301:$E$340,4) -> 14 | Z36: =LEN(X36) -> 2 | AA36: 20
X37: =IF(COUNT(X32:X36)=5,(SUM(X32:X36))-(MAX(X32:X36)),(IF(COUNT(X32:X36)=4,SUM(X32:X36),IF(COUNTBLANK(X32:X36)>0,SUM(X32:X36),"DQ")))) -> 336 | Y37: =J354 -> 3 | AA37: 104
X38: =IF(COUNT(X32:X36)=5,MAX(X32:X36),IF(COUNT(X32:X36)<5,500,)) -> 91
B39: WATERTOWN
B40: Cameron Boyd - 11 | C40: 5 | D40: 5 | E40: 4 | F40: 5 | G40: 6 | H40: 4 | I40: 6 | J40: 5 | K40: 6 | L40: 5 | M40: 4 | N40: 5 | O40: 4 | P40: 5 | Q40: 4 | R40: 4 | S40: 4 | T40: 6 | V40: =IF(COUNTBLANK(C40:K40)>0,"",SUM(C40:K40)) -> 46 | W40: =IF(COUNTBLANK(L40:T40)>0,"",SUM(L40:T40)) -> 41 | X40: =IF(COUNTBLANK(V40:W40)>0,"",SUM(V40:W40)) -> 87 | Y40: =VLOOKUP(AA40,$B$301:$E$340,4) -> 15 | Z40: =LEN(X40) -> 2 | AA40: 21
B41: Alex Thompson - 9 | C41: 5 | D41: 5 | E41: 3 | F41: 3 | G41: 5 | H41: 4 | I41: 6 | J41: 4 | K41: 5 | L41: 7 | M41: 6 | N41: 7 | O41: 6 | P41: 5 | Q41: 4 | R41: 4 | S41: 6 | T41: 7 | V41: =IF(COUNTBLANK(C41:K41)>0,"",SUM(C41:K41)) -> 40 | W41: =IF(COUNTBLANK(L41:T41)>0,"",SUM(L41:T41)) -> 52 | X41: =IF(COUNTBLANK(V41:W41)>0,"",SUM(V41:W41)) -> 92 | Y41: =VLOOKUP(AA41,$B$301:$E$340,4) -> 36 | Z41: =LEN(X41) -> 2 | AA41: 22
B42: Collin Travis - 11 | C42: 5 | D42: 5 | E42: 5 | F42: 6 | G42: 5 | H42: 4 | I42: 4 | J42: 7 | K42: 5 | L42: 5 | M42: 6 | N42: 5 | O42: 5 | P42: 6 | Q42: 4 | R42: 4 | S42: 6 | T42: 6 | V42: =IF(COUNTBLANK(C42:K42)>0,"",SUM(C42:K42)) -> 46 | W42: =IF(COUNTBLANK(L42:T42)>0,"",SUM(L42:T42)) -> 47 | X42: =IF(COUNTBLANK(V42:W42)>0,"",SUM(V42:W42)) -> 93 | Y42: =VLOOKUP(AA42,$B$301:$E$340,4) -> 27 | Z42: =LEN(X42) -> 2 | AA42: 23
B43: Austin Douglas - 10 | C43: 6 | D43: 6 | E43: 3 | F43: 5 | G43: 5 | H43: 4 | I43: 6 | J43: 5 | K43: 7 | L43: 8 | M43: 6 | N43: 5 | O43: 6 | P43: 6 | Q43: 7 | R43: 6 | S43: 5 | T43: 7 | V43: =IF(COUNTBLANK(C43:K43)>0,"",SUM(C43:K43)) -> 47 | W43: =IF(COUNTBLANK(L43:T43)>0,"",SUM(L43:T43)) -> 56 | X43: =IF(COUNTBLANK(V43:W43)>0,"",SUM(V43:W43)) -> 103 | Y43: =VLOOKUP(AA43,$B$301:$E$340,4) -> 35 | Z43: =LEN(X43) -> 3 | AA43: 24
B44: Trevor Reierson - 11 | C44: 5 | D44: 6 | E44: 3 | F44: 6 | G44: 7 | H44: 4 | I44: 7 | J44: 5 | K44: 5 | L44: 5 | M44: 4 | N44: 5 | O44: 6 | P44: 5 | Q44: 6 | R44: 6 | S44: 5 | T44: 5 | V44: =IF(COUNTBLANK(C44:K44)>0,"",SUM(C44:K44)) -> 48 | W44: =IF(COUNTBLANK(L44:T44)>0,"",SUM(L44:T44)) -> 47 | X44: =IF(COUNTBLANK(V44:W44)>0,"",SUM(V44:W44)) -> 95 | Y44: =VLOOKUP(AA44,$B$301:$E$340,4) -> 30 | Z44: =LEN(X44) -> 2 | AA44: 25
X45: =IF(COUNT(X40:X44)=5,(SUM(X40:X44))-(MAX(X40:X44)),(IF(COUNT(X40:X44)=4,SUM(X40:X44),IF(COUNTBLANK(X40:X44)>0,SUM(X40:X44),"DQ")))) -> 367 | Y45: =J355 -> 7 | AA45: 105
X46: =IF(COUNT(X40:X44)=5,MAX(X40:X44),IF(COUNT(X40:X44)<5,500,)) -> 103
B47: WEST BEND EAST
B48: Devon Hanson - 11 | C48: 4 | D48: 4 | E48: 4 | F48: 4 | G48: 4 | H48: 4 | I48: 6 | J48: 4 | K48: 3 | L48: 4 | M48: 5 | N48: 3 | O48: 3 | P48: 5 | Q48: 4 | R48: 3 | S48: 6 | T48: 5 | V48: =IF(COUNTBLANK(C48:K48)>0,"",SUM(C48:K48)) -> 37 | W48: =IF(COUNTBLANK(L48:T48)>0,"",SUM(L48:T48)) -> 38 | X48: =IF(COUNTBLANK(V48:W48)>0,"",SUM(V48:W48)) -> 75 | Y48: =VLOOKUP(AA48,$B$301:$E$340,4) -> 1 | Z48: =LEN(X48) -> 2 | AA48: 26
B49: Mitch Saari - 12 | C49: 5 | D49: 4 | E49: 4 | F49: 5 | G49: 5 | H49: 6 | I49: 5 | J49: 5 | K49: 4 | L49: 6 | M49: 4 | N49: 6 | O49: 5 | P49: 5 | Q49: 6 | R49: 3 | S49: 4 | T49: 6 | V49: =IF(COUNTBLANK(C49:K49)>0,"",SUM(C49:K49)) -> 43 | W49: =IF(COUNTBLANK(L49:T49)>0,"",SUM(L49:T49)) -> 45 | X49: =IF(COUNTBLANK(V49:W49)>0,"",SUM(V49:W49)) -> 88 | Y49: =VLOOKUP(AA49,$B$301:$E$340,4) -> 17 | Z49: =LEN(X49) -> 2 | AA49: 27
B50: Josh Breuer - 12 | C50: 5 | D50: 5 | E50: 4 | F50: 5 | G50: 4 | H50: 5 | I50: 9 | J50: 6 | K50: 5 | L50: 6 | M50: 7 | N50: 4 | O50: 4 | P50: 6 | Q50: 6 | R50: 4 | S50: 7 | T50: 6 | V50: =IF(COUNTBLANK(C50:K50)>0,"",SUM(C50:K50)) -> 48 | W50: =IF(COUNTBLANK(L50:T50)>0,"",SUM(L50:T50)) -> 50 | X50: =IF(COUNTBLANK(V50:W50)>0,"",SUM(V50:W50)) -> 98 | Y50: =VLOOKUP(AA50,$B$301:$E$340,4) -> 32 | Z50: =LEN(X50) -> 2 | AA50: 28
B51: Sam Struebing - 11 | C51: 4 | D51: 5 | E51: 3 | F51: 6 | G51: 5 | H51: 6 | I51: 6 | J51: 7 | K51: 4 | L51: 6 | M51: 5 | N51: 6 | O51: 4 | P51: 7 | Q51: 6 | R51: 6 | S51: 4 | T51: 7 | V51: =IF(COUNTBLANK(C51:K51)>0,"",SUM(C51:K51)) -> 46 | W51: =IF(COUNTBLANK(L51:T51)>0,"",SUM(L51:T51)) -> 51 | X51: =IF(COUNTBLANK(V51:W51)>0,"",SUM(V51:W51)) -> 97 | Y51: =VLOOKUP(AA51,$B$301:$E$340,4) -> 31 | Z51: =LEN(X51) -> 2 | AA51: 29
B52: Brad Halverson - 9 | C52: 4 | D52: 5 | E52: 3 | F52: 6 | G52: 5 | H52: 6 | I52: 5 | J52: 7 | K52: 5 | L52: 6 | M52: 3 | N52: 5 | O52: 4 | P52: 5 | Q52: 5 | R52: 4 | S52: 5 | T52: 6 | V52: =IF(COUNTBLANK(C52:K52)>0,"",SUM(C52:K52)) -> 46 | W52: =IF(COUNTBLANK(L52:T52)>0,"",SUM(L52:T52)) -> 43 | X52: =IF(COUNTBLANK(V52:W52)>0,"",SUM(V52:W52)) -> 89 | Y52: =VLOOKUP(AA52,$B$301:$E$340,4) -> 18 | Z52: =LEN(X52) -> 2 | AA52: 30
X53: =IF(COUNT(X48:X52)=5,(SUM(X48:X52))-(MAX(X48:X52)),(IF(COUNT(X48:X52)=4,SUM(X48:X52),IF(COUNTBLANK(X48:X52)>0,SUM(X48:X52),"DQ")))) -> 349 | Y53: =J356 -> 5 | AA53: 106
X54: =IF(COUNT(X48:X52)=5,MAX(X48:X52),IF(COUNT(X48:X52)<5,500,)) -> 98
B55: WEST BEND WEST
B56: Alex Haas - 12 | C56: 5 | D56: 5 | E56: 4 | F56: 5 | G56: 4 | H56: 6 | I56: 5 | J56: 4 | K56: 4 | L56: 5 | M56: 5 | N56: 4 | O56: 4 | P56: 4 | Q56: 4 | R56: 4 | S56: 5 | T56: 6 | V56: =IF(COUNTBLANK(C56:K56)>0,"",SUM(C56:K56)) -> 42 | W56: =IF(COUNTBLANK(L56:T56)>0,"",SUM(L56:T56)) -> 41 | X56: =IF(COUNTBLANK(V56:W56)>0,"",SUM(V56:W56)) -> 83 | Y56: =VLOOKUP(AA56,$B$301:$E$340,4) -> 10 | Z56: =LEN(X56) -> 2 | AA56: 31
B57: Max Rohlinger - 10 | C57: 5 | D57: 6 | E57: 1 | F57: 4 | G57: 4 | H57: 5 | I57: 5 | J57: 3 | K57: 5 | L57: 4 | M57: 3 | N57: 4 | O57: 5 | P57: 4 | Q57: 4 | R57: 3 | S57: 5 | T57: 5 | V57: =IF(COUNTBLANK(C57:K57)>0,"",SUM(C57:K57)) -> 38 | W57: =IF(COUNTBLANK(L57:T57)>0,"",SUM(L57:T57)) -> 37 | X57: =IF(COUNTBLANK(V57:W57)>0,"",SUM(V57:W57)) -> 75 | Y57: =VLOOKUP(AA57,$B$301:$E$340,4) -> 1 | Z57: =LEN(X57) -> 2 | AA57: 32
B58: Kevin Albrecht - 11 | C58: 4 | D58: 4 | E58: 4 | F58: 5 | G58: 6 | H58: 4 | I58: 6 | J58: 4 | K58: 5 | L58: 3 | M58: 4 | N58: 6 | O58: 4 | P58: 4 | Q58: 5 | R58: 4 | S58: 6 | T58: 6 | V58: =IF(COUNTBLANK(C58:K58)>0,"",SUM(C58:K58)) -> 42 | W58: =IF(COUNTBLANK(L58:T58)>0,"",SUM(L58:T58)) -> 42 | X58: =IF(COUNTBLANK(V58:W58)>0,"",SUM(V58:W58)) -> 84 | Y58: =VLOOKUP(AA58,$B$301:$E$340,4) -> 12 | Z58: =LEN(X58) -> 2 | AA58: 33
B59: Jacob Droese - 12 | C59: 5 | D59: 6 | E59: 4 | F59: 4 | G59: 5 | H59: 4 | I59: 8 | J59: 5 | K59: 5 | L59: 6 | M59: 5 | N59: 5 | O59: 4 | P59: 5 | Q59: 6 | R59: 4 | S59: 5 | T59: 7 | V59: =IF(COUNTBLANK(C59:K59)>0,"",SUM(C59:K59)) -> 46 | W59: =IF(COUNTBLANK(L59:T59)>0,"",SUM(L59:T59)) -> 47 | X59: =IF(COUNTBLANK(V59:W59)>0,"",SUM(V59:W59)) -> 93 | Y59: =VLOOKUP(AA59,$B$301:$E$340,4) -> 27 | Z59: =LEN(X59) -> 2 | AA59: 34
B60: Nick Meucci - 12 | C60: 5 | D60: 5 | E60: 5 | F60: 5 | G60: 7 | H60: 4 | I60: 7 | J60: 5 | K60: 5 | L60: 6 | M60: 5 | N60: 4 | O60: 4 | P60: 5 | Q60: 6 | R60: 4 | S60: 4 | T60: 5 | V60: =IF(COUNTBLANK(C60:K60)>0,"",SUM(C60:K60)) -> 48 | W60: =IF(COUNTBLANK(L60:T60)>0,"",SUM(L60:T60)) -> 43 | X60: =IF(COUNTBLANK(V60:W60)>0,"",SUM(V60:W60)) -> 91 | Y60: =VLOOKUP(AA60,$B$301:$E$340,4) -> 21 | Z60: =LEN(X60) -> 2 | AA60: 35
X61: =IF(COUNT(X56:X60)=5,(SUM(X56:X60))-(MAX(X56:X60)),(IF(COUNT(X56:X60)=4,SUM(X56:X60),IF(COUNTBLANK(X56:X60)>0,SUM(X56:X60),"DQ")))) -> 333 | Y61: =J357 -> 2 | AA61: 107
X62: =IF(COUNT(X56:X60)=5,MAX(X56:X60),IF(COUNT(X56:X60)<5,500,)) -> 93
B63: WISCONSIN LUTHERAN
B64: Scratch #1 - x | C64: 9 | D64: 9 | E64: 9 | F64: 9 | G64: 9 | H64: 9 | I64: 9 | J64: 9 | K64: 9 | L64: 9 | M64: 9 | N64: 9 | O64: 9 | P64: 9 | Q64: 9 | R64: 9 | S64: 9 | T64: 9 | V64: =IF(COUNTBLANK(C64:K64)>0,"",SUM(C64:K64)) -> 81 | W64: =IF(COUNTBLANK(L64:T64)>0,"",SUM(L64:T64)) -> 81 | X64: =IF(COUNTBLANK(V64:W64)>0,"",SUM(V64:W64)) -> 162 | Y64: =VLOOKUP(AA64,$B$301:$E$340,4) -> 39 | Z64: =LEN(X64) -> 3 | AA64: 36
B65: Scratch #2 - x | C65: 9 | D65: 9 | E65: 9 | F65: 9 | G65: 9 | H65: 9 | I65: 9 | J65: 9 | K65: 9 | L65: 9 | M65: 9 | N65: 9 | O65: 9 | P65: 9 | Q65: 9 | R65: 9 | S65: 9 | T65: 9 | V65: =IF(COUNTBLANK(C65:K65)>0,"",SUM(C65:K65)) -> 81 | W65: =IF(COUNTBLANK(L65:T65)>0,"",SUM(L65:T65)) -> 81 | X65: =IF(COUNTBLANK(V65:W65)>0,"",SUM(V65:W65)) -> 162 | Y65: =VLOOKUP(AA65,$B$301:$E$340,4) -> 39 | Z65: =LEN(X65) -> 3 | AA65: 37
B66: Zachary Stahle - 12 | C66: 5 | D66: 6 | E66: 4 | F66: 5 | G66: 4 | H66: 7 | I66: 8 | J66: 5 | K66: 6 | L66: 5 | M66: 7 | N66: 5 | O66: 5 | P66: 5 | Q66: 7 | R66: 5 | S66: 6 | T66: 6 | V66: =IF(COUNTBLANK(C66:K66)>0,"",SUM(C66:K66)) -> 50 | W66: =IF(COUNTBLANK(L66:T66)>0,"",SUM(L66:T66)) -> 51 | X66: =IF(COUNTBLANK(V66:W66)>0,"",SUM(V66:W66)) -> 101 | Y66: =VLOOKUP(AA66,$B$301:$E$340,4) -> 34 | Z66: =LEN(X66) -> 3 | AA66: 38
B67: Ben Krause - 12 | C67: 4 | D67: 5 | E67: 5 | F67: 6 | G67: 6 | H67: 5 | I67: 6 | J67: 4 | K67: 5 | L67: 5 | M67: 5 | N67: 4 | O67: 4 | P67: 5 | Q67: 6 | R67: 5 | S67: 6 | T67: 5 | V67: =IF(COUNTBLANK(C67:K67)>0,"",SUM(C67:K67)) -> 46 | W67: =IF(COUNTBLANK(L67:T67)>0,"",SUM(L67:T67)) -> 45 | X67: =IF(COUNTBLANK(V67:W67)>0,"",SUM(V67:W67)) -> 91 | Y67: =VLOOKUP(AA67,$B$301:$E$340,4) -> 21 | Z67: =LEN(X67) -> 2 | AA67: 39
B68: Brendan Hausch - 10 | C68: 6 | D68: 8 | E68: 6 | F68: 5 | G68: 7 | H68: 6 | I68: 7 | J68: 8 | K68: 7 | L68: 8 | M68: 8 | N68: 7 | O68: 5 | P68: 11 | Q68: 8 | R68: 6 | S68: 8 | T68: 7 | V68: =IF(COUNTBLANK(C68:K68)>0,"",SUM(C68:K68)) -> 60 | W68: =IF(COUNTBLANK(L68:T68)>0,"",SUM(L68:T68)) -> 68 | X68: =IF(COUNTBLANK(V68:W68)>0,"",SUM(V68:W68)) -> 128 | Y68: =VLOOKUP(AA68,$B$301:$E$340,4) -> 38 | Z68: =LEN(X68) -> 3 | AA68: 40
X69: =IF(COUNT(X64:X68)=5,(SUM(X64:X68))-(MAX(X64:X68)),(IF(COUNT(X64:X68)=4,SUM(X64:X68),IF(COUNTBLANK(X64:X68)>0,SUM(X64:X68),"DQ")))) -> 482 | Y69: =J358 -> 8 | AA69: 108
B70: Medalists: (75) - Devon Hanson, Max Rohlinger | X70: =IF(COUNT(X64:X68)=5,MAX(X64:X68),IF(COUNT(X64:X68)<5,500,)) -> 162
B72: Weather: 55 degrees, overcast, very calm.
B110: Course | C110: Fire Ridge Country Club
B111: Hole | C111: 1 | D111: 2 | E111: 3 | F111: 4 | G111: 5 | H111: 6 | I111: 7 | J111: 8 | K111: 9 | L111: 10 | M111: 11 | N111: 12 | O111: 13 | P111: 14 | Q111: 15 | R111: 16 | S111: 17 | T111: 18 | V111: Front | W111: Back | X111: Total | Y111: Place
B112: Par | C112: 4 | D112: 4 | E112: 3 | F112: 5 | G112: 4 | H112: 5 | I112: 4 | J112: 3 | K112: 4 | L112: 5 | M112: 3 | N112: 4 | O112: 4 | P112: 5 | Q112: 4 | R112: 4 | S112: 3 | T112: 4 | V112: =SUM(C112:$K112) -> 36 | W112: =SUM(L112:T112) -> 36 | X112: =SUM(C112:T112) -> 72
B113: Handicap | C113: 9 | D113: 11 | E113: 17 | F113: 1 | G113: 5 | H113: 3 | I113: 13 | J113: 15 | K113: 7 | L113: 4 | M113: 16 | N113: 14 | O113: 12 | P113: 2 | Q113: 10 | R113: 8 | S113: 18 | T113: 6
B115: Course | C115: Horicon Hills Golf Club
B116: Hole | C116: 1 | D116: 2 | E116: 3 | F116: 4 | G116: 5 | H116: 6 | I116: 7 | J116: 8 | K116: 9 | L116: 10 | M116: 11 | N116: 12 | O116: 13 | P116: 14 | Q116: 15 | R116: 16 | S116: 17 | T116: 18 | V116: Front | W116: Back | X116: Total | Y116: Place
B117: Par | C117: 4 | D117: 4 | E117: 3 | F117: 4 | G117: 4 | H117: 3 | I117: 5 | J117: 4 | K117: 4 | L117: 4 | M117: 4 | N117: 4 | O117: 3 | P117: 4 | Q117: 4 | R117: 3 | S117: 4 | T117: 5 | V117: =SUM(C117:K117) -> 35 | W117: =SUM(L117:T117) -> 35 | X117: =SUM(C117:T117) -> 70
B118: Handicap | C118: 6 | D118: 14 | E118: 18 | F118: 10 | G118: 4 | H118: 16 | I118: 2 | J118: 8 | K118: 12 | L118: 11 | M118: 9 | N118: 13 | O118: 15 | P118: 5 | Q118: 7 | R118: 17 | S118: 1 | T118: 3
B300: Player | C300: Sc | D300: Sort | E300: Rnk
B301: 1 | C301: =$X$8 -> 81 | D301: 1 | E301: 6
B302: 2 | C302: =$X$9 -> 89 | D302: 2 | E302: 18
B303: 3 | C303: =$X$22 -> 107 | D303: 3 | E303: 36
B304: 4 | C304: =$X$11 -> 98 | D304: 4 | E304: 32
B305: 5 | C305: =$X$12 -> 92 | D305: 5 | E305: 24
B306: 6 | C306: =$X$16 -> 79 | D306: 6 | E306: 4
B307: 7 | C307: =$X$17 -> 92 | D307: 7 | E307: 24
B308: 8 | C308: =$X$18 -> 82 | D308: 8 | E308: 7
B309: 9 | C309: =$X$19 -> 89 | D309: 9 | E309: 18
B310: 11 | C310: =$X$24 -> 82 | D310: 11 | E310: 7
B311: 12 | C311: =$X$25 -> 82 | D311: 12 | E311: 7
B312: 13 | C312: =$X$26 -> 78 | D312: 13 | E312: 3
B313: 14 | C313: =$X$27 -> 85 | D313: 14 | E313: 13
B314: 15 | C314: =$X$28 -> 93 | D314: 15 | E314: 27
B315: 16 | C315: =$X$32 -> 83 | D315: 16 | E315: 10
B316: 17 | C316: =$X$33 -> 91 | D316: 17 | E316: 21
B317: 18 | C317: =$X$34 -> 80 | D317: 18 | E317: 5
B318: 19 | C318: =$X$35 -> 87 | D318: 19 | E318: 15
B319: 20 | C319: =$X$36 -> 86 | D319: 20 | E319: 14
B320: 21 | C320: =$X$40 -> 87 | D320: 21 | E320: 15
B321: 22 | C321: =$X$41 -> 92 | D321: 22 | E321: 24
B322: 22 | C322: =$X$20 -> 107 | D322: 22 | E322: 36
B323: 23 | C323: =$X$42 -> 93 | D323: 23 | E323: 27
B324: 24 | C324: =$X$43 -> 103 | D324: 24 | E324: 35
B325: 25 | C325: =$X$44 -> 95 | D325: 25 | E325: 30
B326: 26 | C326: =$X$48 -> 75 | D326: 26 | E326: 1
B327: 27 | C327: =$X$49 -> 88 | D327: 27 | E327: 17
B328: 28 | C328: =$X$50 -> 98 | D328: 28 | E328: 32
B329: 29 | C329: =$X$51 -> 97 | D329: 29 | E329: 31
B330: 30 | C330: =$X$52 -> 89 | D330: 30 | E330: 18
B331: 31 | C331: =$X$56 -> 83 | D331: 31 | E331: 10
B332: 32 | C332: =$X$57 -> 75 | D332: 32 | E332: 1
B333: 33 | C333: =$X$58 -> 84 | D333: 33 | E333: 12
B334: 34 | C334: =$X$59 -> 93 | D334: 34 | E334: 27
B335: 35 | C335: =$X$60 -> 91 | D335: 35 | E335: 21
B336: 36 | C336: =$X$64 -> 162 | D336: 36 | E336: 39
B337: 37 | C337: =$X$65 -> 162 | D337: 37 | E337: 39
B338: 38 | C338: =$X$66 -> 101 | D338: 38 | E338: 34
B339: 39 | C339: =$X$67 -> 91 | D339: 39 | E339: 21
B340: 40 | C340: =$X$68 -> 128 | D340: 40 | E340: 38
B343: =B71 -> 0
R349: Handicap Holes
B350: Team Number | C350: 1 | D350: 2 | E350: 3 | F350: 4 | G350: 5 | I350: Tot | J350: Rank | R350: =MATCH(1,$C$4:$T$4,0) -> 17 | S350: =MATCH(2,$C$4:$T$4,0) -> 7 | T350: =MATCH(3,$C$4:$T$4,0) -> 18 | U350: =MATCH(4,$C$4:$T$4,0) -> 5 | V350: =MATCH(5,$C$4:$T$4,0) -> 14 | W350: =MATCH(6,$C$4:$T$4,0) -> 1 | X350: =MATCH(7,$C$4:$T$4,0) -> 15 | Y350: =MATCH(8,$C$4:$T$4,0) -> 8 | Z350: =MATCH(8,$C$4:$T$4,0) -> 8 | AA350: =MATCH(9,$C$4:$T$4,0) -> 11
B351: 1 | C351: =IF(ISNUMBER($X$8),$X$8,500) -> 81 | D351: =IF(ISNUMBER($X$9),$X$9,500) -> 89 | E351: =IF(ISNUMBER($X$10),$X$10,500) -> 103 | F351: =IF(ISNUMBER($X$11),$X$11,500) -> 98 | G351: =IF(ISNUMBER($X$12),$X$12,500) -> 92 | H351: =$X$14 -> 103 | I351: =SUM(C351:G351)-H351 -> 360 | J351: 6 | L351: 6 | R351: 27 | S351: 29 | T351: 31 | U351: 25 | V351: 26 | W351: 28 | X351: 32 | Y351: 24 | Z351: 24
B352: 2 | C352: =IF(ISNUMBER($X$16),$X$16,500) -> 79 | D352: =IF(ISNUMBER($X$17),$X$17,500) -> 92 | E352: =IF(ISNUMBER($X$18),$X$18,500) -> 82 | F352: =IF(ISNUMBER($X$19),$X$19,500) -> 89 | G352: =IF(ISNUMBER($X$20),$X$20,500) -> 107 | H352: =$X$22 -> 107 | I352: =SUM(C352:G352)-H352 -> 342 | J352: 4 | L352: 4 | R352: 23 | S352: 29 | T352: 28 | U352: 29 | V352: 23 | W352: 24 | X352: 31 | Y352: 24 | Z352: 24
B353: 3 | C353: =IF(ISNUMBER($X$24),$X$24,500) -> 82 | D353: =IF(ISNUMBER($X$25),$X$25,500) -> 82 | E353: =IF(ISNUMBER($X$26),$X$26,500) -> 78 | F353: =IF(ISNUMBER($X$27),$X$27,500) -> 85 | G353: =IF(ISNUMBER($X$28),$X$28,500) -> 93 | H353: =$X$30 -> 93 | I353: =SUM(C353:G353)-H353 -> 327 | J353: 1 | L353: 1 | R353: 25 | S353: 29 | T353: 31 | U353: 23 | V353: 20 | W353: 24 | X353: 25 | Y353: 25 | Z353: 25
B354: 4 | C354: =IF(ISNUMBER($X$32),$X$32,500) -> 83 | D354: =IF(ISNUMBER($X$33),$X$33,500) -> 91 | E354: =IF(ISNUMBER($X$34),$X$34,500) -> 80 | F354: =IF(ISNUMBER($X$35),$X$35,500) -> 87 | G354: =IF(ISNUMBER($X$36),$X$36,500) -> 86 | H354: =$X$38 -> 91 | I354: =SUM(C354:G354)-H354 -> 336 | J354: 3 | L354: 3 | R354: 27 | S354: 31 | T354: 32 | U354: 25 | V354: 26 | W354: 23 | X354: 27 | Y354: 20 | Z354: 20
B355: 5 | C355: =IF(ISNUMBER($X$40),$X$40,500) -> 87 | D355: =IF(ISNUMBER($X$41),$X$41,500) -> 92 | E355: =IF(ISNUMBER($X$42),$X$42,500) -> 93 | F355: =IF(ISNUMBER($X$43),$X$43,500) -> 103 | G355: =IF(ISNUMBER($X$44),$X$44,500) -> 95 | H355: =$X$46 -> 103 | I355: =SUM(C355:G355)-H355 -> 367 | J355: 7 | L355: 7 | R355: 26 | S355: 29 | T355: 31 | U355: 28 | V355: 27 | W355: 26 | X355: 25 | Y355: 26 | Z355: 26
B356: 6 | C356: =IF(ISNUMBER($X$48),$X$48,500) -> 75 | D356: =IF(ISNUMBER($X$49),$X$49,500) -> 88 | E356: =IF(ISNUMBER($X$50),$X$50,500) -> 98 | F356: =IF(ISNUMBER($X$51),$X$51,500) -> 97 | G356: =IF(ISNUMBER($X$52),$X$52,500) -> 89 | H356: =$X$54 -> 98 | I356: =SUM(C356:G356)-H356 -> 349 | J356: 5 | L356: 5 | R356: 26 | S356: 31 | T356: 30 | U356: 23 | V356: 28 | W356: 22 | X356: 27 | Y356: 29 | Z356: 29
B357: 7 | C357: =IF(ISNUMBER($X$56),$X$56,500) -> 83 | D357: =IF(ISNUMBER($X$57),$X$57,500) -> 75 | E357: =IF(ISNUMBER($X$58),$X$58,500) -> 84 | F357: =IF(ISNUMBER($X$59),$X$59,500) -> 93 | G357: =IF(ISNUMBER($X$60),$X$60,500) -> 91 | H357: =$X$62 -> 93 | I357: =SUM(C357:G357)-H357 -> 333 | J357: 2 | L357: 2 | R357: 25 | S357: 31 | T357: 29 | U357: 26 | V357: 22 | W357: 24 | X357: 25 | Y357: 21 | Z357: 21
B358: 8 | C358: =IF(ISNUMBER($X$64),$X$64,500) -> 162 | D358: =IF(ISNUMBER($X$65),$X$65,500) -> 162 | E358: =IF(ISNUMBER($X$66),$X$66,500) -> 101 | F358: =IF(ISNUMBER($X$67),$X$67,500) -> 91 | G358: =IF(ISNUMBER($X$68),$X$68,500) -> 128 | H358: =$X$70 -> 162 | I358: =SUM(C358:G358)-H358 -> 482 | J358: 8 | L358: 8 | R358: 38 | S358: 39 | T358: 36 | U358: 35 | V358: 39 | W358: 33 | X358: 39 | Y358: 35 | Z358: 35
B401: =B8 -> Koby Jones - 12 | C401: =IF(X8=200,Y8,X8) -> 81
B402: =B9 -> Thomas Bleich - 11 | C402: =IF(X9=200,Y9,X9) -> 89
B403: =B10 -> Cody Trotter - 12 | C403: =IF(X10=200,Y10,X10) -> 103
B404: =B11 -> Jacob Smith - 10 | C404: =IF(X11=200,Y11,X11) -> 98
B405: =B12 -> Carter Smith - 11 | C405: =IF(X12=200,Y12,X12) -> 92
B406: =B16 -> Ryan Ruona - 11 | C406: =IF(X16=200,Y16,X16) -> 79
B407: =B17 -> Adam Butler - 12 | C407: =IF(X17=200,Y17,X17) -> 92
B408: =B18 -> Luke Carroll - 10 | C408: =IF(X18=200,Y18,X18) -> 82
B409: =B19 -> Lucas Hass - 11 | C409: =IF(X19=200,Y19,X19) -> 89
B410: =B20 -> Zak Brooks - 10 | C410: =IF(X20=200,Y20,X20) -> 107
B411: =B24 -> George Kneiser - 11 | C411: =IF(X24=200,Y24,X24) -> 82
B412: =B25 -> Colin Prom - 12 | C412: =IF(X25=200,Y25,X25) -> 82
B413: =B26 -> Joey Ploch - 9 | C413: =IF(X26=200,Y26,X26) -> 78
B414: =B27 -> Brett Lange - 12 | C414: =IF(X27=200,Y27,X27) -> 85
B415: =B28 -> Allan Moutvic - 12 | C415: =IF(X28=200,Y28,X28) -> 93
B416: =B32 -> Jack Burns - 12 | C416: =IF(X32=200,Y32,X32) -> 83
B417: =B33 -> Chris Evans - 11 | C417: =IF(X33=200,Y33,X33) -> 91
B418: =B34 -> Austin Walsh - 12 | C418: =IF(X34=200,Y34,X34) -> 80
B419: =B35 -> Ryan Graunke - 12 | C419: =IF(X35=200,Y35,X35) -> 87
B420: =B36 -> Ryan Kusek - 9 | C420: =IF(X36=200,Y36,X36) -> 86
B421: =B40 -> Cameron Boyd - 11 | C421: =IF(X40=200,Y40,X40) -> 87
B422: =B41 -> Alex Thompson - 9 | C422: =IF(X41=200,Y41,X41) -> 92
B423: =B42 -> Collin Travis - 11 | C423: =IF(X42=200,Y42,X42) -> 93
B424: =B43 -> Austin Douglas - 10 | C424: =IF(X43=200,Y43,X43) -> 103
B425: =B44 -> Trevor Reierson - 11 | C425: =IF(X44=200,Y44,X44) -> 95
B426: =B48 -> Devon Hanson - 11 | C426: =IF(X48=200,Y48,X48) -> 75
B427: =B49 -> Mitch Saari - 12 | C427: =IF(X49=200,Y49,X49) -> 88
B428: =B50 -> Josh Breuer - 12 | C428: =IF(X50=200,Y50,X50) -> 98
B429: =B51 -> Sam Struebing - 11 | C429: =IF(X51=200,Y51,X51) -> 97
B430: =B52 -> Brad Halverson - 9 | C430: =IF(X52=200,Y52,X52) -> 89
B431: =B56 -> Alex Haas - 12 | C431: =IF(X56=200,Y56,X56) -> 83
B432: =B57 -> Max Rohlinger - 10 | C432: =IF(X57=200,Y57,X57) -> 75
B433: =B58 -> Kevin Albrecht - 11 | C433: =IF(X58=200,Y58,X58) -> 84
B434: =B59 -> Jacob Droese - 12 | C434: =IF(X59=200,Y59,X59) -> 93
B435: =B60 -> Nick Meucci - 12 | C435: =IF(X60=200,Y60,X60) -> 91
B436: =B64 -> Scratch #1 - x | C436: =IF(X64=200,Y64,X64) -> 162
B437: =B65 -> Scratch #2 - x | C437: =IF(X65=200,Y65,X65) -> 162
B438: =B66 -> Zachary Stahle - 12 | C438: =IF(X66=200,Y66,X66) -> 101
B439: =B67 -> Ben Krause - 12 | C439: =IF(X67=200,Y67,X67) -> 91
B440: =B68 -> Brendan Hausch - 10 | C440: =IF(X68=200,Y68,X68) -> 128

Sheet Standings
A1: ="WISCONSIN LITTLE TEN CONFERENCE STANDINGS " & Schedule!A1 -> WISCONSIN LITTLE TEN CONFERENCE STANDINGS 2015 | AA1: 9
A2: Match | B2: 1 | C2: 2 | D2: 3 | E2: 4 | F2: 5 | G2: 6 | H2: 7 | I2: 8 | J2: 9 | K2: Total
A3: =Rosters!$B$10 -> West Bend West | B3: 1 | C3: 1 | D3: 2 | E3: 2 | F3: 5 | G3: 1 | H3: 1 | I3: 3 | J3: 4 | K3: =IF(SUM(B3:J3)=0,"",SUM(B3:J3)) -> 20
A4: =Rosters!$B$6 -> Oconomowoc | B4: 2 | C4: 3 | D4: 3 | E4: 1 | F4: 3 | G4: 3 | H4: 3 | I4: 1 | J4: 2 | K4: =IF(SUM(B4:J4)=0,"",SUM(B4:J4)) -> 21
A5: =Rosters!$B$7 -> Slinger | B5: 4 | C5: 6 | D5: 1 | E5: 3 | F5: 2 | G5: 4 | H5: 4 | I5: 2 | J5: 6 | K5: =IF(SUM(B5:J5)=0,"",SUM(B5:J5)) -> 32
A6: =Rosters!$B$4 -> Beaver Dam | B6: 3 | C6: 2 | D6: 4 | E6: 6 | F6: 1 | G6: 2 | H6: 2 | I6: 6 | J6: 12 | K6: =IF(SUM(B6:J6)=0,"",SUM(B6:J6)) -> 38
A7: =Rosters!$B$9 -> West Bend East | B7: 5 | C7: 4 | D7: 6 | E7: 5 | F7: 4 | G7: 5 | H7: 6 | I7: 4 | J7: 10 | K7: =IF(SUM(B7:J7)=0,"",SUM(B7:J7)) -> 49
A8: =Rosters!$B$5 -> Hartford | B8: 6 | C8: 5 | D8: 5 | E8: 4 | F8: 6 | G8: 6 | H8: 5 | I8: 5 | J8: 8 | K8: =IF(SUM(B8:J8)=0,"",SUM(B8:J8)) -> 50
A9: =Rosters!$B$8 -> Watertown | B9: 7 | C9: 7 | D9: 7 | E9: 7 | F9: 7 | G9: 7 | H9: 7 | I9: 7 | J9: 14 | K9: =IF(SUM(B9:J9)=0,"",SUM(B9:J9)) -> 70
A10: =Rosters!$B$11 -> Wisconsin Lutheran | B10: 8 | C10: 8 | D10: 8 | E10: 8 | F10: 8 | G10: 8 | H10: 8 | I10: 8 | J10: 16 | K10: =IF(SUM(B10:J10)=0,"",SUM(B10:J10)) -> 80
A13: =Schedule!A1 & " WLT Conference Schedule" -> 2015 WLT Conference Schedule
A15: Match # Host School | D15: Location | J15: Date
A16: #1 Wisconsin Lutheran | D16: New Berlin Hills Golf Course | J16: 2015-04-14
A17: #2 West Bend West | D17: West Bend Country Club | J17: 2015-04-20
A18: #3 West Bend East | D18: West Bend Country Club | J18: 2015-04-27
A19: #4 Watertown | D19: Watertown Country Club | J19: 2015-04-30
A20: #5 Oconomowoc | D20: Oconomowoc Golf Club | J20: 2015-05-04
A21: #6 Beaver Dam | D21: Old Hickory Golf Club | J21: 2015-05-06
A22: #7 Hartford | D22: Hartford Golf Club | J22: 2015-05-12
A23: #8 Slinger | D23: Washington County Golf Course | J23: 2015-05-13
A24: #9 Conference Finals | D24: Rock River Hills Golf Club | J24: 2015-05-20

Sheet ALL CONFERENCE TEAMS
A1: PLACE | B1: NAME | C1: GRADE | D1: SCHOOL | F1: TOTAL STROKES INCLUDING ONE THROW OUT NINE
A3: FIRST TEAM WLT ALL CONFERENCE
A5: 1 | B5: Devon Hanson | C5: 11 | D5: WBE | E5: 42 | F5: 310.5
A6: 2 | B6: George Kneiser | C6: 11 | D6: OC | E6: 44 | F6: 322
A7: 3 | B7: Austin Walsh | C7: 12 | D7: SL | E7: 46 | F7: 323
A8: 4 | B8: Max Rohlinger | C8: 10 | D8: WBW | E8: 43 | F8: 325.5
A9: 5 | B9: Koby Jones | C9: 12 | D9: BD | E9: 46 | F9: 328.5
A11: SECOND TEAM WLT ALL CONFERENCE
A13: 6 | B13: Kevin Albrecht | C13: 11 | D13: WBW | E13: 49 | F13: 330
A14: 7 | B14: Colin Prom | C14: 12 | D14: OC | E14: 48 | F14: 332
A15: 8 | B15: Alex Haas | C15: 12 | D15: WBW | E15: 46 | F15: 333.5
A16: 9 | B16: Mitch Saari | C16: 12 | D16: WBE | E16: 47 | F16: 335
A17: 10 | B17: Jack Burns | C17: 12 | D17: SL | E17: 47 | F17: 336.5
A19: THIRD TEAM WLT ALL CONFERENCE
A21: 11 | B21: Ryan Ruona | C21: 11 | D21: HT | E21: 47 | F21: 338.5
A22: 12 | B22: Joey Ploch | C22: 9 | D22: OC | E22: NS | F22: 344
A23: 13 | B23: Nick Meucci | C23: 12 | D23: WBW | E23: NS | F23: 345.5
A24: 14 | B24: Thomas Bleich | C24: 11 | D24: BD | E24: NS | F24: 346.5
A25: 15 | B25: Carter Smith | C25: 11 | D25: BD | E25: 51 | F25: 359
B28: NOTE: THE TOTAL STROKES INCLUDES THE CONFERENCE CHAMPIONSHIP
B29: 18 HOLE ROUND SCORE, WHICH IS CALCULATED AS AN AVERAGE OF THE
B30: TWO NINE HOLE ROUNDS. THIS TOTAL IS MADE UP OF THE PLAYER'S 8
B31: BEST NINE HOLE ROUNDS OUT OF 9, THROWING OUT THE PLAYER'S
B32: HIGHEST NINE HOLE ROUND TO COMPILE THE TOTAL.

Sheet FINAL PlayerStats
A1: WLT Player Rankings - 2015 | E1: ROUND | M1: Rd 1-8 | Q1: Throw | W1: Overall
A2: 54 | E2: #1 | F2: #2 | G2: #3 | H2: #4 | I2: #5 | J2: #6 | K2: #7 | L2: #8 | M2: Total | Q2: Out | U2: #9 | W2: Total
A3: Rank | B3: Name | C3: Grade | D3: School | E3: WL | F3: WBW | G3: WBE | H3: WT | I3: OC | J3: BD | K3: HT | L3: SL | M3: Conf | Q3: Score | U3: Conf | W3: Strokes
A4: 1 | B4: Devon Hanson | C4: 11 | D4: WBE | E4: 38 | F4: 41 | G4: 41 | H4: 37 | I4: 40 | J4: 38 | K4: 42 | L4: 38 | M4: 273 | O4: 37.5 | P4: =M4+O4 -> 310.5 | Q4: 42 | U4: 75 | V4: =U4/2 -> 37.5 | W4: 348
A5: 2 | B5: George Kneiser | C5: 11 | D5: OC | E5: 42 | F5: 44 | G5: 42 | H5: 41 | I5: 44 | J5: 35 | K5: 38 | L5: 39 | M5: 281 | O5: 41 | P5: =M5+O5 -> 322 | Q5: 44 | U5: 82 | V5: =U5/2 -> 41 | W5: 363
A6: 3 | B6: Austin Walsh | C6: 12 | D6: SL | E6: 46 | F6: 45 | G6: 34 | H6: 43 | I6: 43 | J6: 42 | K6: 39 | L6: 37 | M6: 283 | O6: 40 | P6: =M6+O6 -> 323 | Q6: 46 | U6: 80 | V6: =U6/2 -> 40 | W6: 363
A7: 4 | B7: Max Rohlinger | C7: 10 | D7: WBW | E7: 42 | F7: 40 | G7: 43 | H7: 42 | I7: 40 | J7: 41 | K7: 43 | L7: 40 | M7: 288 | O7: 37.5 | P7: =M7+O7 -> 325.5 | Q7: 43 | U7: 75 | V7: =U7/2 -> 37.5 | W7: 363
A8: 5 | B8: Koby Jones | C8: 12 | D8: BD | E8: 40 | F8: 42 | G8: 40 | H8: 39 | I8: 43 | J8: 42 | K8: 42 | L8: 46 | M8: 288 | O8: 40.5 | P8: =M8+O8 -> 328.5 | Q8: 46 | U8: 81 | V8: =U8/2 -> 40.5 | W8: 369
A9: 6 | B9: Kevin Albrecht | C9: 11 | D9: WBW | E9: 42 | F9: 40 | G9: 45 | H9: 40 | I9: 49 | J9: 40 | K9: 42 | L9: 39 | M9: 288 | O9: 42 | P9: =M9+O9 -> 330 | Q9: 49 | U9: 84 | V9: =U9/2 -> 42 | W9: 372
A10: 7 | B10: Colin Prom | C10: 12 | D10: OC | E10: 40 | F10: 44 | G10: 48 | H10: 41 | I10: 39 | J10: 44 | K10: 43 | L10: 40 | M10: 291 | O10: 41 | P10: =M10+O10 -> 332 | Q10: 48 | U10: 82 | V10: =U10/2 -> 41 | W10: 373
A11: 8 | B11: Alex Haas | C11: 12 | D11: WBW | E11: 42 | F11: 37 | G11: 43 | H11: 45 | I11: 46 | J11: 43 | K11: 39 | L11: 43 | M11: 292 | O11: 41.5 | P11: =M11+O11 -> 333.5 | Q11: 46 | U11: 83 | V11: =U11/2 -> 41.5 | W11: 375
A12: 9 | B12: Mitch Saari | C12: 12 | D12: WBE | E12: 47 | F12: 41 | G12: 40 | H12: 45 | I12: 41 | J12: 39 | K12: 45 | L12: 40 | M12: 291 | O12: 44 | P12: =M12+O12 -> 335 | Q12: 47 | U12: 88 | V12: =U12/2 -> 44 | W12: 379
A13: 10 | B13: Jack Burns | C13: 12 | D13: SL | E13: 39 | F13: 45 | G13: 47 | H13: 43 | I13: 38 | J13: 42 | K13: 46 | L13: 42 | M13: 295 | O13: 41.5 | P13: =M13+O13 -> 336.5 | Q13: 47 | U13: 83 | V13: =U13/2 -> 41.5 | W13: 378
A14: 11 | B14: Ryan Ruona | C14: 11 | D14: HT | E14: 38 | F14: 43 | G14: 46 | H14: 46 | I14: 42 | J14: 47 | K14: 42 | L14: 42 | M14: 299 | O14: 39.5 | P14: =M14+O14 -> 338.5 | Q14: 47 | U14: 79 | V14: =U14/2 -> 39.5 | W14: 378
A15: 12 | B15: Joey Ploch | C15: 9 | D15: OC | F15: 44 | G15: 44 | H15: 41 | I15: 44 | J15: 47 | K15: 46 | L15: 39 | M15: 305 | O15: 39 | P15: =M15+O15 -> 344 | Q15: NS | U15: 78 | V15: =U15/2 -> 39 | W15: 383
A16: 13 | B16: Nick Meucci | C16: 12 | D16: WBW | F16: 47 | G16: 45 | H16: 43 | I16: 40 | J16: 40 | K16: 44 | L16: 41 | M16: 300 | O16: 45.5 | P16: =M16+O16 -> 345.5 | Q16: NS | U16: 91 | V16: =U16/2 -> 45.5 | W16: 391
A17: 14 | B17: Thomas Bleich | C17: 11 | D17: BD | E17: 48 | G17: 44 | H17: 44 | I17: 43 | J17: 41 | K17: 40 | L17: 42 | M17: 302 | O17: 44.5 | P17: =M17+O17 -> 346.5 | Q17: NS | U17: 89 | V17: =U17/2 -> 44.5 | W17: 391
A18: 15 | B18: Carter Smith | C18: 11 | D18: BD | E18: 44 | F18: 44 | G18: 51 | H18: 45 | I18: 42 | J18: 41 | K18: 46 | L18: 51 | M18: 313 | O18: 46 | P18: =M18+O18 -> 359 | Q18: 51 | U18: 92 | V18: =U18/2 -> 46 | W18: 405
A19: 16 | B19: Chris Evans | C19: 11 | D19: SL | E19: 43 | F19: 51 | G19: 43 | H19: 40 | I19: 45 | J19: 47 | L19: 47 | M19: 316 | O19: 45.5 | P19: =M19+O19 -> 361.5 | Q19: NS | U19: 91 | V19: =U19/2 -> 45.5 | W19: 407
A20: 17 | B20: Jacob Droese | C20: 12 | D20: WBW | E20: 46 | F20: 47 | G20: 43 | H20: 45 | I20: 53 | J20: 43 | K20: 42 | L20: 49 | M20: 315 | O20: 46.5 | P20: =M20+O20 -> 361.5 | Q20: 53 | U20: 93 | V20: =U20/2 -> 46.5 | W20: 408
A21: 18 | B21: Cody Trotter | C21: 12 | D21: BD | E21: 43 | F21: 43 | G21: 48 | H21: 51 | I21: 42 | J21: 43 | K21: 45 | L21: 47 | M21: 311 | O21: 51.5 | P21: =M21+O21 -> 362.5 | Q21: 51 | U21: 103 | V21: =U21/2 -> 51.5 | W21: 414
A22: 19 | B22: Jacob Smith | C22: 10 | D22: BD | E22: 48 | F22: 46 | H22: 48 | I22: 42 | J22: 44 | K22: 44 | L22: 43 | M22: 315 | O22: 49 | P22: =M22+O22 -> 364 | Q22: NS | U22: 98 | V22: =U22/2 -> 49 | W22: 413
A23: 20 | B23: Lucas Hass | C23: 11 | D23: HT | E23: 50 | F23: 49 | G23: 45 | H23: 42 | I23: 46 | J23: 47 | K23: 47 | L23: 44 | M23: 320 | O23: 44.5 | P23: =M23+O23 -> 364.5 | Q23: 50 | U23: 89 | V23: =U23/2 -> 44.5 | W23: 409
A24: 21 | B24: Adam Butler | C24: 12 | D24: HT | F24: 45 | G24: 46 | H24: 44 | I24: 48 | J24: 47 | K24: 46 | L24: 43 | M24: 319 | O24: 46 | P24: =M24+O24 -> 365 | Q24: NS | U24: 92 | V24: =U24/2 -> 46 | W24: 411
A25: 22 | B25: Cameron Boyd | C25: 11 | D25: WT | E25: 44 | F25: 48 | G25: 46 | H25: 43 | I25: 47 | J25: 50 | K25: 51 | L25: 44 | M25: 322 | O25: 43.5 | P25: =M25+O25 -> 365.5 | Q25: 51 | U25: 87 | V25: =U25/2 -> 43.5 | W25: 409
A26: 23 | B26: Luke Carroll | C26: 11 | D26: HT | E26: 57 | F26: 45 | G26: 48 | H26: 43 | I26: 47 | J26: 50 | K26: 46 | L26: 47 | M26: 326 | O26: 41 | P26: =M26+O26 -> 367 | Q26: 57 | U26: 82 | V26: =U26/2 -> 41 | W26: 408
A27: 24 | B27: Collin Travis | C27: 11 | D27: WT | E27: 57 | F27: 47 | G27: 48 | H27: 48 | I27: 49 | J27: 45 | K27: 39 | L27: 45 | M27: 321 | O27: 46.5 | P27: =M27+O27 -> 367.5 | Q27: 57 | U27: 93 | V27: =U27/2 -> 46.5 | W27: 414
A28: 25 | B28: Brett Lange | C28: 12 | D28: OC | E28: 49 | F28: 55 | G28: 45 | H28: 45 | I28: 81 | J28: 48 | K28: 45 | L28: 41 | M28: 328 | O28: 42.5 | P28: =M28+O28 -> 370.5 | Q28: 81 | U28: 85 | V28: =U28/2 -> 42.5 | W28: 413
A29: 26 | B29: Alex Thompson | C29: 9 | D29: WT | E29: 45 | F29: 50 | G29: 52 | H29: 42 | I29: 48 | J29: 47 | K29: 54 | L29: 47 | M29: 331 | O29: 46 | P29: =M29+O29 -> 377 | Q29: 54 | U29: 92 | V29: =U29/2 -> 46 | W29: 423
A30: 27 | B30: Josh Breuer | C30: 12 | D30: WBE | E30: 49 | F30: 47 | G30: 48 | H30: 47 | I30: 51 | J30: 54 | K30: 48 | L30: 40 | M30: 330 | O30: 49 | P30: =M30+O30 -> 379 | Q30: 54 | U30: 98 | V30: =U30/2 -> 49 | W30: 428
A31: 28 | B31: John Turchi | C31: 10 | D31: HT | E31: 51 | F31: 48 | G31: 47 | H31: 45 | I31: 49 | J31: 44 | M31: 384 | O31: 0 | P31: =M31+O31 -> 384 | Q31: NS | V31: =U31/2 -> 0 | W31: 384
A32: 29 | B32: Ben Krause | C32: 11 | D32: WL | E32: 49 | F32: 53 | G32: 53 | H32: 45 | I32: 45 | J32: 52 | K32: 46 | L32: 53 | M32: 343 | O32: 45.5 | P32: =M32+O32 -> 388.5 | Q32: 53 | U32: 91 | V32: =U32/2 -> 45.5 | W32: 434
A33: 30 | B33: Brad Halverson | C33: 9 | D33: WBE | E33: 49 | F33: 50 | G33: 55 | H33: 51 | I33: 46 | J33: 60 | K33: 48 | L33: 48 | M33: 347 | O33: 44.5 | P33: =M33+O33 -> 391.5 | Q33: 60 | U33: 89 | V33: =U33/2 -> 44.5 | W33: 436
A34: 31 | B34: Sam Struebing | C34: 11 | D34: WBE | E34: 49 | F34: 48 | G34: 56 | H34: 46 | I34: 48 | J34: 49 | K34: 50 | L34: 53 | M34: 343 | O34: 48.5 | P34: =M34+O34 -> 391.5 | Q34: 56 | U34: 97 | V34: =U34/2 -> 48.5 | W34: 440
A35: 32 | B35: Trevor Reierson | C35: 11 | D35: WT | F35: 55 | G35: 55 | H35: 44 | I35: 48 | J35: 52 | K35: 53 | L35: 50 | M35: 357 | O35: 47.5 | P35: =M35+O35 -> 404.5 | Q35: NS | U35: 95 | V35: =U35/2 -> 47.5 | W35: 452
A36: 33 | B36: Ryan Kusek | C36: 9 | D36: SL | G36: 44 | H36: 44 | I36: 45 | J36: 46 | K36: 44 | L36: 43 | M36: 366 | O36: 43 | P36: =M36+O36 -> 409 | Q36: NS | U36: 86 | V36: =U36/2 -> 43 | W36: 452
A37: 34 | B37: Austin Douglas | C37: 10 | D37: WT | E37: 50 | F37: 64 | G37: 48 | H37: 51 | I37: 55 | J37: 58 | K37: 42 | L37: 55 | M37: 359 | O37: 51.5 | P37: =M37+O37 -> 410.5 | Q37: 64 | U37: 103 | V37: =U37/2 -> 51.5 | W37: 462
A38: 35 | B38: Allan Moutvic | C38: 12 | D38: OC | E38: 42 | F38: 43 | G38: 54 | H38: 45 | I38: 44 | J38: 44 | M38: 372 | O38: 46.5 | P38: =M38+O38 -> 418.5 | Q38: NS | U38: 93 | V38: =U38/2 -> 46.5 | W38: 465
A39: 36 | B39: Zachary Stahle | C39: 11 | D39: WL | E39: 47 | F39: 47 | G39: 56 | J39: 47 | K39: 49 | L39: 45 | M39: 391 | O39: 50.5 | P39: =M39+O39 -> 441.5 | Q39: NS | U39: 101 | V39: =U39/2 -> 50.5 | W39: 492
A40: 37 | B40: Ryan Erdmann | C40: 10 | D40: SL | E40: 48 | H40: 46 | I40: 48 | J40: 56 | M40: 498 | O40: 0 | P40: =M40+O40 -> 498 | Q40: NS | V40: =U40/2 -> 0 | W40: 498
A41: 38 | B41: Ryan Graunke | C41: 12 | D41: SL | F41: 51 | G41: 50 | K41: 47 | L41: 41 | M41: 489 | O41: 43.5 | P41: =M41+O41 -> 532.5 | Q41: NS | U41: 87 | V41: =U41/2 -> 43.5 | W41: 576
A42: 39 | B42: Scratch #1 | C42: x | D42: WL | E42: 81 | F42: 81 | G42: 81 | H42: 81 | I42: 81 | J42: 81 | K42: 81 | L42: 81 | M42: 567 | O42: 0 | P42: =M42+O42 -> 567 | Q42: 81 | V42: =U42/2 -> 0 | W42: 567
A43: 40 | B43: Scratch #2 | C43: x | D43: WL | E43: 81 | F43: 81 | G43: 81 | H43: 81 | I43: 81 | J43: 81 | K43: 81 | L43: 81 | M43: 567 | O43: 0 | P43: =M43+O43 -> 567 | Q43: 81 | V43: =U43/2 -> 0 | W43: 567
A44: 41 | B44: Scratch #3 | C44: x | D44: WL | E44: 81 | F44: 81 | G44: 81 | H44: 81 | I44: 81 | L44: 81 | M44: 586 | O44: 0 | P44: =M44+O44 -> 586 | Q44: NS | V44: =U44/2 -> 0 | W44: 586
A45: 42 | B45: Brendan Hausch | C45: 10 | D45: WL | H45: 56 | I45: 59 | J45: 52 | K45: 58 | M45: 525 | O45: 64 | P45: =M45+O45 -> 589 | Q45: NS | U45: 128 | V45: =U45/2 -> 64 | W45: 653
A46: 43 | B46: Drew Cook | C46: 11 | D46: OC | K46: 49 | L46: 47 | M46: 596 | O46: 0 | P46: =M46+O46 -> 596 | Q46: NS | V46: =U46/2 -> 0 | W46: 596
A47: 44 | B47: Ryan Henning | D47: BD | F47: 51 | G47: 51 | M47: 602 | O47: 0 | P47: =M47+O47 -> 602 | Q47: NS | V47: =U47/2 -> 0 | W47: 602
A48: 45 | B48: Mike Vanderheiden | C48: 10 | D48: HT | K48: 53 | L48: 49 | M48: 602 | O48: 0 | P48: =M48+O48 -> 602 | Q48: NS | V48: =U48/2 -> 0 | W48: 602
A49: 46 | B49: Marvin Bateman | C49: 11 | D49: WBW | E49: 45 | M49: 645 | O49: 0 | P49: =M49+O49 -> 645 | Q49: NS | V49: =U49/2 -> 0 | W49: 645
A50: 47 | B50: Cody Trotter | C50: 12 | D50: BD | K50: 45 | M50: 645 | O50: 0 | P50: =M50+O50 -> 645 | Q50: NS | V50: =U50/2 -> 0 | W50: 645
A51: 48 | B51: Nick Gliniecki | C51: 11 | D51: SL | K51: 47 | M51: 647 | O51: 0 | P51: =M51+O51 -> 647 | Q51: NS | V51: =U51/2 -> 0 | W51: 647
A52: 49 | B52: Jake Lidwin | C52: 11 | D52: HT | E52: 50 | M52: 650 | O52: 0 | P52: =M52+O52 -> 650 | Q52: NS | V52: =U52/2 -> 0 | W52: 650
A53: 50 | B53: Howie Wolf | C53: 12 | D53: SL | E53: 50 | M53: 650 | O53: 0 | P53: =M53+O53 -> 650 | Q53: NS | V53: =U53/2 -> 0 | W53: 650
A54: 51 | B54: Sam Hosch | C54: 12 | D54: OC | E54: 51 | M54: 651 | O54: 0 | P54: =M54+O54 -> 651 | Q54: NS | V54: =U54/2 -> 0 | W54: 651
A55: 52 | B55: Bryan Laude | C55: 12 | D55: SL | F55: 56 | M55: 656 | O55: 0 | P55: =M55+O55 -> 656 | Q55: NS | V55: =U55/2 -> 0 | W55: 656
A56: 53 | B56: Dylan Rahfaldt | C56: 9 | D56: WT | E56: 58 | M56: 658 | O56: 0 | P56: =M56+O56 -> 658 | Q56: NS | V56: =U56/2 -> 0 | W56: 658
A57: 54 | B57: Zak Brooks | C57: 10 | D57: HT | M57: 807 | O57: 53.5 | P57: =M57+O57 -> 860.5 | Q57: NS | U57: 107 | V57: =U57/2 -> 53.5 | W57: 914
M58: 0 | Q58: 0 | W58: 0
M59: 0 | Q59: 0 | W59: 0
M60: 0 | Q60: 0 | W60: 0
M61: 0 | Q61: 0 | W61: 0
M62: 0 | Q62: 0 | W62: 0
M63: 0 | Q63: 0 | W63: 0
M64: 0 | Q64: 0 | W64: 0
M65: 0 | Q65: 0 | W65: 0
M66: 0 | Q66: 0 | W66: 0
M67: 0 | Q67: 0 | W67: 0
M68: 0 | Q68: 0 | W68: 0
M69: 0 | Q69: 0 | W69: 0
M70: 0 | Q70: 0 | W70: 0
M71: 0 | Q71: 0 | W71: 0
M72: 0 | Q72: 0 | W72: 0
M73: 0 | Q73: 0 | W73: 0
M74: 0 | Q74: 0 | W74: 0

Sheet DISREGARD STANDINGS PlayerStats
A1: ="WLT Player Rankings - " & Schedule!A1 -> WLT Player Rankings - 2015 | E1: ROUND | M1: Rd 1-8 | O1: Overall | P1: Throw | AA1: =Standings!AA1 -> 9
A2: =COUNTA(B4:B96) -> 54 | E2: #1 | F2: #2 | G2: #3 | H2: #4 | I2: #5 | J2: #6 | K2: #7 | L2: #8 | M2: Total | N2: #9 | O2: Total | P2: Out | AA2: #1 | AB2: #2 | AC2: #3 | AD2: #4 | AE2: #5 | AF2: #6 | AG2: #7 | AH2: #8 | AI2: #9 | AJ2: Total | AK2: Max
A3: Rank | B3: Name | C3: Grade | D3: School | E3: WL | F3: WBW | G3: WBE | H3: WT | I3: OC | J3: BD | K3: HT | L3: SL | M3: Conf | N3: Conf | O3: Strokes | P3: Score | AJ3: =IF($AA$1 = 1, SUM(AA3:AH3),SUM(AA3:AH3)-MAX(AA3:AH3)+AI3) -> 0 | AK3: =MAX(AA3:AH3) -> 0
A4: 1 | B4: Devon Hanson | C4: 11 | D4: WBE | E4: 38 | F4: 41 | G4: 41 | H4: 37 | I4: 40 | J4: 38 | K4: 42 | L4: 38 | M4: =AJ4-AI4 -> 273 | N4: 75 | O4: =M4+N4 -> 348 | P4: =IF(AK4=100,"NS",AK4) -> 42 | AA4: 38 | AB4: 41 | AC4: 41 | AD4: 37 | AE4: 40 | AF4: 38 | AG4: 42 | AH4: 38 | AI4: 75 | AJ4: =IF($AA$1 = 1, SUM(AA4:AH4),SUM(AA4:AH4)-MAX(AA4:AH4)+AI4) -> 348 | AK4: =MAX(AA4:AH4) -> 42
A5: 2 | B5: Max Rohlinger | C5: 10 | D5: WBW | E5: 42 | F5: 40 | G5: 43 | H5: 42 | I5: 40 | J5: 41 | K5: 43 | L5: 40 | M5: =AJ5-AI5 -> 288 | N5: 75 | O5: =M5+N5 -> 363 | P5: =IF(AK5=100,"NS",AK5) -> 43 | R5: DISREGARD THESE STANDINGS | AA5: 42 | AB5: 40 | AC5: 43 | AD5: 42 | AE5: 40 | AF5: 41 | AG5: 43 | AH5: 40 | AI5: 75 | AJ5: =IF($AA$1 = 1, SUM(AA5:AH5),SUM(AA5:AH5)-MAX(AA5:AH5)+AI5) -> 363 | AK5: =MAX(AA5:AH5) -> 43
A6: 3 | B6: Austin Walsh | C6: 12 | D6: SL | E6: 46 | F6: 45 | G6: 34 | H6: 43 | I6: 43 | J6: 42 | K6: 39 | L6: 37 | M6: =AJ6-AI6 -> 283 | N6: 80 | O6: =M6+N6 -> 363 | P6: =IF(AK6=100,"NS",AK6) -> 46 | R6: THESE RESULTS | AA6: 46 | AB6: 45 | AC6: 34 | AD6: 43 | AE6: 43 | AF6: 42 | AG6: 39 | AH6: 37 | AI6: 80 | AJ6: =IF($AA$1 = 1, SUM(AA6:AH6),SUM(AA6:AH6)-MAX(AA6:AH6)+AI6) -> 363 | AK6: =MAX(AA6:AH6) -> 46
A7: 4 | B7: George Kneiser | C7: 11 | D7: OC | E7: 42 | F7: 44 | G7: 42 | H7: 41 | I7: 44 | J7: 35 | K7: 38 | L7: 39 | M7: =AJ7-AI7 -> 281 | N7: 82 | O7: =M7+N7 -> 363 | P7: =IF(AK7=100,"NS",AK7) -> 44 | R7: ARE NOT CALCULATED | AA7: 42 | AB7: 44 | AC7: 42 | AD7: 41 | AE7: 44 | AF7: 35 | AG7: 38 | AH7: 39 | AI7: 82 | AJ7: =IF($AA$1 = 1, SUM(AA7:AH7),SUM(AA7:AH7)-MAX(AA7:AH7)+AI7) -> 363 | AK7: =MAX(AA7:AH7) -> 44
A8: 5 | B8: Koby Jones | C8: 12 | D8: BD | E8: 40 | F8: 42 | G8: 40 | H8: 39 | I8: 43 | J8: 42 | K8: 42 | L8: 46 | M8: =AJ8-AI8 -> 288 | N8: 81 | O8: =M8+N8 -> 369 | P8: =IF(AK8=100,"NS",AK8) -> 46 | R8: USING THE AVERAGE OF | AA8: 40 | AB8: 42 | AC8: 40 | AD8: 39 | AE8: 43 | AF8: 42 | AG8: 42 | AH8: 46 | AI8: 81 | AJ8: =IF($AA$1 = 1, SUM(AA8:AH8),SUM(AA8:AH8)-MAX(AA8:AH8)+AI8) -> 369 | AK8: =MAX(AA8:AH8) -> 46
A9: 6 | B9: Kevin Albrecht | C9: 11 | D9: WBW | E9: 42 | F9: 40 | G9: 45 | H9: 40 | I9: 49 | J9: 40 | K9: 42 | L9: 39 | M9: =AJ9-AI9 -> 288 | N9: 84 | O9: =M9+N9 -> 372 | P9: =IF(AK9=100,"NS",AK9) -> 49 | R9: THE TWO NINES | AA9: 42 | AB9: 40 | AC9: 45 | AD9: 40 | AE9: 49 | AF9: 40 | AG9: 42 | AH9: 39 | AI9: 84 | AJ9: =IF($AA$1 = 1, SUM(AA9:AH9),SUM(AA9:AH9)-MAX(AA9:AH9)+AI9) -> 372 | AK9: =MAX(AA9:AH9) -> 49
A10: 7 | B10: Colin Prom | C10: 12 | D10: OC | E10: 40 | F10: 44 | G10: 48 | H10: 41 | I10: 39 | J10: 44 | K10: 43 | L10: 40 | M10: =AJ10-AI10 -> 291 | N10: 82 | O10: =M10+N10 -> 373 | P10: =IF(AK10=100,"NS",AK10) -> 48 | R10: IN THE CONFERENCE | AA10: 40 | AB10: 44 | AC10: 48 | AD10: 41 | AE10: 39 | AF10: 44 | AG10: 43 | AH10: 40 | AI10: 82 | AJ10: =IF($AA$1 = 1, SUM(AA10:AH10),SUM(AA10:AH10)-MAX(AA10:AH10)+AI10) -> 373 | AK10: =MAX(AA10:AH10) -> 48
A11: 8 | B11: Alex Haas | C11: 12 | D11: WBW | E11: 42 | F11: 37 | G11: 43 | H11: 45 | I11: 46 | J11: 43 | K11: 39 | L11: 43 | M11: =AJ11-AI11 -> 292 | N11: 83 | O11: =M11+N11 -> 375 | P11: =IF(AK11=100,"NS",AK11) -> 46 | R11: CHAMPIONSHIP. | AA11: 42 | AB11: 37 | AC11: 43 | AD11: 45 | AE11: 46 | AF11: 43 | AG11: 39 | AH11: 43 | AI11: 83 | AJ11: =IF($AA$1 = 1, SUM(AA11:AH11),SUM(AA11:AH11)-MAX(AA11:AH11)+AI11) -> 375 | AK11: =MAX(AA11:AH11) -> 46
A12: 9 | B12: Ryan Ruona | C12: 11 | D12: HT | E12: 38 | F12: 43 | G12: 46 | H12: 46 | I12: 42 | J12: 47 | K12: 42 | L12: 42 | M12: =AJ12-AI12 -> 299 | N12: 79 | O12: =M12+N12 -> 378 | P12: =IF(AK12=100,"NS",AK12) -> 47 | AA12: 38 | AB12: 43 | AC12: 46 | AD12: 46 | AE12: 42 | AF12: 47 | AG12: 42 | AH12: 42 | AI12: 79 | AJ12: =IF($AA$1 = 1, SUM(AA12:AH12),SUM(AA12:AH12)-MAX(AA12:AH12)+AI12) -> 378 | AK12: =MAX(AA12:AH12) -> 47
A13: 10 | B13: Jack Burns | C13: 12 | D13: SL | E13: 39 | F13: 45 | G13: 47 | H13: 43 | I13: 38 | J13: 42 | K13: 46 | L13: 42 | M13: =AJ13-AI13 -> 295 | N13: 83 | O13: =M13+N13 -> 378 | P13: =IF(AK13=100,"NS",AK13) -> 47 | R13: THE CALCULATIONS HERE | AA13: 39 | AB13: 45 | AC13: 47 | AD13: 43 | AE13: 38 | AF13: 42 | AG13: 46 | AH13: 42 | AI13: 83 | AJ13: =IF($AA$1 = 1, SUM(AA13:AH13),SUM(AA13:AH13)-MAX(AA13:AH13)+AI13) -> 378 | AK13: =MAX(AA13:AH13) -> 47
A14: 11 | B14: Mitch Saari | C14: 12 | D14: WBE | E14: 47 | F14: 41 | G14: 40 | H14: 45 | I14: 41 | J14: 39 | K14: 45 | L14: 40 | M14: =AJ14-AI14 -> 291 | N14: 88 | O14: =M14+N14 -> 379 | P14: =IF(AK14=100,"NS",AK14) -> 47 | R14: DO NOT REFLECT THE | AA14: 47 | AB14: 41 | AC14: 40 | AD14: 45 | AE14: 41 | AF14: 39 | AG14: 45 | AH14: 40 | AI14: 88 | AJ14: =IF($AA$1 = 1, SUM(AA14:AH14),SUM(AA14:AH14)-MAX(AA14:AH14)+AI14) -> 379 | AK14: =MAX(AA14:AH14) -> 47
A15: 12 | B15: Joey Ploch | C15: 9 | D15: OC | F15: 44 | G15: 44 | H15: 41 | I15: 44 | J15: 47 | K15: 46 | L15: 39 | M15: =AJ15-AI15 -> 305 | N15: 78 | O15: =M15+N15 -> 383 | P15: =IF(AK15=100,"NS",AK15) -> NS | R15: ACTUAL CALCULATED | AA15: 100 | AB15: 44 | AC15: 44 | AD15: 41 | AE15: 44 | AF15: 47 | AG15: 46 | AH15: 39 | AI15: 78 | AJ15: =IF($AA$1 = 1, SUM(AA15:AH15),SUM(AA15:AH15)-MAX(AA15:AH15)+AI15) -> 383 | AK15: =MAX(AA15:AH15) -> 100
A16: 13 | B16: Thomas Bleich | C16: 11 | D16: BD | E16: 48 | G16: 44 | H16: 44 | I16: 43 | J16: 41 | K16: 40 | L16: 42 | M16: =AJ16-AI16 -> 302 | N16: 89 | O16: =M16+N16 -> 391 | P16: =IF(AK16=100,"NS",AK16) -> NS | R16: TOTAL THAT IS USED | AA16: 48 | AB16: 100 | AC16: 44 | AD16: 44 | AE16: 43 | AF16: 41 | AG16: 40 | AH16: 42 | AI16: 89 | AJ16: =IF($AA$1 = 1, SUM(AA16:AH16),SUM(AA16:AH16)-MAX(AA16:AH16)+AI16) -> 391 | AK16: =MAX(AA16:AH16) -> 100
A17: 14 | B17: Nick Meucci | C17: 12 | D17: WBW | F17: 47 | G17: 45 | H17: 43 | I17: 40 | J17: 40 | K17: 44 | L17: 41 | M17: =AJ17-AI17 -> 300 | N17: 91 | O17: =M17+N17 -> 391 | P17: =IF(AK17=100,"NS",AK17) -> NS | R17: TO DETERMINE FINAL POSITION | AA17: 100 | AB17: 47 | AC17: 45 | AD17: 43 | AE17: 40 | AF17: 40 | AG17: 44 | AH17: 41 | AI17: 91 | AJ17: =IF($AA$1 = 1, SUM(AA17:AH17),SUM(AA17:AH17)-MAX(AA17:AH17)+AI17) -> 391 | AK17: =MAX(AA17:AH17) -> 100
A18: 15 | B18: Carter Smith | C18: 11 | D18: BD | E18: 44 | F18: 44 | G18: 51 | H18: 45 | I18: 42 | J18: 41 | K18: 46 | L18: 51 | M18: =AJ18-AI18 -> 313 | N18: 92 | O18: =M18+N18 -> 405 | P18: =IF(AK18=100,"NS",AK18) -> 51 | R18: IN THE INDIVIDUAL | AA18: 44 | AB18: 44 | AC18: 51 | AD18: 45 | AE18: 42 | AF18: 41 | AG18: 46 | AH18: 51 | AI18: 92 | AJ18: =IF($AA$1 = 1, SUM(AA18:AH18),SUM(AA18:AH18)-MAX(AA18:AH18)+AI18) -> 405 | AK18: =MAX(AA18:AH18) -> 51
A19: 16 | B19: Chris Evans | C19: 11 | D19: SL | E19: 43 | F19: 51 | G19: 43 | H19: 40 | I19: 45 | J19: 47 | L19: 47 | M19: =AJ19-AI19 -> 316 | N19: 91 | O19: =M19+N19 -> 407 | P19: =IF(AK19=100,"NS",AK19) -> NS | R19: CONFERENCE MEDALIST | AA19: 43 | AB19: 51 | AC19: 43 | AD19: 40 | AE19: 45 | AF19: 47 | AG19: 100 | AH19: 47 | AI19: 91 | AJ19: =IF($AA$1 = 1, SUM(AA19:AH19),SUM(AA19:AH19)-MAX(AA19:AH19)+AI19) -> 407 | AK19: =MAX(AA19:AH19) -> 100
A20: 17 | B20: Luke Carroll | C20: 11 | D20: HT | E20: 57 | F20: 45 | G20: 48 | H20: 43 | I20: 47 | J20: 50 | K20: 46 | L20: 47 | M20: =AJ20-AI20 -> 326 | N20: 82 | O20: =M20+N20 -> 408 | P20: =IF(AK20=100,"NS",AK20) -> 57 | R20: STANDING. | AA20: 57 | AB20: 45 | AC20: 48 | AD20: 43 | AE20: 47 | AF20: 50 | AG20: 46 | AH20: 47 | AI20: 82 | AJ20: =IF($AA$1 = 1, SUM(AA20:AH20),SUM(AA20:AH20)-MAX(AA20:AH20)+AI20) -> 408 | AK20: =MAX(AA20:AH20) -> 57
A21: 18 | B21: Jacob Droese | C21: 12 | D21: WBW | E21: 46 | F21: 47 | G21: 43 | H21: 45 | I21: 53 | J21: 43 | K21: 42 | L21: 49 | M21: =AJ21-AI21 -> 315 | N21: 93 | O21: =M21+N21 -> 408 | P21: =IF(AK21=100,"NS",AK21) -> 53 | AA21: 46 | AB21: 47 | AC21: 43 | AD21: 45 | AE21: 53 | AF21: 43 | AG21: 42 | AH21: 49 | AI21: 93 | AJ21: =IF($AA$1 = 1, SUM(AA21:AH21),SUM(AA21:AH21)-MAX(AA21:AH21)+AI21) -> 408 | AK21: =MAX(AA21:AH21) -> 53
A22: 19 | B22: Cameron Boyd | C22: 11 | D22: WT | E22: 44 | F22: 48 | G22: 46 | H22: 43 | I22: 47 | J22: 50 | K22: 51 | L22: 44 | M22: =AJ22-AI22 -> 322 | N22: 87 | O22: =M22+N22 -> 409 | P22: =IF(AK22=100,"NS",AK22) -> 51 | R22: THE TOTALS DISPLAYED HERE | AA22: 44 | AB22: 48 | AC22: 46 | AD22: 43 | AE22: 47 | AF22: 50 | AG22: 51 | AH22: 44 | AI22: 87 | AJ22: =IF($AA$1 = 1, SUM(AA22:AH22),SUM(AA22:AH22)-MAX(AA22:AH22)+AI22) -> 409 | AK22: =MAX(AA22:AH22) -> 51
A23: 20 | B23: Lucas Hass | C23: 11 | D23: HT | E23: 50 | F23: 49 | G23: 45 | H23: 42 | I23: 46 | J23: 47 | K23: 47 | L23: 44 | M23: =AJ23-AI23 -> 320 | N23: 89 | O23: =M23+N23 -> 409 | P23: =IF(AK23=100,"NS",AK23) -> 50 | R23: USE EACH PLAYER'S LOWEST | AA23: 50 | AB23: 49 | AC23: 45 | AD23: 42 | AE23: 46 | AF23: 47 | AG23: 47 | AH23: 44 | AI23: 89 | AJ23: =IF($AA$1 = 1, SUM(AA23:AH23),SUM(AA23:AH23)-MAX(AA23:AH23)+AI23) -> 409 | AK23: =MAX(AA23:AH23) -> 50
A24: 21 | B24: Adam Butler | C24: 12 | D24: HT | F24: 45 | G24: 46 | H24: 44 | I24: 48 | J24: 47 | K24: 46 | L24: 43 | M24: =AJ24-AI24 -> 319 | N24: 92 | O24: =M24+N24 -> 411 | P24: =IF(AK24=100,"NS",AK24) -> NS | R24: SEVEN 9-HOLE ROUNDS OF | AA24: 100 | AB24: 45 | AC24: 46 | AD24: 44 | AE24: 48 | AF24: 47 | AG24: 46 | AH24: 43 | AI24: 92 | AJ24: =IF($AA$1 = 1, SUM(AA24:AH24),SUM(AA24:AH24)-MAX(AA24:AH24)+AI24) -> 411 | AK24: =MAX(AA24:AH24) -> 100
A25: 22 | B25: Brett Lange | C25: 12 | D25: OC | E25: 49 | F25: 55 | G25: 45 | H25: 45 | I25: 81 | J25: 48 | K25: 45 | L25: 41 | M25: =AJ25-AI25 -> 328 | N25: 85 | O25: =M25+N25 -> 413 | P25: =IF(AK25=100,"NS",AK25) -> 81 | R25: THEIR EIGHT ROUNDS PLAYED, | AA25: 49 | AB25: 55 | AC25: 45 | AD25: 45 | AE25: 81 | AF25: 48 | AG25: 45 | AH25: 41 | AI25: 85 | AJ25: =IF($AA$1 = 1, SUM(AA25:AH25),SUM(AA25:AH25)-MAX(AA25:AH25)+AI25) -> 413 | AK25: =MAX(AA25:AH25) -> 81
A26: 23 | B26: Jacob Smith | C26: 10 | D26: BD | E26: 48 | F26: 46 | H26: 48 | I26: 42 | J26: 44 | K26: 44 | L26: 43 | M26: =AJ26-AI26 -> 315 | N26: 98 | O26: =M26+N26 -> 413 | P26: =IF(AK26=100,"NS",AK26) -> NS | R26: AND IT INCLUDES THE 18 HOLE | AA26: 48 | AB26: 46 | AC26: 100 | AD26: 48 | AE26: 42 | AF26: 44 | AG26: 44 | AH26: 43 | AI26: 98 | AJ26: =IF($AA$1 = 1, SUM(AA26:AH26),SUM(AA26:AH26)-MAX(AA26:AH26)+AI26) -> 413 | AK26: =MAX(AA26:AH26) -> 100
A27: 24 | B27: Collin Travis | C27: 11 | D27: WT | E27: 57 | F27: 47 | G27: 48 | H27: 48 | I27: 49 | J27: 45 | K27: 39 | L27: 45 | M27: =AJ27-AI27 -> 321 | N27: 93 | O27: =M27+N27 -> 414 | P27: =IF(AK27=100,"NS",AK27) -> 57 | R27: CONFERENCE CHAMPIONSHIP | AA27: 57 | AB27: 47 | AC27: 48 | AD27: 48 | AE27: 49 | AF27: 45 | AG27: 39 | AH27: 45 | AI27: 93 | AJ27: =IF($AA$1 = 1, SUM(AA27:AH27),SUM(AA27:AH27)-MAX(AA27:AH27)+AI27) -> 414 | AK27: =MAX(AA27:AH27) -> 57
A28: 25 | B28: Cody Trotter | C28: 12 | D28: BD | E28: 43 | F28: 43 | G28: 48 | H28: 51 | I28: 42 | J28: 43 | K28: 45 | L28: 47 | M28: =AJ28-AI28 -> 311 | N28: 103 | O28: =M28+N28 -> 414 | P28: =IF(AK28=100,"NS",AK28) -> 51 | R28: TOTAL, NOT AN AVERAGE OF THE | AA28: 43 | AB28: 43 | AC28: 48 | AD28: 51 | AE28: 42 | AF28: 43 | AG28: 45 | AH28: 47 | AI28: 103 | AJ28: =IF($AA$1 = 1, SUM(AA28:AH28),SUM(AA28:AH28)-MAX(AA28:AH28)+AI28) -> 414 | AK28: =MAX(AA28:AH28) -> 51
A29: 26 | B29: Alex Thompson | C29: 9 | D29: WT | E29: 45 | F29: 50 | G29: 52 | H29: 42 | I29: 48 | J29: 47 | K29: 54 | L29: 47 | M29: =AJ29-AI29 -> 331 | N29: 92 | O29: =M29+N29 -> 423 | P29: =IF(AK29=100,"NS",AK29) -> 54 | R29: TWO NINES AS IS WRITTEN IN THE | AA29: 45 | AB29: 50 | AC29: 52 | AD29: 42 | AE29: 48 | AF29: 47 | AG29: 54 | AH29: 47 | AI29: 92 | AJ29: =IF($AA$1 = 1, SUM(AA29:AH29),SUM(AA29:AH29)-MAX(AA29:AH29)+AI29) -> 423 | AK29: =MAX(AA29:AH29) -> 54
A30: 27 | B30: Josh Breuer | C30: 12 | D30: WBE | E30: 49 | F30: 47 | G30: 48 | H30: 47 | I30: 51 | J30: 54 | K30: 48 | L30: 40 | M30: =AJ30-AI30 -> 330 | N30: 98 | O30: =M30+N30 -> 428 | P30: =IF(AK30=100,"NS",AK30) -> 54 | R30: WLT BYLAWS FOR BOYS GOLF. | AA30: 49 | AB30: 47 | AC30: 48 | AD30: 47 | AE30: 51 | AF30: 54 | AG30: 48 | AH30: 40 | AI30: 98 | AJ30: =IF($AA$1 = 1, SUM(AA30:AH30),SUM(AA30:AH30)-MAX(AA30:AH30)+AI30) -> 428 | AK30: =MAX(AA30:AH30) -> 54
A31: 28 | B31: Ben Krause | C31: 11 | D31: WL | E31: 49 | F31: 53 | G31: 53 | H31: 45 | I31: 45 | J31: 52 | K31: 46 | L31: 53 | M31: =AJ31-AI31 -> 343 | N31: 91 | O31: =M31+N31 -> 434 | P31: =IF(AK31=100,"NS",AK31) -> 53 | AA31: 49 | AB31: 53 | AC31: 53 | AD31: 45 | AE31: 45 | AF31: 52 | AG31: 46 | AH31: 53 | AI31: 91 | AJ31: =IF($AA$1 = 1, SUM(AA31:AH31),SUM(AA31:AH31)-MAX(AA31:AH31)+AI31) -> 434 | AK31: =MAX(AA31:AH31) -> 53
A32: 29 | B32: Brad Halverson | C32: 9 | D32: WBE | E32: 49 | F32: 50 | G32: 55 | H32: 51 | I32: 46 | J32: 60 | K32: 48 | L32: 48 | M32: =AJ32-AI32 -> 347 | N32: 89 | O32: =M32+N32 -> 436 | P32: =IF(AK32=100,"NS",AK32) -> 60 | AA32: 49 | AB32: 50 | AC32: 55 | AD32: 51 | AE32: 46 | AF32: 60 | AG32: 48 | AH32: 48 | AI32: 89 | AJ32: =IF($AA$1 = 1, SUM(AA32:AH32),SUM(AA32:AH32)-MAX(AA32:AH32)+AI32) -> 436 | AK32: =MAX(AA32:AH32) -> 60
A33: 30 | B33: Sam Struebing | C33: 11 | D33: WBE | E33: 49 | F33: 48 | G33: 56 | H33: 46 | I33: 48 | J33: 49 | K33: 50 | L33: 53 | M33: =AJ33-AI33 -> 343 | N33: 97 | O33: =M33+N33 -> 440 | P33: =IF(AK33=100,"NS",AK33) -> 56 | AA33: 49 | AB33: 48 | AC33: 56 | AD33: 46 | AE33: 48 | AF33: 49 | AG33: 50 | AH33: 53 | AI33: 97 | AJ33: =IF($AA$1 = 1, SUM(AA33:AH33),SUM(AA33:AH33)-MAX(AA33:AH33)+AI33) -> 440 | AK33: =MAX(AA33:AH33) -> 56
A34: 31 | B34: Ryan Kusek | C34: 9 | D34: SL | G34: 44 | H34: 44 | I34: 45 | J34: 46 | K34: 44 | L34: 43 | M34: =AJ34-AI34 -> 366 | N34: 86 | O34: =M34+N34 -> 452 | P34: =IF(AK34=100,"NS",AK34) -> NS | AA34: 100 | AB34: 100 | AC34: 44 | AD34: 44 | AE34: 45 | AF34: 46 | AG34: 44 | AH34: 43 | AI34: 86 | AJ34: =IF($AA$1 = 1, SUM(AA34:AH34),SUM(AA34:AH34)-MAX(AA34:AH34)+AI34) -> 452 | AK34: =MAX(AA34:AH34) -> 100
A35: 32 | B35: Trevor Reierson | C35: 11 | D35: WT | F35: 55 | G35: 55 | H35: 44 | I35: 48 | J35: 52 | K35: 53 | L35: 50 | M35: =AJ35-AI35 -> 357 | N35: 95 | O35: =M35+N35 -> 452 | P35: =IF(AK35=100,"NS",AK35) -> NS | AA35: 100 | AB35: 55 | AC35: 55 | AD35: 44 | AE35: 48 | AF35: 52 | AG35: 53 | AH35: 50 | AI35: 95 | AJ35: =IF($AA$1 = 1, SUM(AA35:AH35),SUM(AA35:AH35)-MAX(AA35:AH35)+AI35) -> 452 | AK35: =MAX(AA35:AH35) -> 100
A36: 33 | B36: Austin Douglas | C36: 10 | D36: WT | E36: 50 | F36: 64 | G36: 48 | H36: 51 | I36: 55 | J36: 58 | K36: 42 | L36: 55 | M36: =AJ36-AI36 -> 359 | N36: 103 | O36: =M36+N36 -> 462 | P36: =IF(AK36=100,"NS",AK36) -> 64 | AA36: 50 | AB36: 64 | AC36: 48 | AD36: 51 | AE36: 55 | AF36: 58 | AG36: 42 | AH36: 55 | AI36: 103 | AJ36: =IF($AA$1 = 1, SUM(AA36:AH36),SUM(AA36:AH36)-MAX(AA36:AH36)+AI36) -> 462 | AK36: =MAX(AA36:AH36) -> 64
A37: 34 | B37: Allan Moutvic | C37: 12 | D37: OC | E37: 42 | F37: 43 | G37: 54 | H37: 45 | I37: 44 | J37: 44 | M37: =AJ37-AI37 -> 372 | N37: 93 | O37: =M37+N37 -> 465 | P37: =IF(AK37=100,"NS",AK37) -> NS | AA37: 42 | AB37: 43 | AC37: 54 | AD37: 45 | AE37: 44 | AF37: 44 | AG37: 100 | AH37: 100 | AI37: 93 | AJ37: =IF($AA$1 = 1, SUM(AA37:AH37),SUM(AA37:AH37)-MAX(AA37:AH37)+AI37) -> 465 | AK37: =MAX(AA37:AH37) -> 100
A38: 35 | B38: Zachary Stahle | C38: 11 | D38: WL | E38: 47 | F38: 47 | G38: 56 | J38: 47 | K38: 49 | L38: 45 | M38: =AJ38-AI38 -> 391 | N38: 101 | O38: =M38+N38 -> 492 | P38: =IF(AK38=100,"NS",AK38) -> NS | AA38: 47 | AB38: 47 | AC38: 56 | AD38: 100 | AE38: 100 | AF38: 47 | AG38: 49 | AH38: 45 | AI38: 101 | AJ38: =IF($AA$1 = 1, SUM(AA38:AH38),SUM(AA38:AH38)-MAX(AA38:AH38)+AI38) -> 492 | AK38: =MAX(AA38:AH38) -> 100
A39: 36 | B39: Ryan Graunke | C39: 12 | D39: SL | F39: 51 | G39: 50 | K39: 47 | L39: 41 | M39: =AJ39-AI39 -> 489 | N39: 87 | O39: =M39+N39 -> 576 | P39: =IF(AK39=100,"NS",AK39) -> NS | AA39: 100 | AB39: 51 | AC39: 50 | AD39: 100 | AE39: 100 | AF39: 100 | AG39: 47 | AH39: 41 | AI39: 87 | AJ39: =IF($AA$1 = 1, SUM(AA39:AH39),SUM(AA39:AH39)-MAX(AA39:AH39)+AI39) -> 576 | AK39: =MAX(AA39:AH39) -> 100
A40: 37 | B40: John Turchi | C40: 10 | D40: HT | E40: 51 | F40: 48 | G40: 47 | H40: 45 | I40: 49 | J40: 44 | M40: =AJ40-AI40 -> 384 | O40: =M40+N40 -> 384 | P40: =IF(AK40=100,"NS",AK40) -> NS | AA40: 51 | AB40: 48 | AC40: 47 | AD40: 45 | AE40: 49 | AF40: 44 | AG40: 100 | AH40: 100 | AI40: 200 | AJ40: =IF($AA$1 = 1, SUM(AA40:AH40),SUM(AA40:AH40)-MAX(AA40:AH40)+AI40) -> 584 | AK40: =MAX(AA40:AH40) -> 100
A41: 38 | B41: Brendan Hausch | C41: 10 | D41: WL | H41: 56 | I41: 59 | J41: 52 | K41: 58 | M41: =AJ41-AI41 -> 525 | N41: 128 | O41: =M41+N41 -> 653 | P41: =IF(AK41=100,"NS",AK41) -> NS | AA41: 100 | AB41: 100 | AC41: 100 | AD41: 56 | AE41: 59 | AF41: 52 | AG41: 58 | AH41: 100 | AI41: 128 | AJ41: =IF($AA$1 = 1, SUM(AA41:AH41),SUM(AA41:AH41)-MAX(AA41:AH41)+AI41) -> 653 | AK41: =MAX(AA41:AH41) -> 100
A42: 39 | B42: Ryan Erdmann | C42: 10 | D42: SL | E42: 48 | H42: 46 | I42: 48 | J42: 56 | M42: =AJ42-AI42 -> 498 | O42: =M42+N42 -> 498 | P42: =IF(AK42=100,"NS",AK42) -> NS | AA42: 48 | AB42: 100 | AC42: 100 | AD42: 46 | AE42: 48 | AF42: 56 | AG42: 100 | AH42: 100 | AI42: 200 | AJ42: =IF($AA$1 = 1, SUM(AA42:AH42),SUM(AA42:AH42)-MAX(AA42:AH42)+AI42) -> 698 | AK42: =MAX(AA42:AH42) -> 100
A43: 40 | B43: Scratch #1 | C43: x | D43: WL | E43: 81 | F43: 81 | G43: 81 | H43: 81 | I43: 81 | J43: 81 | K43: 81 | L43: 81 | M43: =AJ43-AI43 -> 567 | N43: 162 | O43: =M43+N43 -> 729 | P43: =IF(AK43=100,"NS",AK43) -> 81 | AA43: 81 | AB43: 81 | AC43: 81 | AD43: 81 | AE43: 81 | AF43: 81 | AG43: 81 | AH43: 81 | AI43: 162 | AJ43: =IF($AA$1 = 1, SUM(AA43:AH43),SUM(AA43:AH43)-MAX(AA43:AH43)+AI43) -> 729 | AK43: =MAX(AA43:AH43) -> 81
A44: 41 | B44: Scratch #2 | C44: x | D44: WL | E44: 81 | F44: 81 | G44: 81 | H44: 81 | I44: 81 | J44: 81 | K44: 81 | L44: 81 | M44: =AJ44-AI44 -> 567 | N44: 162 | O44: =M44+N44 -> 729 | P44: =IF(AK44=100,"NS",AK44) -> 81 | AA44: 81 | AB44: 81 | AC44: 81 | AD44: 81 | AE44: 81 | AF44: 81 | AG44: 81 | AH44: 81 | AI44: 162 | AJ44: =IF($AA$1 = 1, SUM(AA44:AH44),SUM(AA44:AH44)-MAX(AA44:AH44)+AI44) -> 729 | AK44: =MAX(AA44:AH44) -> 81
A45: 42 | B45: Scratch #3 | C45: x | D45: WL | E45: 81 | F45: 81 | G45: 81 | H45: 81 | I45: 81 | L45: 81 | M45: =AJ45-AI45 -> 586 | O45: =M45+N45 -> 586 | P45: =IF(AK45=100,"NS",AK45) -> NS | AA45: 81 | AB45: 81 | AC45: 81 | AD45: 81 | AE45: 81 | AF45: 100 | AG45: 100 | AH45: 81 | AI45: 200 | AJ45: =IF($AA$1 = 1, SUM(AA45:AH45),SUM(AA45:AH45)-MAX(AA45:AH45)+AI45) -> 786 | AK45: =MAX(AA45:AH45) -> 100
A46: 43 | B46: Drew Cook | C46: 11 | D46: OC | K46: 49 | L46: 47 | M46: =AJ46-AI46 -> 596 | O46: =M46+N46 -> 596 | P46: =IF(AK46=100,"NS",AK46) -> NS | AA46: 100 | AB46: 100 | AC46: 100 | AD46: 100 | AE46: 100 | AF46: 100 | AG46: 49 | AH46: 47 | AI46: 200 | AJ46: =IF($AA$1 = 1, SUM(AA46:AH46),SUM(AA46:AH46)-MAX(AA46:AH46)+AI46) -> 796 | AK46: =MAX(AA46:AH46) -> 100
A47: 44 | B47: Ryan Henning | D47: BD | F47: 51 | G47: 51 | M47: =AJ47-AI47 -> 602 | O47: =M47+N47 -> 602 | P47: =IF(AK47=100,"NS",AK47) -> NS | AA47: 100 | AB47: 51 | AC47: 51 | AD47: 100 | AE47: 100 | AF47: 100 | AG47: 100 | AH47: 100 | AI47: 200 | AJ47: =IF($AA$1 = 1, SUM(AA47:AH47),SUM(AA47:AH47)-MAX(AA47:AH47)+AI47) -> 802 | AK47: =MAX(AA47:AH47) -> 100
A48: 45 | B48: Mike Vanderheiden | C48: 10 | D48: HT | K48: 53 | L48: 49 | M48: =AJ48-AI48 -> 602 | O48: =M48+N48 -> 602 | P48: =IF(AK48=100,"NS",AK48) -> NS | AA48: 100 | AB48: 100 | AC48: 100 | AD48: 100 | AE48: 100 | AF48: 100 | AG48: 53 | AH48: 49 | AI48: 200 | AJ48: =IF($AA$1 = 1, SUM(AA48:AH48),SUM(AA48:AH48)-MAX(AA48:AH48)+AI48) -> 802 | AK48: =MAX(AA48:AH48) -> 100
A49: 46 | B49: Zak Brooks | C49: 10 | D49: HT | M49: =AJ49 -> 807 | N49: 107 | O49: =M49+N49 -> 914 | P49: =IF(AK49=100,"NS",AK49) -> NS | AA49: 100 | AB49: 100 | AC49: 100 | AD49: 100 | AE49: 100 | AF49: 100 | AG49: 100 | AH49: 100 | AI49: 107 | AJ49: =IF($AA$1 = 1, SUM(AA49:AH49),SUM(AA49:AH49)-MAX(AA49:AH49)+AI49) -> 807 | AK49: =MAX(AA49:AH49) -> 100
A50: 47 | B50: Marvin Bateman | C50: 11 | D50: WBW | E50: 45 | M50: =AJ50-AI50 -> 645 | O50: =M50+N50 -> 645 | P50: =IF(AK50=100,"NS",AK50) -> NS | AA50: 45 | AB50: 100 | AC50: 100 | AD50: 100 | AE50: 100 | AF50: 100 | AG50: 100 | AH50: 100 | AI50: 200 | AJ50: =IF($AA$1 = 1, SUM(AA50:AH50),SUM(AA50:AH50)-MAX(AA50:AH50)+AI50) -> 845 | AK50: =MAX(AA50:AH50) -> 100
A51: 48 | B51: Cody Trotter | C51: 12 | D51: BD | K51: 45 | M51: =AJ51-AI51 -> 645 | O51: =M51+N51 -> 645 | P51: =IF(AK51=100,"NS",AK51) -> NS | AA51: 100 | AB51: 100 | AC51: 100 | AD51: 100 | AE51: 100 | AF51: 100 | AG51: 45 | AH51: 100 | AI51: 200 | AJ51: =IF($AA$1 = 1, SUM(AA51:AH51),SUM(AA51:AH51)-MAX(AA51:AH51)+AI51) -> 845 | AK51: =MAX(AA51:AH51) -> 100
A52: 49 | B52: Nick Gliniecki | C52: 11 | D52: SL | K52: 47 | M52: =AJ52-AI52 -> 647 | O52: =M52+N52 -> 647 | P52: =IF(AK52=100,"NS",AK52) -> NS | AA52: 100 | AB52: 100 | AC52: 100 | AD52: 100 | AE52: 100 | AF52: 100 | AG52: 47 | AH52: 100 | AI52: 200 | AJ52: =IF($AA$1 = 1, SUM(AA52:AH52),SUM(AA52:AH52)-MAX(AA52:AH52)+AI52) -> 847 | AK52: =MAX(AA52:AH52) -> 100
A53: 50 | B53: Jake Lidwin | C53: 11 | D53: HT | E53: 50 | M53: =AJ53-AI53 -> 650 | O53: =M53+N53 -> 650 | P53: =IF(AK53=100,"NS",AK53) -> NS | AA53: 50 | AB53: 100 | AC53: 100 | AD53: 100 | AE53: 100 | AF53: 100 | AG53: 100 | AH53: 100 | AI53: 200 | AJ53: =IF($AA$1 = 1, SUM(AA53:AH53),SUM(AA53:AH53)-MAX(AA53:AH53)+AI53) -> 850 | AK53: =MAX(AA53:AH53) -> 100
A54: 51 | B54: Howie Wolf | C54: 12 | D54: SL | E54: 50 | M54: =AJ54-AI54 -> 650 | O54: =M54+N54 -> 650 | P54: =IF(AK54=100,"NS",AK54) -> NS | AA54: 50 | AB54: 100 | AC54: 100 | AD54: 100 | AE54: 100 | AF54: 100 | AG54: 100 | AH54: 100 | AI54: 200 | AJ54: =IF($AA$1 = 1, SUM(AA54:AH54),SUM(AA54:AH54)-MAX(AA54:AH54)+AI54) -> 850 | AK54: =MAX(AA54:AH54) -> 100
A55: 52 | B55: Sam Hosch | C55: 12 | D55: OC | E55: 51 | M55: =AJ55-AI55 -> 651 | O55: =M55+N55 -> 651 | P55: =IF(AK55=100,"NS",AK55) -> NS | AA55: 51 | AB55: 100 | AC55: 100 | AD55: 100 | AE55: 100 | AF55: 100 | AG55: 100 | AH55: 100 | AI55: 200 | AJ55: =IF($AA$1 = 1, SUM(AA55:AH55),SUM(AA55:AH55)-MAX(AA55:AH55)+AI55) -> 851 | AK55: =MAX(AA55:AH55) -> 100
A56: 53 | B56: Bryan Laude | C56: 12 | D56: SL | F56: 56 | M56: =AJ56-AI56 -> 656 | O56: =M56+N56 -> 656 | P56: =IF(AK56=100,"NS",AK56) -> NS | AA56: 100 | AB56: 56 | AC56: 100 | AD56: 100 | AE56: 100 | AF56: 100 | AG56: 100 | AH56: 100 | AI56: 200 | AJ56: =IF($AA$1 = 1, SUM(AA56:AH56),SUM(AA56:AH56)-MAX(AA56:AH56)+AI56) -> 856 | AK56: =MAX(AA56:AH56) -> 100
A57: 54 | B57: Dylan Rahfaldt | C57: 9 | D57: WT | E57: 58 | M57: =AJ57-AI57 -> 658 | O57: =M57+N57 -> 658 | P57: =IF(AK57=100,"NS",AK57) -> NS | AA57: 58 | AB57: 100 | AC57: 100 | AD57: 100 | AE57: 100 | AF57: 100 | AG57: 100 | AH57: 100 | AI57: 200 | AJ57: =IF($AA$1 = 1, SUM(AA57:AH57),SUM(AA57:AH57)-MAX(AA57:AH57)+AI57) -> 858 | AK57: =MAX(AA57:AH57) -> 100
M58: =AJ58 -> 0 | O58: =M58+N58 -> 0 | P58: =IF(AK58=100,"NS",AK58) -> 0 | AJ58: =IF($AA$1 = 1, SUM(AA58:AH58),SUM(AA58:AH58)-MAX(AA58:AH58)+AI58) -> 0 | AK58: =MAX(AA58:AH58) -> 0
M59: 0 | O59: 0 | P59: 0 | AJ59: 0 | AK59: 0
M60: 0 | O60: 0 | P60: 0 | AJ60: 0 | AK60: 0
M61: 0 | O61: 0 | P61: 0 | AJ61: 0 | AK61: 0
M62: 0 | O62: 0 | P62: 0 | AJ62: 0 | AK62: 0
M63: 0 | O63: 0 | P63: 0 | AJ63: 0 | AK63: 0
M64: 0 | O64: 0 | P64: 0 | AJ64: 0 | AK64: 0
M65: 0 | O65: =M65+N65 -> 0 | P65: 0 | AJ65: =IF($AA$1 = 1, SUM(AA65:AH65),SUM(AA65:AH65)-MAX(AA65:AH65)+AI65) -> 0 | AK65: 0
M66: =AJ66 -> 0 | O66: 0 | P66: 0 | AJ66: =IF($AA$1 = 1, SUM(AA66:AH66),SUM(AA66:AH66)-MAX(AA66:AH66)+AI66) -> 0 | AK66: =MAX(AA66:AH66) -> 0
M67: 0 | O67: 0 | P67: =IF(AK67=100,"NS",AK67) -> 0 | AJ67: 0 | AK67: 0
M68: 0 | O68: 0 | P68: 0 | AJ68: 0 | AK68: 0
M69: 0 | O69: 0 | P69: 0 | AJ69: 0 | AK69: 0
M70: 0 | O70: 0 | P70: 0 | AJ70: 0 | AK70: 0
M71: 0 | O71: 0 | P71: 0 | AJ71: 0 | AK71: 0
M72: 0 | O72: 0 | P72: 0 | AJ72: 0 | AK72: 0
M73: 0 | O73: 0 | P73: 0 | AJ73: 0 | AK73: 0
M74: 0 | O74: 0 | P74: 0 | AJ74: 0 | AK74: 0
M75: 0 | O75: 0 | P75: 0 | AJ75: 0 | AK75: 0
M76: 0 | O76: 0 | P76: 0 | AJ76: 0 | AK76: 0
M77: 0 | O77: 0 | P77: 0 | AJ77: 0 | AK77: 0
M78: 0 | O78: 0 | P78: 0 | AJ78: 0 | AK78: 0
M79: 0 | O79: 0 | P79: 0 | AJ79: 0 | AK79: 0
M80: 0 | O80: 0 | P80: 0 | AJ80: 0 | AK80: 0
M81: 0 | O81: 0 | P81: 0 | AJ81: 0 | AK81: 0
M82: 0 | O82: 0 | P82: 0 | AJ82: 0 | AK82: 0
M83: 0 | O83: 0 | P83: 0 | AJ83: 0 | AK83: 0
M84: 0 | O84: 0 | P84: 0 | AJ84: 0 | AK84: 0
M85: 0 | O85: 0 | P85: 0 | AJ85: 0 | AK85: 0
M86: 0 | O86: 0 | P86: 0 | AJ86: 0 | AK86: 0
M87: 0 | O87: 0 | P87: 0 | AJ87: 0 | AK87: 0
M88: 0 | O88: 0 | P88: 0 | AJ88: 0 | AK88: 0
M89: 0 | O89: 0 | P89: 0 | AJ89: 0 | AK89: 0
M90: 0 | O90: 0 | P90: 0 | AJ90: 0 | AK90: 0
M91: 0 | O91: 0 | P91: 0 | AJ91: 0 | AK91: 0
M92: 0 | O92: 0 | P92: 0 | AJ92: 0 | AK92: 0
M93: 0 | O93: 0 | P93: 0 | AJ93: 0 | AK93: 0
M94: 0 | O94: 0 | P94: 0 | AJ94: 0 | AK94: 0
M95: 0 | O95: 0 | P95: 0 | AJ95: 0 | AK95: 0
M96: 0 | O96: 0 | P96: 0 | AJ96: 0 | AK96: 0
M97: 0 | O97: 0 | P97: 0 | AJ97: 0 | AK97: 0
AJ98: 0 | AK98: 0
AJ99: 0 | AK99: 0
AJ100: 0 | AK100: 0
AJ101: 0 | AK101: 0
AJ102: 0 | AK102: 0
AJ103: 0 | AK103: 0
AJ104: 0 | AK104: 0
AJ105: 0 | AK105: 0
AJ106: 0 | AK106: 0
AJ107: 0 | AK107: 0
AJ108: 0 | AK108: 0
AJ109: 0 | AK109: 0
AJ110: 0 | AK110: 0
AJ111: 0 | AK111: 0
AJ112: 0 | AK112: 0
AJ113: 0 | AK113: 0
AJ114: 0 | AK114: 0
AJ115: 0 | AK115: 0
AJ116: 0 | AK116: 0
AJ117: 0 | AK117: 0
AJ118: 0 | AK118: 0
AJ119: 0 | AK119: 0
AJ120: 0 | AK120: 0
AJ121: 0 | AK121: 0
AJ122: 0 | AK122: 0
AJ123: 0 | AK123: 0
AJ124: 0 | AK124: 0
AJ125: 0 | AK125: 0
AJ126: 0 | AK126: 0
AJ127: 0 | AK127: 0
AJ128: 0 | AK128: 0
AJ129: 0 | AK129: 0
AJ130: =IF($AA$1 = 1, SUM(AA130:AH130),SUM(AA130:AH130)-MAX(AA130:AH130)+AI130) -> 0 | AK130: =MAX(AA130:AH130) -> 0
AJ131: 0 | AK131: 0
AJ132: 0 | AK132: 0
AJ133: 0 | AK133: 0
AJ134: 0 | AK134: 0
AJ135: 0 | AK135: 0
AJ136: 0 | AK136: 0
AJ137: 0 | AK137: 0
AJ138: 0 | AK138: 0
AJ139: 0 | AK139: 0
AJ140: 0 | AK140: 0
AJ141: 0 | AK141: 0
AJ142: 0 | AK142: 0
AJ143: 0 | AK143: 0
AJ144: 0 | AK144: 0
AJ145: 0 | AK145: 0
AJ146: 0 | AK146: 0
AJ147: 0 | AK147: 0
AJ148: 0 | AK148: 0
AJ149: 0 | AK149: 0
AJ150: 0 | AK150: 0
AJ151: 0 | AK151: 0

Sheet Rosters
B1: Wisconsin Little Ten
A3: Teams
A4: 1 | B4: Beaver Dam | C4: BD
A5: 2 | B5: Hartford | C5: HT
A6: 3 | B6: Oconomowoc | C6: OC
A7: 4 | B7: Slinger | C7: SL
A8: 5 | B8: Watertown | C8: WT
A9: 6 | B9: West Bend East | C9: WBE
A10: 7 | B10: West Bend West | C10: WBW
A11: 8 | B11: Wisconsin Lutheran | C11: WL
B19: =COUNTA(team1players) -> 6 | D19: =COUNTA(team2players) -> 8 | F19: =COUNTA(team3players) -> 9 | H19: =COUNTA(team4players) -> 12 | J19: =COUNTA(team5players) -> 6 | L19: =COUNTA(team6players) -> 5 | N19: =COUNTA(team7players) -> 6 | P19: =COUNTA(team8players) -> 6
A20: Players | B20: =B4 -> Beaver Dam | C20: Year | D20: =B5 -> Hartford | E20: Year | F20: =B6 -> Oconomowoc | G20: Year | H20: =B7 -> Slinger | I20: Year | J20: =B8 -> Watertown | K20: Year | L20: =B9 -> West Bend East | M20: Year | N20: =B10 -> West Bend West | O20: Year | P20: =B11 -> Wisconsin Lutheran | Q20: Year
A21: 1 | B21: Thomas Bleich | C21: 11 | D21: Ryan Ruona | E21: 11 | F21: George Kneiser | G21: 11 | H21: Austin Walsh | I21: 12 | J21: Cameron Boyd | K21: 11 | L21: Mitch Saari | M21: 12 | N21: Alex Haas | O21: 12 | P21: Zachary Stahle | Q21: 12
A22: 2 | B22: Koby Jones | C22: 12 | D22: John Turchi | E22: 10 | F22: Colin Prom | G22: 12 | H22: Jack Burns | I22: 12 | J22: Alex Thompson | K22: 9 | L22: Devon Hanson | M22: 11 | N22: Kevin Albrecht | O22: 11 | P22: Ben Krause | Q22: 12
A23: 3 | B23: Carter Smith | C23: 11 | D23: Lucas Hass | E23: 11 | F23: Sam Hosch | G23: 12 | H23: Tanner Schmidt | I23: 12 | J23: Collin Travis | K23: 11 | L23: Sam Struebing | M23: 11 | N23: Jacob Droese | O23: 12 | P23: Scratch #1 | Q23: x
A24: 4 | B24: Jacob Smith | C24: 10 | D24: Jake Lidwin | E24: 11 | F24: Mark Moreseau | G24: 12 | H24: Ryan Graunke | I24: 12 | J24: Austin Douglas | K24: 10 | L24: Josh Breuer | M24: 12 | N24: Max Rohlinger | O24: 10 | P24: Scratch #2 | Q24: x
A25: 5 | B25: Cody Trotter | C25: 12 | D25: Luke Carroll | E25: 10 | F25: Allan Moutvic | G25: 12 | H25: Howie Wolf | I25: 12 | J25: Dylan Rahfaldt | K25: 9 | L25: Brad Halverson | M25: 9 | N25: Nick Meucci | O25: 12 | P25: Scratch #3 | Q25: x
A26: 6 | B26: Ryan Henning | C26: 11 | D26: Adam Butler | E26: 12 | F26: Brett Lange | G26: 12 | H26: Joe Perry | I26: 12 | J26: Trevor Reierson | K26: 11 | N26: Marvin Bateman | O26: 11 | P26: Brendan Hausch | Q26: 10
A27: 7 | D27: Mike Vanderheiden | E27: 10 | F27: Drew Cook | G27: 11 | H27: Bryan Laude | I27: 12
A28: 8 | D28: Zak Brooks | E28: 10 | H28: Chris Evans | I28: 11
A29: 9 | F29: Joey Ploch | G29: 9 | H29: Scott Darin | I29: 11
A30: 10 | H30: Ryan Erdmann | I30: 10
A31: 11 | H31: Ryan Kusek | I31: 9
A32: 12 | H32: Nick Gliniecki | I32: 11
A33: 13
A34: 14
A35: 15
A36: 16
A37: 17
A38: 18
A39: 19
A40: 20
A43: Current
A44: 1 | B44: 1 | D44: 0 | F44: 0 | H44: 1 | J44: 0 | L44: 1 | N44: 0 | P44: 2
A45: 2 | B45: 0 | D45: 5 | F45: 1 | H45: 7 | J45: 1 | L45: 0 | N45: 3 | P45: 3
A46: 3 | B46: 4 | D46: 4 | F46: 8 | H46: 0 | J46: 2 | L46: 3 | N46: 1 | P46: 0
A47: 4 | B47: 3 | D47: 2 | F47: 5 | H47: 3 | J47: 3 | L47: 2 | N47: 2 | P47: 1
A48: 5 | B48: 2 | D48: 7 | F48: 4 | H48: 10 | J48: 5 | L48: 4 | N48: 4 | P48: 5

Sheet Schedule
A1: 2015 | B1: Wisconsin Little Ten Schedule
D2: Fill in schedule by typing in
D3: dates in shaded area.
D4: Do not sort.
A5: Teams | D5: Date
A6: 1 | B6: Beaver Dam | C6: BD | D6: 2015-05-06
A7: 2 | B7: Hartford | C7: HT | D7: 2015-05-12
A8: 3 | B8: Oconomowoc | C8: OC | D8: 2015-05-04
A9: 4 | B9: Slinger | C9: SL | D9: 2015-05-13
A10: 5 | B10: Watertown | C10: WT | D10: 2015-04-30
A11: 6 | B11: West Bend East | C11: WBE | D11: 2015-04-27
A12: 7 | B12: West Bend West | C12: WBW | D12: 2015-04-20
A13: 8 | B13: Wisconsin Lutheran | C13: WL | D13: 2015-04-14
A14: 9 | B14: Conference Championship @ Horicon Hills | C14: Conf | D14: 2015-05-20
B16: Rain Dates:
C100: WL | D100: 42108
C101: WBW | D101: 42114
C102: WBE | D102: 42121
C103: WT | D103: 42124
C104: OC | D104: 42128
C105: BD | D105: 42130
C106: HT | D106: 42136
C107: SL | D107: 42137
C108: Conf | D108: 42144
